Workbook

Sheet 1k - LOS (hidden)
B1: Družstvo | G1: 12
H2: LOSOVÁNÍ MÍST
A3: p.l. | B3: 1. závod | C3: A | D3: B | E3: C | F3: D | G3: index | H3: los pořadí | I3: DRUŽSTVA | J3: 1.závod | K3: 2.závod
A4: =IF(ISNA(MATCH(G4,J:J,0)),"",INDEX(H:H,MATCH(G4,J:J,0),)) -> 12 | B4: =IF(ISNA(MATCH(A4,$H$4:$H$15,0)),"",INDEX($I$4:$I$15,MATCH(A4,$H$4:$H$15,0),)) -> MRS - Poháry sport hobby M. Budějovice - Sensas | C4: 1 | D4: 7 | E4: 7 | F4: 1 | G4: 1 | H4: 12 | I4: =Soupisky!$M11 -> MRS - Poháry sport hobby M. Budějovice - Sensas | J4: 1 | K4: 3
A5: 6 | B5: =IF(ISNA(MATCH(A5,$H$4:$H$15,0)),"",INDEX($I$4:$I$15,MATCH(A5,$H$4:$H$15,0),)) -> MRS Hrušovany nad Jevišovkou MAVER | C5: =IF(C4+1>$G$1,C4+1-$G$1,C4+1) -> 2 | D5: =IF(D4+1>$G$1,D4+1-$G$1,D4+1) -> 8 | E5: =IF(E4+1>$G$1,E4+1-$G$1,E4+1) -> 8 | F5: =IF(F4+1>$G$1,F4+1-$G$1,F4+1) -> 2 | G5: 2 | H5: 11 | I5: =Soupisky!$M12 -> MO ČRS Mohelnice MIVARDI | J5: 4 | K5: 1
A6: 1 | B6: ČRS Matchpro | C6: =IF(C5+1>$G$1,C5+1-$G$1,C5+1) -> 3 | D6: 9 | E6: 9 | F6: 3 | G6: 3 | H6: 10 | I6: =Soupisky!$M9 -> MO ČRS Šumperk | J6: 9 | K6: 5
A7: 11 | B7: MO ČRS Mohelnice MIVARDI | C7: 4 | D7: 10 | E7: 10 | F7: 4 | G7: 4 | H7: 9 | I7: =Soupisky!$M6 -> MRS RSK Jižní Morava Tubertini | J7: 10 | K7: 9
A8: 4 | B8: MO MRS Letovice PRESTON | C8: 5 | D8: 11 | E8: 11 | F8: 5 | G8: 5 | H8: 8 | I8: =Soupisky!$M7 -> MO ČRS Ostrava PRESTON | J8: 7 | K8: 2
A9: 7 | B9: MO ČRS Karviná MILO | C9: 6 | D9: 12 | E9: 12 | F9: 6 | G9: 6 | H9: 7 | I9: =Soupisky!$M8 -> MO ČRS Karviná MILO | J9: 6 | K9: 4
A10: 8 | B10: MO ČRS Ostrava PRESTON | C10: 7 | D10: 1 | E10: 1 | F10: 7 | G10: 7 | H10: 6 | I10: =Soupisky!$M5 -> MRS Hrušovany nad Jevišovkou MAVER | J10: 2 | K10: 11
A11: 2 | B11: ČRS MILO Loštice | C11: 8 | D11: 2 | E11: 2 | F11: 8 | G11: 8 | H11: 5 | I11: =Soupisky!$M10 -> MO ČRS Ostrava | J11: 11 | K11: 7
A12: 10 | B12: MO ČRS Šumperk | C12: 9 | D12: 3 | E12: 3 | F12: 9 | G12: 9 | H12: 4 | I12: =Soupisky!$M13 -> MO MRS Letovice PRESTON | J12: 5 | K12: 12
A13: 9 | B13: MRS RSK Jižní Morava Tubertini | C13: 10 | D13: 4 | E13: 4 | F13: 10 | G13: 10 | H13: 3 | I13: =Soupisky!$M14 -> MO ČRS Vítkov -MAVER TEAM | J13: 12 | K13: 8
A14: 5 | B14: MO ČRS Ostrava | C14: 11 | D14: 5 | E14: 5 | F14: 11 | G14: 11 | H14: 2 | I14: =Soupisky!$M4 -> ČRS MILO Loštice | J14: 8 | K14: 6
A15: 3 | B15: MO ČRS Vítkov -MAVER TEAM | C15: 12 | D15: 6 | E15: 6 | F15: 12 | G15: 12 | H15: 1 | I15: =Soupisky!$M15 -> ČRS Matchpro | J15: 3 | K15: 10
I17: Forhont
B18: 2. závod | C18: A | D18: B | E18: C | F18: D | G18: index | I18: miniforhont
A19: =IF(ISNA(MATCH(G19,K:K,0)),"",INDEX(H:H,MATCH(G19,K:K,0),)) -> 11 | B19: =IF(ISNA(MATCH(A19,$H$4:$H$15,0)),"",INDEX($I$4:$I$15,MATCH(A19,$H$4:$H$15,0),)) -> MO ČRS Mohelnice MIVARDI | C19: =C4 -> 1 | D19: 7 | E19: 7 | F19: 1 | G19: 1
A20: 8 | B20: =IF(ISNA(MATCH(A20,$H$4:$H$15,0)),"",INDEX($I$4:$I$15,MATCH(A20,$H$4:$H$15,0),)) -> MO ČRS Ostrava PRESTON | C20: 2 | D20: 8 | E20: 8 | F20: 2 | G20: 2 | H20: sobota
A21: 12 | B21: MRS - Poháry sport hobby M. Budějovice - Sensas | C21: 3 | D21: 9 | E21: 9 | F21: 3 | G21: 3
A22: 7 | B22: MO ČRS Karviná MILO | C22: 4 | D22: 10 | E22: 10 | F22: 4 | G22: 4
A23: 10 | B23: MO ČRS Šumperk | C23: 5 | D23: 11 | E23: 11 | F23: 5 | G23: 5
A24: 2 | B24: ČRS MILO Loštice | C24: 6 | D24: 12 | E24: 12 | F24: 6 | G24: 6
A25: 5 | B25: MO ČRS Ostrava | C25: 7 | D25: 1 | E25: 1 | F25: 7 | G25: 7 | H25: neděle
A26: 3 | B26: MO ČRS Vítkov -MAVER TEAM | C26: 8 | D26: 2 | E26: 2 | F26: 8 | G26: 8
A27: 9 | B27: MRS RSK Jižní Morava Tubertini | C27: 9 | D27: 3 | E27: 3 | F27: 9 | G27: 9
A28: 1 | B28: ČRS Matchpro | C28: 10 | D28: 4 | E28: 4 | F28: 10 | G28: 10
A29: 6 | B29: MRS Hrušovany nad Jevišovkou MAVER | C29: 11 | D29: 5 | E29: 5 | F29: 11 | G29: 11
A30: 4 | B30: MO MRS Letovice PRESTON | C30: 12 | D30: 6 | E30: 6 | F30: 12 | G30: 12

Sheet 1k - Základní list (hidden)
A1: Základní popis závodů
C2: Místo konání: | E2: 471 089 ONDŘEJNICE 1 A
C3: Druh závodu: | E3: =LIGA -> 2. liga, sk. C | G3: =MID(CELL("filename",A1),FIND("]",CELL("filename",A1))+1,1) & ". kolo" -> 1. kolo
C4: Od: | D4: 28.4.18 | E4: do: | F4: 29.4.18
C5: Pořadatel: | E5: MO ČRS Ostrava PRESTON
C6: Hl. rozhodčí: | E6: Radim Vytřas
A8: Sektory | B8: Index | C8: Počet míst | E8: Popis úseků | I8: 1 závod | K8: 2 závod | M8: CELKEM
C9: 1.záv. | D9: 2.záv. | I9: naloveno | J9: prům. na závodníka | K9: Naloveno | L9: prům na závdníka | M9: Naloveno | N9: prům na závdníka
A10: Suma | C10: =SUM(C11:C42) -> 48 | D10: =SUM(D11:D42) -> 48 | I10: =SUM(I11:I14) -> 199170 | J10: =IF(I10>0,I10/$C10,"") -> 4149.375 | K10: =SUM(K11:K14) -> 148591 | L10: =IF(K10>0,K10/$D10,"") -> 3095.645833 | M10: =SUM(M11:M14) -> 347761 | N10: =IF(M10>0,M10/(SUM(C10:D10)),"") -> 3622.510417
A11: A | B11: 4 | C11: =IF(ISBLANK($A11),"",COUNTA('1k - 1. závod'!$D$6:$D$17)) -> 12 | D11: =IF(ISBLANK($A11),"",COUNTA('1k - 2. závod'!$D$6:$D$17)) -> 12 | I11: =SUM('1k - 1. závod'!$D$6:$D$17) -> 41930 | J11: =IF(I11>0,I11/$C11,"") -> 3494.166667 | K11: =SUM('1k - 2. závod'!$D$6:$D$17) -> 21156 | L11: =IF(K11>0,K11/$D11,"") -> 1763 | M11: =SUM(I11,K11) -> 63086 | N11: =IF(M11>0,M11/(SUM(C11:D11)),"") -> 2628.583333 | O11: =COUNTIF('1k - Výsledková listina'!$N$2:$N$56,'1k - Základní list'!A11) -> 12
A12: B | B12: =IF(ISBLANK(A12),"",B11+7) -> 11 | C12: =IF(ISBLANK($A12),"",COUNTA('1k - 1. závod'!$K$6:$K$17)) -> 12 | D12: =IF(ISBLANK($A12),"",COUNTA('1k - 2. závod'!$K$6:$K$17)) -> 12 | I12: =SUM('1k - 1. závod'!$K$6:$K$17) -> 53805 | J12: =IF(I12>0,I12/$C12,"") -> 4483.75 | K12: =SUM('1k - 2. závod'!$K$6:$K$17) -> 24785 | L12: =IF(K12>0,K12/$D12,"") -> 2065.416667 | M12: =SUM(I12,K12) -> 78590 | N12: =IF(M12>0,M12/(SUM(C12:D12)),"") -> 3274.583333 | O12: =COUNTIF('1k - Výsledková listina'!$N$2:$N$56,'1k - Základní list'!A12) -> 12
A13: C | B13: =IF(ISBLANK(A13),"",B12+7) -> 18 | C13: =IF(ISBLANK($A13),"",COUNTA('1k - 1. závod'!$R$6:$R$17)) -> 12 | D13: =IF(ISBLANK($A13),"",COUNTA('1k - 2. závod'!$R$6:$R$17)) -> 12 | I13: =SUM('1k - 1. závod'!$R$6:$R$17) -> 66980 | J13: =IF(I13>0,I13/$C13,"") -> 5581.666667 | K13: =SUM('1k - 2. závod'!$R$6:$R$17) -> 69085 | L13: =IF(K13>0,K13/$D13,"") -> 5757.083333 | M13: =SUM(I13,K13) -> 136065 | N13: =IF(M13>0,M13/(SUM(C13:D13)),"") -> 5669.375 | O13: =COUNTIF('1k - Výsledková listina'!$N$2:$N$56,'1k - Základní list'!A13) -> 12
A14: D | B14: =IF(ISBLANK(A14),"",B13+7) -> 25 | C14: =IF(ISBLANK($A14),"",COUNTA('1k - 1. závod'!$Y$6:$Y$17)) -> 12 | D14: =IF(ISBLANK($A14),"",COUNTA('1k - 2. závod'!$Y$6:$Y$17)) -> 12 | I14: =SUM('1k - 1. závod'!$Y$6:$Y$17) -> 36455 | J14: =IF(I14>0,I14/$C14,"") -> 3037.916667 | K14: =SUM('1k - 2. závod'!$Y$6:$Y$17) -> 33565 | L14: =IF(K14>0,K14/$D14,"") -> 2797.083333 | M14: =SUM(I14,K14) -> 70020 | N14: =IF(M14>0,M14/(SUM(C14:D14)),"") -> 2917.5 | O14: =COUNTIF('1k - Výsledková listina'!$N$2:$N$56,'1k - Základní list'!A14) -> 12
D15: Maximální výsledek | I15: =MAX('1k - 1. závod'!$D$6:$Y$17) -> 10890 | K15: =MAX('1k - 2. závod'!$D$6:$Y$17) -> 13840 | M15: =MAX(I15,K15) -> 13840
A17: Zelené označení pro družstva s forhontem.
A21: Přestupky
C22: 1 závod
C23: závodník | E23: družstvo | H23: místo | I23: důvod | N23: trest
C24: =IF(ISBLANK(H24),"",INDEX('1k - Výsledková listina'!D:D,MATCH(H24,'1k - Výsledková listina'!U:U,0),)) ->  | E24: =IF(ISBLANK(H24),"",INDEX('1k - Výsledková listina'!W:W,MATCH(H24,'1k - Výsledková listina'!U:U,0),)) -> 
C25: =IF(ISBLANK(H25),"",INDEX('1k - Výsledková listina'!D:D,MATCH(H25,'1k - Výsledková listina'!U:U,0),)) ->  | E25: =IF(ISBLANK(H25),"",INDEX('1k - Výsledková listina'!W:W,MATCH(H25,'1k - Výsledková listina'!U:U,0),)) -> 
C26: =IF(ISBLANK(H26),"",INDEX('1k - Výsledková listina'!D:D,MATCH(H26,'1k - Výsledková listina'!U:U,0),)) ->  | E26: =IF(ISBLANK(H26),"",INDEX('1k - Výsledková listina'!W:W,MATCH(H26,'1k - Výsledková listina'!U:U,0),)) -> 
C27: =IF(ISBLANK(H27),"",INDEX('1k - Výsledková listina'!D:D,MATCH(H27,'1k - Výsledková listina'!U:U,0),)) ->  | E27: =IF(ISBLANK(H27),"",INDEX('1k - Výsledková listina'!W:W,MATCH(H27,'1k - Výsledková listina'!U:U,0),)) -> 
C28: =IF(ISBLANK(H28),"",INDEX('1k - Výsledková listina'!D:D,MATCH(H28,'1k - Výsledková listina'!U:U,0),)) ->  | E28: =IF(ISBLANK(H28),"",INDEX('1k - Výsledková listina'!W:W,MATCH(H28,'1k - Výsledková listina'!U:U,0),)) -> 
C29: =IF(ISBLANK(H29),"",INDEX('1k - Výsledková listina'!D:D,MATCH(H29,'1k - Výsledková listina'!U:U,0),)) ->  | E29: =IF(ISBLANK(H29),"",INDEX('1k - Výsledková listina'!W:W,MATCH(H29,'1k - Výsledková listina'!U:U,0),)) -> 
C30: =IF(ISBLANK(H30),"",INDEX('1k - Výsledková listina'!D:D,MATCH(H30,'1k - Výsledková listina'!U:U,0),)) ->  | E30: =IF(ISBLANK(H30),"",INDEX('1k - Výsledková listina'!W:W,MATCH(H30,'1k - Výsledková listina'!U:U,0),)) -> 
C31: =IF(ISBLANK(H31),"",INDEX('1k - Výsledková listina'!D:D,MATCH(H31,'1k - Výsledková listina'!U:U,0),)) ->  | E31: =IF(ISBLANK(H31),"",INDEX('1k - Výsledková listina'!W:W,MATCH(H31,'1k - Výsledková listina'!U:U,0),)) -> 
C32: =IF(ISBLANK(H32),"",INDEX('1k - Výsledková listina'!D:D,MATCH(H32,'1k - Výsledková listina'!U:U,0),)) ->  | E32: =IF(ISBLANK(H32),"",INDEX('1k - Výsledková listina'!W:W,MATCH(H32,'1k - Výsledková listina'!U:U,0),)) -> 
C33: =IF(ISBLANK(H33),"",INDEX('1k - Výsledková listina'!D:D,MATCH(H33,'1k - Výsledková listina'!U:U,0),)) ->  | E33: =IF(ISBLANK(H33),"",INDEX('1k - Výsledková listina'!W:W,MATCH(H33,'1k - Výsledková listina'!U:U,0),)) -> 
C34: =IF(ISBLANK(H34),"",INDEX('1k - Výsledková listina'!D:D,MATCH(H34,'1k - Výsledková listina'!U:U,0),)) ->  | E34: =IF(ISBLANK(H34),"",INDEX('1k - Výsledková listina'!W:W,MATCH(H34,'1k - Výsledková listina'!U:U,0),)) -> 
C35: =IF(ISBLANK(H35),"",INDEX('1k - Výsledková listina'!D:D,MATCH(H35,'1k - Výsledková listina'!U:U,0),)) ->  | E35: =IF(ISBLANK(H35),"",INDEX('1k - Výsledková listina'!W:W,MATCH(H35,'1k - Výsledková listina'!U:U,0),)) -> 
C36: =IF(ISBLANK(H36),"",INDEX('1k - Výsledková listina'!D:D,MATCH(H36,'1k - Výsledková listina'!U:U,0),)) ->  | E36: =IF(ISBLANK(H36),"",INDEX('1k - Výsledková listina'!W:W,MATCH(H36,'1k - Výsledková listina'!U:U,0),)) -> 
C37: =IF(ISBLANK(H37),"",INDEX('1k - Výsledková listina'!D:D,MATCH(H37,'1k - Výsledková listina'!U:U,0),)) ->  | E37: =IF(ISBLANK(H37),"",INDEX('1k - Výsledková listina'!W:W,MATCH(H37,'1k - Výsledková listina'!U:U,0),)) -> 
C38: =IF(ISBLANK(H38),"",INDEX('1k - Výsledková listina'!D:D,MATCH(H38,'1k - Výsledková listina'!U:U,0),)) ->  | E38: =IF(ISBLANK(H38),"",INDEX('1k - Výsledková listina'!W:W,MATCH(H38,'1k - Výsledková listina'!U:U,0),)) -> 
C39: =IF(ISBLANK(H39),"",INDEX('1k - Výsledková listina'!D:D,MATCH(H39,'1k - Výsledková listina'!U:U,0),)) ->  | E39: =IF(ISBLANK(H39),"",INDEX('1k - Výsledková listina'!W:W,MATCH(H39,'1k - Výsledková listina'!U:U,0),)) -> 
C40: =IF(ISBLANK(H40),"",INDEX('1k - Výsledková listina'!D:D,MATCH(H40,'1k - Výsledková listina'!U:U,0),)) ->  | E40: =IF(ISBLANK(H40),"",INDEX('1k - Výsledková listina'!W:W,MATCH(H40,'1k - Výsledková listina'!U:U,0),)) -> 
C41: =IF(ISBLANK(H41),"",INDEX('1k - Výsledková listina'!D:D,MATCH(H41,'1k - Výsledková listina'!U:U,0),)) ->  | E41: =IF(ISBLANK(H41),"",INDEX('1k - Výsledková listina'!W:W,MATCH(H41,'1k - Výsledková listina'!U:U,0),)) -> 
C42: =IF(ISBLANK(H42),"",INDEX('1k - Výsledková listina'!D:D,MATCH(H42,'1k - Výsledková listina'!U:U,0),)) ->  | E42: =IF(ISBLANK(H42),"",INDEX('1k - Výsledková listina'!W:W,MATCH(H42,'1k - Výsledková listina'!U:U,0),)) -> 
C43: =IF(ISBLANK(H43),"",INDEX('1k - Výsledková listina'!D:D,MATCH(H43,'1k - Výsledková listina'!U:U,0),)) ->  | E43: =IF(ISBLANK(H43),"",INDEX('1k - Výsledková listina'!W:W,MATCH(H43,'1k - Výsledková listina'!U:U,0),)) -> 
C45: 2 závod
C46: závodník | E46: družstvo | H46: místo | I46: důvod | N46: trest
C47: =IF(ISBLANK(H47),"",INDEX('1k - Výsledková listina'!M:M,MATCH(H47,'1k - Výsledková listina'!V:V,0),)) ->  | E47: =IF(ISBLANK(H47),"",INDEX('1k - Výsledková listina'!W:W,MATCH(H47,'1k - Výsledková listina'!V:V,0),)) -> 
C48: =IF(ISBLANK(H48),"",INDEX('1k - Výsledková listina'!M:M,MATCH(H48,'1k - Výsledková listina'!V:V,0),)) ->  | E48: =IF(ISBLANK(H48),"",INDEX('1k - Výsledková listina'!W:W,MATCH(H48,'1k - Výsledková listina'!V:V,0),)) -> 
C49: =IF(ISBLANK(H49),"",INDEX('1k - Výsledková listina'!M:M,MATCH(H49,'1k - Výsledková listina'!V:V,0),)) ->  | E49: =IF(ISBLANK(H49),"",INDEX('1k - Výsledková listina'!W:W,MATCH(H49,'1k - Výsledková listina'!V:V,0),)) -> 
C50: =IF(ISBLANK(H50),"",INDEX('1k - Výsledková listina'!M:M,MATCH(H50,'1k - Výsledková listina'!V:V,0),)) ->  | E50: =IF(ISBLANK(H50),"",INDEX('1k - Výsledková listina'!W:W,MATCH(H50,'1k - Výsledková listina'!V:V,0),)) -> 
C51: =IF(ISBLANK(H51),"",INDEX('1k - Výsledková listina'!M:M,MATCH(H51,'1k - Výsledková listina'!V:V,0),)) ->  | E51: =IF(ISBLANK(H51),"",INDEX('1k - Výsledková listina'!W:W,MATCH(H51,'1k - Výsledková listina'!V:V,0),)) -> 
C52: =IF(ISBLANK(H52),"",INDEX('1k - Výsledková listina'!M:M,MATCH(H52,'1k - Výsledková listina'!V:V,0),)) ->  | E52: =IF(ISBLANK(H52),"",INDEX('1k - Výsledková listina'!W:W,MATCH(H52,'1k - Výsledková listina'!V:V,0),)) -> 
C53: =IF(ISBLANK(H53),"",INDEX('1k - Výsledková listina'!M:M,MATCH(H53,'1k - Výsledková listina'!V:V,0),)) ->  | E53: =IF(ISBLANK(H53),"",INDEX('1k - Výsledková listina'!W:W,MATCH(H53,'1k - Výsledková listina'!V:V,0),)) -> 
C54: =IF(ISBLANK(H54),"",INDEX('1k - Výsledková listina'!M:M,MATCH(H54,'1k - Výsledková listina'!V:V,0),)) ->  | E54: =IF(ISBLANK(H54),"",INDEX('1k - Výsledková listina'!W:W,MATCH(H54,'1k - Výsledková listina'!V:V,0),)) -> 
C55: =IF(ISBLANK(H55),"",INDEX('1k - Výsledková listina'!M:M,MATCH(H55,'1k - Výsledková listina'!V:V,0),)) ->  | E55: =IF(ISBLANK(H55),"",INDEX('1k - Výsledková listina'!W:W,MATCH(H55,'1k - Výsledková listina'!V:V,0),)) -> 
C56: =IF(ISBLANK(H56),"",INDEX('1k - Výsledková listina'!M:M,MATCH(H56,'1k - Výsledková listina'!V:V,0),)) ->  | E56: =IF(ISBLANK(H56),"",INDEX('1k - Výsledková listina'!W:W,MATCH(H56,'1k - Výsledková listina'!V:V,0),)) -> 
C57: =IF(ISBLANK(H57),"",INDEX('1k - Výsledková listina'!M:M,MATCH(H57,'1k - Výsledková listina'!V:V,0),)) ->  | E57: =IF(ISBLANK(H57),"",INDEX('1k - Výsledková listina'!W:W,MATCH(H57,'1k - Výsledková listina'!V:V,0),)) -> 
C58: =IF(ISBLANK(H58),"",INDEX('1k - Výsledková listina'!M:M,MATCH(H58,'1k - Výsledková listina'!V:V,0),)) ->  | E58: =IF(ISBLANK(H58),"",INDEX('1k - Výsledková listina'!W:W,MATCH(H58,'1k - Výsledková listina'!V:V,0),)) -> 
C59: =IF(ISBLANK(H59),"",INDEX('1k - Výsledková listina'!M:M,MATCH(H59,'1k - Výsledková listina'!V:V,0),)) ->  | E59: =IF(ISBLANK(H59),"",INDEX('1k - Výsledková listina'!W:W,MATCH(H59,'1k - Výsledková listina'!V:V,0),)) -> 
C60: =IF(ISBLANK(H60),"",INDEX('1k - Výsledková listina'!M:M,MATCH(H60,'1k - Výsledková listina'!V:V,0),)) ->  | E60: =IF(ISBLANK(H60),"",INDEX('1k - Výsledková listina'!W:W,MATCH(H60,'1k - Výsledková listina'!V:V,0),)) -> 
C61: =IF(ISBLANK(H61),"",INDEX('1k - Výsledková listina'!M:M,MATCH(H61,'1k - Výsledková listina'!V:V,0),)) ->  | E61: =IF(ISBLANK(H61),"",INDEX('1k - Výsledková listina'!W:W,MATCH(H61,'1k - Výsledková listina'!V:V,0),)) -> 
C62: =IF(ISBLANK(H62),"",INDEX('1k - Výsledková listina'!M:M,MATCH(H62,'1k - Výsledková listina'!V:V,0),)) ->  | E62: =IF(ISBLANK(H62),"",INDEX('1k - Výsledková listina'!W:W,MATCH(H62,'1k - Výsledková listina'!V:V,0),)) -> 
C63: =IF(ISBLANK(H63),"",INDEX('1k - Výsledková listina'!M:M,MATCH(H63,'1k - Výsledková listina'!V:V,0),)) ->  | E63: =IF(ISBLANK(H63),"",INDEX('1k - Výsledková listina'!W:W,MATCH(H63,'1k - Výsledková listina'!V:V,0),)) -> 
C64: =IF(ISBLANK(H64),"",INDEX('1k - Výsledková listina'!M:M,MATCH(H64,'1k - Výsledková listina'!V:V,0),)) ->  | E64: =IF(ISBLANK(H64),"",INDEX('1k - Výsledková listina'!W:W,MATCH(H64,'1k - Výsledková listina'!V:V,0),)) -> 
C65: =IF(ISBLANK(H65),"",INDEX('1k - Výsledková listina'!M:M,MATCH(H65,'1k - Výsledková listina'!V:V,0),)) ->  | E65: =IF(ISBLANK(H65),"",INDEX('1k - Výsledková listina'!W:W,MATCH(H65,'1k - Výsledková listina'!V:V,0),)) -> 
C66: =IF(ISBLANK(H66),"",INDEX('1k - Výsledková listina'!M:M,MATCH(H66,'1k - Výsledková listina'!V:V,0),)) ->  | E66: =IF(ISBLANK(H66),"",INDEX('1k - Výsledková listina'!W:W,MATCH(H66,'1k - Výsledková listina'!V:V,0),)) -> 
A70: Přestupky z předešlých kol
C71: reg | D71: závodník | F71: družstvo | I71: důvod | N71: karta

Sheet 1k - Výsledková listina (hidden)
A1: Výsledková listina
B2: =CONCATENATE("Místo konání: ",'1k - Základní list'!E2) -> Místo konání: 471 089 ONDŘEJNICE 1 A | P2: =CONCATENATE("Pořadatel: ",'1k - Základní list'!E5) -> Pořadatel: MO ČRS Ostrava PRESTON
B3: =CONCATENATE("Druh závodu: ",'1k - Základní list'!$E$3," ",'1k - Základní list'!$G$3) -> Druh závodu: 2. liga, sk. C 1. kolo | P3: =CONCATENATE("Hlavní rozhodčí: ",'1k - Základní list'!E6) -> Hlavní rozhodčí: Radim Vytřas
B4: =CONCATENATE("Datum konání: ",'1k - Základní list'!D4," - ",'1k - Základní list'!F4) -> Datum konání: 28.4.18 - 29.4.18
A5: Poř. los. | B5: Organizace | C5: 1. kolo - 1. závod | L5: 1. kolo - 2. závod | U5: 1 k | V5: 2 k | W5: dr | X5: Celkem kolo | AB5: velikost dr. | AC5: 4
C6: ID | D6: Příjmení jméno | E6: Sektor | G6: Jednotlivci | I6: Družstva | L6: ID | M6: Příjmení jméno | N6: =E6 -> Sektor | P6: Jednotlivci | R6: Družstva | AB6: pocet dr. | AC6: =POCET_DRUZSTEV -> 12
E7: sk | F7: čís | G7: CIPS | H7: um. | I7: CIPS | J7: Body | K7: Poř | N7: =E7 -> sk | O7: =F7 -> čís | P7: CIPS | Q7: um. | R7: CIPS | S7: Body | T7: Poř | X7: CIPS | Y7: Body | Z7: Poř
A8: =IF(INDEX('1k - LOS'!$H$4:$H$15,MATCH(B8,'1k - LOS'!$I$4:$I$15,0),)=0,"",INDEX('1k - LOS'!$H$4:$H$15,MATCH(B8,'1k - LOS'!$I$4:$I$15,0),)) -> 1 | B8: =Soupisky!$M15 -> ČRS Matchpro | C8: =IF(D8="","",INDEX(Soupisky!$H:$H,MATCH(D8,Soupisky!$I:$I,0))) -> 6447 | D8: Kaluzny Krzystof | E8: C | F8: =IF(OR(ISNA(MATCH(W8,'1k - LOS'!$B$4:$B$15,0)),ISNA(MATCH(E8,'1k - LOS'!$C$3:$F$3,0))),"",INDEX('1k - LOS'!$C$4:$F$15,MATCH(W8,'1k - LOS'!$B$4:$B$15,0),MATCH(E8,'1k - LOS'!$C$3:$F$3,0))) -> 9 | G8: =IF($F8="","",INDEX('1k - 1. závod'!$A:$AB,$F8+5,INDEX('1k - Základní list'!$B:$B,MATCH($E8,'1k - Základní list'!$A:$A,0),1))) -> 5045 | H8: =IF($F8="",IF(AA8>0, POCET_DRUZSTEV, ""),INDEX('1k - 1. závod'!$A:$AB,$F8+5,INDEX('1k - Základní list'!$B:$B,MATCH($E8,'1k - Základní list'!$A:$A,0),1)+3)) -> 7 | I8: =IF(F8="","",SUM(G8:G11)) -> 23385 | J8: =IF(AA8>0, SUM(H8:H11), "") -> 13 | K8: =IF(AA8>0, RANK(J8,J:J,1), "") -> 1 | L8: =IF(M8="","",INDEX(Soupisky!$H:$H,MATCH(M8,Soupisky!$I:$I,0))) -> 6447 | M8: =IF(D8<>"",D8,"") -> Kaluzny Krzystof | N8: B | O8: =IF(OR(ISNA(MATCH(W8,'1k - LOS'!$B$19:$B$30,0)),ISNA(MATCH(N8,'1k - LOS'!$C$18:$F$18,0))),"",INDEX('1k - LOS'!$C$19:$F$30,MATCH(W8,'1k - LOS'!$B$19:$B$30,0),MATCH(N8,'1k - LOS'!$C$18:$F$18,0))) -> 4 | P8: =IF($O8="","",INDEX('1k - 2. závod'!$A:$AB,$O8+5,INDEX('1k - Základní list'!$B:$B,MATCH($N8,'1k - Základní list'!$A:$A,0),1))) -> 1780 | Q8: =IF($O8="",IF(AA8>0, POCET_DRUZSTEV, ""),INDEX('1k - 2. závod'!$A:$AB,$O8+5,INDEX('1k - Základní list'!$B:$B,MATCH($N8,'1k - Základní list'!$A:$A,0),1)+3)) -> 7 | R8: =IF(O8="","",SUM(P8:P11)) -> 21730 | S8: =IF(AA8>0, SUM(Q8:Q11), "") -> 14 | T8: =IF(AA8>0, RANK(S8,S:S,1), "") -> 1 | U8: =CONCATENATE(E8,F8) -> C9 | V8: =CONCATENATE(N8,O8) -> B4 | W8: =IF(ISBLANK(B8),"",B8) -> ČRS Matchpro | X8: =IF(O8="","",SUM(I8,R8)) -> 45115 | Y8: =IF(AA8>0, SUM(S8,J8), "") -> 27 | Z8: =IF(AA8>0, RANK(Y8,Y:Y,1), "") -> 1 | AA8: =IF(AND(D8="",D9="",D10="",D11=""), 0, 1) -> 1 | BR8: =CONCATENATE(E8,F8) -> C9 | BS8: =CONCATENATE(N8,O8) -> B4
C9: =IF(D9="","",INDEX(Soupisky!$H:$H,MATCH(D9,Soupisky!$I:$I,0))) -> 6675 | D9: Drewny Patryk | E9: B | F9: =IF(OR(ISNA(MATCH(W9,'1k - LOS'!$B$4:$B$15,0)),ISNA(MATCH(E9,'1k - LOS'!$C$3:$F$3,0))),"",INDEX('1k - LOS'!$C$4:$F$15,MATCH(W9,'1k - LOS'!$B$4:$B$15,0),MATCH(E9,'1k - LOS'!$C$3:$F$3,0))) -> 9 | G9: =IF($F9="","",INDEX('1k - 1. závod'!$A:$AB,$F9+5,INDEX('1k - Základní list'!$B:$B,MATCH($E9,'1k - Základní list'!$A:$A,0),1))) -> 8670 | H9: =IF($F9="",IF(AA8>0, POCET_DRUZSTEV, ""),INDEX('1k - 1. závod'!$A:$AB,$F9+5,INDEX('1k - Základní list'!$B:$B,MATCH($E9,'1k - Základní list'!$A:$A,0),1)+3)) -> 1 | L9: =IF(M9="","",INDEX(Soupisky!$H:$H,MATCH(M9,Soupisky!$I:$I,0))) -> 6675 | M9: Drewny Patryk | N9: C | O9: =IF(OR(ISNA(MATCH(W9,'1k - LOS'!$B$19:$B$30,0)),ISNA(MATCH(N9,'1k - LOS'!$C$18:$F$18,0))),"",INDEX('1k - LOS'!$C$19:$F$30,MATCH(W9,'1k - LOS'!$B$19:$B$30,0),MATCH(N9,'1k - LOS'!$C$18:$F$18,0))) -> 4 | P9: =IF($O9="","",INDEX('1k - 2. závod'!$A:$AB,$O9+5,INDEX('1k - Základní list'!$B:$B,MATCH($N9,'1k - Základní list'!$A:$A,0),1))) -> 7730 | Q9: =IF($O9="",IF(AA8>0, POCET_DRUZSTEV, ""),INDEX('1k - 2. závod'!$A:$AB,$O9+5,INDEX('1k - Základní list'!$B:$B,MATCH($N9,'1k - Základní list'!$A:$A,0),1)+3)) -> 3 | U9: B9 | V9: C4 | W9: =IF(ISBLANK(B8),"",B8) -> ČRS Matchpro | BR9: B9 | BS9: C4
C10: =IF(D10="","",INDEX(Soupisky!$H:$H,MATCH(D10,Soupisky!$I:$I,0))) -> 6449 | D10: Lange Janusz | E10: A | F10: =IF(OR(ISNA(MATCH(W10,'1k - LOS'!$B$4:$B$15,0)),ISNA(MATCH(E10,'1k - LOS'!$C$3:$F$3,0))),"",INDEX('1k - LOS'!$C$4:$F$15,MATCH(W10,'1k - LOS'!$B$4:$B$15,0),MATCH(E10,'1k - LOS'!$C$3:$F$3,0))) -> 3 | G10: =IF($F10="","",INDEX('1k - 1. závod'!$A:$AB,$F10+5,INDEX('1k - Základní list'!$B:$B,MATCH($E10,'1k - Základní list'!$A:$A,0),1))) -> 5135 | H10: =IF($F10="",IF(AA8>0, POCET_DRUZSTEV, ""),INDEX('1k - 1. závod'!$A:$AB,$F10+5,INDEX('1k - Základní list'!$B:$B,MATCH($E10,'1k - Základní list'!$A:$A,0),1)+3)) -> 2 | L10: =IF(M10="","",INDEX(Soupisky!$H:$H,MATCH(M10,Soupisky!$I:$I,0))) -> 6449 | M10: Lange Janusz | N10: D | O10: =IF(OR(ISNA(MATCH(W10,'1k - LOS'!$B$19:$B$30,0)),ISNA(MATCH(N10,'1k - LOS'!$C$18:$F$18,0))),"",INDEX('1k - LOS'!$C$19:$F$30,MATCH(W10,'1k - LOS'!$B$19:$B$30,0),MATCH(N10,'1k - LOS'!$C$18:$F$18,0))) -> 10 | P10: =IF($O10="","",INDEX('1k - 2. závod'!$A:$AB,$O10+5,INDEX('1k - Základní list'!$B:$B,MATCH($N10,'1k - Základní list'!$A:$A,0),1))) -> 5020 | Q10: =IF($O10="",IF(AA8>0, POCET_DRUZSTEV, ""), INDEX('1k - 2. závod'!$A:$AB,$O10+5,INDEX('1k - Základní list'!$B:$B,MATCH($N10,'1k - Základní list'!$A:$A,0),1)+3)) -> 3 | U10: A3 | V10: D10 | W10: =IF(ISBLANK(B8),"",B8) -> ČRS Matchpro | BR10: A3 | BS10: D10
C11: =IF(D11="","",INDEX(Soupisky!$H:$H,MATCH(D11,Soupisky!$I:$I,0))) -> 6448 | D11: Stanczyk Marcin | E11: D | F11: =IF(OR(ISNA(MATCH(W11,'1k - LOS'!$B$4:$B$15,0)),ISNA(MATCH(E11,'1k - LOS'!$C$3:$F$3,0))),"",INDEX('1k - LOS'!$C$4:$F$15,MATCH(W11,'1k - LOS'!$B$4:$B$15,0),MATCH(E11,'1k - LOS'!$C$3:$F$3,0))) -> 3 | G11: =IF($F11="","",INDEX('1k - 1. závod'!$A:$AB,$F11+5,INDEX('1k - Základní list'!$B:$B,MATCH($E11,'1k - Základní list'!$A:$A,0),1))) -> 4535 | H11: =IF($F11="",IF(AA8>0, POCET_DRUZSTEV, ""),INDEX('1k - 1. závod'!$A:$AB,$F11+5,INDEX('1k - Základní list'!$B:$B,MATCH($E11,'1k - Základní list'!$A:$A,0),1)+3)) -> 3 | L11: =IF(M11="","",INDEX(Soupisky!$H:$H,MATCH(M11,Soupisky!$I:$I,0))) -> 6448 | M11: Stanczyk Marcin | N11: A | O11: =IF(OR(ISNA(MATCH(W11,'1k - LOS'!$B$19:$B$30,0)),ISNA(MATCH(N11,'1k - LOS'!$C$18:$F$18,0))),"",INDEX('1k - LOS'!$C$19:$F$30,MATCH(W11,'1k - LOS'!$B$19:$B$30,0),MATCH(N11,'1k - LOS'!$C$18:$F$18,0))) -> 10 | P11: =IF($O11="","",INDEX('1k - 2. závod'!$A:$AB,$O11+5,INDEX('1k - Základní list'!$B:$B,MATCH($N11,'1k - Základní list'!$A:$A,0),1))) -> 7200 | Q11: =IF($O11="",IF(AA8>0, POCET_DRUZSTEV, ""),INDEX('1k - 2. závod'!$A:$AB,$O11+5,INDEX('1k - Základní list'!$B:$B,MATCH($N11,'1k - Základní list'!$A:$A,0),1)+3)) -> 1 | U11: D3 | V11: A10 | W11: =IF(ISBLANK(B8),"",B8) -> ČRS Matchpro | BR11: D3 | BS11: A10
A12: =IF(INDEX('1k - LOS'!$H$4:$H$15,MATCH(B12,'1k - LOS'!$I$4:$I$15,0),)=0,"",INDEX('1k - LOS'!$H$4:$H$15,MATCH(B12,'1k - LOS'!$I$4:$I$15,0),)) -> 2 | B12: =Soupisky!$M4 -> ČRS MILO Loštice | C12: =IF(D12="","",INDEX(Soupisky!$H:$H,MATCH(D12,Soupisky!$I:$I,0))) -> 2 | D12: Ing. Heidenreich Jan | E12: A | F12: =IF(OR(ISNA(MATCH(W12,'1k - LOS'!$B$4:$B$15,0)),ISNA(MATCH(E12,'1k - LOS'!$C$3:$F$3,0))),"",INDEX('1k - LOS'!$C$4:$F$15,MATCH(W12,'1k - LOS'!$B$4:$B$15,0),MATCH(E12,'1k - LOS'!$C$3:$F$3,0))) -> 8 | G12: =IF($F12="","",INDEX('1k - 1. závod'!$A:$AB,$F12+5,INDEX('1k - Základní list'!$B:$B,MATCH($E12,'1k - Základní list'!$A:$A,0),1))) -> 4895 | H12: =IF($F12="",IF(AA12>0, POCET_DRUZSTEV, ""),INDEX('1k - 1. závod'!$A:$AB,$F12+5,INDEX('1k - Základní list'!$B:$B,MATCH($E12,'1k - Základní list'!$A:$A,0),1)+3)) -> 3 | I12: =IF(F12="","",SUM(G12:G15)) -> 23005 | J12: =IF(AA12>0, SUM(H12:H15), "") -> 15 | K12: =IF(AA12>0, RANK(J12,J:J,1), "") -> 2 | L12: =IF(M12="","",INDEX(Soupisky!$H:$H,MATCH(M12,Soupisky!$I:$I,0))) -> 2 | M12: =IF(D12<>"",D12,"") -> Ing. Heidenreich Jan | N12: C | O12: =IF(OR(ISNA(MATCH(W12,'1k - LOS'!$B$19:$B$30,0)),ISNA(MATCH(N12,'1k - LOS'!$C$18:$F$18,0))),"",INDEX('1k - LOS'!$C$19:$F$30,MATCH(W12,'1k - LOS'!$B$19:$B$30,0),MATCH(N12,'1k - LOS'!$C$18:$F$18,0))) -> 12 | P12: =IF($O12="","",INDEX('1k - 2. závod'!$A:$AB,$O12+5,INDEX('1k - Základní list'!$B:$B,MATCH($N12,'1k - Základní list'!$A:$A,0),1))) -> 5820 | Q12: =IF($O12="",IF(AA12>0, POCET_DRUZSTEV, ""),INDEX('1k - 2. závod'!$A:$AB,$O12+5,INDEX('1k - Základní list'!$B:$B,MATCH($N12,'1k - Základní list'!$A:$A,0),1)+3)) -> 5 | R12: =IF(O12="","",SUM(P12:P15)) -> 15185 | S12: =IF(AA12>0, SUM(Q12:Q15), "") -> 21 | T12: 5 | U12: =CONCATENATE(E12,F12) -> A8 | V12: =CONCATENATE(N12,O12) -> C12 | W12: =IF(ISBLANK(B12),"",B12) -> ČRS MILO Loštice | X12: =IF(O12="","",SUM(I12,R12)) -> 38190 | Y12: =IF(AA12>0, SUM(S12,J12), "") -> 36 | Z12: =IF(AA12>0, RANK(Y12,Y:Y,1), "") -> 2 | AA12: =IF(AND(D12="",D13="",D14="",D15=""), 0, 1) -> 1 | BR12: =CONCATENATE(E12,F12) -> A8 | BS12: =CONCATENATE(N12,O12) -> C12
C13: =IF(D13="","",INDEX(Soupisky!$H:$H,MATCH(D13,Soupisky!$I:$I,0))) -> 72 | D13: Pergreffi Luca | E13: C | F13: =IF(OR(ISNA(MATCH(W13,'1k - LOS'!$B$4:$B$15,0)),ISNA(MATCH(E13,'1k - LOS'!$C$3:$F$3,0))),"",INDEX('1k - LOS'!$C$4:$F$15,MATCH(W13,'1k - LOS'!$B$4:$B$15,0),MATCH(E13,'1k - LOS'!$C$3:$F$3,0))) -> 2 | G13: =IF($F13="","",INDEX('1k - 1. závod'!$A:$AB,$F13+5,INDEX('1k - Základní list'!$B:$B,MATCH($E13,'1k - Základní list'!$A:$A,0),1))) -> 9080 | H13: =IF($F13="",IF(AA12>0, POCET_DRUZSTEV, ""),INDEX('1k - 1. závod'!$A:$AB,$F13+5,INDEX('1k - Základní list'!$B:$B,MATCH($E13,'1k - Základní list'!$A:$A,0),1)+3)) -> 3 | L13: =IF(M13="","",INDEX(Soupisky!$H:$H,MATCH(M13,Soupisky!$I:$I,0))) -> 72 | M13: =IF(D13<>"",D13,"") -> Pergreffi Luca | N13: D | O13: =IF(OR(ISNA(MATCH(W13,'1k - LOS'!$B$19:$B$30,0)),ISNA(MATCH(N13,'1k - LOS'!$C$18:$F$18,0))),"",INDEX('1k - LOS'!$C$19:$F$30,MATCH(W13,'1k - LOS'!$B$19:$B$30,0),MATCH(N13,'1k - LOS'!$C$18:$F$18,0))) -> 6 | P13: =IF($O13="","",INDEX('1k - 2. závod'!$A:$AB,$O13+5,INDEX('1k - Základní list'!$B:$B,MATCH($N13,'1k - Základní list'!$A:$A,0),1))) -> 5500 | Q13: =IF($O13="",IF(AA12>0, POCET_DRUZSTEV, ""),INDEX('1k - 2. závod'!$A:$AB,$O13+5,INDEX('1k - Základní list'!$B:$B,MATCH($N13,'1k - Základní list'!$A:$A,0),1)+3)) -> 1 | U13: C2 | V13: D6 | W13: =IF(ISBLANK(B12),"",B12) -> ČRS MILO Loštice | BR13: C2 | BS13: D6
C14: =IF(D14="","",INDEX(Soupisky!$H:$H,MATCH(D14,Soupisky!$I:$I,0))) -> 5346 | D14: Kaniščev Roman | E14: D | F14: =IF(OR(ISNA(MATCH(W14,'1k - LOS'!$B$4:$B$15,0)),ISNA(MATCH(E14,'1k - LOS'!$C$3:$F$3,0))),"",INDEX('1k - LOS'!$C$4:$F$15,MATCH(W14,'1k - LOS'!$B$4:$B$15,0),MATCH(E14,'1k - LOS'!$C$3:$F$3,0))) -> 8 | G14: =IF($F14="","",INDEX('1k - 1. závod'!$A:$AB,$F14+5,INDEX('1k - Základní list'!$B:$B,MATCH($E14,'1k - Základní list'!$A:$A,0),1))) -> 2940 | H14: =IF($F14="",IF(AA12>0, POCET_DRUZSTEV, ""),INDEX('1k - 1. závod'!$A:$AB,$F14+5,INDEX('1k - Základní list'!$B:$B,MATCH($E14,'1k - Základní list'!$A:$A,0),1)+3)) -> 7 | L14: =IF(M14="","",INDEX(Soupisky!$H:$H,MATCH(M14,Soupisky!$I:$I,0))) -> 7 | M14: Častulík Luděk | N14: A | O14: =IF(OR(ISNA(MATCH(W14,'1k - LOS'!$B$19:$B$30,0)),ISNA(MATCH(N14,'1k - LOS'!$C$18:$F$18,0))),"",INDEX('1k - LOS'!$C$19:$F$30,MATCH(W14,'1k - LOS'!$B$19:$B$30,0),MATCH(N14,'1k - LOS'!$C$18:$F$18,0))) -> 6 | P14: =IF($O14="","",INDEX('1k - 2. závod'!$A:$AB,$O14+5,INDEX('1k - Základní list'!$B:$B,MATCH($N14,'1k - Základní list'!$A:$A,0),1))) -> 580 | Q14: =IF($O14="",IF(AA12>0, POCET_DRUZSTEV, ""), INDEX('1k - 2. závod'!$A:$AB,$O14+5,INDEX('1k - Základní list'!$B:$B,MATCH($N14,'1k - Základní list'!$A:$A,0),1)+3)) -> 11 | U14: D8 | V14: A6 | W14: =IF(ISBLANK(B12),"",B12) -> ČRS MILO Loštice | BR14: D8 | BS14: A6
C15: =IF(D15="","",INDEX(Soupisky!$H:$H,MATCH(D15,Soupisky!$I:$I,0))) -> 5639 | D15: Ing Koukal Martin | E15: B | F15: =IF(OR(ISNA(MATCH(W15,'1k - LOS'!$B$4:$B$15,0)),ISNA(MATCH(E15,'1k - LOS'!$C$3:$F$3,0))),"",INDEX('1k - LOS'!$C$4:$F$15,MATCH(W15,'1k - LOS'!$B$4:$B$15,0),MATCH(E15,'1k - LOS'!$C$3:$F$3,0))) -> 2 | G15: =IF($F15="","",INDEX('1k - 1. závod'!$A:$AB,$F15+5,INDEX('1k - Základní list'!$B:$B,MATCH($E15,'1k - Základní list'!$A:$A,0),1))) -> 6090 | H15: =IF($F15="",IF(AA12>0, POCET_DRUZSTEV, ""),INDEX('1k - 1. závod'!$A:$AB,$F15+5,INDEX('1k - Základní list'!$B:$B,MATCH($E15,'1k - Základní list'!$A:$A,0),1)+3)) -> 2 | L15: =IF(M15="","",INDEX(Soupisky!$H:$H,MATCH(M15,Soupisky!$I:$I,0))) -> 5639 | M15: =IF(D15<>"",D15,"") -> Ing Koukal Martin | N15: B | O15: =IF(OR(ISNA(MATCH(W15,'1k - LOS'!$B$19:$B$30,0)),ISNA(MATCH(N15,'1k - LOS'!$C$18:$F$18,0))),"",INDEX('1k - LOS'!$C$19:$F$30,MATCH(W15,'1k - LOS'!$B$19:$B$30,0),MATCH(N15,'1k - LOS'!$C$18:$F$18,0))) -> 12 | P15: =IF($O15="","",INDEX('1k - 2. závod'!$A:$AB,$O15+5,INDEX('1k - Základní list'!$B:$B,MATCH($N15,'1k - Základní list'!$A:$A,0),1))) -> 3285 | Q15: =IF($O15="",IF(AA12>0, POCET_DRUZSTEV, ""),INDEX('1k - 2. závod'!$A:$AB,$O15+5,INDEX('1k - Základní list'!$B:$B,MATCH($N15,'1k - Základní list'!$A:$A,0),1)+3)) -> 4 | U15: B2 | V15: B12 | W15: =IF(ISBLANK(B12),"",B12) -> ČRS MILO Loštice | BR15: B2 | BS15: B12
A16: =IF(INDEX('1k - LOS'!$H$4:$H$15,MATCH(B16,'1k - LOS'!$I$4:$I$15,0),)=0,"",INDEX('1k - LOS'!$H$4:$H$15,MATCH(B16,'1k - LOS'!$I$4:$I$15,0),)) -> 3 | B16: =Soupisky!$M14 -> MO ČRS Vítkov -MAVER TEAM | C16: =IF(D16="","",INDEX(Soupisky!$H:$H,MATCH(D16,Soupisky!$I:$I,0))) -> 4832 | D16: Dořičák Lukáš | E16: C | F16: =IF(OR(ISNA(MATCH(W16,'1k - LOS'!$B$4:$B$15,0)),ISNA(MATCH(E16,'1k - LOS'!$C$3:$F$3,0))),"",INDEX('1k - LOS'!$C$4:$F$15,MATCH(W16,'1k - LOS'!$B$4:$B$15,0),MATCH(E16,'1k - LOS'!$C$3:$F$3,0))) -> 6 | G16: =IF($F16="","",INDEX('1k - 1. závod'!$A:$AB,$F16+5,INDEX('1k - Základní list'!$B:$B,MATCH($E16,'1k - Základní list'!$A:$A,0),1))) -> 5620 | H16: =IF($F16="",IF(AA16>0, POCET_DRUZSTEV, ""),INDEX('1k - 1. závod'!$A:$AB,$F16+5,INDEX('1k - Základní list'!$B:$B,MATCH($E16,'1k - Základní list'!$A:$A,0),1)+3)) -> 6 | I16: =IF(F16="","",SUM(G16:G19)) -> 24265 | J16: =IF(AA16>0, SUM(H16:H19), "") -> 18 | K16: =IF(AA16>0, RANK(J16,J:J,1), "") -> 3 | L16: =IF(M16="","",INDEX(Soupisky!$H:$H,MATCH(M16,Soupisky!$I:$I,0))) -> 4832 | M16: Dořičák Lukáš | N16: B | O16: =IF(OR(ISNA(MATCH(W16,'1k - LOS'!$B$19:$B$30,0)),ISNA(MATCH(N16,'1k - LOS'!$C$18:$F$18,0))),"",INDEX('1k - LOS'!$C$19:$F$30,MATCH(W16,'1k - LOS'!$B$19:$B$30,0),MATCH(N16,'1k - LOS'!$C$18:$F$18,0))) -> 2 | P16: =IF($O16="","",INDEX('1k - 2. závod'!$A:$AB,$O16+5,INDEX('1k - Základní list'!$B:$B,MATCH($N16,'1k - Základní list'!$A:$A,0),1))) -> 1515 | Q16: =IF($O16="",IF(AA16>0, POCET_DRUZSTEV, ""),INDEX('1k - 2. závod'!$A:$AB,$O16+5,INDEX('1k - Základní list'!$B:$B,MATCH($N16,'1k - Základní list'!$A:$A,0),1)+3)) -> 8 | R16: =IF(O16="","",SUM(P16:P19)) -> 15290 | S16: =IF(AA16>0, SUM(Q16:Q19), "") -> 19 | T16: =IF(AA16>0, RANK(S16,S:S,1), "") -> 3 | U16: C6 | V16: B2 | W16: =IF(ISBLANK(B16),"",B16) -> MO ČRS Vítkov -MAVER TEAM | X16: =IF(O16="","",SUM(I16,R16)) -> 39555 | Y16: =IF(AA16>0, SUM(S16,J16), "") -> 37 | Z16: =IF(AA16>0, RANK(Y16,Y:Y,1), "") -> 3 | AA16: =IF(AND(D16="",D17="",D18="",D19=""), 0, 1) -> 1 | BR16: C6 | BS16: B2
C17: =IF(D17="","",INDEX(Soupisky!$H:$H,MATCH(D17,Soupisky!$I:$I,0))) -> 5297 | D17: Horký Vojtěch | E17: D | F17: =IF(OR(ISNA(MATCH(W17,'1k - LOS'!$B$4:$B$15,0)),ISNA(MATCH(E17,'1k - LOS'!$C$3:$F$3,0))),"",INDEX('1k - LOS'!$C$4:$F$15,MATCH(W17,'1k - LOS'!$B$4:$B$15,0),MATCH(E17,'1k - LOS'!$C$3:$F$3,0))) -> 12 | G17: =IF($F17="","",INDEX('1k - 1. závod'!$A:$AB,$F17+5,INDEX('1k - Základní list'!$B:$B,MATCH($E17,'1k - Základní list'!$A:$A,0),1))) -> 1755 | H17: =IF($F17="",IF(AA16>0, POCET_DRUZSTEV, ""),INDEX('1k - 1. závod'!$A:$AB,$F17+5,INDEX('1k - Základní list'!$B:$B,MATCH($E17,'1k - Základní list'!$A:$A,0),1)+3)) -> 8 | L17: =IF(M17="","",INDEX(Soupisky!$H:$H,MATCH(M17,Soupisky!$I:$I,0))) -> 5297 | M17: Horký Vojtěch | N17: C | O17: =IF(OR(ISNA(MATCH(W17,'1k - LOS'!$B$19:$B$30,0)),ISNA(MATCH(N17,'1k - LOS'!$C$18:$F$18,0))),"",INDEX('1k - LOS'!$C$19:$F$30,MATCH(W17,'1k - LOS'!$B$19:$B$30,0),MATCH(N17,'1k - LOS'!$C$18:$F$18,0))) -> 2 | P17: =IF($O17="","",INDEX('1k - 2. závod'!$A:$AB,$O17+5,INDEX('1k - Základní list'!$B:$B,MATCH($N17,'1k - Základní list'!$A:$A,0),1))) -> 4815 | Q17: =IF($O17="",IF(AA16>0, POCET_DRUZSTEV, ""),INDEX('1k - 2. závod'!$A:$AB,$O17+5,INDEX('1k - Základní list'!$B:$B,MATCH($N17,'1k - Základní list'!$A:$A,0),1)+3)) -> 7 | U17: D12 | V17: C2 | W17: =IF(ISBLANK(B16),"",B16) -> MO ČRS Vítkov -MAVER TEAM | BR17: D12 | BS17: C2
C18: =IF(D18="","",INDEX(Soupisky!$H:$H,MATCH(D18,Soupisky!$I:$I,0))) -> 3768 | D18: Chlebek Jakub | E18: A | F18: =IF(OR(ISNA(MATCH(W18,'1k - LOS'!$B$4:$B$15,0)),ISNA(MATCH(E18,'1k - LOS'!$C$3:$F$3,0))),"",INDEX('1k - LOS'!$C$4:$F$15,MATCH(W18,'1k - LOS'!$B$4:$B$15,0),MATCH(E18,'1k - LOS'!$C$3:$F$3,0))) -> 12 | G18: =IF($F18="","",INDEX('1k - 1. závod'!$A:$AB,$F18+5,INDEX('1k - Základní list'!$B:$B,MATCH($E18,'1k - Základní list'!$A:$A,0),1))) -> 10890 | H18: =IF($F18="",IF(AA16>0, POCET_DRUZSTEV, ""),INDEX('1k - 1. závod'!$A:$AB,$F18+5,INDEX('1k - Základní list'!$B:$B,MATCH($E18,'1k - Základní list'!$A:$A,0),1)+3)) -> 1 | L18: =IF(M18="","",INDEX(Soupisky!$H:$H,MATCH(M18,Soupisky!$I:$I,0))) -> 3768 | M18: Chlebek Jakub | N18: D | O18: =IF(OR(ISNA(MATCH(W18,'1k - LOS'!$B$19:$B$30,0)),ISNA(MATCH(N18,'1k - LOS'!$C$18:$F$18,0))),"",INDEX('1k - LOS'!$C$19:$F$30,MATCH(W18,'1k - LOS'!$B$19:$B$30,0),MATCH(N18,'1k - LOS'!$C$18:$F$18,0))) -> 8 | P18: =IF($O18="","",INDEX('1k - 2. závod'!$A:$AB,$O18+5,INDEX('1k - Základní list'!$B:$B,MATCH($N18,'1k - Základní list'!$A:$A,0),1))) -> 5300 | Q18: =IF($O18="",IF(AA16>0, POCET_DRUZSTEV, ""), INDEX('1k - 2. závod'!$A:$AB,$O18+5,INDEX('1k - Základní list'!$B:$B,MATCH($N18,'1k - Základní list'!$A:$A,0),1)+3)) -> 2 | U18: A12 | V18: D8 | W18: =IF(ISBLANK(B16),"",B16) -> MO ČRS Vítkov -MAVER TEAM | BR18: A12 | BS18: D8
C19: =IF(D19="","",INDEX(Soupisky!$H:$H,MATCH(D19,Soupisky!$I:$I,0))) -> 4435 | D19: Grzych Jan | E19: B | F19: =IF(OR(ISNA(MATCH(W19,'1k - LOS'!$B$4:$B$15,0)),ISNA(MATCH(E19,'1k - LOS'!$C$3:$F$3,0))),"",INDEX('1k - LOS'!$C$4:$F$15,MATCH(W19,'1k - LOS'!$B$4:$B$15,0),MATCH(E19,'1k - LOS'!$C$3:$F$3,0))) -> 6 | G19: =IF($F19="","",INDEX('1k - 1. závod'!$A:$AB,$F19+5,INDEX('1k - Základní list'!$B:$B,MATCH($E19,'1k - Základní list'!$A:$A,0),1))) -> 6000 | H19: =IF($F19="",IF(AA16>0, POCET_DRUZSTEV, ""),INDEX('1k - 1. závod'!$A:$AB,$F19+5,INDEX('1k - Základní list'!$B:$B,MATCH($E19,'1k - Základní list'!$A:$A,0),1)+3)) -> 3 | L19: =IF(M19="","",INDEX(Soupisky!$H:$H,MATCH(M19,Soupisky!$I:$I,0))) -> 4435 | M19: Grzych Jan | N19: A | O19: =IF(OR(ISNA(MATCH(W19,'1k - LOS'!$B$19:$B$30,0)),ISNA(MATCH(N19,'1k - LOS'!$C$18:$F$18,0))),"",INDEX('1k - LOS'!$C$19:$F$30,MATCH(W19,'1k - LOS'!$B$19:$B$30,0),MATCH(N19,'1k - LOS'!$C$18:$F$18,0))) -> 8 | P19: =IF($O19="","",INDEX('1k - 2. závod'!$A:$AB,$O19+5,INDEX('1k - Základní list'!$B:$B,MATCH($N19,'1k - Základní list'!$A:$A,0),1))) -> 3660 | Q19: =IF($O19="",IF(AA16>0, POCET_DRUZSTEV, ""),INDEX('1k - 2. závod'!$A:$AB,$O19+5,INDEX('1k - Základní list'!$B:$B,MATCH($N19,'1k - Základní list'!$A:$A,0),1)+3)) -> 2 | U19: B6 | V19: A8 | W19: =IF(ISBLANK(B16),"",B16) -> MO ČRS Vítkov -MAVER TEAM | BR19: B6 | BS19: A8
A20: =IF(INDEX('1k - LOS'!$H$4:$H$15,MATCH(B20,'1k - LOS'!$I$4:$I$15,0),)=0,"",INDEX('1k - LOS'!$H$4:$H$15,MATCH(B20,'1k - LOS'!$I$4:$I$15,0),)) -> 9 | B20: =Soupisky!$M6 -> MRS RSK Jižní Morava Tubertini | C20: =IF(D20="","",INDEX(Soupisky!$H:$H,MATCH(D20,Soupisky!$I:$I,0))) -> 2407 | D20: Ing. Hrazdil Jiří | E20: D | F20: =IF(OR(ISNA(MATCH(W20,'1k - LOS'!$B$4:$B$15,0)),ISNA(MATCH(E20,'1k - LOS'!$C$3:$F$3,0))),"",INDEX('1k - LOS'!$C$4:$F$15,MATCH(W20,'1k - LOS'!$B$4:$B$15,0),MATCH(E20,'1k - LOS'!$C$3:$F$3,0))) -> 10 | G20: =IF($F20="","",INDEX('1k - 1. závod'!$A:$AB,$F20+5,INDEX('1k - Základní list'!$B:$B,MATCH($E20,'1k - Základní list'!$A:$A,0),1))) -> 3195 | H20: =IF($F20="",IF(AA20>0, POCET_DRUZSTEV, ""),INDEX('1k - 1. závod'!$A:$AB,$F20+5,INDEX('1k - Základní list'!$B:$B,MATCH($E20,'1k - Základní list'!$A:$A,0),1)+3)) -> 6 | I20: =IF(F20="","",SUM(G20:G23)) -> 19655 | J20: =IF(AA20>0, SUM(H20:H23), "") -> 20 | K20: =IF(AA20>0, RANK(J20,J:J,1), "") -> 5 | L20: =IF(M20="","",INDEX(Soupisky!$H:$H,MATCH(M20,Soupisky!$I:$I,0))) -> 2407 | M20: Ing. Hrazdil Jiří | N20: B | O20: =IF(OR(ISNA(MATCH(W20,'1k - LOS'!$B$19:$B$30,0)),ISNA(MATCH(N20,'1k - LOS'!$C$18:$F$18,0))),"",INDEX('1k - LOS'!$C$19:$F$30,MATCH(W20,'1k - LOS'!$B$19:$B$30,0),MATCH(N20,'1k - LOS'!$C$18:$F$18,0))) -> 3 | P20: =IF($O20="","",INDEX('1k - 2. závod'!$A:$AB,$O20+5,INDEX('1k - Základní list'!$B:$B,MATCH($N20,'1k - Základní list'!$A:$A,0),1))) -> 840 | Q20: =IF($O20="",IF(AA20>0, POCET_DRUZSTEV, ""),INDEX('1k - 2. závod'!$A:$AB,$O20+5,INDEX('1k - Základní list'!$B:$B,MATCH($N20,'1k - Základní list'!$A:$A,0),1)+3)) -> 11 | R20: =IF(O20="","",SUM(P20:P23)) -> 19635 | S20: =IF(AA20>0, SUM(Q20:Q23), "") -> 21 | T20: =IF(AA20>0, RANK(S20,S:S,1), "") -> 4 | U20: D10 | V20: B3 | W20: =IF(ISBLANK(B20),"",B20) -> MRS RSK Jižní Morava Tubertini | X20: =IF(O20="","",SUM(I20,R20)) -> 39290 | Y20: =IF(AA20>0, SUM(S20,J20), "") -> 41 | Z20: =IF(AA20>0, RANK(Y20,Y:Y,1), "") -> 4 | AA20: =IF(AND(D20="",D21="",D22="",D23=""), 0, 1) -> 1 | BR20: D10 | BS20: B3
C21: =IF(D21="","",INDEX(Soupisky!$H:$H,MATCH(D21,Soupisky!$I:$I,0))) -> 557 | D21: Bc. Pavka Martin | E21: B | F21: =IF(OR(ISNA(MATCH(W21,'1k - LOS'!$B$4:$B$15,0)),ISNA(MATCH(E21,'1k - LOS'!$C$3:$F$3,0))),"",INDEX('1k - LOS'!$C$4:$F$15,MATCH(W21,'1k - LOS'!$B$4:$B$15,0),MATCH(E21,'1k - LOS'!$C$3:$F$3,0))) -> 4 | G21: =IF($F21="","",INDEX('1k - 1. závod'!$A:$AB,$F21+5,INDEX('1k - Základní list'!$B:$B,MATCH($E21,'1k - Základní list'!$A:$A,0),1))) -> 3525 | H21: =IF($F21="",IF(AA20>0, POCET_DRUZSTEV, ""),INDEX('1k - 1. závod'!$A:$AB,$F21+5,INDEX('1k - Základní list'!$B:$B,MATCH($E21,'1k - Základní list'!$A:$A,0),1)+3)) -> 8 | L21: =IF(M21="","",INDEX(Soupisky!$H:$H,MATCH(M21,Soupisky!$I:$I,0))) -> 557 | M21: Bc. Pavka Martin | N21: D | O21: =IF(OR(ISNA(MATCH(W21,'1k - LOS'!$B$19:$B$30,0)),ISNA(MATCH(N21,'1k - LOS'!$C$18:$F$18,0))),"",INDEX('1k - LOS'!$C$19:$F$30,MATCH(W21,'1k - LOS'!$B$19:$B$30,0),MATCH(N21,'1k - LOS'!$C$18:$F$18,0))) -> 9 | P21: =IF($O21="","",INDEX('1k - 2. závod'!$A:$AB,$O21+5,INDEX('1k - Základní list'!$B:$B,MATCH($N21,'1k - Základní list'!$A:$A,0),1))) -> 2395 | Q21: =IF($O21="",IF(AA20>0, POCET_DRUZSTEV, ""),INDEX('1k - 2. závod'!$A:$AB,$O21+5,INDEX('1k - Základní list'!$B:$B,MATCH($N21,'1k - Základní list'!$A:$A,0),1)+3)) -> 6 | U21: B4 | V21: D9 | W21: =IF(ISBLANK(B20),"",B20) -> MRS RSK Jižní Morava Tubertini | BR21: B4 | BS21: D9
C22: =IF(D22="","",INDEX(Soupisky!$H:$H,MATCH(D22,Soupisky!$I:$I,0))) -> 3499 | D22: Pospíšil Radek | E22: A | F22: =IF(OR(ISNA(MATCH(W22,'1k - LOS'!$B$4:$B$15,0)),ISNA(MATCH(E22,'1k - LOS'!$C$3:$F$3,0))),"",INDEX('1k - LOS'!$C$4:$F$15,MATCH(W22,'1k - LOS'!$B$4:$B$15,0),MATCH(E22,'1k - LOS'!$C$3:$F$3,0))) -> 10 | G22: =IF($F22="","",INDEX('1k - 1. závod'!$A:$AB,$F22+5,INDEX('1k - Základní list'!$B:$B,MATCH($E22,'1k - Základní list'!$A:$A,0),1))) -> 3640 | H22: =IF($F22="",IF(AA20>0, POCET_DRUZSTEV, ""),INDEX('1k - 1. závod'!$A:$AB,$F22+5,INDEX('1k - Základní list'!$B:$B,MATCH($E22,'1k - Základní list'!$A:$A,0),1)+3)) -> 4 | L22: =IF(M22="","",INDEX(Soupisky!$H:$H,MATCH(M22,Soupisky!$I:$I,0))) -> 3499 | M22: Pospíšil Radek | N22: A | O22: =IF(OR(ISNA(MATCH(W22,'1k - LOS'!$B$19:$B$30,0)),ISNA(MATCH(N22,'1k - LOS'!$C$18:$F$18,0))),"",INDEX('1k - LOS'!$C$19:$F$30,MATCH(W22,'1k - LOS'!$B$19:$B$30,0),MATCH(N22,'1k - LOS'!$C$18:$F$18,0))) -> 9 | P22: =IF($O22="","",INDEX('1k - 2. závod'!$A:$AB,$O22+5,INDEX('1k - Základní list'!$B:$B,MATCH($N22,'1k - Základní list'!$A:$A,0),1))) -> 2560 | Q22: =IF($O22="",IF(AA20>0, POCET_DRUZSTEV, ""), INDEX('1k - 2. závod'!$A:$AB,$O22+5,INDEX('1k - Základní list'!$B:$B,MATCH($N22,'1k - Základní list'!$A:$A,0),1)+3)) -> 3 | U22: A10 | V22: A9 | W22: =IF(ISBLANK(B20),"",B20) -> MRS RSK Jižní Morava Tubertini | BR22: A10 | BS22: A9
C23: =IF(D23="","",INDEX(Soupisky!$H:$H,MATCH(D23,Soupisky!$I:$I,0))) -> 1758 | D23: Kazatel Petr | E23: C | F23: =IF(OR(ISNA(MATCH(W23,'1k - LOS'!$B$4:$B$15,0)),ISNA(MATCH(E23,'1k - LOS'!$C$3:$F$3,0))),"",INDEX('1k - LOS'!$C$4:$F$15,MATCH(W23,'1k - LOS'!$B$4:$B$15,0),MATCH(E23,'1k - LOS'!$C$3:$F$3,0))) -> 4 | G23: =IF($F23="","",INDEX('1k - 1. závod'!$A:$AB,$F23+5,INDEX('1k - Základní list'!$B:$B,MATCH($E23,'1k - Základní list'!$A:$A,0),1))) -> 9295 | H23: =IF($F23="",IF(AA20>0, POCET_DRUZSTEV, ""),INDEX('1k - 1. závod'!$A:$AB,$F23+5,INDEX('1k - Základní list'!$B:$B,MATCH($E23,'1k - Základní list'!$A:$A,0),1)+3)) -> 2 | L23: =IF(M23="","",INDEX(Soupisky!$H:$H,MATCH(M23,Soupisky!$I:$I,0))) -> 1758 | M23: Kazatel Petr | N23: C | O23: =IF(OR(ISNA(MATCH(W23,'1k - LOS'!$B$19:$B$30,0)),ISNA(MATCH(N23,'1k - LOS'!$C$18:$F$18,0))),"",INDEX('1k - LOS'!$C$19:$F$30,MATCH(W23,'1k - LOS'!$B$19:$B$30,0),MATCH(N23,'1k - LOS'!$C$18:$F$18,0))) -> 3 | P23: =IF($O23="","",INDEX('1k - 2. závod'!$A:$AB,$O23+5,INDEX('1k - Základní list'!$B:$B,MATCH($N23,'1k - Základní list'!$A:$A,0),1))) -> 13840 | Q23: =IF($O23="",IF(AA20>0, POCET_DRUZSTEV, ""),INDEX('1k - 2. závod'!$A:$AB,$O23+5,INDEX('1k - Základní list'!$B:$B,MATCH($N23,'1k - Základní list'!$A:$A,0),1)+3)) -> 1 | U23: C4 | V23: C3 | W23: =IF(ISBLANK(B20),"",B20) -> MRS RSK Jižní Morava Tubertini | BR23: C4 | BS23: C3
A24: =IF(INDEX('1k - LOS'!$H$4:$H$15,MATCH(B24,'1k - LOS'!$I$4:$I$15,0),)=0,"",INDEX('1k - LOS'!$H$4:$H$15,MATCH(B24,'1k - LOS'!$I$4:$I$15,0),)) -> 8 | B24: =Soupisky!$M7 -> MO ČRS Ostrava PRESTON | C24: =IF(D24="","",INDEX(Soupisky!$H:$H,MATCH(D24,Soupisky!$I:$I,0))) -> 3223 | D24: Hruzík David | E24: C | F24: =IF(OR(ISNA(MATCH(W24,'1k - LOS'!$B$4:$B$15,0)),ISNA(MATCH(E24,'1k - LOS'!$C$3:$F$3,0))),"",INDEX('1k - LOS'!$C$4:$F$15,MATCH(W24,'1k - LOS'!$B$4:$B$15,0),MATCH(E24,'1k - LOS'!$C$3:$F$3,0))) -> 1 | G24: =IF($F24="","",INDEX('1k - 1. závod'!$A:$AB,$F24+5,INDEX('1k - Základní list'!$B:$B,MATCH($E24,'1k - Základní list'!$A:$A,0),1))) -> 9310 | H24: =IF($F24="",IF(AA24>0, POCET_DRUZSTEV, ""),INDEX('1k - 1. závod'!$A:$AB,$F24+5,INDEX('1k - Základní list'!$B:$B,MATCH($E24,'1k - Základní list'!$A:$A,0),1)+3)) -> 1 | I24: =IF(F24="","",SUM(G24:G27)) -> 21180 | J24: =IF(AA24>0, SUM(H24:H27), "") -> 19 | K24: =IF(AA24>0, RANK(J24,J:J,1), "") -> 4 | L24: =IF(M24="","",INDEX(Soupisky!$H:$H,MATCH(M24,Soupisky!$I:$I,0))) -> 3223 | M24: =IF(D24<>"",D24,"") -> Hruzík David | N24: D | O24: =IF(OR(ISNA(MATCH(W24,'1k - LOS'!$B$19:$B$30,0)),ISNA(MATCH(N24,'1k - LOS'!$C$18:$F$18,0))),"",INDEX('1k - LOS'!$C$19:$F$30,MATCH(W24,'1k - LOS'!$B$19:$B$30,0),MATCH(N24,'1k - LOS'!$C$18:$F$18,0))) -> 2 | P24: =IF($O24="","",INDEX('1k - 2. závod'!$A:$AB,$O24+5,INDEX('1k - Základní list'!$B:$B,MATCH($N24,'1k - Základní list'!$A:$A,0),1))) -> 2540 | Q24: =IF($O24="",IF(AA24>0, POCET_DRUZSTEV, ""),INDEX('1k - 2. závod'!$A:$AB,$O24+5,INDEX('1k - Základní list'!$B:$B,MATCH($N24,'1k - Základní list'!$A:$A,0),1)+3)) -> 5 | R24: =IF(O24="","",SUM(P24:P27)) -> 14040 | S24: =IF(AA24>0, SUM(Q24:Q27), "") -> 22 | T24: =IF(AA24>0, RANK(S24,S:S,1), "") -> 6 | U24: =CONCATENATE(E24,F24) -> C1 | V24: =CONCATENATE(N24,O24) -> D2 | W24: =IF(ISBLANK(B24),"",B24) -> MO ČRS Ostrava PRESTON | X24: =IF(O24="","",SUM(I24,R24)) -> 35220 | Y24: =IF(AA24>0, SUM(S24,J24), "") -> 41 | Z24: 5 | AA24: =IF(AND(D24="",D25="",D26="",D27=""), 0, 1) -> 1 | BR24: =CONCATENATE(E24,F24) -> C1 | BS24: =CONCATENATE(N24,O24) -> D2
C25: =IF(D25="","",INDEX(Soupisky!$H:$H,MATCH(D25,Soupisky!$I:$I,0))) -> 2635 | D25: Fojt Dalibor | E25: B | F25: =IF(OR(ISNA(MATCH(W25,'1k - LOS'!$B$4:$B$15,0)),ISNA(MATCH(E25,'1k - LOS'!$C$3:$F$3,0))),"",INDEX('1k - LOS'!$C$4:$F$15,MATCH(W25,'1k - LOS'!$B$4:$B$15,0),MATCH(E25,'1k - LOS'!$C$3:$F$3,0))) -> 1 | G25: =IF($F25="","",INDEX('1k - 1. závod'!$A:$AB,$F25+5,INDEX('1k - Základní list'!$B:$B,MATCH($E25,'1k - Základní list'!$A:$A,0),1))) -> 2585 | H25: =IF($F25="",IF(AA24>0, POCET_DRUZSTEV, ""),INDEX('1k - 1. závod'!$A:$AB,$F25+5,INDEX('1k - Základní list'!$B:$B,MATCH($E25,'1k - Základní list'!$A:$A,0),1)+3)) -> 11 | L25: =IF(M25="","",INDEX(Soupisky!$H:$H,MATCH(M25,Soupisky!$I:$I,0))) -> 2635 | M25: Fojt Dalibor | N25: B | O25: =IF(OR(ISNA(MATCH(W25,'1k - LOS'!$B$19:$B$30,0)),ISNA(MATCH(N25,'1k - LOS'!$C$18:$F$18,0))),"",INDEX('1k - LOS'!$C$19:$F$30,MATCH(W25,'1k - LOS'!$B$19:$B$30,0),MATCH(N25,'1k - LOS'!$C$18:$F$18,0))) -> 8 | P25: =IF($O25="","",INDEX('1k - 2. závod'!$A:$AB,$O25+5,INDEX('1k - Základní list'!$B:$B,MATCH($N25,'1k - Základní list'!$A:$A,0),1))) -> 1085 | Q25: =IF($O25="",IF(AA24>0, POCET_DRUZSTEV, ""),INDEX('1k - 2. závod'!$A:$AB,$O25+5,INDEX('1k - Základní list'!$B:$B,MATCH($N25,'1k - Základní list'!$A:$A,0),1)+3)) -> 9 | U25: B1 | V25: B8 | W25: =IF(ISBLANK(B24),"",B24) -> MO ČRS Ostrava PRESTON | BR25: B1 | BS25: B8
C26: =IF(D26="","",INDEX(Soupisky!$H:$H,MATCH(D26,Soupisky!$I:$I,0))) -> 1462 | D26: Kyselovský Tomáš | E26: A | F26: =IF(OR(ISNA(MATCH(W26,'1k - LOS'!$B$4:$B$15,0)),ISNA(MATCH(E26,'1k - LOS'!$C$3:$F$3,0))),"",INDEX('1k - LOS'!$C$4:$F$15,MATCH(W26,'1k - LOS'!$B$4:$B$15,0),MATCH(E26,'1k - LOS'!$C$3:$F$3,0))) -> 7 | G26: =IF($F26="","",INDEX('1k - 1. závod'!$A:$AB,$F26+5,INDEX('1k - Základní list'!$B:$B,MATCH($E26,'1k - Základní list'!$A:$A,0),1))) -> 3440 | H26: =IF($F26="",IF(AA24>0, POCET_DRUZSTEV, ""),INDEX('1k - 1. závod'!$A:$AB,$F26+5,INDEX('1k - Základní list'!$B:$B,MATCH($E26,'1k - Základní list'!$A:$A,0),1)+3)) -> 6 | L26: =IF(M26="","",INDEX(Soupisky!$H:$H,MATCH(M26,Soupisky!$I:$I,0))) -> 1462 | M26: Kyselovský Tomáš | N26: C | O26: =IF(OR(ISNA(MATCH(W26,'1k - LOS'!$B$19:$B$30,0)),ISNA(MATCH(N26,'1k - LOS'!$C$18:$F$18,0))),"",INDEX('1k - LOS'!$C$19:$F$30,MATCH(W26,'1k - LOS'!$B$19:$B$30,0),MATCH(N26,'1k - LOS'!$C$18:$F$18,0))) -> 8 | P26: =IF($O26="","",INDEX('1k - 2. závod'!$A:$AB,$O26+5,INDEX('1k - Základní list'!$B:$B,MATCH($N26,'1k - Základní list'!$A:$A,0),1))) -> 9300 | Q26: =IF($O26="",IF(AA24>0, POCET_DRUZSTEV, ""), INDEX('1k - 2. závod'!$A:$AB,$O26+5,INDEX('1k - Základní list'!$B:$B,MATCH($N26,'1k - Základní list'!$A:$A,0),1)+3)) -> 2 | U26: A7 | V26: C8 | W26: =IF(ISBLANK(B24),"",B24) -> MO ČRS Ostrava PRESTON | BR26: A7 | BS26: C8
C27: =IF(D27="","",INDEX(Soupisky!$H:$H,MATCH(D27,Soupisky!$I:$I,0))) -> 2182 | D27: Vytřas Radim | E27: D | F27: =IF(OR(ISNA(MATCH(W27,'1k - LOS'!$B$4:$B$15,0)),ISNA(MATCH(E27,'1k - LOS'!$C$3:$F$3,0))),"",INDEX('1k - LOS'!$C$4:$F$15,MATCH(W27,'1k - LOS'!$B$4:$B$15,0),MATCH(E27,'1k - LOS'!$C$3:$F$3,0))) -> 7 | G27: =IF($F27="","",INDEX('1k - 1. závod'!$A:$AB,$F27+5,INDEX('1k - Základní list'!$B:$B,MATCH($E27,'1k - Základní list'!$A:$A,0),1))) -> 5845 | H27: =IF($F27="",IF(AA24>0, POCET_DRUZSTEV, ""),INDEX('1k - 1. závod'!$A:$AB,$F27+5,INDEX('1k - Základní list'!$B:$B,MATCH($E27,'1k - Základní list'!$A:$A,0),1)+3)) -> 1 | L27: =IF(M27="","",INDEX(Soupisky!$H:$H,MATCH(M27,Soupisky!$I:$I,0))) -> 2182 | M27: Vytřas Radim | N27: A | O27: =IF(OR(ISNA(MATCH(W27,'1k - LOS'!$B$19:$B$30,0)),ISNA(MATCH(N27,'1k - LOS'!$C$18:$F$18,0))),"",INDEX('1k - LOS'!$C$19:$F$30,MATCH(W27,'1k - LOS'!$B$19:$B$30,0),MATCH(N27,'1k - LOS'!$C$18:$F$18,0))) -> 2 | P27: =IF($O27="","",INDEX('1k - 2. závod'!$A:$AB,$O27+5,INDEX('1k - Základní list'!$B:$B,MATCH($N27,'1k - Základní list'!$A:$A,0),1))) -> 1115 | Q27: =IF($O27="",IF(AA24>0, POCET_DRUZSTEV, ""),INDEX('1k - 2. závod'!$A:$AB,$O27+5,INDEX('1k - Základní list'!$B:$B,MATCH($N27,'1k - Základní list'!$A:$A,0),1)+3)) -> 6 | U27: D7 | V27: A2 | W27: =IF(ISBLANK(B24),"",B24) -> MO ČRS Ostrava PRESTON | BR27: D7 | BS27: A2
A28: =IF(INDEX('1k - LOS'!$H$4:$H$15,MATCH(B28,'1k - LOS'!$I$4:$I$15,0),)=0,"",INDEX('1k - LOS'!$H$4:$H$15,MATCH(B28,'1k - LOS'!$I$4:$I$15,0),)) -> 11 | B28: =Soupisky!$M12 -> MO ČRS Mohelnice MIVARDI | C28: =IF(D28="","",INDEX(Soupisky!$H:$H,MATCH(D28,Soupisky!$I:$I,0))) -> 2412 | D28: Michalovič Tomáš | E28: B | F28: =IF(OR(ISNA(MATCH(W28,'1k - LOS'!$B$4:$B$15,0)),ISNA(MATCH(E28,'1k - LOS'!$C$3:$F$3,0))),"",INDEX('1k - LOS'!$C$4:$F$15,MATCH(W28,'1k - LOS'!$B$4:$B$15,0),MATCH(E28,'1k - LOS'!$C$3:$F$3,0))) -> 10 | G28: =IF($F28="","",INDEX('1k - 1. závod'!$A:$AB,$F28+5,INDEX('1k - Základní list'!$B:$B,MATCH($E28,'1k - Základní list'!$A:$A,0),1))) -> 5700 | H28: =IF($F28="",IF(AA28>0, POCET_DRUZSTEV, ""),INDEX('1k - 1. závod'!$A:$AB,$F28+5,INDEX('1k - Základní list'!$B:$B,MATCH($E28,'1k - Základní list'!$A:$A,0),1)+3)) -> 4 | I28: =IF(F28="","",SUM(G28:G31)) -> 14885 | J28: =IF(AA28>0, SUM(H28:H31), "") -> 29 | K28: =IF(AA28>0, RANK(J28,J:J,1), "") -> 7 | L28: =IF(M28="","",INDEX(Soupisky!$H:$H,MATCH(M28,Soupisky!$I:$I,0))) -> 2412 | M28: =IF(D28<>"",D28,"") -> Michalovič Tomáš | N28: D | O28: =IF(OR(ISNA(MATCH(W28,'1k - LOS'!$B$19:$B$30,0)),ISNA(MATCH(N28,'1k - LOS'!$C$18:$F$18,0))),"",INDEX('1k - LOS'!$C$19:$F$30,MATCH(W28,'1k - LOS'!$B$19:$B$30,0),MATCH(N28,'1k - LOS'!$C$18:$F$18,0))) -> 1 | P28: =IF($O28="","",INDEX('1k - 2. závod'!$A:$AB,$O28+5,INDEX('1k - Základní list'!$B:$B,MATCH($N28,'1k - Základní list'!$A:$A,0),1))) -> 2245 | Q28: =IF($O28="",IF(AA28>0, POCET_DRUZSTEV, ""),INDEX('1k - 2. závod'!$A:$AB,$O28+5,INDEX('1k - Základní list'!$B:$B,MATCH($N28,'1k - Základní list'!$A:$A,0),1)+3)) -> 7 | R28: =IF(O28="","",SUM(P28:P31)) -> 14640 | S28: =IF(AA28>0, SUM(Q28:Q31), "") -> 18 | T28: =IF(AA28>0, RANK(S28,S:S,1), "") -> 2 | U28: =CONCATENATE(E28,F28) -> B10 | V28: =CONCATENATE(N28,O28) -> D1 | W28: =IF(ISBLANK(B28),"",B28) -> MO ČRS Mohelnice MIVARDI | X28: =IF(O28="","",SUM(I28,R28)) -> 29525 | Y28: =IF(AA28>0, SUM(S28,J28), "") -> 47 | Z28: =IF(AA28>0, RANK(Y28,Y:Y,1), "") -> 6 | AA28: =IF(AND(D28="",D29="",D30="",D31=""), 0, 1) -> 1 | BR28: =CONCATENATE(E28,F28) -> B10 | BS28: =CONCATENATE(N28,O28) -> D1
C29: =IF(D29="","",INDEX(Soupisky!$H:$H,MATCH(D29,Soupisky!$I:$I,0))) -> 4351 | D29: Kendiura Tomáš | E29: D | F29: =IF(OR(ISNA(MATCH(W29,'1k - LOS'!$B$4:$B$15,0)),ISNA(MATCH(E29,'1k - LOS'!$C$3:$F$3,0))),"",INDEX('1k - LOS'!$C$4:$F$15,MATCH(W29,'1k - LOS'!$B$4:$B$15,0),MATCH(E29,'1k - LOS'!$C$3:$F$3,0))) -> 4 | G29: =IF($F29="","",INDEX('1k - 1. závod'!$A:$AB,$F29+5,INDEX('1k - Základní list'!$B:$B,MATCH($E29,'1k - Základní list'!$A:$A,0),1))) -> 4105 | H29: =IF($F29="",IF(AA28>0, POCET_DRUZSTEV, ""),INDEX('1k - 1. závod'!$A:$AB,$F29+5,INDEX('1k - Základní list'!$B:$B,MATCH($E29,'1k - Základní list'!$A:$A,0),1)+3)) -> 4 | L29: =IF(M29="","",INDEX(Soupisky!$H:$H,MATCH(M29,Soupisky!$I:$I,0))) -> 4351 | M29: Kendiura Tomáš | N29: C | O29: =IF(OR(ISNA(MATCH(W29,'1k - LOS'!$B$19:$B$30,0)),ISNA(MATCH(N29,'1k - LOS'!$C$18:$F$18,0))),"",INDEX('1k - LOS'!$C$19:$F$30,MATCH(W29,'1k - LOS'!$B$19:$B$30,0),MATCH(N29,'1k - LOS'!$C$18:$F$18,0))) -> 7 | P29: =IF($O29="","",INDEX('1k - 2. závod'!$A:$AB,$O29+5,INDEX('1k - Základní list'!$B:$B,MATCH($N29,'1k - Základní list'!$A:$A,0),1))) -> 7390 | Q29: =IF($O29="",IF(AA28>0, POCET_DRUZSTEV, ""),INDEX('1k - 2. závod'!$A:$AB,$O29+5,INDEX('1k - Základní list'!$B:$B,MATCH($N29,'1k - Základní list'!$A:$A,0),1)+3)) -> 4 | U29: D4 | V29: C7 | W29: =IF(ISBLANK(B28),"",B28) -> MO ČRS Mohelnice MIVARDI | BR29: D4 | BS29: C7
C30: =IF(D30="","",INDEX(Soupisky!$H:$H,MATCH(D30,Soupisky!$I:$I,0))) -> 2200 | D30: Funěk Lukáš | E30: C | F30: =IF(OR(ISNA(MATCH(W30,'1k - LOS'!$B$4:$B$15,0)),ISNA(MATCH(E30,'1k - LOS'!$C$3:$F$3,0))),"",INDEX('1k - LOS'!$C$4:$F$15,MATCH(W30,'1k - LOS'!$B$4:$B$15,0),MATCH(E30,'1k - LOS'!$C$3:$F$3,0))) -> 10 | G30: =IF($F30="","",INDEX('1k - 1. závod'!$A:$AB,$F30+5,INDEX('1k - Základní list'!$B:$B,MATCH($E30,'1k - Základní list'!$A:$A,0),1))) -> 3390 | H30: =IF($F30="",IF(AA28>0, POCET_DRUZSTEV, ""),INDEX('1k - 1. závod'!$A:$AB,$F30+5,INDEX('1k - Základní list'!$B:$B,MATCH($E30,'1k - Základní list'!$A:$A,0),1)+3)) -> 10 | L30: =IF(M30="","",INDEX(Soupisky!$H:$H,MATCH(M30,Soupisky!$I:$I,0))) -> 2200 | M30: Funěk Lukáš | N30: A | O30: =IF(OR(ISNA(MATCH(W30,'1k - LOS'!$B$19:$B$30,0)),ISNA(MATCH(N30,'1k - LOS'!$C$18:$F$18,0))),"",INDEX('1k - LOS'!$C$19:$F$30,MATCH(W30,'1k - LOS'!$B$19:$B$30,0),MATCH(N30,'1k - LOS'!$C$18:$F$18,0))) -> 1 | P30: =IF($O30="","",INDEX('1k - 2. závod'!$A:$AB,$O30+5,INDEX('1k - Základní list'!$B:$B,MATCH($N30,'1k - Základní list'!$A:$A,0),1))) -> 1690 | Q30: =IF($O30="",IF(AA28>0, POCET_DRUZSTEV, ""), INDEX('1k - 2. závod'!$A:$AB,$O30+5,INDEX('1k - Základní list'!$B:$B,MATCH($N30,'1k - Základní list'!$A:$A,0),1)+3)) -> 4 | U30: C10 | V30: A1 | W30: =IF(ISBLANK(B28),"",B28) -> MO ČRS Mohelnice MIVARDI | BR30: C10 | BS30: A1
C31: =IF(D31="","",INDEX(Soupisky!$H:$H,MATCH(D31,Soupisky!$I:$I,0))) -> 3901 | D31: Ngoxuan Truong | E31: A | F31: =IF(OR(ISNA(MATCH(W31,'1k - LOS'!$B$4:$B$15,0)),ISNA(MATCH(E31,'1k - LOS'!$C$3:$F$3,0))),"",INDEX('1k - LOS'!$C$4:$F$15,MATCH(W31,'1k - LOS'!$B$4:$B$15,0),MATCH(E31,'1k - LOS'!$C$3:$F$3,0))) -> 4 | G31: =IF($F31="","",INDEX('1k - 1. závod'!$A:$AB,$F31+5,INDEX('1k - Základní list'!$B:$B,MATCH($E31,'1k - Základní list'!$A:$A,0),1))) -> 1690 | H31: =IF($F31="",IF(AA28>0, POCET_DRUZSTEV, ""),INDEX('1k - 1. závod'!$A:$AB,$F31+5,INDEX('1k - Základní list'!$B:$B,MATCH($E31,'1k - Základní list'!$A:$A,0),1)+3)) -> 11 | L31: =IF(M31="","",INDEX(Soupisky!$H:$H,MATCH(M31,Soupisky!$I:$I,0))) -> 3901 | M31: Ngoxuan Truong | N31: B | O31: =IF(OR(ISNA(MATCH(W31,'1k - LOS'!$B$19:$B$30,0)),ISNA(MATCH(N31,'1k - LOS'!$C$18:$F$18,0))),"",INDEX('1k - LOS'!$C$19:$F$30,MATCH(W31,'1k - LOS'!$B$19:$B$30,0),MATCH(N31,'1k - LOS'!$C$18:$F$18,0))) -> 7 | P31: =IF($O31="","",INDEX('1k - 2. závod'!$A:$AB,$O31+5,INDEX('1k - Základní list'!$B:$B,MATCH($N31,'1k - Základní list'!$A:$A,0),1))) -> 3315 | Q31: =IF($O31="",IF(AA28>0, POCET_DRUZSTEV, ""),INDEX('1k - 2. závod'!$A:$AB,$O31+5,INDEX('1k - Základní list'!$B:$B,MATCH($N31,'1k - Základní list'!$A:$A,0),1)+3)) -> 3 | U31: A4 | V31: B7 | W31: =IF(ISBLANK(B28),"",B28) -> MO ČRS Mohelnice MIVARDI | BR31: A4 | BS31: B7
A32: =IF(INDEX('1k - LOS'!$H$4:$H$15,MATCH(B32,'1k - LOS'!$I$4:$I$15,0),)=0,"",INDEX('1k - LOS'!$H$4:$H$15,MATCH(B32,'1k - LOS'!$I$4:$I$15,0),)) -> 4 | B32: =Soupisky!$M13 -> MO MRS Letovice PRESTON | C32: =IF(D32="","",INDEX(Soupisky!$H:$H,MATCH(D32,Soupisky!$I:$I,0))) -> 2368 | D32: Bradna Ladislav ml. | E32: D | F32: =IF(OR(ISNA(MATCH(W32,'1k - LOS'!$B$4:$B$15,0)),ISNA(MATCH(E32,'1k - LOS'!$C$3:$F$3,0))),"",INDEX('1k - LOS'!$C$4:$F$15,MATCH(W32,'1k - LOS'!$B$4:$B$15,0),MATCH(E32,'1k - LOS'!$C$3:$F$3,0))) -> 5 | G32: =IF($F32="","",INDEX('1k - 1. závod'!$A:$AB,$F32+5,INDEX('1k - Základní list'!$B:$B,MATCH($E32,'1k - Základní list'!$A:$A,0),1))) -> 4975 | H32: =IF($F32="",IF(AA32>0, POCET_DRUZSTEV, ""),INDEX('1k - 1. závod'!$A:$AB,$F32+5,INDEX('1k - Základní list'!$B:$B,MATCH($E32,'1k - Základní list'!$A:$A,0),1)+3)) -> 2 | I32: =IF(F32="","",SUM(G32:G35)) -> 13320 | J32: =IF(AA32>0, SUM(H32:H35), "") -> 27 | K32: =IF(AA32>0, RANK(J32,J:J,1), "") -> 6 | L32: =IF(M32="","",INDEX(Soupisky!$H:$H,MATCH(M32,Soupisky!$I:$I,0))) -> 2368 | M32: Bradna Ladislav ml. | N32: C | O32: =IF(OR(ISNA(MATCH(W32,'1k - LOS'!$B$19:$B$30,0)),ISNA(MATCH(N32,'1k - LOS'!$C$18:$F$18,0))),"",INDEX('1k - LOS'!$C$19:$F$30,MATCH(W32,'1k - LOS'!$B$19:$B$30,0),MATCH(N32,'1k - LOS'!$C$18:$F$18,0))) -> 6 | P32: =IF($O32="","",INDEX('1k - 2. závod'!$A:$AB,$O32+5,INDEX('1k - Základní list'!$B:$B,MATCH($N32,'1k - Základní list'!$A:$A,0),1))) -> 5590 | Q32: =IF($O32="",IF(AA32>0, POCET_DRUZSTEV, ""),INDEX('1k - 2. závod'!$A:$AB,$O32+5,INDEX('1k - Základní list'!$B:$B,MATCH($N32,'1k - Základní list'!$A:$A,0),1)+3)) -> 6 | R32: =IF(O32="","",SUM(P32:P35)) -> 10580 | S32: =IF(AA32>0, SUM(Q32:Q35), "") -> 28 | T32: =IF(AA32>0, RANK(S32,S:S,1), "") -> 7 | U32: D5 | V32: C6 | W32: =IF(ISBLANK(B32),"",B32) -> MO MRS Letovice PRESTON | X32: =IF(O32="","",SUM(I32,R32)) -> 23900 | Y32: =IF(AA32>0, SUM(S32,J32), "") -> 55 | Z32: =IF(AA32>0, RANK(Y32,Y:Y,1), "") -> 7 | AA32: =IF(AND(D32="",D33="",D34="",D35=""), 0, 1) -> 1 | BR32: D5 | BS32: C6
C33: =IF(D33="","",INDEX(Soupisky!$H:$H,MATCH(D33,Soupisky!$I:$I,0))) -> 4071 | D33: Ing Sobotka Petr | E33: A | F33: =IF(OR(ISNA(MATCH(W33,'1k - LOS'!$B$4:$B$15,0)),ISNA(MATCH(E33,'1k - LOS'!$C$3:$F$3,0))),"",INDEX('1k - LOS'!$C$4:$F$15,MATCH(W33,'1k - LOS'!$B$4:$B$15,0),MATCH(E33,'1k - LOS'!$C$3:$F$3,0))) -> 5 | G33: =IF($F33="","",INDEX('1k - 1. závod'!$A:$AB,$F33+5,INDEX('1k - Základní list'!$B:$B,MATCH($E33,'1k - Základní list'!$A:$A,0),1))) -> 1860 | H33: =IF($F33="",IF(AA32>0, POCET_DRUZSTEV, ""),INDEX('1k - 1. závod'!$A:$AB,$F33+5,INDEX('1k - Základní list'!$B:$B,MATCH($E33,'1k - Základní list'!$A:$A,0),1)+3)) -> 9 | L33: =IF(M33="","",INDEX(Soupisky!$H:$H,MATCH(M33,Soupisky!$I:$I,0))) -> 4071 | M33: Ing Sobotka Petr | N33: B | O33: =IF(OR(ISNA(MATCH(W33,'1k - LOS'!$B$19:$B$30,0)),ISNA(MATCH(N33,'1k - LOS'!$C$18:$F$18,0))),"",INDEX('1k - LOS'!$C$19:$F$30,MATCH(W33,'1k - LOS'!$B$19:$B$30,0),MATCH(N33,'1k - LOS'!$C$18:$F$18,0))) -> 6 | P33: =IF($O33="","",INDEX('1k - 2. závod'!$A:$AB,$O33+5,INDEX('1k - Základní list'!$B:$B,MATCH($N33,'1k - Základní list'!$A:$A,0),1))) -> 3395 | Q33: =IF($O33="",IF(AA32>0, POCET_DRUZSTEV, ""),INDEX('1k - 2. závod'!$A:$AB,$O33+5,INDEX('1k - Základní list'!$B:$B,MATCH($N33,'1k - Základní list'!$A:$A,0),1)+3)) -> 2 | U33: A5 | V33: B6 | W33: =IF(ISBLANK(B32),"",B32) -> MO MRS Letovice PRESTON | BR33: A5 | BS33: B6
C34: =IF(D34="","",INDEX(Soupisky!$H:$H,MATCH(D34,Soupisky!$I:$I,0))) -> 3450 | D34: Olšán Jakub | E34: B | F34: =IF(OR(ISNA(MATCH(W34,'1k - LOS'!$B$4:$B$15,0)),ISNA(MATCH(E34,'1k - LOS'!$C$3:$F$3,0))),"",INDEX('1k - LOS'!$C$4:$F$15,MATCH(W34,'1k - LOS'!$B$4:$B$15,0),MATCH(E34,'1k - LOS'!$C$3:$F$3,0))) -> 11 | G34: =IF($F34="","",INDEX('1k - 1. závod'!$A:$AB,$F34+5,INDEX('1k - Základní list'!$B:$B,MATCH($E34,'1k - Základní list'!$A:$A,0),1))) -> 4600 | H34: =IF($F34="",IF(AA32>0, POCET_DRUZSTEV, ""),INDEX('1k - 1. závod'!$A:$AB,$F34+5,INDEX('1k - Základní list'!$B:$B,MATCH($E34,'1k - Základní list'!$A:$A,0),1)+3)) -> 5 | L34: =IF(M34="","",INDEX(Soupisky!$H:$H,MATCH(M34,Soupisky!$I:$I,0))) -> 3450 | M34: Olšán Jakub | N34: D | O34: =IF(OR(ISNA(MATCH(W34,'1k - LOS'!$B$19:$B$30,0)),ISNA(MATCH(N34,'1k - LOS'!$C$18:$F$18,0))),"",INDEX('1k - LOS'!$C$19:$F$30,MATCH(W34,'1k - LOS'!$B$19:$B$30,0),MATCH(N34,'1k - LOS'!$C$18:$F$18,0))) -> 12 | P34: =IF($O34="","",INDEX('1k - 2. závod'!$A:$AB,$O34+5,INDEX('1k - Základní list'!$B:$B,MATCH($N34,'1k - Základní list'!$A:$A,0),1))) -> 890 | Q34: =IF($O34="",IF(AA32>0, POCET_DRUZSTEV, ""), INDEX('1k - 2. závod'!$A:$AB,$O34+5,INDEX('1k - Základní list'!$B:$B,MATCH($N34,'1k - Základní list'!$A:$A,0),1)+3)) -> 11 | U34: B11 | V34: D12 | W34: =IF(ISBLANK(B32),"",B32) -> MO MRS Letovice PRESTON | BR34: B11 | BS34: D12
C35: =IF(D35="","",INDEX(Soupisky!$H:$H,MATCH(D35,Soupisky!$I:$I,0))) -> 6208 | D35: Voda Radek | E35: C | F35: =IF(OR(ISNA(MATCH(W35,'1k - LOS'!$B$4:$B$15,0)),ISNA(MATCH(E35,'1k - LOS'!$C$3:$F$3,0))),"",INDEX('1k - LOS'!$C$4:$F$15,MATCH(W35,'1k - LOS'!$B$4:$B$15,0),MATCH(E35,'1k - LOS'!$C$3:$F$3,0))) -> 11 | G35: =IF($F35="","",INDEX('1k - 1. závod'!$A:$AB,$F35+5,INDEX('1k - Základní list'!$B:$B,MATCH($E35,'1k - Základní list'!$A:$A,0),1))) -> 1885 | H35: =IF($F35="",IF(AA32>0, POCET_DRUZSTEV, ""),INDEX('1k - 1. závod'!$A:$AB,$F35+5,INDEX('1k - Základní list'!$B:$B,MATCH($E35,'1k - Základní list'!$A:$A,0),1)+3)) -> 11 | L35: =IF(M35="","",INDEX(Soupisky!$H:$H,MATCH(M35,Soupisky!$I:$I,0))) -> 6208 | M35: Voda Radek | N35: A | O35: =IF(OR(ISNA(MATCH(W35,'1k - LOS'!$B$19:$B$30,0)),ISNA(MATCH(N35,'1k - LOS'!$C$18:$F$18,0))),"",INDEX('1k - LOS'!$C$19:$F$30,MATCH(W35,'1k - LOS'!$B$19:$B$30,0),MATCH(N35,'1k - LOS'!$C$18:$F$18,0))) -> 12 | P35: =IF($O35="","",INDEX('1k - 2. závod'!$A:$AB,$O35+5,INDEX('1k - Základní list'!$B:$B,MATCH($N35,'1k - Základní list'!$A:$A,0),1))) -> 705 | Q35: =IF($O35="",IF(AA32>0, POCET_DRUZSTEV, ""),INDEX('1k - 2. závod'!$A:$AB,$O35+5,INDEX('1k - Základní list'!$B:$B,MATCH($N35,'1k - Základní list'!$A:$A,0),1)+3)) -> 9 | U35: C11 | V35: A12 | W35: =IF(ISBLANK(B32),"",B32) -> MO MRS Letovice PRESTON | BR35: C11 | BS35: A12
A36: =IF(INDEX('1k - LOS'!$H$4:$H$15,MATCH(B36,'1k - LOS'!$I$4:$I$15,0),)=0,"",INDEX('1k - LOS'!$H$4:$H$15,MATCH(B36,'1k - LOS'!$I$4:$I$15,0),)) -> 12 | B36: =Soupisky!$M11 -> MRS - Poháry sport hobby M. Budějovice - Sensas | C36: =IF(D36="","",INDEX(Soupisky!$H:$H,MATCH(D36,Soupisky!$I:$I,0))) -> 2106 | D36: Papoušek Ivan | E36: B | F36: =IF(OR(ISNA(MATCH(W36,'1k - LOS'!$B$4:$B$15,0)),ISNA(MATCH(E36,'1k - LOS'!$C$3:$F$3,0))),"",INDEX('1k - LOS'!$C$4:$F$15,MATCH(W36,'1k - LOS'!$B$4:$B$15,0),MATCH(E36,'1k - LOS'!$C$3:$F$3,0))) -> 7 | G36: =IF($F36="","",INDEX('1k - 1. závod'!$A:$AB,$F36+5,INDEX('1k - Základní list'!$B:$B,MATCH($E36,'1k - Základní list'!$A:$A,0),1))) -> 3390 | H36: =IF($F36="",IF(AA36>0, POCET_DRUZSTEV, ""),INDEX('1k - 1. závod'!$A:$AB,$F36+5,INDEX('1k - Základní list'!$B:$B,MATCH($E36,'1k - Základní list'!$A:$A,0),1)+3)) -> 9 | I36: =IF(F36="","",SUM(G36:G39)) -> 13805 | J36: =IF(AA36>0, SUM(H36:H39), "") -> 29 | K36: 8 | L36: =IF(M36="","",INDEX(Soupisky!$H:$H,MATCH(M36,Soupisky!$I:$I,0))) -> 2106 | M36: Papoušek Ivan | N36: D | O36: =IF(OR(ISNA(MATCH(W36,'1k - LOS'!$B$19:$B$30,0)),ISNA(MATCH(N36,'1k - LOS'!$C$18:$F$18,0))),"",INDEX('1k - LOS'!$C$19:$F$30,MATCH(W36,'1k - LOS'!$B$19:$B$30,0),MATCH(N36,'1k - LOS'!$C$18:$F$18,0))) -> 3 | P36: =IF($O36="","",INDEX('1k - 2. závod'!$A:$AB,$O36+5,INDEX('1k - Základní list'!$B:$B,MATCH($N36,'1k - Základní list'!$A:$A,0),1))) -> 690 | Q36: =IF($O36="",IF(AA36>0, POCET_DRUZSTEV, ""),INDEX('1k - 2. závod'!$A:$AB,$O36+5,INDEX('1k - Základní list'!$B:$B,MATCH($N36,'1k - Základní list'!$A:$A,0),1)+3)) -> 12 | R36: =IF(O36="","",SUM(P36:P39)) -> 8941 | S36: =IF(AA36>0, SUM(Q36:Q39), "") -> 30 | T36: =IF(AA36>0, RANK(S36,S:S,1), "") -> 10 | U36: B7 | V36: D3 | W36: =IF(ISBLANK(B36),"",B36) -> MRS - Poháry sport hobby M. Budějovice - Sensas | X36: =IF(O36="","",SUM(I36,R36)) -> 22746 | Y36: =IF(AA36>0, SUM(S36,J36), "") -> 59 | Z36: =IF(AA36>0, RANK(Y36,Y:Y,1), "") -> 8 | AA36: =IF(AND(D36="",D37="",D38="",D39=""), 0, 1) -> 1 | BR36: B7 | BS36: D3
C37: =IF(D37="","",INDEX(Soupisky!$H:$H,MATCH(D37,Soupisky!$I:$I,0))) -> 2864 | D37: Borovička Pavel | E37: A | F37: =IF(OR(ISNA(MATCH(W37,'1k - LOS'!$B$4:$B$15,0)),ISNA(MATCH(E37,'1k - LOS'!$C$3:$F$3,0))),"",INDEX('1k - LOS'!$C$4:$F$15,MATCH(W37,'1k - LOS'!$B$4:$B$15,0),MATCH(E37,'1k - LOS'!$C$3:$F$3,0))) -> 1 | G37: =IF($F37="","",INDEX('1k - 1. závod'!$A:$AB,$F37+5,INDEX('1k - Základní list'!$B:$B,MATCH($E37,'1k - Základní list'!$A:$A,0),1))) -> 2255 | H37: =IF($F37="",IF(AA36>0, POCET_DRUZSTEV, ""),INDEX('1k - 1. závod'!$A:$AB,$F37+5,INDEX('1k - Základní list'!$B:$B,MATCH($E37,'1k - Základní list'!$A:$A,0),1)+3)) -> 7 | L37: =IF(M37="","",INDEX(Soupisky!$H:$H,MATCH(M37,Soupisky!$I:$I,0))) -> 2864 | M37: Borovička Pavel | N37: A | O37: =IF(OR(ISNA(MATCH(W37,'1k - LOS'!$B$19:$B$30,0)),ISNA(MATCH(N37,'1k - LOS'!$C$18:$F$18,0))),"",INDEX('1k - LOS'!$C$19:$F$30,MATCH(W37,'1k - LOS'!$B$19:$B$30,0),MATCH(N37,'1k - LOS'!$C$18:$F$18,0))) -> 3 | P37: =IF($O37="","",INDEX('1k - 2. závod'!$A:$AB,$O37+5,INDEX('1k - Základní list'!$B:$B,MATCH($N37,'1k - Základní list'!$A:$A,0),1))) -> 736 | Q37: =IF($O37="",IF(AA36>0, POCET_DRUZSTEV, ""),INDEX('1k - 2. závod'!$A:$AB,$O37+5,INDEX('1k - Základní list'!$B:$B,MATCH($N37,'1k - Základní list'!$A:$A,0),1)+3)) -> 8 | U37: A1 | V37: A3 | W37: =IF(ISBLANK(B36),"",B36) -> MRS - Poháry sport hobby M. Budějovice - Sensas | BR37: A1 | BS37: A3
C38: =IF(D38="","",INDEX(Soupisky!$H:$H,MATCH(D38,Soupisky!$I:$I,0))) -> 6382 | D38: Viskot Zdeněk | E38: C | F38: =IF(OR(ISNA(MATCH(W38,'1k - LOS'!$B$4:$B$15,0)),ISNA(MATCH(E38,'1k - LOS'!$C$3:$F$3,0))),"",INDEX('1k - LOS'!$C$4:$F$15,MATCH(W38,'1k - LOS'!$B$4:$B$15,0),MATCH(E38,'1k - LOS'!$C$3:$F$3,0))) -> 7 | G38: =IF($F38="","",INDEX('1k - 1. závod'!$A:$AB,$F38+5,INDEX('1k - Základní list'!$B:$B,MATCH($E38,'1k - Základní list'!$A:$A,0),1))) -> 4540 | H38: =IF($F38="",IF(AA36>0, POCET_DRUZSTEV, ""),INDEX('1k - 1. závod'!$A:$AB,$F38+5,INDEX('1k - Základní list'!$B:$B,MATCH($E38,'1k - Základní list'!$A:$A,0),1)+3)) -> 8 | L38: =IF(M38="","",INDEX(Soupisky!$H:$H,MATCH(M38,Soupisky!$I:$I,0))) -> 6382 | M38: Viskot Zdeněk | N38: C | O38: =IF(OR(ISNA(MATCH(W38,'1k - LOS'!$B$19:$B$30,0)),ISNA(MATCH(N38,'1k - LOS'!$C$18:$F$18,0))),"",INDEX('1k - LOS'!$C$19:$F$30,MATCH(W38,'1k - LOS'!$B$19:$B$30,0),MATCH(N38,'1k - LOS'!$C$18:$F$18,0))) -> 9 | P38: =IF($O38="","",INDEX('1k - 2. závod'!$A:$AB,$O38+5,INDEX('1k - Základní list'!$B:$B,MATCH($N38,'1k - Základní list'!$A:$A,0),1))) -> 3555 | Q38: =IF($O38="",IF(AA36>0, POCET_DRUZSTEV, ""), INDEX('1k - 2. závod'!$A:$AB,$O38+5,INDEX('1k - Základní list'!$B:$B,MATCH($N38,'1k - Základní list'!$A:$A,0),1)+3)) -> 9 | U38: C7 | V38: C9 | W38: =IF(ISBLANK(B36),"",B36) -> MRS - Poháry sport hobby M. Budějovice - Sensas | BR38: C7 | BS38: C9
C39: =IF(D39="","",INDEX(Soupisky!$H:$H,MATCH(D39,Soupisky!$I:$I,0))) -> 3503 | D39: Průša Vladimír | E39: D | F39: =IF(OR(ISNA(MATCH(W39,'1k - LOS'!$B$4:$B$15,0)),ISNA(MATCH(E39,'1k - LOS'!$C$3:$F$3,0))),"",INDEX('1k - LOS'!$C$4:$F$15,MATCH(W39,'1k - LOS'!$B$4:$B$15,0),MATCH(E39,'1k - LOS'!$C$3:$F$3,0))) -> 1 | G39: =IF($F39="","",INDEX('1k - 1. závod'!$A:$AB,$F39+5,INDEX('1k - Základní list'!$B:$B,MATCH($E39,'1k - Základní list'!$A:$A,0),1))) -> 3620 | H39: =IF($F39="",IF(AA36>0, POCET_DRUZSTEV, ""),INDEX('1k - 1. závod'!$A:$AB,$F39+5,INDEX('1k - Základní list'!$B:$B,MATCH($E39,'1k - Základní list'!$A:$A,0),1)+3)) -> 5 | L39: =IF(M39="","",INDEX(Soupisky!$H:$H,MATCH(M39,Soupisky!$I:$I,0))) -> 3503 | M39: Průša Vladimír | N39: B | O39: =IF(OR(ISNA(MATCH(W39,'1k - LOS'!$B$19:$B$30,0)),ISNA(MATCH(N39,'1k - LOS'!$C$18:$F$18,0))),"",INDEX('1k - LOS'!$C$19:$F$30,MATCH(W39,'1k - LOS'!$B$19:$B$30,0),MATCH(N39,'1k - LOS'!$C$18:$F$18,0))) -> 9 | P39: =IF($O39="","",INDEX('1k - 2. závod'!$A:$AB,$O39+5,INDEX('1k - Základní list'!$B:$B,MATCH($N39,'1k - Základní list'!$A:$A,0),1))) -> 3960 | Q39: =IF($O39="",IF(AA36>0, POCET_DRUZSTEV, ""),INDEX('1k - 2. závod'!$A:$AB,$O39+5,INDEX('1k - Základní list'!$B:$B,MATCH($N39,'1k - Základní list'!$A:$A,0),1)+3)) -> 1 | U39: D1 | V39: B9 | W39: =IF(ISBLANK(B36),"",B36) -> MRS - Poháry sport hobby M. Budějovice - Sensas | BR39: D1 | BS39: B9
A40: =IF(INDEX('1k - LOS'!$H$4:$H$15,MATCH(B40,'1k - LOS'!$I$4:$I$15,0),)=0,"",INDEX('1k - LOS'!$H$4:$H$15,MATCH(B40,'1k - LOS'!$I$4:$I$15,0),)) -> 10 | B40: =Soupisky!$M9 -> MO ČRS Šumperk | C40: =IF(D40="","",INDEX(Soupisky!$H:$H,MATCH(D40,Soupisky!$I:$I,0))) -> 1923 | D40: Ing. Kolařík David | E40: C | F40: =IF(OR(ISNA(MATCH(W40,'1k - LOS'!$B$4:$B$15,0)),ISNA(MATCH(E40,'1k - LOS'!$C$3:$F$3,0))),"",INDEX('1k - LOS'!$C$4:$F$15,MATCH(W40,'1k - LOS'!$B$4:$B$15,0),MATCH(E40,'1k - LOS'!$C$3:$F$3,0))) -> 3 | G40: =IF($F40="","",INDEX('1k - 1. závod'!$A:$AB,$F40+5,INDEX('1k - Základní list'!$B:$B,MATCH($E40,'1k - Základní list'!$A:$A,0),1))) -> 6690 | H40: =IF($F40="",IF(AA40>0, POCET_DRUZSTEV, ""),INDEX('1k - 1. závod'!$A:$AB,$F40+5,INDEX('1k - Základní list'!$B:$B,MATCH($E40,'1k - Základní list'!$A:$A,0),1)+3)) -> 5 | I40: =IF(F40="","",SUM(G40:G43)) -> 11670 | J40: =IF(AA40>0, SUM(H40:H43), "") -> 35 | K40: =IF(AA40>0, RANK(J40,J:J,1), "") -> 11 | L40: =IF(M40="","",INDEX(Soupisky!$H:$H,MATCH(M40,Soupisky!$I:$I,0))) -> 1923 | M40: =IF(D40<>"",D40,"") -> Ing. Kolařík David | N40: A | O40: =IF(OR(ISNA(MATCH(W40,'1k - LOS'!$B$19:$B$30,0)),ISNA(MATCH(N40,'1k - LOS'!$C$18:$F$18,0))),"",INDEX('1k - LOS'!$C$19:$F$30,MATCH(W40,'1k - LOS'!$B$19:$B$30,0),MATCH(N40,'1k - LOS'!$C$18:$F$18,0))) -> 5 | P40: =IF($O40="","",INDEX('1k - 2. závod'!$A:$AB,$O40+5,INDEX('1k - Základní list'!$B:$B,MATCH($N40,'1k - Základní list'!$A:$A,0),1))) -> 795 | Q40: =IF($O40="",IF(AA40>0, POCET_DRUZSTEV, ""),INDEX('1k - 2. závod'!$A:$AB,$O40+5,INDEX('1k - Základní list'!$B:$B,MATCH($N40,'1k - Základní list'!$A:$A,0),1)+3)) -> 7 | R40: =IF(O40="","",SUM(P40:P43)) -> 8395 | S40: =IF(AA40>0, SUM(Q40:Q43), "") -> 29 | T40: =IF(AA40>0, RANK(S40,S:S,1), "") -> 8 | U40: =CONCATENATE(E40,F40) -> C3 | V40: =CONCATENATE(N40,O40) -> A5 | W40: =IF(ISBLANK(B40),"",B40) -> MO ČRS Šumperk | X40: =IF(O40="","",SUM(I40,R40)) -> 20065 | Y40: =IF(AA40>0, SUM(S40,J40), "") -> 64 | Z40: =IF(AA40>0, RANK(Y40,Y:Y,1), "") -> 9 | AA40: =IF(AND(D40="",D41="",D42="",D43=""), 0, 1) -> 1 | BR40: =CONCATENATE(E40,F40) -> C3 | BS40: =CONCATENATE(N40,O40) -> A5
C41: =IF(D41="","",INDEX(Soupisky!$H:$H,MATCH(D41,Soupisky!$I:$I,0))) -> 1433 | D41: Ing. Kouřil Petr | E41: D | F41: =IF(OR(ISNA(MATCH(W41,'1k - LOS'!$B$4:$B$15,0)),ISNA(MATCH(E41,'1k - LOS'!$C$3:$F$3,0))),"",INDEX('1k - LOS'!$C$4:$F$15,MATCH(W41,'1k - LOS'!$B$4:$B$15,0),MATCH(E41,'1k - LOS'!$C$3:$F$3,0))) -> 9 | G41: =IF($F41="","",INDEX('1k - 1. závod'!$A:$AB,$F41+5,INDEX('1k - Základní list'!$B:$B,MATCH($E41,'1k - Základní list'!$A:$A,0),1))) -> 1500 | H41: =IF($F41="",IF(AA40>0, POCET_DRUZSTEV, ""),INDEX('1k - 1. závod'!$A:$AB,$F41+5,INDEX('1k - Základní list'!$B:$B,MATCH($E41,'1k - Základní list'!$A:$A,0),1)+3)) -> 10 | L41: =IF(M41="","",INDEX(Soupisky!$H:$H,MATCH(M41,Soupisky!$I:$I,0))) -> 1433 | M41: Ing. Kouřil Petr | N41: D | O41: =IF(OR(ISNA(MATCH(W41,'1k - LOS'!$B$19:$B$30,0)),ISNA(MATCH(N41,'1k - LOS'!$C$18:$F$18,0))),"",INDEX('1k - LOS'!$C$19:$F$30,MATCH(W41,'1k - LOS'!$B$19:$B$30,0),MATCH(N41,'1k - LOS'!$C$18:$F$18,0))) -> 5 | P41: =IF($O41="","",INDEX('1k - 2. závod'!$A:$AB,$O41+5,INDEX('1k - Základní list'!$B:$B,MATCH($N41,'1k - Základní list'!$A:$A,0),1))) -> 4200 | Q41: =IF($O41="",IF(AA40>0, POCET_DRUZSTEV, ""),INDEX('1k - 2. závod'!$A:$AB,$O41+5,INDEX('1k - Základní list'!$B:$B,MATCH($N41,'1k - Základní list'!$A:$A,0),1)+3)) -> 4 | U41: D9 | V41: D5 | W41: =IF(ISBLANK(B40),"",B40) -> MO ČRS Šumperk | BR41: D9 | BS41: D5
C42: =IF(D42="","",INDEX(Soupisky!$H:$H,MATCH(D42,Soupisky!$I:$I,0))) -> 3185 | D42: Kapica Radim | E42: A | F42: =IF(OR(ISNA(MATCH(W42,'1k - LOS'!$B$4:$B$15,0)),ISNA(MATCH(E42,'1k - LOS'!$C$3:$F$3,0))),"",INDEX('1k - LOS'!$C$4:$F$15,MATCH(W42,'1k - LOS'!$B$4:$B$15,0),MATCH(E42,'1k - LOS'!$C$3:$F$3,0))) -> 9 | G42: =IF($F42="","",INDEX('1k - 1. závod'!$A:$AB,$F42+5,INDEX('1k - Základní list'!$B:$B,MATCH($E42,'1k - Základní list'!$A:$A,0),1))) -> 1910 | H42: =IF($F42="",IF(AA40>0, POCET_DRUZSTEV, ""),INDEX('1k - 1. závod'!$A:$AB,$F42+5,INDEX('1k - Základní list'!$B:$B,MATCH($E42,'1k - Základní list'!$A:$A,0),1)+3)) -> 8 | L42: =IF(M42="","",INDEX(Soupisky!$H:$H,MATCH(M42,Soupisky!$I:$I,0))) -> 3185 | M42: Kapica Radim | N42: C | O42: =IF(OR(ISNA(MATCH(W42,'1k - LOS'!$B$19:$B$30,0)),ISNA(MATCH(N42,'1k - LOS'!$C$18:$F$18,0))),"",INDEX('1k - LOS'!$C$19:$F$30,MATCH(W42,'1k - LOS'!$B$19:$B$30,0),MATCH(N42,'1k - LOS'!$C$18:$F$18,0))) -> 11 | P42: =IF($O42="","",INDEX('1k - 2. závod'!$A:$AB,$O42+5,INDEX('1k - Základní list'!$B:$B,MATCH($N42,'1k - Základní list'!$A:$A,0),1))) -> 1565 | Q42: =IF($O42="",IF(AA40>0, POCET_DRUZSTEV, ""), INDEX('1k - 2. závod'!$A:$AB,$O42+5,INDEX('1k - Základní list'!$B:$B,MATCH($N42,'1k - Základní list'!$A:$A,0),1)+3)) -> 12 | U42: A9 | V42: C11 | W42: =IF(ISBLANK(B40),"",B40) -> MO ČRS Šumperk | BR42: A9 | BS42: C11
C43: =IF(D43="","",INDEX(Soupisky!$H:$H,MATCH(D43,Soupisky!$I:$I,0))) -> 3881 | D43: HLISNIKOVSKY MARTIN | E43: B | F43: =IF(OR(ISNA(MATCH(W43,'1k - LOS'!$B$4:$B$15,0)),ISNA(MATCH(E43,'1k - LOS'!$C$3:$F$3,0))),"",INDEX('1k - LOS'!$C$4:$F$15,MATCH(W43,'1k - LOS'!$B$4:$B$15,0),MATCH(E43,'1k - LOS'!$C$3:$F$3,0))) -> 3 | G43: =IF($F43="","",INDEX('1k - 1. závod'!$A:$AB,$F43+5,INDEX('1k - Základní list'!$B:$B,MATCH($E43,'1k - Základní list'!$A:$A,0),1))) -> 1570 | H43: =IF($F43="",IF(AA40>0, POCET_DRUZSTEV, ""),INDEX('1k - 1. závod'!$A:$AB,$F43+5,INDEX('1k - Základní list'!$B:$B,MATCH($E43,'1k - Základní list'!$A:$A,0),1)+3)) -> 12 | L43: =IF(M43="","",INDEX(Soupisky!$H:$H,MATCH(M43,Soupisky!$I:$I,0))) -> 3881 | M43: HLISNIKOVSKY MARTIN | N43: B | O43: =IF(OR(ISNA(MATCH(W43,'1k - LOS'!$B$19:$B$30,0)),ISNA(MATCH(N43,'1k - LOS'!$C$18:$F$18,0))),"",INDEX('1k - LOS'!$C$19:$F$30,MATCH(W43,'1k - LOS'!$B$19:$B$30,0),MATCH(N43,'1k - LOS'!$C$18:$F$18,0))) -> 11 | P43: =IF($O43="","",INDEX('1k - 2. závod'!$A:$AB,$O43+5,INDEX('1k - Základní list'!$B:$B,MATCH($N43,'1k - Základní list'!$A:$A,0),1))) -> 1835 | Q43: =IF($O43="",IF(AA40>0, POCET_DRUZSTEV, ""),INDEX('1k - 2. závod'!$A:$AB,$O43+5,INDEX('1k - Základní list'!$B:$B,MATCH($N43,'1k - Základní list'!$A:$A,0),1)+3)) -> 6 | U43: B3 | V43: B11 | W43: =IF(ISBLANK(B40),"",B40) -> MO ČRS Šumperk | BR43: B3 | BS43: B11
A44: =IF(INDEX('1k - LOS'!$H$4:$H$15,MATCH(B44,'1k - LOS'!$I$4:$I$15,0),)=0,"",INDEX('1k - LOS'!$H$4:$H$15,MATCH(B44,'1k - LOS'!$I$4:$I$15,0),)) -> 5 | B44: =Soupisky!$M10 -> MO ČRS Ostrava | C44: =IF(D44="","",INDEX(Soupisky!$H:$H,MATCH(D44,Soupisky!$I:$I,0))) -> 46 | D44: Kotlář Jindřich | E44: A | F44: =IF(OR(ISNA(MATCH(W44,'1k - LOS'!$B$4:$B$15,0)),ISNA(MATCH(E44,'1k - LOS'!$C$3:$F$3,0))),"",INDEX('1k - LOS'!$C$4:$F$15,MATCH(W44,'1k - LOS'!$B$4:$B$15,0),MATCH(E44,'1k - LOS'!$C$3:$F$3,0))) -> 11 | G44: =IF($F44="","",INDEX('1k - 1. závod'!$A:$AB,$F44+5,INDEX('1k - Základní list'!$B:$B,MATCH($E44,'1k - Základní list'!$A:$A,0),1))) -> 3465 | H44: =IF($F44="",IF(AA44>0, POCET_DRUZSTEV, ""),INDEX('1k - 1. závod'!$A:$AB,$F44+5,INDEX('1k - Základní list'!$B:$B,MATCH($E44,'1k - Základní list'!$A:$A,0),1)+3)) -> 5 | I44: =IF(F44="","",SUM(G44:G47)) -> 12945 | J44: =IF(AA44>0, SUM(H44:H47), "") -> 29 | K44: 9 | L44: =IF(M44="","",INDEX(Soupisky!$H:$H,MATCH(M44,Soupisky!$I:$I,0))) -> 46 | M44: =IF(D44<>"",D44,"") -> Kotlář Jindřich | N44: D | O44: =IF(OR(ISNA(MATCH(W44,'1k - LOS'!$B$19:$B$30,0)),ISNA(MATCH(N44,'1k - LOS'!$C$18:$F$18,0))),"",INDEX('1k - LOS'!$C$19:$F$30,MATCH(W44,'1k - LOS'!$B$19:$B$30,0),MATCH(N44,'1k - LOS'!$C$18:$F$18,0))) -> 7 | P44: =IF($O44="","",INDEX('1k - 2. závod'!$A:$AB,$O44+5,INDEX('1k - Základní list'!$B:$B,MATCH($N44,'1k - Základní list'!$A:$A,0),1))) -> 1595 | Q44: =IF($O44="",IF(AA44>0, POCET_DRUZSTEV, ""),INDEX('1k - 2. závod'!$A:$AB,$O44+5,INDEX('1k - Základní list'!$B:$B,MATCH($N44,'1k - Základní list'!$A:$A,0),1)+3)) -> 9 | R44: =IF(O44="","",SUM(P44:P47)) -> 6790 | S44: =IF(AA44>0, SUM(Q44:Q47), "") -> 37 | T44: =IF(AA44>0, RANK(S44,S:S,1), "") -> 11 | U44: =CONCATENATE(E44,F44) -> A11 | V44: =CONCATENATE(N44,O44) -> D7 | W44: =IF(ISBLANK(B44),"",B44) -> MO ČRS Ostrava | X44: =IF(O44="","",SUM(I44,R44)) -> 19735 | Y44: =IF(AA44>0, SUM(S44,J44), "") -> 66 | Z44: =IF(AA44>0, RANK(Y44,Y:Y,1), "") -> 10 | AA44: =IF(AND(D44="",D45="",D46="",D47=""), 0, 1) -> 1 | BR44: =CONCATENATE(E44,F44) -> A11 | BS44: =CONCATENATE(N44,O44) -> D7
C45: =IF(D45="","",INDEX(Soupisky!$H:$H,MATCH(D45,Soupisky!$I:$I,0))) -> 50 | D45: RNDr. Pokorný Alois | E45: D | F45: =IF(OR(ISNA(MATCH(W45,'1k - LOS'!$B$4:$B$15,0)),ISNA(MATCH(E45,'1k - LOS'!$C$3:$F$3,0))),"",INDEX('1k - LOS'!$C$4:$F$15,MATCH(W45,'1k - LOS'!$B$4:$B$15,0),MATCH(E45,'1k - LOS'!$C$3:$F$3,0))) -> 11 | G45: =IF($F45="","",INDEX('1k - 1. závod'!$A:$AB,$F45+5,INDEX('1k - Základní list'!$B:$B,MATCH($E45,'1k - Základní list'!$A:$A,0),1))) -> 1585 | H45: =IF($F45="",IF(AA44>0, POCET_DRUZSTEV, ""),INDEX('1k - 1. závod'!$A:$AB,$F45+5,INDEX('1k - Základní list'!$B:$B,MATCH($E45,'1k - Základní list'!$A:$A,0),1)+3)) -> 9 | L45: =IF(M45="","",INDEX(Soupisky!$H:$H,MATCH(M45,Soupisky!$I:$I,0))) -> 50 | M45: RNDr. Pokorný Alois | N45: C | O45: =IF(OR(ISNA(MATCH(W45,'1k - LOS'!$B$19:$B$30,0)),ISNA(MATCH(N45,'1k - LOS'!$C$18:$F$18,0))),"",INDEX('1k - LOS'!$C$19:$F$30,MATCH(W45,'1k - LOS'!$B$19:$B$30,0),MATCH(N45,'1k - LOS'!$C$18:$F$18,0))) -> 1 | P45: =IF($O45="","",INDEX('1k - 2. závod'!$A:$AB,$O45+5,INDEX('1k - Základní list'!$B:$B,MATCH($N45,'1k - Základní list'!$A:$A,0),1))) -> 3575 | Q45: =IF($O45="",IF(AA44>0, POCET_DRUZSTEV, ""),INDEX('1k - 2. závod'!$A:$AB,$O45+5,INDEX('1k - Základní list'!$B:$B,MATCH($N45,'1k - Základní list'!$A:$A,0),1)+3)) -> 8 | U45: D11 | V45: C1 | W45: =IF(ISBLANK(B44),"",B44) -> MO ČRS Ostrava | BR45: D11 | BS45: C1
C46: =IF(D46="","",INDEX(Soupisky!$H:$H,MATCH(D46,Soupisky!$I:$I,0))) -> 1549 | D46: Havlíček Jaroslav | E46: C | F46: =IF(OR(ISNA(MATCH(W46,'1k - LOS'!$B$4:$B$15,0)),ISNA(MATCH(E46,'1k - LOS'!$C$3:$F$3,0))),"",INDEX('1k - LOS'!$C$4:$F$15,MATCH(W46,'1k - LOS'!$B$4:$B$15,0),MATCH(E46,'1k - LOS'!$C$3:$F$3,0))) -> 5 | G46: =IF($F46="","",INDEX('1k - 1. závod'!$A:$AB,$F46+5,INDEX('1k - Základní list'!$B:$B,MATCH($E46,'1k - Základní list'!$A:$A,0),1))) -> 3500 | H46: =IF($F46="",IF(AA44>0, POCET_DRUZSTEV, ""),INDEX('1k - 1. závod'!$A:$AB,$F46+5,INDEX('1k - Základní list'!$B:$B,MATCH($E46,'1k - Základní list'!$A:$A,0),1)+3)) -> 9 | L46: =IF(M46="","",INDEX(Soupisky!$H:$H,MATCH(M46,Soupisky!$I:$I,0))) -> 1549 | M46: Havlíček Jaroslav | N46: B | O46: =IF(OR(ISNA(MATCH(W46,'1k - LOS'!$B$19:$B$30,0)),ISNA(MATCH(N46,'1k - LOS'!$C$18:$F$18,0))),"",INDEX('1k - LOS'!$C$19:$F$30,MATCH(W46,'1k - LOS'!$B$19:$B$30,0),MATCH(N46,'1k - LOS'!$C$18:$F$18,0))) -> 1 | P46: =IF($O46="","",INDEX('1k - 2. závod'!$A:$AB,$O46+5,INDEX('1k - Základní list'!$B:$B,MATCH($N46,'1k - Základní list'!$A:$A,0),1))) -> 930 | Q46: =IF($O46="",IF(AA44>0, POCET_DRUZSTEV, ""), INDEX('1k - 2. závod'!$A:$AB,$O46+5,INDEX('1k - Základní list'!$B:$B,MATCH($N46,'1k - Základní list'!$A:$A,0),1)+3)) -> 10 | U46: C5 | V46: B1 | W46: =IF(ISBLANK(B44),"",B44) -> MO ČRS Ostrava | BR46: C5 | BS46: B1
C47: =IF(D47="","",INDEX(Soupisky!$H:$H,MATCH(D47,Soupisky!$I:$I,0))) -> 1550 | D47: ing. Havlíček Petr | E47: B | F47: =IF(OR(ISNA(MATCH(W47,'1k - LOS'!$B$4:$B$15,0)),ISNA(MATCH(E47,'1k - LOS'!$C$3:$F$3,0))),"",INDEX('1k - LOS'!$C$4:$F$15,MATCH(W47,'1k - LOS'!$B$4:$B$15,0),MATCH(E47,'1k - LOS'!$C$3:$F$3,0))) -> 5 | G47: =IF($F47="","",INDEX('1k - 1. závod'!$A:$AB,$F47+5,INDEX('1k - Základní list'!$B:$B,MATCH($E47,'1k - Základní list'!$A:$A,0),1))) -> 4395 | H47: =IF($F47="",IF(AA44>0, POCET_DRUZSTEV, ""),INDEX('1k - 1. závod'!$A:$AB,$F47+5,INDEX('1k - Základní list'!$B:$B,MATCH($E47,'1k - Základní list'!$A:$A,0),1)+3)) -> 6 | L47: =IF(M47="","",INDEX(Soupisky!$H:$H,MATCH(M47,Soupisky!$I:$I,0))) -> 1550 | M47: ing. Havlíček Petr | N47: A | O47: =IF(OR(ISNA(MATCH(W47,'1k - LOS'!$B$19:$B$30,0)),ISNA(MATCH(N47,'1k - LOS'!$C$18:$F$18,0))),"",INDEX('1k - LOS'!$C$19:$F$30,MATCH(W47,'1k - LOS'!$B$19:$B$30,0),MATCH(N47,'1k - LOS'!$C$18:$F$18,0))) -> 7 | P47: =IF($O47="","",INDEX('1k - 2. závod'!$A:$AB,$O47+5,INDEX('1k - Základní list'!$B:$B,MATCH($N47,'1k - Základní list'!$A:$A,0),1))) -> 690 | Q47: =IF($O47="",IF(AA44>0, POCET_DRUZSTEV, ""),INDEX('1k - 2. závod'!$A:$AB,$O47+5,INDEX('1k - Základní list'!$B:$B,MATCH($N47,'1k - Základní list'!$A:$A,0),1)+3)) -> 10 | U47: B5 | V47: A7 | W47: =IF(ISBLANK(B44),"",B44) -> MO ČRS Ostrava | BR47: B5 | BS47: A7
A48: =IF(INDEX('1k - LOS'!$H$4:$H$15,MATCH(B48,'1k - LOS'!$I$4:$I$15,0),)=0,"",INDEX('1k - LOS'!$H$4:$H$15,MATCH(B48,'1k - LOS'!$I$4:$I$15,0),)) -> 7 | B48: =Soupisky!$M8 -> MO ČRS Karviná MILO | C48: =IF(D48="","",INDEX(Soupisky!$H:$H,MATCH(D48,Soupisky!$I:$I,0))) -> 1057 | D48: Tököly Martin | E48: A | F48: =IF(OR(ISNA(MATCH(W48,'1k - LOS'!$B$4:$B$15,0)),ISNA(MATCH(E48,'1k - LOS'!$C$3:$F$3,0))),"",INDEX('1k - LOS'!$C$4:$F$15,MATCH(W48,'1k - LOS'!$B$4:$B$15,0),MATCH(E48,'1k - LOS'!$C$3:$F$3,0))) -> 6 | G48: =IF($F48="","",INDEX('1k - 1. závod'!$A:$AB,$F48+5,INDEX('1k - Základní list'!$B:$B,MATCH($E48,'1k - Základní list'!$A:$A,0),1))) -> 1000 | H48: =IF($F48="",IF(AA48>0, POCET_DRUZSTEV, ""),INDEX('1k - 1. závod'!$A:$AB,$F48+5,INDEX('1k - Základní list'!$B:$B,MATCH($E48,'1k - Základní list'!$A:$A,0),1)+3)) -> 12 | I48: =IF(F48="","",SUM(G48:G51)) -> 6280 | J48: =IF(AA48>0, SUM(H48:H51), "") -> 46 | K48: =IF(AA48>0, RANK(J48,J:J,1), "") -> 12 | L48: =IF(M48="","",INDEX(Soupisky!$H:$H,MATCH(M48,Soupisky!$I:$I,0))) -> 1057 | M48: Tököly Martin | N48: D | O48: =IF(OR(ISNA(MATCH(W48,'1k - LOS'!$B$19:$B$30,0)),ISNA(MATCH(N48,'1k - LOS'!$C$18:$F$18,0))),"",INDEX('1k - LOS'!$C$19:$F$30,MATCH(W48,'1k - LOS'!$B$19:$B$30,0),MATCH(N48,'1k - LOS'!$C$18:$F$18,0))) -> 4 | P48: =IF($O48="","",INDEX('1k - 2. závod'!$A:$AB,$O48+5,INDEX('1k - Základní list'!$B:$B,MATCH($N48,'1k - Základní list'!$A:$A,0),1))) -> 2235 | Q48: =IF($O48="",IF(AA48>0, POCET_DRUZSTEV, ""),INDEX('1k - 2. závod'!$A:$AB,$O48+5,INDEX('1k - Základní list'!$B:$B,MATCH($N48,'1k - Základní list'!$A:$A,0),1)+3)) -> 8 | R48: =IF(O48="","",SUM(P48:P51)) -> 8250 | S48: =IF(AA48>0, SUM(Q48:Q51), "") -> 29 | T48: 9 | U48: A6 | V48: D4 | W48: =IF(ISBLANK(B48),"",B48) -> MO ČRS Karviná MILO | X48: =IF(O48="","",SUM(I48,R48)) -> 14530 | Y48: =IF(AA48>0, SUM(S48,J48), "") -> 75 | Z48: =IF(AA48>0, RANK(Y48,Y:Y,1), "") -> 11 | AA48: =IF(AND(D48="",D49="",D50="",D51=""), 0, 1) -> 1 | BR48: A6 | BS48: D4
C49: =IF(D49="","",INDEX(Soupisky!$H:$H,MATCH(D49,Soupisky!$I:$I,0))) -> 912 | D49: Kozlovský Radim | E49: C | F49: =IF(OR(ISNA(MATCH(W49,'1k - LOS'!$B$4:$B$15,0)),ISNA(MATCH(E49,'1k - LOS'!$C$3:$F$3,0))),"",INDEX('1k - LOS'!$C$4:$F$15,MATCH(W49,'1k - LOS'!$B$4:$B$15,0),MATCH(E49,'1k - LOS'!$C$3:$F$3,0))) -> 12 | G49: =IF($F49="","",INDEX('1k - 1. závod'!$A:$AB,$F49+5,INDEX('1k - Základní list'!$B:$B,MATCH($E49,'1k - Základní list'!$A:$A,0),1))) -> 1150 | H49: =IF($F49="",IF(AA48>0, POCET_DRUZSTEV, ""),INDEX('1k - 1. závod'!$A:$AB,$F49+5,INDEX('1k - Základní list'!$B:$B,MATCH($E49,'1k - Základní list'!$A:$A,0),1)+3)) -> 12 | L49: =IF(M49="","",INDEX(Soupisky!$H:$H,MATCH(M49,Soupisky!$I:$I,0))) -> 912 | M49: Kozlovský Radim | N49: C | O49: =IF(OR(ISNA(MATCH(W49,'1k - LOS'!$B$19:$B$30,0)),ISNA(MATCH(N49,'1k - LOS'!$C$18:$F$18,0))),"",INDEX('1k - LOS'!$C$19:$F$30,MATCH(W49,'1k - LOS'!$B$19:$B$30,0),MATCH(N49,'1k - LOS'!$C$18:$F$18,0))) -> 10 | P49: =IF($O49="","",INDEX('1k - 2. závod'!$A:$AB,$O49+5,INDEX('1k - Základní list'!$B:$B,MATCH($N49,'1k - Základní list'!$A:$A,0),1))) -> 2745 | Q49: =IF($O49="",IF(AA48>0, POCET_DRUZSTEV, ""),INDEX('1k - 2. závod'!$A:$AB,$O49+5,INDEX('1k - Základní list'!$B:$B,MATCH($N49,'1k - Základní list'!$A:$A,0),1)+3)) -> 11 | U49: C12 | V49: C10 | W49: =IF(ISBLANK(B48),"",B48) -> MO ČRS Karviná MILO | BR49: C12 | BS49: C10
C50: =IF(D50="","",INDEX(Soupisky!$H:$H,MATCH(D50,Soupisky!$I:$I,0))) -> 111 | D50: Kochan Pavel | E50: B | F50: =IF(OR(ISNA(MATCH(W50,'1k - LOS'!$B$4:$B$15,0)),ISNA(MATCH(E50,'1k - LOS'!$C$3:$F$3,0))),"",INDEX('1k - LOS'!$C$4:$F$15,MATCH(W50,'1k - LOS'!$B$4:$B$15,0),MATCH(E50,'1k - LOS'!$C$3:$F$3,0))) -> 12 | G50: =IF($F50="","",INDEX('1k - 1. závod'!$A:$AB,$F50+5,INDEX('1k - Základní list'!$B:$B,MATCH($E50,'1k - Základní list'!$A:$A,0),1))) -> 3000 | H50: =IF($F50="",IF(AA48>0, POCET_DRUZSTEV, ""),INDEX('1k - 1. závod'!$A:$AB,$F50+5,INDEX('1k - Základní list'!$B:$B,MATCH($E50,'1k - Základní list'!$A:$A,0),1)+3)) -> 10 | L50: =IF(M50="","",INDEX(Soupisky!$H:$H,MATCH(M50,Soupisky!$I:$I,0))) -> 111 | M50: Kochan Pavel | N50: A | O50: =IF(OR(ISNA(MATCH(W50,'1k - LOS'!$B$19:$B$30,0)),ISNA(MATCH(N50,'1k - LOS'!$C$18:$F$18,0))),"",INDEX('1k - LOS'!$C$19:$F$30,MATCH(W50,'1k - LOS'!$B$19:$B$30,0),MATCH(N50,'1k - LOS'!$C$18:$F$18,0))) -> 4 | P50: =IF($O50="","",INDEX('1k - 2. závod'!$A:$AB,$O50+5,INDEX('1k - Základní list'!$B:$B,MATCH($N50,'1k - Základní list'!$A:$A,0),1))) -> 1130 | Q50: =IF($O50="",IF(AA48>0, POCET_DRUZSTEV, ""), INDEX('1k - 2. závod'!$A:$AB,$O50+5,INDEX('1k - Základní list'!$B:$B,MATCH($N50,'1k - Základní list'!$A:$A,0),1)+3)) -> 5 | U50: B12 | V50: A4 | W50: =IF(ISBLANK(B48),"",B48) -> MO ČRS Karviná MILO | BR50: B12 | BS50: A4
C51: =IF(D51="","",INDEX(Soupisky!$H:$H,MATCH(D51,Soupisky!$I:$I,0))) -> 110 | D51: Rys Jaroslav | E51: D | F51: =IF(OR(ISNA(MATCH(W51,'1k - LOS'!$B$4:$B$15,0)),ISNA(MATCH(E51,'1k - LOS'!$C$3:$F$3,0))),"",INDEX('1k - LOS'!$C$4:$F$15,MATCH(W51,'1k - LOS'!$B$4:$B$15,0),MATCH(E51,'1k - LOS'!$C$3:$F$3,0))) -> 6 | G51: =IF($F51="","",INDEX('1k - 1. závod'!$A:$AB,$F51+5,INDEX('1k - Základní list'!$B:$B,MATCH($E51,'1k - Základní list'!$A:$A,0),1))) -> 1130 | H51: =IF($F51="",IF(AA48>0, POCET_DRUZSTEV, ""),INDEX('1k - 1. závod'!$A:$AB,$F51+5,INDEX('1k - Základní list'!$B:$B,MATCH($E51,'1k - Základní list'!$A:$A,0),1)+3)) -> 12 | L51: =IF(M51="","",INDEX(Soupisky!$H:$H,MATCH(M51,Soupisky!$I:$I,0))) -> 110 | M51: Rys Jaroslav | N51: B | O51: =IF(OR(ISNA(MATCH(W51,'1k - LOS'!$B$19:$B$30,0)),ISNA(MATCH(N51,'1k - LOS'!$C$18:$F$18,0))),"",INDEX('1k - LOS'!$C$19:$F$30,MATCH(W51,'1k - LOS'!$B$19:$B$30,0),MATCH(N51,'1k - LOS'!$C$18:$F$18,0))) -> 10 | P51: =IF($O51="","",INDEX('1k - 2. závod'!$A:$AB,$O51+5,INDEX('1k - Základní list'!$B:$B,MATCH($N51,'1k - Základní list'!$A:$A,0),1))) -> 2140 | Q51: =IF($O51="",IF(AA48>0, POCET_DRUZSTEV, ""),INDEX('1k - 2. závod'!$A:$AB,$O51+5,INDEX('1k - Základní list'!$B:$B,MATCH($N51,'1k - Základní list'!$A:$A,0),1)+3)) -> 5 | U51: D6 | V51: B10 | W51: =IF(ISBLANK(B48),"",B48) -> MO ČRS Karviná MILO | BR51: D6 | BS51: B10
A52: =IF(INDEX('1k - LOS'!$H$4:$H$15,MATCH(B52,'1k - LOS'!$I$4:$I$15,0),)=0,"",INDEX('1k - LOS'!$H$4:$H$15,MATCH(B52,'1k - LOS'!$I$4:$I$15,0),)) -> 6 | B52: =Soupisky!$M5 -> MRS Hrušovany nad Jevišovkou MAVER | C52: =IF(D52="","",INDEX(Soupisky!$H:$H,MATCH(D52,Soupisky!$I:$I,0))) -> 2639 | D52: Mais Jan | E52: A | F52: =IF(OR(ISNA(MATCH(W52,'1k - LOS'!$B$4:$B$15,0)),ISNA(MATCH(E52,'1k - LOS'!$C$3:$F$3,0))),"",INDEX('1k - LOS'!$C$4:$F$15,MATCH(W52,'1k - LOS'!$B$4:$B$15,0),MATCH(E52,'1k - LOS'!$C$3:$F$3,0))) -> 2 | G52: =IF($F52="","",INDEX('1k - 1. závod'!$A:$AB,$F52+5,INDEX('1k - Základní list'!$B:$B,MATCH($E52,'1k - Základní list'!$A:$A,0),1))) -> 1750 | H52: =IF($F52="",IF(AA52>0, POCET_DRUZSTEV, ""),INDEX('1k - 1. závod'!$A:$AB,$F52+5,INDEX('1k - Základní list'!$B:$B,MATCH($E52,'1k - Základní list'!$A:$A,0),1)+3)) -> 10 | I52: =IF(F52="","",SUM(G52:G55)) -> 14775 | J52: =IF(AA52>0, SUM(H52:H55), "") -> 32 | K52: =IF(AA52>0, RANK(J52,J:J,1), "") -> 10 | L52: =IF(M52="","",INDEX(Soupisky!$H:$H,MATCH(M52,Soupisky!$I:$I,0))) -> 2639 | M52: Mais Jan | N52: A | O52: =IF(OR(ISNA(MATCH(W52,'1k - LOS'!$B$19:$B$30,0)),ISNA(MATCH(N52,'1k - LOS'!$C$18:$F$18,0))),"",INDEX('1k - LOS'!$C$19:$F$30,MATCH(W52,'1k - LOS'!$B$19:$B$30,0),MATCH(N52,'1k - LOS'!$C$18:$F$18,0))) -> 11 | P52: =IF($O52="","",INDEX('1k - 2. závod'!$A:$AB,$O52+5,INDEX('1k - Základní list'!$B:$B,MATCH($N52,'1k - Základní list'!$A:$A,0),1))) -> 295 | Q52: =IF($O52="",IF(AA52>0, POCET_DRUZSTEV, ""),INDEX('1k - 2. závod'!$A:$AB,$O52+5,INDEX('1k - Základní list'!$B:$B,MATCH($N52,'1k - Základní list'!$A:$A,0),1)+3)) -> 12 | R52: =IF(O52="","",SUM(P52:P55)) -> 5115 | S52: =IF(AA52>0, SUM(Q52:Q55), "") -> 44 | T52: =IF(AA52>0, RANK(S52,S:S,1), "") -> 12 | U52: A2 | V52: A11 | W52: =IF(ISBLANK(B52),"",B52) -> MRS Hrušovany nad Jevišovkou MAVER | X52: =IF(O52="","",SUM(I52,R52)) -> 19890 | Y52: =IF(AA52>0, SUM(S52,J52), "") -> 76 | Z52: =IF(AA52>0, RANK(Y52,Y:Y,1), "") -> 12 | AA52: =IF(AND(D52="",D53="",D54="",D55=""), 0, 1) -> 1 | BR52: A2 | BS52: A11
C53: =IF(D53="","",INDEX(Soupisky!$H:$H,MATCH(D53,Soupisky!$I:$I,0))) -> 3045 | D53: Pykal Aleš | E53: C | F53: =IF(OR(ISNA(MATCH(W53,'1k - LOS'!$B$4:$B$15,0)),ISNA(MATCH(E53,'1k - LOS'!$C$3:$F$3,0))),"",INDEX('1k - LOS'!$C$4:$F$15,MATCH(W53,'1k - LOS'!$B$4:$B$15,0),MATCH(E53,'1k - LOS'!$C$3:$F$3,0))) -> 8 | G53: =IF($F53="","",INDEX('1k - 1. závod'!$A:$AB,$F53+5,INDEX('1k - Základní list'!$B:$B,MATCH($E53,'1k - Základní list'!$A:$A,0),1))) -> 7475 | H53: =IF($F53="",IF(AA52>0, POCET_DRUZSTEV, ""),INDEX('1k - 1. závod'!$A:$AB,$F53+5,INDEX('1k - Základní list'!$B:$B,MATCH($E53,'1k - Základní list'!$A:$A,0),1)+3)) -> 4 | L53: =IF(M53="","",INDEX(Soupisky!$H:$H,MATCH(M53,Soupisky!$I:$I,0))) -> 3045 | M53: Pykal Aleš | N53: D | O53: =IF(OR(ISNA(MATCH(W53,'1k - LOS'!$B$19:$B$30,0)),ISNA(MATCH(N53,'1k - LOS'!$C$18:$F$18,0))),"",INDEX('1k - LOS'!$C$19:$F$30,MATCH(W53,'1k - LOS'!$B$19:$B$30,0),MATCH(N53,'1k - LOS'!$C$18:$F$18,0))) -> 11 | P53: =IF($O53="","",INDEX('1k - 2. závod'!$A:$AB,$O53+5,INDEX('1k - Základní list'!$B:$B,MATCH($N53,'1k - Základní list'!$A:$A,0),1))) -> 955 | Q53: =IF($O53="",IF(AA52>0, POCET_DRUZSTEV, ""),INDEX('1k - 2. závod'!$A:$AB,$O53+5,INDEX('1k - Základní list'!$B:$B,MATCH($N53,'1k - Základní list'!$A:$A,0),1)+3)) -> 10 | U53: C8 | V53: D11 | W53: =IF(ISBLANK(B52),"",B52) -> MRS Hrušovany nad Jevišovkou MAVER | BR53: C8 | BS53: D11
C54: =IF(D54="","",INDEX(Soupisky!$H:$H,MATCH(D54,Soupisky!$I:$I,0))) -> 4164 | D54: Kobliha Martin | E54: D | F54: =IF(OR(ISNA(MATCH(W54,'1k - LOS'!$B$4:$B$15,0)),ISNA(MATCH(E54,'1k - LOS'!$C$3:$F$3,0))),"",INDEX('1k - LOS'!$C$4:$F$15,MATCH(W54,'1k - LOS'!$B$4:$B$15,0),MATCH(E54,'1k - LOS'!$C$3:$F$3,0))) -> 2 | G54: =IF($F54="","",INDEX('1k - 1. závod'!$A:$AB,$F54+5,INDEX('1k - Základní list'!$B:$B,MATCH($E54,'1k - Základní list'!$A:$A,0),1))) -> 1270 | H54: =IF($F54="",IF(AA52>0, POCET_DRUZSTEV, ""),INDEX('1k - 1. závod'!$A:$AB,$F54+5,INDEX('1k - Základní list'!$B:$B,MATCH($E54,'1k - Základní list'!$A:$A,0),1)+3)) -> 11 | L54: =IF(M54="","",INDEX(Soupisky!$H:$H,MATCH(M54,Soupisky!$I:$I,0))) -> 4164 | M54: Kobliha Martin | N54: B | O54: =IF(OR(ISNA(MATCH(W54,'1k - LOS'!$B$19:$B$30,0)),ISNA(MATCH(N54,'1k - LOS'!$C$18:$F$18,0))),"",INDEX('1k - LOS'!$C$19:$F$30,MATCH(W54,'1k - LOS'!$B$19:$B$30,0),MATCH(N54,'1k - LOS'!$C$18:$F$18,0))) -> 5 | P54: =IF($O54="","",INDEX('1k - 2. závod'!$A:$AB,$O54+5,INDEX('1k - Základní list'!$B:$B,MATCH($N54,'1k - Základní list'!$A:$A,0),1))) -> 705 | Q54: =IF($O54="",IF(AA52>0, POCET_DRUZSTEV, ""), INDEX('1k - 2. závod'!$A:$AB,$O54+5,INDEX('1k - Základní list'!$B:$B,MATCH($N54,'1k - Základní list'!$A:$A,0),1)+3)) -> 12 | U54: D2 | V54: B5 | W54: =IF(ISBLANK(B52),"",B52) -> MRS Hrušovany nad Jevišovkou MAVER | BR54: D2 | BS54: B5
C55: =IF(D55="","",INDEX(Soupisky!$H:$H,MATCH(D55,Soupisky!$I:$I,0))) -> 3222 | D55: Konečný Tomáš | E55: B | F55: =IF(OR(ISNA(MATCH(W55,'1k - LOS'!$B$4:$B$15,0)),ISNA(MATCH(E55,'1k - LOS'!$C$3:$F$3,0))),"",INDEX('1k - LOS'!$C$4:$F$15,MATCH(W55,'1k - LOS'!$B$4:$B$15,0),MATCH(E55,'1k - LOS'!$C$3:$F$3,0))) -> 8 | G55: =IF($F55="","",INDEX('1k - 1. závod'!$A:$AB,$F55+5,INDEX('1k - Základní list'!$B:$B,MATCH($E55,'1k - Základní list'!$A:$A,0),1))) -> 4280 | H55: =IF($F55="",IF(AA52>0, POCET_DRUZSTEV, ""),INDEX('1k - 1. závod'!$A:$AB,$F55+5,INDEX('1k - Základní list'!$B:$B,MATCH($E55,'1k - Základní list'!$A:$A,0),1)+3)) -> 7 | L55: =IF(M55="","",INDEX(Soupisky!$H:$H,MATCH(M55,Soupisky!$I:$I,0))) -> 3222 | M55: Konečný Tomáš | N55: C | O55: =IF(OR(ISNA(MATCH(W55,'1k - LOS'!$B$19:$B$30,0)),ISNA(MATCH(N55,'1k - LOS'!$C$18:$F$18,0))),"",INDEX('1k - LOS'!$C$19:$F$30,MATCH(W55,'1k - LOS'!$B$19:$B$30,0),MATCH(N55,'1k - LOS'!$C$18:$F$18,0))) -> 5 | P55: =IF($O55="","",INDEX('1k - 2. závod'!$A:$AB,$O55+5,INDEX('1k - Základní list'!$B:$B,MATCH($N55,'1k - Základní list'!$A:$A,0),1))) -> 3160 | Q55: =IF($O55="",IF(AA52>0, POCET_DRUZSTEV, ""),INDEX('1k - 2. závod'!$A:$AB,$O55+5,INDEX('1k - Základní list'!$B:$B,MATCH($N55,'1k - Základní list'!$A:$A,0),1)+3)) -> 10 | U55: B8 | V55: C5 | W55: =IF(ISBLANK(B52),"",B52) -> MRS Hrušovany nad Jevišovkou MAVER | BR55: B8 | BS55: C5
A57: Podpis pořadatele | D57: Podpis garanta | Q57: Podpis hl. rozhodčího

Sheet 1k - Jednotlivci (hidden)
A1: =CONCATENATE('1k - Základní list'!$E$3) -> 2. liga, sk. C
A2: =CONCATENATE("Datum konání: ",'1k - Základní list'!D4," - ",'1k - Základní list'!F4) -> Datum konání: 28.4.18 - 29.4.18
E4: =MID(CELL("filename",A1),FIND("]",CELL("filename",A1))+1,1) & ". kolo" & "1. závod" -> 1. kolo1. závod | G4: =MID(CELL("filename",A1),FIND("]",CELL("filename",A1))+1,1) & ". kolo2. závod" -> 1. kolo2. závod | I4: 1. kolo celkem | M4: Poř
A5: REG | B5: Příjmení, jméno | C5: Kat | D5: Družstvo | E5: CIPS | F5: um. | G5: CIPS | H5: um. | I5: ZÁV | J5: CIPS | K5: body | L5: umist
A6: =IF(Soupisky!H29<>"", Soupisky!H29, "") -> 1758 | B6: =IF(Soupisky!I29<>"", Soupisky!I29, "") -> Kazatel Petr | C6: =IF(Soupisky!J29<>"", Soupisky!J29, "") -> M | D6: =IF(AND(A6<>"", Soupisky!E29 <> ""), Soupisky!E29, "") -> MRS RSK Jižní Morava Tubertini | E6: =IF(ISNA(MATCH($B6,'1k - Výsledková listina'!$D:$D,0)),"",INDEX('1k - Výsledková listina'!$G:$H,MATCH($B6,'1k - Výsledková listina'!$D:$D,0),1)) -> 9295 | F6: =IF(ISNA(MATCH($B6,'1k - Výsledková listina'!$D:$D,0)),"",INDEX('1k - Výsledková listina'!$G:$H,MATCH($B6,'1k - Výsledková listina'!$D:$D,0),2)) -> 2 | G6: =IF(ISNA(MATCH($B6,'1k - Výsledková listina'!$M:$M,0)),"",INDEX('1k - Výsledková listina'!$P:$Q,MATCH($B6,'1k - Výsledková listina'!$M:$M,0),1)) -> 13840 | H6: =IF(ISNA(MATCH($B6,'1k - Výsledková listina'!$M:$M,0)),"",INDEX('1k - Výsledková listina'!$P:$Q,MATCH($B6,'1k - Výsledková listina'!$M:$M,0),2)) -> 1 | I6: =IF(B6="","",COUNT(F6,H6)) -> 2 | J6: =IF(OR($I6=0, $I6=""),"",SUM(E6,G6)) -> 23135 | K6: =IF(OR($I6=0, $I6=""),"",SUM(F6,H6)) -> 3 | L6: =IF(OR($I6=0, $I6=""), "",IF(ISTEXT(L5),1,L5+1)) -> 1 | N6: =IF(AND(A6<>"",A6<>0), 1, 0) -> 1
A7: =IF(Soupisky!H137<>"", Soupisky!H137, "") -> 3768 | B7: =IF(Soupisky!I137<>"", Soupisky!I137, "") -> Chlebek Jakub | C7: =IF(Soupisky!J137<>"", Soupisky!J137, "") -> U20 | D7: =IF(AND(A7<>"", Soupisky!E137 <> ""), Soupisky!E137, "") -> MO ČRS Vítkov -MAVER TEAM | E7: =IF(ISNA(MATCH($B7,'1k - Výsledková listina'!$D:$D,0)),"",INDEX('1k - Výsledková listina'!$G:$H,MATCH($B7,'1k - Výsledková listina'!$D:$D,0),1)) -> 10890 | F7: =IF(ISNA(MATCH($B7,'1k - Výsledková listina'!$D:$D,0)),"",INDEX('1k - Výsledková listina'!$G:$H,MATCH($B7,'1k - Výsledková listina'!$D:$D,0),2)) -> 1 | G7: =IF(ISNA(MATCH($B7,'1k - Výsledková listina'!$M:$M,0)),"",INDEX('1k - Výsledková listina'!$P:$Q,MATCH($B7,'1k - Výsledková listina'!$M:$M,0),1)) -> 5300 | H7: =IF(ISNA(MATCH($B7,'1k - Výsledková listina'!$M:$M,0)),"",INDEX('1k - Výsledková listina'!$P:$Q,MATCH($B7,'1k - Výsledková listina'!$M:$M,0),2)) -> 2 | I7: 2 | J7: 16190 | K7: 3 | L7: 2 | N7: 1
A8: =IF(Soupisky!H151<>"", Soupisky!H151, "") -> 6675 | B8: =IF(Soupisky!I151<>"", Soupisky!I151, "") -> Drewny Patryk | C8: =IF(Soupisky!J151<>"", Soupisky!J151, "") -> M | D8: =IF(AND(A8<>"", Soupisky!E151 <> ""), Soupisky!E151, "") -> ČRS Matchpro | E8: =IF(ISNA(MATCH($B8,'1k - Výsledková listina'!$D:$D,0)),"",INDEX('1k - Výsledková listina'!$G:$H,MATCH($B8,'1k - Výsledková listina'!$D:$D,0),1)) -> 8670 | F8: =IF(ISNA(MATCH($B8,'1k - Výsledková listina'!$D:$D,0)),"",INDEX('1k - Výsledková listina'!$G:$H,MATCH($B8,'1k - Výsledková listina'!$D:$D,0),2)) -> 1 | G8: =IF(ISNA(MATCH($B8,'1k - Výsledková listina'!$M:$M,0)),"",INDEX('1k - Výsledková listina'!$P:$Q,MATCH($B8,'1k - Výsledková listina'!$M:$M,0),1)) -> 7730 | H8: =IF(ISNA(MATCH($B8,'1k - Výsledková listina'!$M:$M,0)),"",INDEX('1k - Výsledková listina'!$P:$Q,MATCH($B8,'1k - Výsledková listina'!$M:$M,0),2)) -> 3 | I8: 2 | J8: 16400 | K8: 4 | L8: 3 | N8: 1
A9: =IF(Soupisky!H4<>"", Soupisky!H4, "") -> 72 | B9: =IF(Soupisky!I4<>"", Soupisky!I4, "") -> Pergreffi Luca | C9: =IF(Soupisky!J4<>"", Soupisky!J4, "") -> M | D9: =IF(AND(A9<>"", Soupisky!E4 <> ""), Soupisky!E4, "") -> ČRS MILO Loštice | E9: =IF(ISNA(MATCH($B9,'1k - Výsledková listina'!$D:$D,0)),"",INDEX('1k - Výsledková listina'!$G:$H,MATCH($B9,'1k - Výsledková listina'!$D:$D,0),1)) -> 9080 | F9: =IF(ISNA(MATCH($B9,'1k - Výsledková listina'!$D:$D,0)),"",INDEX('1k - Výsledková listina'!$G:$H,MATCH($B9,'1k - Výsledková listina'!$D:$D,0),2)) -> 3 | G9: =IF(ISNA(MATCH($B9,'1k - Výsledková listina'!$M:$M,0)),"",INDEX('1k - Výsledková listina'!$P:$Q,MATCH($B9,'1k - Výsledková listina'!$M:$M,0),1)) -> 5500 | H9: =IF(ISNA(MATCH($B9,'1k - Výsledková listina'!$M:$M,0)),"",INDEX('1k - Výsledková listina'!$P:$Q,MATCH($B9,'1k - Výsledková listina'!$M:$M,0),2)) -> 1 | I9: 2 | J9: 14580 | K9: 4 | L9: 4 | N9: 1
A10: =IF(Soupisky!H149<>"", Soupisky!H149, "") -> 6448 | B10: =IF(Soupisky!I149<>"", Soupisky!I149, "") -> Stanczyk Marcin | C10: =IF(Soupisky!J149<>"", Soupisky!J149, "") -> M | D10: =IF(AND(A10<>"", Soupisky!E149 <> ""), Soupisky!E149, "") -> ČRS Matchpro | E10: =IF(ISNA(MATCH($B10,'1k - Výsledková listina'!$D:$D,0)),"",INDEX('1k - Výsledková listina'!$G:$H,MATCH($B10,'1k - Výsledková listina'!$D:$D,0),1)) -> 4535 | F10: =IF(ISNA(MATCH($B10,'1k - Výsledková listina'!$D:$D,0)),"",INDEX('1k - Výsledková listina'!$G:$H,MATCH($B10,'1k - Výsledková listina'!$D:$D,0),2)) -> 3 | G10: =IF(ISNA(MATCH($B10,'1k - Výsledková listina'!$M:$M,0)),"",INDEX('1k - Výsledková listina'!$P:$Q,MATCH($B10,'1k - Výsledková listina'!$M:$M,0),1)) -> 7200 | H10: =IF(ISNA(MATCH($B10,'1k - Výsledková listina'!$M:$M,0)),"",INDEX('1k - Výsledková listina'!$P:$Q,MATCH($B10,'1k - Výsledková listina'!$M:$M,0),2)) -> 1 | I10: 2 | J10: 11735 | K10: 4 | L10: 5 | N10: 1
A11: =IF(Soupisky!H150<>"", Soupisky!H150, "") -> 6449 | B11: =IF(Soupisky!I150<>"", Soupisky!I150, "") -> Lange Janusz | C11: =IF(Soupisky!J150<>"", Soupisky!J150, "") -> M | D11: =IF(AND(A11<>"", Soupisky!E150 <> ""), Soupisky!E150, "") -> ČRS Matchpro | E11: =IF(ISNA(MATCH($B11,'1k - Výsledková listina'!$D:$D,0)),"",INDEX('1k - Výsledková listina'!$G:$H,MATCH($B11,'1k - Výsledková listina'!$D:$D,0),1)) -> 5135 | F11: =IF(ISNA(MATCH($B11,'1k - Výsledková listina'!$D:$D,0)),"",INDEX('1k - Výsledková listina'!$G:$H,MATCH($B11,'1k - Výsledková listina'!$D:$D,0),2)) -> 2 | G11: =IF(ISNA(MATCH($B11,'1k - Výsledková listina'!$M:$M,0)),"",INDEX('1k - Výsledková listina'!$P:$Q,MATCH($B11,'1k - Výsledková listina'!$M:$M,0),1)) -> 5020 | H11: =IF(ISNA(MATCH($B11,'1k - Výsledková listina'!$M:$M,0)),"",INDEX('1k - Výsledková listina'!$P:$Q,MATCH($B11,'1k - Výsledková listina'!$M:$M,0),2)) -> 3 | I11: 2 | J11: 10155 | K11: 5 | L11: 6 | N11: 1
A12: =IF(Soupisky!H139<>"", Soupisky!H139, "") -> 4435 | B12: =IF(Soupisky!I139<>"", Soupisky!I139, "") -> Grzych Jan | C12: =IF(Soupisky!J139<>"", Soupisky!J139, "") -> U15 | D12: =IF(AND(A12<>"", Soupisky!E139 <> ""), Soupisky!E139, "") -> MO ČRS Vítkov -MAVER TEAM | E12: =IF(ISNA(MATCH($B12,'1k - Výsledková listina'!$D:$D,0)),"",INDEX('1k - Výsledková listina'!$G:$H,MATCH($B12,'1k - Výsledková listina'!$D:$D,0),1)) -> 6000 | F12: =IF(ISNA(MATCH($B12,'1k - Výsledková listina'!$D:$D,0)),"",INDEX('1k - Výsledková listina'!$G:$H,MATCH($B12,'1k - Výsledková listina'!$D:$D,0),2)) -> 3 | G12: =IF(ISNA(MATCH($B12,'1k - Výsledková listina'!$M:$M,0)),"",INDEX('1k - Výsledková listina'!$P:$Q,MATCH($B12,'1k - Výsledková listina'!$M:$M,0),1)) -> 3660 | H12: =IF(ISNA(MATCH($B12,'1k - Výsledková listina'!$M:$M,0)),"",INDEX('1k - Výsledková listina'!$P:$Q,MATCH($B12,'1k - Výsledková listina'!$M:$M,0),2)) -> 2 | I12: 2 | J12: 9660 | K12: 5 | L12: 7 | N12: 1
A13: =IF(Soupisky!H43<>"", Soupisky!H43, "") -> 3223 | B13: =IF(Soupisky!I43<>"", Soupisky!I43, "") -> Hruzík David | C13: =IF(Soupisky!J43<>"", Soupisky!J43, "") -> M | D13: =IF(AND(A13<>"", Soupisky!E43 <> ""), Soupisky!E43, "") -> MO ČRS Ostrava PRESTON | E13: =IF(ISNA(MATCH($B13,'1k - Výsledková listina'!$D:$D,0)),"",INDEX('1k - Výsledková listina'!$G:$H,MATCH($B13,'1k - Výsledková listina'!$D:$D,0),1)) -> 9310 | F13: =IF(ISNA(MATCH($B13,'1k - Výsledková listina'!$D:$D,0)),"",INDEX('1k - Výsledková listina'!$G:$H,MATCH($B13,'1k - Výsledková listina'!$D:$D,0),2)) -> 1 | G13: =IF(ISNA(MATCH($B13,'1k - Výsledková listina'!$M:$M,0)),"",INDEX('1k - Výsledková listina'!$P:$Q,MATCH($B13,'1k - Výsledková listina'!$M:$M,0),1)) -> 2540 | H13: =IF(ISNA(MATCH($B13,'1k - Výsledková listina'!$M:$M,0)),"",INDEX('1k - Výsledková listina'!$P:$Q,MATCH($B13,'1k - Výsledková listina'!$M:$M,0),2)) -> 5 | I13: 2 | J13: 11850 | K13: 6 | L13: 8 | N13: 1
A14: =IF(Soupisky!H7<>"", Soupisky!H7, "") -> 5639 | B14: =IF(Soupisky!I7<>"", Soupisky!I7, "") -> Ing Koukal Martin | C14: =IF(Soupisky!J7<>"", Soupisky!J7, "") -> M | D14: =IF(AND(A14<>"", Soupisky!E7 <> ""), Soupisky!E7, "") -> ČRS MILO Loštice | E14: =IF(ISNA(MATCH($B14,'1k - Výsledková listina'!$D:$D,0)),"",INDEX('1k - Výsledková listina'!$G:$H,MATCH($B14,'1k - Výsledková listina'!$D:$D,0),1)) -> 6090 | F14: =IF(ISNA(MATCH($B14,'1k - Výsledková listina'!$D:$D,0)),"",INDEX('1k - Výsledková listina'!$G:$H,MATCH($B14,'1k - Výsledková listina'!$D:$D,0),2)) -> 2 | G14: =IF(ISNA(MATCH($B14,'1k - Výsledková listina'!$M:$M,0)),"",INDEX('1k - Výsledková listina'!$P:$Q,MATCH($B14,'1k - Výsledková listina'!$M:$M,0),1)) -> 3285 | H14: =IF(ISNA(MATCH($B14,'1k - Výsledková listina'!$M:$M,0)),"",INDEX('1k - Výsledková listina'!$P:$Q,MATCH($B14,'1k - Výsledková listina'!$M:$M,0),2)) -> 4 | I14: 2 | J14: 9375 | K14: 6 | L14: 9 | N14: 1
A15: =IF(Soupisky!H97<>"", Soupisky!H97, "") -> 3503 | B15: =IF(Soupisky!I97<>"", Soupisky!I97, "") -> Průša Vladimír | C15: =IF(Soupisky!J97<>"", Soupisky!J97, "") -> M | D15: =IF(AND(A15<>"", Soupisky!E97 <> ""), Soupisky!E97, "") -> MRS - Poháry sport hobby M. Budějovice - Sensas | E15: =IF(ISNA(MATCH($B15,'1k - Výsledková listina'!$D:$D,0)),"",INDEX('1k - Výsledková listina'!$G:$H,MATCH($B15,'1k - Výsledková listina'!$D:$D,0),1)) -> 3620 | F15: =IF(ISNA(MATCH($B15,'1k - Výsledková listina'!$D:$D,0)),"",INDEX('1k - Výsledková listina'!$G:$H,MATCH($B15,'1k - Výsledková listina'!$D:$D,0),2)) -> 5 | G15: =IF(ISNA(MATCH($B15,'1k - Výsledková listina'!$M:$M,0)),"",INDEX('1k - Výsledková listina'!$P:$Q,MATCH($B15,'1k - Výsledková listina'!$M:$M,0),1)) -> 3960 | H15: =IF(ISNA(MATCH($B15,'1k - Výsledková listina'!$M:$M,0)),"",INDEX('1k - Výsledková listina'!$P:$Q,MATCH($B15,'1k - Výsledková listina'!$M:$M,0),2)) -> 1 | I15: 2 | J15: 7580 | K15: 6 | L15: 10 | N15: 1
A16: =IF(Soupisky!H46<>"", Soupisky!H46, "") -> 2182 | B16: =IF(Soupisky!I46<>"", Soupisky!I46, "") -> Vytřas Radim | C16: =IF(Soupisky!J46<>"", Soupisky!J46, "") -> M | D16: =IF(AND(A16<>"", Soupisky!E46 <> ""), Soupisky!E46, "") -> MO ČRS Ostrava PRESTON | E16: =IF(ISNA(MATCH($B16,'1k - Výsledková listina'!$D:$D,0)),"",INDEX('1k - Výsledková listina'!$G:$H,MATCH($B16,'1k - Výsledková listina'!$D:$D,0),1)) -> 5845 | F16: =IF(ISNA(MATCH($B16,'1k - Výsledková listina'!$D:$D,0)),"",INDEX('1k - Výsledková listina'!$G:$H,MATCH($B16,'1k - Výsledková listina'!$D:$D,0),2)) -> 1 | G16: =IF(ISNA(MATCH($B16,'1k - Výsledková listina'!$M:$M,0)),"",INDEX('1k - Výsledková listina'!$P:$Q,MATCH($B16,'1k - Výsledková listina'!$M:$M,0),1)) -> 1115 | H16: =IF(ISNA(MATCH($B16,'1k - Výsledková listina'!$M:$M,0)),"",INDEX('1k - Výsledková listina'!$P:$Q,MATCH($B16,'1k - Výsledková listina'!$M:$M,0),2)) -> 6 | I16: 2 | J16: 6960 | K16: 7 | L16: 11 | N16: 1
A17: =IF(Soupisky!H31<>"", Soupisky!H31, "") -> 3499 | B17: =IF(Soupisky!I31<>"", Soupisky!I31, "") -> Pospíšil Radek | C17: =IF(Soupisky!J31<>"", Soupisky!J31, "") -> M | D17: =IF(AND(A17<>"", Soupisky!E31 <> ""), Soupisky!E31, "") -> MRS RSK Jižní Morava Tubertini | E17: =IF(ISNA(MATCH($B17,'1k - Výsledková listina'!$D:$D,0)),"",INDEX('1k - Výsledková listina'!$G:$H,MATCH($B17,'1k - Výsledková listina'!$D:$D,0),1)) -> 3640 | F17: =IF(ISNA(MATCH($B17,'1k - Výsledková listina'!$D:$D,0)),"",INDEX('1k - Výsledková listina'!$G:$H,MATCH($B17,'1k - Výsledková listina'!$D:$D,0),2)) -> 4 | G17: =IF(ISNA(MATCH($B17,'1k - Výsledková listina'!$M:$M,0)),"",INDEX('1k - Výsledková listina'!$P:$Q,MATCH($B17,'1k - Výsledková listina'!$M:$M,0),1)) -> 2560 | H17: =IF(ISNA(MATCH($B17,'1k - Výsledková listina'!$M:$M,0)),"",INDEX('1k - Výsledková listina'!$P:$Q,MATCH($B17,'1k - Výsledková listina'!$M:$M,0),2)) -> 3 | I17: 2 | J17: 6200 | K17: 7 | L17: 12 | N17: 1
A18: =IF(Soupisky!H47<>"", Soupisky!H47, "") -> 1462 | B18: =IF(Soupisky!I47<>"", Soupisky!I47, "") -> Kyselovský Tomáš | C18: =IF(Soupisky!J47<>"", Soupisky!J47, "") -> M | D18: =IF(AND(A18<>"", Soupisky!E47 <> ""), Soupisky!E47, "") -> MO ČRS Ostrava PRESTON | E18: =IF(ISNA(MATCH($B18,'1k - Výsledková listina'!$D:$D,0)),"",INDEX('1k - Výsledková listina'!$G:$H,MATCH($B18,'1k - Výsledková listina'!$D:$D,0),1)) -> 3440 | F18: =IF(ISNA(MATCH($B18,'1k - Výsledková listina'!$D:$D,0)),"",INDEX('1k - Výsledková listina'!$G:$H,MATCH($B18,'1k - Výsledková listina'!$D:$D,0),2)) -> 6 | G18: =IF(ISNA(MATCH($B18,'1k - Výsledková listina'!$M:$M,0)),"",INDEX('1k - Výsledková listina'!$P:$Q,MATCH($B18,'1k - Výsledková listina'!$M:$M,0),1)) -> 9300 | H18: =IF(ISNA(MATCH($B18,'1k - Výsledková listina'!$M:$M,0)),"",INDEX('1k - Výsledková listina'!$P:$Q,MATCH($B18,'1k - Výsledková listina'!$M:$M,0),2)) -> 2 | I18: 2 | J18: 12740 | K18: 8 | L18: 13 | N18: 1
A19: =IF(Soupisky!H108<>"", Soupisky!H108, "") -> 4351 | B19: =IF(Soupisky!I108<>"", Soupisky!I108, "") -> Kendiura Tomáš | C19: =IF(Soupisky!J108<>"", Soupisky!J108, "") -> M | D19: =IF(AND(A19<>"", Soupisky!E108 <> ""), Soupisky!E108, "") -> MO ČRS Mohelnice MIVARDI | E19: =IF(ISNA(MATCH($B19,'1k - Výsledková listina'!$D:$D,0)),"",INDEX('1k - Výsledková listina'!$G:$H,MATCH($B19,'1k - Výsledková listina'!$D:$D,0),1)) -> 4105 | F19: =IF(ISNA(MATCH($B19,'1k - Výsledková listina'!$D:$D,0)),"",INDEX('1k - Výsledková listina'!$G:$H,MATCH($B19,'1k - Výsledková listina'!$D:$D,0),2)) -> 4 | G19: =IF(ISNA(MATCH($B19,'1k - Výsledková listina'!$M:$M,0)),"",INDEX('1k - Výsledková listina'!$P:$Q,MATCH($B19,'1k - Výsledková listina'!$M:$M,0),1)) -> 7390 | H19: =IF(ISNA(MATCH($B19,'1k - Výsledková listina'!$M:$M,0)),"",INDEX('1k - Výsledková listina'!$P:$Q,MATCH($B19,'1k - Výsledková listina'!$M:$M,0),2)) -> 4 | I19: 2 | J19: 11495 | K19: 8 | L19: 14 | N19: 1
A20: =IF(Soupisky!H3<>"", Soupisky!H3, "") -> 2 | B20: =IF(Soupisky!I3<>"", Soupisky!I3, "") -> Ing. Heidenreich Jan | C20: =IF(Soupisky!J3<>"", Soupisky!J3, "") -> M | D20: =IF(AND(A20<>"", Soupisky!E3 <> ""), Soupisky!E3, "") -> ČRS MILO Loštice | E20: =IF(ISNA(MATCH($B20,'1k - Výsledková listina'!$D:$D,0)),"",INDEX('1k - Výsledková listina'!$G:$H,MATCH($B20,'1k - Výsledková listina'!$D:$D,0),1)) -> 4895 | F20: =IF(ISNA(MATCH($B20,'1k - Výsledková listina'!$D:$D,0)),"",INDEX('1k - Výsledková listina'!$G:$H,MATCH($B20,'1k - Výsledková listina'!$D:$D,0),2)) -> 3 | G20: =IF(ISNA(MATCH($B20,'1k - Výsledková listina'!$M:$M,0)),"",INDEX('1k - Výsledková listina'!$P:$Q,MATCH($B20,'1k - Výsledková listina'!$M:$M,0),1)) -> 5820 | H20: =IF(ISNA(MATCH($B20,'1k - Výsledková listina'!$M:$M,0)),"",INDEX('1k - Výsledková listina'!$P:$Q,MATCH($B20,'1k - Výsledková listina'!$M:$M,0),2)) -> 5 | I20: 2 | J20: 10715 | K20: 8 | L20: 15 | N20: 1
A21: =IF(Soupisky!H123<>"", Soupisky!H123, "") -> 2368 | B21: =IF(Soupisky!I123<>"", Soupisky!I123, "") -> Bradna Ladislav ml. | C21: =IF(Soupisky!J123<>"", Soupisky!J123, "") -> M | D21: =IF(AND(A21<>"", Soupisky!E123 <> ""), Soupisky!E123, "") -> MO MRS Letovice PRESTON | E21: =IF(ISNA(MATCH($B21,'1k - Výsledková listina'!$D:$D,0)),"",INDEX('1k - Výsledková listina'!$G:$H,MATCH($B21,'1k - Výsledková listina'!$D:$D,0),1)) -> 4975 | F21: =IF(ISNA(MATCH($B21,'1k - Výsledková listina'!$D:$D,0)),"",INDEX('1k - Výsledková listina'!$G:$H,MATCH($B21,'1k - Výsledková listina'!$D:$D,0),2)) -> 2 | G21: =IF(ISNA(MATCH($B21,'1k - Výsledková listina'!$M:$M,0)),"",INDEX('1k - Výsledková listina'!$P:$Q,MATCH($B21,'1k - Výsledková listina'!$M:$M,0),1)) -> 5590 | H21: =IF(ISNA(MATCH($B21,'1k - Výsledková listina'!$M:$M,0)),"",INDEX('1k - Výsledková listina'!$P:$Q,MATCH($B21,'1k - Výsledková listina'!$M:$M,0),2)) -> 6 | I21: 2 | J21: 10565 | K21: 8 | L21: 16 | N21: 1
A22: =IF(Soupisky!H107<>"", Soupisky!H107, "") -> 2412 | B22: =IF(Soupisky!I107<>"", Soupisky!I107, "") -> Michalovič Tomáš | C22: =IF(Soupisky!J107<>"", Soupisky!J107, "") -> M | D22: =IF(AND(A22<>"", Soupisky!E107 <> ""), Soupisky!E107, "") -> MO ČRS Mohelnice MIVARDI | E22: =IF(ISNA(MATCH($B22,'1k - Výsledková listina'!$D:$D,0)),"",INDEX('1k - Výsledková listina'!$G:$H,MATCH($B22,'1k - Výsledková listina'!$D:$D,0),1)) -> 5700 | F22: =IF(ISNA(MATCH($B22,'1k - Výsledková listina'!$D:$D,0)),"",INDEX('1k - Výsledková listina'!$G:$H,MATCH($B22,'1k - Výsledková listina'!$D:$D,0),2)) -> 4 | G22: =IF(ISNA(MATCH($B22,'1k - Výsledková listina'!$M:$M,0)),"",INDEX('1k - Výsledková listina'!$P:$Q,MATCH($B22,'1k - Výsledková listina'!$M:$M,0),1)) -> 2245 | H22: =IF(ISNA(MATCH($B22,'1k - Výsledková listina'!$M:$M,0)),"",INDEX('1k - Výsledková listina'!$P:$Q,MATCH($B22,'1k - Výsledková listina'!$M:$M,0),2)) -> 7 | I22: 2 | J22: 7945 | K22: 11 | L22: 17 | N22: 1
A23: =IF(Soupisky!H131<>"", Soupisky!H131, "") -> 4071 | B23: =IF(Soupisky!I131<>"", Soupisky!I131, "") -> Ing Sobotka Petr | C23: =IF(Soupisky!J131<>"", Soupisky!J131, "") -> M | D23: =IF(AND(A23<>"", Soupisky!E131 <> ""), Soupisky!E131, "") -> MO MRS Letovice PRESTON | E23: =IF(ISNA(MATCH($B23,'1k - Výsledková listina'!$D:$D,0)),"",INDEX('1k - Výsledková listina'!$G:$H,MATCH($B23,'1k - Výsledková listina'!$D:$D,0),1)) -> 1860 | F23: =IF(ISNA(MATCH($B23,'1k - Výsledková listina'!$D:$D,0)),"",INDEX('1k - Výsledková listina'!$G:$H,MATCH($B23,'1k - Výsledková listina'!$D:$D,0),2)) -> 9 | G23: =IF(ISNA(MATCH($B23,'1k - Výsledková listina'!$M:$M,0)),"",INDEX('1k - Výsledková listina'!$P:$Q,MATCH($B23,'1k - Výsledková listina'!$M:$M,0),1)) -> 3395 | H23: =IF(ISNA(MATCH($B23,'1k - Výsledková listina'!$M:$M,0)),"",INDEX('1k - Výsledková listina'!$P:$Q,MATCH($B23,'1k - Výsledková listina'!$M:$M,0),2)) -> 2 | I23: 2 | J23: 5255 | K23: 11 | L23: 18 | N23: 1
A24: =IF(Soupisky!H68<>"", Soupisky!H68, "") -> 1923 | B24: =IF(Soupisky!I68<>"", Soupisky!I68, "") -> Ing. Kolařík David | C24: =IF(Soupisky!J68<>"", Soupisky!J68, "") -> M | D24: =IF(AND(A24<>"", Soupisky!E68 <> ""), Soupisky!E68, "") -> MO ČRS Šumperk | E24: =IF(ISNA(MATCH($B24,'1k - Výsledková listina'!$D:$D,0)),"",INDEX('1k - Výsledková listina'!$G:$H,MATCH($B24,'1k - Výsledková listina'!$D:$D,0),1)) -> 6690 | F24: =IF(ISNA(MATCH($B24,'1k - Výsledková listina'!$D:$D,0)),"",INDEX('1k - Výsledková listina'!$G:$H,MATCH($B24,'1k - Výsledková listina'!$D:$D,0),2)) -> 5 | G24: =IF(ISNA(MATCH($B24,'1k - Výsledková listina'!$M:$M,0)),"",INDEX('1k - Výsledková listina'!$P:$Q,MATCH($B24,'1k - Výsledková listina'!$M:$M,0),1)) -> 795 | H24: =IF(ISNA(MATCH($B24,'1k - Výsledková listina'!$M:$M,0)),"",INDEX('1k - Výsledková listina'!$P:$Q,MATCH($B24,'1k - Výsledková listina'!$M:$M,0),2)) -> 7 | I24: 2 | J24: 7485 | K24: 12 | L24: 19 | N24: 1
A25: =IF(Soupisky!H18<>"", Soupisky!H18, "") -> 3045 | B25: =IF(Soupisky!I18<>"", Soupisky!I18, "") -> Pykal Aleš | C25: =IF(Soupisky!J18<>"", Soupisky!J18, "") -> M | D25: =IF(AND(A25<>"", Soupisky!E18 <> ""), Soupisky!E18, "") -> MRS Hrušovany nad Jevišovkou MAVER | E25: =IF(ISNA(MATCH($B25,'1k - Výsledková listina'!$D:$D,0)),"",INDEX('1k - Výsledková listina'!$G:$H,MATCH($B25,'1k - Výsledková listina'!$D:$D,0),1)) -> 7475 | F25: =IF(ISNA(MATCH($B25,'1k - Výsledková listina'!$D:$D,0)),"",INDEX('1k - Výsledková listina'!$G:$H,MATCH($B25,'1k - Výsledková listina'!$D:$D,0),2)) -> 4 | G25: =IF(ISNA(MATCH($B25,'1k - Výsledková listina'!$M:$M,0)),"",INDEX('1k - Výsledková listina'!$P:$Q,MATCH($B25,'1k - Výsledková listina'!$M:$M,0),1)) -> 955 | H25: =IF(ISNA(MATCH($B25,'1k - Výsledková listina'!$M:$M,0)),"",INDEX('1k - Výsledková listina'!$P:$Q,MATCH($B25,'1k - Výsledková listina'!$M:$M,0),2)) -> 10 | I25: 2 | J25: 8430 | K25: 14 | L25: 20 | N25: 1
A26: =IF(Soupisky!H136<>"", Soupisky!H136, "") -> 4832 | B26: =IF(Soupisky!I136<>"", Soupisky!I136, "") -> Dořičák Lukáš | C26: =IF(Soupisky!J136<>"", Soupisky!J136, "") -> U15 | D26: =IF(AND(A26<>"", Soupisky!E136 <> ""), Soupisky!E136, "") -> MO ČRS Vítkov -MAVER TEAM | E26: =IF(ISNA(MATCH($B26,'1k - Výsledková listina'!$D:$D,0)),"",INDEX('1k - Výsledková listina'!$G:$H,MATCH($B26,'1k - Výsledková listina'!$D:$D,0),1)) -> 5620 | F26: =IF(ISNA(MATCH($B26,'1k - Výsledková listina'!$D:$D,0)),"",INDEX('1k - Výsledková listina'!$G:$H,MATCH($B26,'1k - Výsledková listina'!$D:$D,0),2)) -> 6 | G26: =IF(ISNA(MATCH($B26,'1k - Výsledková listina'!$M:$M,0)),"",INDEX('1k - Výsledková listina'!$P:$Q,MATCH($B26,'1k - Výsledková listina'!$M:$M,0),1)) -> 1515 | H26: =IF(ISNA(MATCH($B26,'1k - Výsledková listina'!$M:$M,0)),"",INDEX('1k - Výsledková listina'!$P:$Q,MATCH($B26,'1k - Výsledková listina'!$M:$M,0),2)) -> 8 | I26: 2 | J26: 7135 | K26: 14 | L26: 21 | N26: 1
A27: =IF(Soupisky!H147<>"", Soupisky!H147, "") -> 6447 | B27: =IF(Soupisky!I147<>"", Soupisky!I147, "") -> Kaluzny Krzystof | C27: =IF(Soupisky!J147<>"", Soupisky!J147, "") -> M | D27: =IF(AND(A27<>"", Soupisky!E147 <> ""), Soupisky!E147, "") -> ČRS Matchpro | E27: =IF(ISNA(MATCH($B27,'1k - Výsledková listina'!$D:$D,0)),"",INDEX('1k - Výsledková listina'!$G:$H,MATCH($B27,'1k - Výsledková listina'!$D:$D,0),1)) -> 5045 | F27: =IF(ISNA(MATCH($B27,'1k - Výsledková listina'!$D:$D,0)),"",INDEX('1k - Výsledková listina'!$G:$H,MATCH($B27,'1k - Výsledková listina'!$D:$D,0),2)) -> 7 | G27: =IF(ISNA(MATCH($B27,'1k - Výsledková listina'!$M:$M,0)),"",INDEX('1k - Výsledková listina'!$P:$Q,MATCH($B27,'1k - Výsledková listina'!$M:$M,0),1)) -> 1780 | H27: =IF(ISNA(MATCH($B27,'1k - Výsledková listina'!$M:$M,0)),"",INDEX('1k - Výsledková listina'!$P:$Q,MATCH($B27,'1k - Výsledková listina'!$M:$M,0),2)) -> 7 | I27: 2 | J27: 6825 | K27: 14 | L27: 22 | N27: 1
A28: =IF(Soupisky!H30<>"", Soupisky!H30, "") -> 557 | B28: =IF(Soupisky!I30<>"", Soupisky!I30, "") -> Bc. Pavka Martin | C28: =IF(Soupisky!J30<>"", Soupisky!J30, "") -> M | D28: =IF(AND(A28<>"", Soupisky!E30 <> ""), Soupisky!E30, "") -> MRS RSK Jižní Morava Tubertini | E28: =IF(ISNA(MATCH($B28,'1k - Výsledková listina'!$D:$D,0)),"",INDEX('1k - Výsledková listina'!$G:$H,MATCH($B28,'1k - Výsledková listina'!$D:$D,0),1)) -> 3525 | F28: =IF(ISNA(MATCH($B28,'1k - Výsledková listina'!$D:$D,0)),"",INDEX('1k - Výsledková listina'!$G:$H,MATCH($B28,'1k - Výsledková listina'!$D:$D,0),2)) -> 8 | G28: =IF(ISNA(MATCH($B28,'1k - Výsledková listina'!$M:$M,0)),"",INDEX('1k - Výsledková listina'!$P:$Q,MATCH($B28,'1k - Výsledková listina'!$M:$M,0),1)) -> 2395 | H28: =IF(ISNA(MATCH($B28,'1k - Výsledková listina'!$M:$M,0)),"",INDEX('1k - Výsledková listina'!$P:$Q,MATCH($B28,'1k - Výsledková listina'!$M:$M,0),2)) -> 6 | I28: 2 | J28: 5920 | K28: 14 | L28: 23 | N28: 1
A29: =IF(Soupisky!H69<>"", Soupisky!H69, "") -> 1433 | B29: =IF(Soupisky!I69<>"", Soupisky!I69, "") -> Ing. Kouřil Petr | C29: =IF(Soupisky!J69<>"", Soupisky!J69, "") -> M | D29: =IF(AND(A29<>"", Soupisky!E69 <> ""), Soupisky!E69, "") -> MO ČRS Šumperk | E29: =IF(ISNA(MATCH($B29,'1k - Výsledková listina'!$D:$D,0)),"",INDEX('1k - Výsledková listina'!$G:$H,MATCH($B29,'1k - Výsledková listina'!$D:$D,0),1)) -> 1500 | F29: =IF(ISNA(MATCH($B29,'1k - Výsledková listina'!$D:$D,0)),"",INDEX('1k - Výsledková listina'!$G:$H,MATCH($B29,'1k - Výsledková listina'!$D:$D,0),2)) -> 10 | G29: =IF(ISNA(MATCH($B29,'1k - Výsledková listina'!$M:$M,0)),"",INDEX('1k - Výsledková listina'!$P:$Q,MATCH($B29,'1k - Výsledková listina'!$M:$M,0),1)) -> 4200 | H29: =IF(ISNA(MATCH($B29,'1k - Výsledková listina'!$M:$M,0)),"",INDEX('1k - Výsledková listina'!$P:$Q,MATCH($B29,'1k - Výsledková listina'!$M:$M,0),2)) -> 4 | I29: 2 | J29: 5700 | K29: 14 | L29: 24 | N29: 1
A30: =IF(Soupisky!H109<>"", Soupisky!H109, "") -> 2200 | B30: =IF(Soupisky!I109<>"", Soupisky!I109, "") -> Funěk Lukáš | C30: =IF(Soupisky!J109<>"", Soupisky!J109, "") -> M | D30: =IF(AND(A30<>"", Soupisky!E109 <> ""), Soupisky!E109, "") -> MO ČRS Mohelnice MIVARDI | E30: =IF(ISNA(MATCH($B30,'1k - Výsledková listina'!$D:$D,0)),"",INDEX('1k - Výsledková listina'!$G:$H,MATCH($B30,'1k - Výsledková listina'!$D:$D,0),1)) -> 3390 | F30: =IF(ISNA(MATCH($B30,'1k - Výsledková listina'!$D:$D,0)),"",INDEX('1k - Výsledková listina'!$G:$H,MATCH($B30,'1k - Výsledková listina'!$D:$D,0),2)) -> 10 | G30: =IF(ISNA(MATCH($B30,'1k - Výsledková listina'!$M:$M,0)),"",INDEX('1k - Výsledková listina'!$P:$Q,MATCH($B30,'1k - Výsledková listina'!$M:$M,0),1)) -> 1690 | H30: =IF(ISNA(MATCH($B30,'1k - Výsledková listina'!$M:$M,0)),"",INDEX('1k - Výsledková listina'!$P:$Q,MATCH($B30,'1k - Výsledková listina'!$M:$M,0),2)) -> 4 | I30: 2 | J30: 5080 | K30: 14 | L30: 25 | N30: 1
A31: =IF(Soupisky!H81<>"", Soupisky!H81, "") -> 46 | B31: =IF(Soupisky!I81<>"", Soupisky!I81, "") -> Kotlář Jindřich | C31: =IF(Soupisky!J81<>"", Soupisky!J81, "") -> M | D31: =IF(AND(A31<>"", Soupisky!E81 <> ""), Soupisky!E81, "") -> MO ČRS Ostrava | E31: =IF(ISNA(MATCH($B31,'1k - Výsledková listina'!$D:$D,0)),"",INDEX('1k - Výsledková listina'!$G:$H,MATCH($B31,'1k - Výsledková listina'!$D:$D,0),1)) -> 3465 | F31: =IF(ISNA(MATCH($B31,'1k - Výsledková listina'!$D:$D,0)),"",INDEX('1k - Výsledková listina'!$G:$H,MATCH($B31,'1k - Výsledková listina'!$D:$D,0),2)) -> 5 | G31: =IF(ISNA(MATCH($B31,'1k - Výsledková listina'!$M:$M,0)),"",INDEX('1k - Výsledková listina'!$P:$Q,MATCH($B31,'1k - Výsledková listina'!$M:$M,0),1)) -> 1595 | H31: =IF(ISNA(MATCH($B31,'1k - Výsledková listina'!$M:$M,0)),"",INDEX('1k - Výsledková listina'!$P:$Q,MATCH($B31,'1k - Výsledková listina'!$M:$M,0),2)) -> 9 | I31: 2 | J31: 5060 | K31: 14 | L31: 26 | N31: 1
A32: =IF(Soupisky!H134<>"", Soupisky!H134, "") -> 5297 | B32: =IF(Soupisky!I134<>"", Soupisky!I134, "") -> Horký Vojtěch | C32: =IF(Soupisky!J134<>"", Soupisky!J134, "") -> U15 | D32: =IF(AND(A32<>"", Soupisky!E134 <> ""), Soupisky!E134, "") -> MO ČRS Vítkov -MAVER TEAM | E32: =IF(ISNA(MATCH($B32,'1k - Výsledková listina'!$D:$D,0)),"",INDEX('1k - Výsledková listina'!$G:$H,MATCH($B32,'1k - Výsledková listina'!$D:$D,0),1)) -> 1755 | F32: =IF(ISNA(MATCH($B32,'1k - Výsledková listina'!$D:$D,0)),"",INDEX('1k - Výsledková listina'!$G:$H,MATCH($B32,'1k - Výsledková listina'!$D:$D,0),2)) -> 8 | G32: =IF(ISNA(MATCH($B32,'1k - Výsledková listina'!$M:$M,0)),"",INDEX('1k - Výsledková listina'!$P:$Q,MATCH($B32,'1k - Výsledková listina'!$M:$M,0),1)) -> 4815 | H32: =IF(ISNA(MATCH($B32,'1k - Výsledková listina'!$M:$M,0)),"",INDEX('1k - Výsledková listina'!$P:$Q,MATCH($B32,'1k - Výsledková listina'!$M:$M,0),2)) -> 7 | I32: 2 | J32: 6570 | K32: 15 | L32: 27 | N32: 1
A33: =IF(Soupisky!H56<>"", Soupisky!H56, "") -> 111 | B33: =IF(Soupisky!I56<>"", Soupisky!I56, "") -> Kochan Pavel | C33: =IF(Soupisky!J56<>"", Soupisky!J56, "") -> M | D33: =IF(AND(A33<>"", Soupisky!E56 <> ""), Soupisky!E56, "") -> MO ČRS Karviná MILO | E33: =IF(ISNA(MATCH($B33,'1k - Výsledková listina'!$D:$D,0)),"",INDEX('1k - Výsledková listina'!$G:$H,MATCH($B33,'1k - Výsledková listina'!$D:$D,0),1)) -> 3000 | F33: =IF(ISNA(MATCH($B33,'1k - Výsledková listina'!$D:$D,0)),"",INDEX('1k - Výsledková listina'!$G:$H,MATCH($B33,'1k - Výsledková listina'!$D:$D,0),2)) -> 10 | G33: =IF(ISNA(MATCH($B33,'1k - Výsledková listina'!$M:$M,0)),"",INDEX('1k - Výsledková listina'!$P:$Q,MATCH($B33,'1k - Výsledková listina'!$M:$M,0),1)) -> 1130 | H33: =IF(ISNA(MATCH($B33,'1k - Výsledková listina'!$M:$M,0)),"",INDEX('1k - Výsledková listina'!$P:$Q,MATCH($B33,'1k - Výsledková listina'!$M:$M,0),2)) -> 5 | I33: 2 | J33: 4130 | K33: 15 | L33: 28 | N33: 1
A34: =IF(Soupisky!H98<>"", Soupisky!H98, "") -> 2864 | B34: =IF(Soupisky!I98<>"", Soupisky!I98, "") -> Borovička Pavel | C34: =IF(Soupisky!J98<>"", Soupisky!J98, "") -> M | D34: =IF(AND(A34<>"", Soupisky!E98 <> ""), Soupisky!E98, "") -> MRS - Poháry sport hobby M. Budějovice - Sensas | E34: =IF(ISNA(MATCH($B34,'1k - Výsledková listina'!$D:$D,0)),"",INDEX('1k - Výsledková listina'!$G:$H,MATCH($B34,'1k - Výsledková listina'!$D:$D,0),1)) -> 2255 | F34: =IF(ISNA(MATCH($B34,'1k - Výsledková listina'!$D:$D,0)),"",INDEX('1k - Výsledková listina'!$G:$H,MATCH($B34,'1k - Výsledková listina'!$D:$D,0),2)) -> 7 | G34: =IF(ISNA(MATCH($B34,'1k - Výsledková listina'!$M:$M,0)),"",INDEX('1k - Výsledková listina'!$P:$Q,MATCH($B34,'1k - Výsledková listina'!$M:$M,0),1)) -> 736 | H34: =IF(ISNA(MATCH($B34,'1k - Výsledková listina'!$M:$M,0)),"",INDEX('1k - Výsledková listina'!$P:$Q,MATCH($B34,'1k - Výsledková listina'!$M:$M,0),2)) -> 8 | I34: 2 | J34: 2991 | K34: 15 | L34: 29 | N34: 1
A35: =IF(Soupisky!H128<>"", Soupisky!H128, "") -> 3450 | B35: =IF(Soupisky!I128<>"", Soupisky!I128, "") -> Olšán Jakub | C35: =IF(Soupisky!J128<>"", Soupisky!J128, "") -> U25 | D35: =IF(AND(A35<>"", Soupisky!E128 <> ""), Soupisky!E128, "") -> MO MRS Letovice PRESTON | E35: =IF(ISNA(MATCH($B35,'1k - Výsledková listina'!$D:$D,0)),"",INDEX('1k - Výsledková listina'!$G:$H,MATCH($B35,'1k - Výsledková listina'!$D:$D,0),1)) -> 4600 | F35: =IF(ISNA(MATCH($B35,'1k - Výsledková listina'!$D:$D,0)),"",INDEX('1k - Výsledková listina'!$G:$H,MATCH($B35,'1k - Výsledková listina'!$D:$D,0),2)) -> 5 | G35: =IF(ISNA(MATCH($B35,'1k - Výsledková listina'!$M:$M,0)),"",INDEX('1k - Výsledková listina'!$P:$Q,MATCH($B35,'1k - Výsledková listina'!$M:$M,0),1)) -> 890 | H35: =IF(ISNA(MATCH($B35,'1k - Výsledková listina'!$M:$M,0)),"",INDEX('1k - Výsledková listina'!$P:$Q,MATCH($B35,'1k - Výsledková listina'!$M:$M,0),2)) -> 11 | I35: 2 | J35: 5490 | K35: 16 | L35: 30 | N35: 1
A36: =IF(Soupisky!H84<>"", Soupisky!H84, "") -> 1550 | B36: =IF(Soupisky!I84<>"", Soupisky!I84, "") -> ing. Havlíček Petr | C36: =IF(Soupisky!J84<>"", Soupisky!J84, "") -> M | D36: =IF(AND(A36<>"", Soupisky!E84 <> ""), Soupisky!E84, "") -> MO ČRS Ostrava | E36: =IF(ISNA(MATCH($B36,'1k - Výsledková listina'!$D:$D,0)),"",INDEX('1k - Výsledková listina'!$G:$H,MATCH($B36,'1k - Výsledková listina'!$D:$D,0),1)) -> 4395 | F36: =IF(ISNA(MATCH($B36,'1k - Výsledková listina'!$D:$D,0)),"",INDEX('1k - Výsledková listina'!$G:$H,MATCH($B36,'1k - Výsledková listina'!$D:$D,0),2)) -> 6 | G36: =IF(ISNA(MATCH($B36,'1k - Výsledková listina'!$M:$M,0)),"",INDEX('1k - Výsledková listina'!$P:$Q,MATCH($B36,'1k - Výsledková listina'!$M:$M,0),1)) -> 690 | H36: =IF(ISNA(MATCH($B36,'1k - Výsledková listina'!$M:$M,0)),"",INDEX('1k - Výsledková listina'!$P:$Q,MATCH($B36,'1k - Výsledková listina'!$M:$M,0),2)) -> 10 | I36: 2 | J36: 5085 | K36: 16 | L36: 31 | N36: 1
A37: =IF(Soupisky!H101<>"", Soupisky!H101, "") -> 6382 | B37: =IF(Soupisky!I101<>"", Soupisky!I101, "") -> Viskot Zdeněk | C37: =IF(Soupisky!J101<>"", Soupisky!J101, "") -> M | D37: =IF(AND(A37<>"", Soupisky!E101 <> ""), Soupisky!E101, "") -> MRS - Poháry sport hobby M. Budějovice - Sensas | E37: =IF(ISNA(MATCH($B37,'1k - Výsledková listina'!$D:$D,0)),"",INDEX('1k - Výsledková listina'!$G:$H,MATCH($B37,'1k - Výsledková listina'!$D:$D,0),1)) -> 4540 | F37: =IF(ISNA(MATCH($B37,'1k - Výsledková listina'!$D:$D,0)),"",INDEX('1k - Výsledková listina'!$G:$H,MATCH($B37,'1k - Výsledková listina'!$D:$D,0),2)) -> 8 | G37: =IF(ISNA(MATCH($B37,'1k - Výsledková listina'!$M:$M,0)),"",INDEX('1k - Výsledková listina'!$P:$Q,MATCH($B37,'1k - Výsledková listina'!$M:$M,0),1)) -> 3555 | H37: =IF(ISNA(MATCH($B37,'1k - Výsledková listina'!$M:$M,0)),"",INDEX('1k - Výsledková listina'!$P:$Q,MATCH($B37,'1k - Výsledková listina'!$M:$M,0),2)) -> 9 | I37: 2 | J37: 8095 | K37: 17 | L37: 32 | N37: 1
A38: =IF(Soupisky!H20<>"", Soupisky!H20, "") -> 3222 | B38: =IF(Soupisky!I20<>"", Soupisky!I20, "") -> Konečný Tomáš | C38: =IF(Soupisky!J20<>"", Soupisky!J20, "") -> M | D38: =IF(AND(A38<>"", Soupisky!E20 <> ""), Soupisky!E20, "") -> MRS Hrušovany nad Jevišovkou MAVER | E38: =IF(ISNA(MATCH($B38,'1k - Výsledková listina'!$D:$D,0)),"",INDEX('1k - Výsledková listina'!$G:$H,MATCH($B38,'1k - Výsledková listina'!$D:$D,0),1)) -> 4280 | F38: =IF(ISNA(MATCH($B38,'1k - Výsledková listina'!$D:$D,0)),"",INDEX('1k - Výsledková listina'!$G:$H,MATCH($B38,'1k - Výsledková listina'!$D:$D,0),2)) -> 7 | G38: =IF(ISNA(MATCH($B38,'1k - Výsledková listina'!$M:$M,0)),"",INDEX('1k - Výsledková listina'!$P:$Q,MATCH($B38,'1k - Výsledková listina'!$M:$M,0),1)) -> 3160 | H38: =IF(ISNA(MATCH($B38,'1k - Výsledková listina'!$M:$M,0)),"",INDEX('1k - Výsledková listina'!$P:$Q,MATCH($B38,'1k - Výsledková listina'!$M:$M,0),2)) -> 10 | I38: =IF(B38="","",COUNT(F38,H38)) -> 2 | J38: =IF(OR($I38=0, $I38=""),"",SUM(E38,G38)) -> 7440 | K38: =IF(OR($I38=0, $I38=""),"",SUM(F38,H38)) -> 17 | L38: =IF(OR($I38=0, $I38=""), "",IF(ISTEXT(L37),1,L37+1)) -> 33 | N38: =IF(AND(A38<>"",A38<>0), 1, 0) -> 1
A39: =IF(Soupisky!H82<>"", Soupisky!H82, "") -> 50 | B39: =IF(Soupisky!I82<>"", Soupisky!I82, "") -> RNDr. Pokorný Alois | C39: =IF(Soupisky!J82<>"", Soupisky!J82, "") -> M | D39: =IF(AND(A39<>"", Soupisky!E82 <> ""), Soupisky!E82, "") -> MO ČRS Ostrava | E39: =IF(ISNA(MATCH($B39,'1k - Výsledková listina'!$D:$D,0)),"",INDEX('1k - Výsledková listina'!$G:$H,MATCH($B39,'1k - Výsledková listina'!$D:$D,0),1)) -> 1585 | F39: =IF(ISNA(MATCH($B39,'1k - Výsledková listina'!$D:$D,0)),"",INDEX('1k - Výsledková listina'!$G:$H,MATCH($B39,'1k - Výsledková listina'!$D:$D,0),2)) -> 9 | G39: =IF(ISNA(MATCH($B39,'1k - Výsledková listina'!$M:$M,0)),"",INDEX('1k - Výsledková listina'!$P:$Q,MATCH($B39,'1k - Výsledková listina'!$M:$M,0),1)) -> 3575 | H39: =IF(ISNA(MATCH($B39,'1k - Výsledková listina'!$M:$M,0)),"",INDEX('1k - Výsledková listina'!$P:$Q,MATCH($B39,'1k - Výsledková listina'!$M:$M,0),2)) -> 8 | I39: 2 | J39: 5160 | K39: 17 | L39: 34 | N39: 1
A40: =IF(Soupisky!H32<>"", Soupisky!H32, "") -> 2407 | B40: =IF(Soupisky!I32<>"", Soupisky!I32, "") -> Ing. Hrazdil Jiří | C40: =IF(Soupisky!J32<>"", Soupisky!J32, "") -> M | D40: =IF(AND(A40<>"", Soupisky!E32 <> ""), Soupisky!E32, "") -> MRS RSK Jižní Morava Tubertini | E40: =IF(ISNA(MATCH($B40,'1k - Výsledková listina'!$D:$D,0)),"",INDEX('1k - Výsledková listina'!$G:$H,MATCH($B40,'1k - Výsledková listina'!$D:$D,0),1)) -> 3195 | F40: =IF(ISNA(MATCH($B40,'1k - Výsledková listina'!$D:$D,0)),"",INDEX('1k - Výsledková listina'!$G:$H,MATCH($B40,'1k - Výsledková listina'!$D:$D,0),2)) -> 6 | G40: =IF(ISNA(MATCH($B40,'1k - Výsledková listina'!$M:$M,0)),"",INDEX('1k - Výsledková listina'!$P:$Q,MATCH($B40,'1k - Výsledková listina'!$M:$M,0),1)) -> 840 | H40: =IF(ISNA(MATCH($B40,'1k - Výsledková listina'!$M:$M,0)),"",INDEX('1k - Výsledková listina'!$P:$Q,MATCH($B40,'1k - Výsledková listina'!$M:$M,0),2)) -> 11 | I40: 2 | J40: 4035 | K40: 17 | L40: 35 | N40: 1
A41: =IF(Soupisky!H55<>"", Soupisky!H55, "") -> 110 | B41: =IF(Soupisky!I55<>"", Soupisky!I55, "") -> Rys Jaroslav | C41: =IF(Soupisky!J55<>"", Soupisky!J55, "") -> M | D41: =IF(AND(A41<>"", Soupisky!E55 <> ""), Soupisky!E55, "") -> MO ČRS Karviná MILO | E41: =IF(ISNA(MATCH($B41,'1k - Výsledková listina'!$D:$D,0)),"",INDEX('1k - Výsledková listina'!$G:$H,MATCH($B41,'1k - Výsledková listina'!$D:$D,0),1)) -> 1130 | F41: =IF(ISNA(MATCH($B41,'1k - Výsledková listina'!$D:$D,0)),"",INDEX('1k - Výsledková listina'!$G:$H,MATCH($B41,'1k - Výsledková listina'!$D:$D,0),2)) -> 12 | G41: =IF(ISNA(MATCH($B41,'1k - Výsledková listina'!$M:$M,0)),"",INDEX('1k - Výsledková listina'!$P:$Q,MATCH($B41,'1k - Výsledková listina'!$M:$M,0),1)) -> 2140 | H41: =IF(ISNA(MATCH($B41,'1k - Výsledková listina'!$M:$M,0)),"",INDEX('1k - Výsledková listina'!$P:$Q,MATCH($B41,'1k - Výsledková listina'!$M:$M,0),2)) -> 5 | I41: 2 | J41: 3270 | K41: 17 | L41: 36 | N41: 1
A42: =IF(Soupisky!H75<>"", Soupisky!H75, "") -> 3881 | B42: =IF(Soupisky!I75<>"", Soupisky!I75, "") -> HLISNIKOVSKY MARTIN | C42: =IF(Soupisky!J75<>"", Soupisky!J75, "") -> M | D42: =IF(AND(A42<>"", Soupisky!E75 <> ""), Soupisky!E75, "") -> MO ČRS Šumperk | E42: =IF(ISNA(MATCH($B42,'1k - Výsledková listina'!$D:$D,0)),"",INDEX('1k - Výsledková listina'!$G:$H,MATCH($B42,'1k - Výsledková listina'!$D:$D,0),1)) -> 1570 | F42: =IF(ISNA(MATCH($B42,'1k - Výsledková listina'!$D:$D,0)),"",INDEX('1k - Výsledková listina'!$G:$H,MATCH($B42,'1k - Výsledková listina'!$D:$D,0),2)) -> 12 | G42: =IF(ISNA(MATCH($B42,'1k - Výsledková listina'!$M:$M,0)),"",INDEX('1k - Výsledková listina'!$P:$Q,MATCH($B42,'1k - Výsledková listina'!$M:$M,0),1)) -> 1835 | H42: =IF(ISNA(MATCH($B42,'1k - Výsledková listina'!$M:$M,0)),"",INDEX('1k - Výsledková listina'!$P:$Q,MATCH($B42,'1k - Výsledková listina'!$M:$M,0),2)) -> 6 | I42: 2 | J42: 3405 | K42: 18 | L42: 37 | N42: 1
A43: =IF(Soupisky!H83<>"", Soupisky!H83, "") -> 1549 | B43: =IF(Soupisky!I83<>"", Soupisky!I83, "") -> Havlíček Jaroslav | C43: =IF(Soupisky!J83<>"", Soupisky!J83, "") -> M | D43: =IF(AND(A43<>"", Soupisky!E83 <> ""), Soupisky!E83, "") -> MO ČRS Ostrava | E43: =IF(ISNA(MATCH($B43,'1k - Výsledková listina'!$D:$D,0)),"",INDEX('1k - Výsledková listina'!$G:$H,MATCH($B43,'1k - Výsledková listina'!$D:$D,0),1)) -> 3500 | F43: =IF(ISNA(MATCH($B43,'1k - Výsledková listina'!$D:$D,0)),"",INDEX('1k - Výsledková listina'!$G:$H,MATCH($B43,'1k - Výsledková listina'!$D:$D,0),2)) -> 9 | G43: =IF(ISNA(MATCH($B43,'1k - Výsledková listina'!$M:$M,0)),"",INDEX('1k - Výsledková listina'!$P:$Q,MATCH($B43,'1k - Výsledková listina'!$M:$M,0),1)) -> 930 | H43: =IF(ISNA(MATCH($B43,'1k - Výsledková listina'!$M:$M,0)),"",INDEX('1k - Výsledková listina'!$P:$Q,MATCH($B43,'1k - Výsledková listina'!$M:$M,0),2)) -> 10 | I43: 2 | J43: 4430 | K43: 19 | L43: 38 | N43: 1
A44: =IF(Soupisky!H45<>"", Soupisky!H45, "") -> 2635 | B44: =IF(Soupisky!I45<>"", Soupisky!I45, "") -> Fojt Dalibor | C44: =IF(Soupisky!J45<>"", Soupisky!J45, "") -> M | D44: =IF(AND(A44<>"", Soupisky!E45 <> ""), Soupisky!E45, "") -> MO ČRS Ostrava PRESTON | E44: =IF(ISNA(MATCH($B44,'1k - Výsledková listina'!$D:$D,0)),"",INDEX('1k - Výsledková listina'!$G:$H,MATCH($B44,'1k - Výsledková listina'!$D:$D,0),1)) -> 2585 | F44: =IF(ISNA(MATCH($B44,'1k - Výsledková listina'!$D:$D,0)),"",INDEX('1k - Výsledková listina'!$G:$H,MATCH($B44,'1k - Výsledková listina'!$D:$D,0),2)) -> 11 | G44: =IF(ISNA(MATCH($B44,'1k - Výsledková listina'!$M:$M,0)),"",INDEX('1k - Výsledková listina'!$P:$Q,MATCH($B44,'1k - Výsledková listina'!$M:$M,0),1)) -> 1085 | H44: =IF(ISNA(MATCH($B44,'1k - Výsledková listina'!$M:$M,0)),"",INDEX('1k - Výsledková listina'!$P:$Q,MATCH($B44,'1k - Výsledková listina'!$M:$M,0),2)) -> 9 | I44: 2 | J44: 3670 | K44: 20 | L44: 39 | N44: 1
A45: =IF(Soupisky!H72<>"", Soupisky!H72, "") -> 3185 | B45: =IF(Soupisky!I72<>"", Soupisky!I72, "") -> Kapica Radim | C45: =IF(Soupisky!J72<>"", Soupisky!J72, "") -> M | D45: =IF(AND(A45<>"", Soupisky!E72 <> ""), Soupisky!E72, "") -> MO ČRS Šumperk | E45: =IF(ISNA(MATCH($B45,'1k - Výsledková listina'!$D:$D,0)),"",INDEX('1k - Výsledková listina'!$G:$H,MATCH($B45,'1k - Výsledková listina'!$D:$D,0),1)) -> 1910 | F45: =IF(ISNA(MATCH($B45,'1k - Výsledková listina'!$D:$D,0)),"",INDEX('1k - Výsledková listina'!$G:$H,MATCH($B45,'1k - Výsledková listina'!$D:$D,0),2)) -> 8 | G45: =IF(ISNA(MATCH($B45,'1k - Výsledková listina'!$M:$M,0)),"",INDEX('1k - Výsledková listina'!$P:$Q,MATCH($B45,'1k - Výsledková listina'!$M:$M,0),1)) -> 1565 | H45: =IF(ISNA(MATCH($B45,'1k - Výsledková listina'!$M:$M,0)),"",INDEX('1k - Výsledková listina'!$P:$Q,MATCH($B45,'1k - Výsledková listina'!$M:$M,0),2)) -> 12 | I45: 2 | J45: 3475 | K45: 20 | L45: 40 | N45: 1
A46: =IF(Soupisky!H58<>"", Soupisky!H58, "") -> 1057 | B46: =IF(Soupisky!I58<>"", Soupisky!I58, "") -> Tököly Martin | C46: =IF(Soupisky!J58<>"", Soupisky!J58, "") -> M | D46: =IF(AND(A46<>"", Soupisky!E58 <> ""), Soupisky!E58, "") -> MO ČRS Karviná MILO | E46: =IF(ISNA(MATCH($B46,'1k - Výsledková listina'!$D:$D,0)),"",INDEX('1k - Výsledková listina'!$G:$H,MATCH($B46,'1k - Výsledková listina'!$D:$D,0),1)) -> 1000 | F46: =IF(ISNA(MATCH($B46,'1k - Výsledková listina'!$D:$D,0)),"",INDEX('1k - Výsledková listina'!$G:$H,MATCH($B46,'1k - Výsledková listina'!$D:$D,0),2)) -> 12 | G46: =IF(ISNA(MATCH($B46,'1k - Výsledková listina'!$M:$M,0)),"",INDEX('1k - Výsledková listina'!$P:$Q,MATCH($B46,'1k - Výsledková listina'!$M:$M,0),1)) -> 2235 | H46: =IF(ISNA(MATCH($B46,'1k - Výsledková listina'!$M:$M,0)),"",INDEX('1k - Výsledková listina'!$P:$Q,MATCH($B46,'1k - Výsledková listina'!$M:$M,0),2)) -> 8 | I46: 2 | J46: 3235 | K46: 20 | L46: 41 | N46: 1
A47: =IF(Soupisky!H129<>"", Soupisky!H129, "") -> 6208 | B47: =IF(Soupisky!I129<>"", Soupisky!I129, "") -> Voda Radek | C47: =IF(Soupisky!J129<>"", Soupisky!J129, "") -> U25 | D47: =IF(AND(A47<>"", Soupisky!E129 <> ""), Soupisky!E129, "") -> MO MRS Letovice PRESTON | E47: =IF(ISNA(MATCH($B47,'1k - Výsledková listina'!$D:$D,0)),"",INDEX('1k - Výsledková listina'!$G:$H,MATCH($B47,'1k - Výsledková listina'!$D:$D,0),1)) -> 1885 | F47: =IF(ISNA(MATCH($B47,'1k - Výsledková listina'!$D:$D,0)),"",INDEX('1k - Výsledková listina'!$G:$H,MATCH($B47,'1k - Výsledková listina'!$D:$D,0),2)) -> 11 | G47: =IF(ISNA(MATCH($B47,'1k - Výsledková listina'!$M:$M,0)),"",INDEX('1k - Výsledková listina'!$P:$Q,MATCH($B47,'1k - Výsledková listina'!$M:$M,0),1)) -> 705 | H47: =IF(ISNA(MATCH($B47,'1k - Výsledková listina'!$M:$M,0)),"",INDEX('1k - Výsledková listina'!$P:$Q,MATCH($B47,'1k - Výsledková listina'!$M:$M,0),2)) -> 9 | I47: 2 | J47: 2590 | K47: 20 | L47: 42 | N47: 1
A48: =IF(Soupisky!H94<>"", Soupisky!H94, "") -> 2106 | B48: =IF(Soupisky!I94<>"", Soupisky!I94, "") -> Papoušek Ivan | C48: =IF(Soupisky!J94<>"", Soupisky!J94, "") -> M | D48: =IF(AND(A48<>"", Soupisky!E94 <> ""), Soupisky!E94, "") -> MRS - Poháry sport hobby M. Budějovice - Sensas | E48: =IF(ISNA(MATCH($B48,'1k - Výsledková listina'!$D:$D,0)),"",INDEX('1k - Výsledková listina'!$G:$H,MATCH($B48,'1k - Výsledková listina'!$D:$D,0),1)) -> 3390 | F48: =IF(ISNA(MATCH($B48,'1k - Výsledková listina'!$D:$D,0)),"",INDEX('1k - Výsledková listina'!$G:$H,MATCH($B48,'1k - Výsledková listina'!$D:$D,0),2)) -> 9 | G48: =IF(ISNA(MATCH($B48,'1k - Výsledková listina'!$M:$M,0)),"",INDEX('1k - Výsledková listina'!$P:$Q,MATCH($B48,'1k - Výsledková listina'!$M:$M,0),1)) -> 690 | H48: =IF(ISNA(MATCH($B48,'1k - Výsledková listina'!$M:$M,0)),"",INDEX('1k - Výsledková listina'!$P:$Q,MATCH($B48,'1k - Výsledková listina'!$M:$M,0),2)) -> 12 | I48: 2 | J48: 4080 | K48: 21 | L48: 43 | N48: 1
A49: =IF(Soupisky!H17<>"", Soupisky!H17, "") -> 2639 | B49: =IF(Soupisky!I17<>"", Soupisky!I17, "") -> Mais Jan | C49: =IF(Soupisky!J17<>"", Soupisky!J17, "") -> M | D49: =IF(AND(A49<>"", Soupisky!E17 <> ""), Soupisky!E17, "") -> MRS Hrušovany nad Jevišovkou MAVER | E49: =IF(ISNA(MATCH($B49,'1k - Výsledková listina'!$D:$D,0)),"",INDEX('1k - Výsledková listina'!$G:$H,MATCH($B49,'1k - Výsledková listina'!$D:$D,0),1)) -> 1750 | F49: =IF(ISNA(MATCH($B49,'1k - Výsledková listina'!$D:$D,0)),"",INDEX('1k - Výsledková listina'!$G:$H,MATCH($B49,'1k - Výsledková listina'!$D:$D,0),2)) -> 10 | G49: =IF(ISNA(MATCH($B49,'1k - Výsledková listina'!$M:$M,0)),"",INDEX('1k - Výsledková listina'!$P:$Q,MATCH($B49,'1k - Výsledková listina'!$M:$M,0),1)) -> 295 | H49: =IF(ISNA(MATCH($B49,'1k - Výsledková listina'!$M:$M,0)),"",INDEX('1k - Výsledková listina'!$P:$Q,MATCH($B49,'1k - Výsledková listina'!$M:$M,0),2)) -> 12 | I49: 2 | J49: 2045 | K49: 22 | L49: 44 | N49: 1
A50: =IF(Soupisky!H59<>"", Soupisky!H59, "") -> 912 | B50: =IF(Soupisky!I59<>"", Soupisky!I59, "") -> Kozlovský Radim | C50: =IF(Soupisky!J59<>"", Soupisky!J59, "") -> H | D50: =IF(AND(A50<>"", Soupisky!E59 <> ""), Soupisky!E59, "") -> MO ČRS Karviná MILO | E50: =IF(ISNA(MATCH($B50,'1k - Výsledková listina'!$D:$D,0)),"",INDEX('1k - Výsledková listina'!$G:$H,MATCH($B50,'1k - Výsledková listina'!$D:$D,0),1)) -> 1150 | F50: =IF(ISNA(MATCH($B50,'1k - Výsledková listina'!$D:$D,0)),"",INDEX('1k - Výsledková listina'!$G:$H,MATCH($B50,'1k - Výsledková listina'!$D:$D,0),2)) -> 12 | G50: =IF(ISNA(MATCH($B50,'1k - Výsledková listina'!$M:$M,0)),"",INDEX('1k - Výsledková listina'!$P:$Q,MATCH($B50,'1k - Výsledková listina'!$M:$M,0),1)) -> 2745 | H50: =IF(ISNA(MATCH($B50,'1k - Výsledková listina'!$M:$M,0)),"",INDEX('1k - Výsledková listina'!$P:$Q,MATCH($B50,'1k - Výsledková listina'!$M:$M,0),2)) -> 11 | I50: 2 | J50: 3895 | K50: 23 | L50: 45 | N50: 1
A51: =IF(Soupisky!H21<>"", Soupisky!H21, "") -> 4164 | B51: =IF(Soupisky!I21<>"", Soupisky!I21, "") -> Kobliha Martin | C51: =IF(Soupisky!J21<>"", Soupisky!J21, "") -> M | D51: =IF(AND(A51<>"", Soupisky!E21 <> ""), Soupisky!E21, "") -> MRS Hrušovany nad Jevišovkou MAVER | E51: =IF(ISNA(MATCH($B51,'1k - Výsledková listina'!$D:$D,0)),"",INDEX('1k - Výsledková listina'!$G:$H,MATCH($B51,'1k - Výsledková listina'!$D:$D,0),1)) -> 1270 | F51: =IF(ISNA(MATCH($B51,'1k - Výsledková listina'!$D:$D,0)),"",INDEX('1k - Výsledková listina'!$G:$H,MATCH($B51,'1k - Výsledková listina'!$D:$D,0),2)) -> 11 | G51: =IF(ISNA(MATCH($B51,'1k - Výsledková listina'!$M:$M,0)),"",INDEX('1k - Výsledková listina'!$P:$Q,MATCH($B51,'1k - Výsledková listina'!$M:$M,0),1)) -> 705 | H51: =IF(ISNA(MATCH($B51,'1k - Výsledková listina'!$M:$M,0)),"",INDEX('1k - Výsledková listina'!$P:$Q,MATCH($B51,'1k - Výsledková listina'!$M:$M,0),2)) -> 12 | I51: 2 | J51: 1975 | K51: 23 | L51: 46 | N51: 1
A52: =IF(Soupisky!H5<>"", Soupisky!H5, "") -> 5346 | B52: =IF(Soupisky!I5<>"", Soupisky!I5, "") -> Kaniščev Roman | C52: =IF(Soupisky!J5<>"", Soupisky!J5, "") -> M | D52: =IF(AND(A52<>"", Soupisky!E5 <> ""), Soupisky!E5, "") -> ČRS MILO Loštice | E52: =IF(ISNA(MATCH($B52,'1k - Výsledková listina'!$D:$D,0)),"",INDEX('1k - Výsledková listina'!$G:$H,MATCH($B52,'1k - Výsledková listina'!$D:$D,0),1)) -> 2940 | F52: =IF(ISNA(MATCH($B52,'1k - Výsledková listina'!$D:$D,0)),"",INDEX('1k - Výsledková listina'!$G:$H,MATCH($B52,'1k - Výsledková listina'!$D:$D,0),2)) -> 7 | G52: =IF(ISNA(MATCH($B52,'1k - Výsledková listina'!$M:$M,0)),"",INDEX('1k - Výsledková listina'!$P:$Q,MATCH($B52,'1k - Výsledková listina'!$M:$M,0),1)) ->  | H52: =IF(ISNA(MATCH($B52,'1k - Výsledková listina'!$M:$M,0)),"",INDEX('1k - Výsledková listina'!$P:$Q,MATCH($B52,'1k - Výsledková listina'!$M:$M,0),2)) ->  | I52: 1 | J52: 2940 | K52: 7 | L52: 47 | N52: 1
A53: =IF(Soupisky!H8<>"", Soupisky!H8, "") -> 7 | B53: =IF(Soupisky!I8<>"", Soupisky!I8, "") -> Častulík Luděk | C53: =IF(Soupisky!J8<>"", Soupisky!J8, "") -> M | D53: =IF(AND(A53<>"", Soupisky!E8 <> ""), Soupisky!E8, "") -> ČRS MILO Loštice | E53: =IF(ISNA(MATCH($B53,'1k - Výsledková listina'!$D:$D,0)),"",INDEX('1k - Výsledková listina'!$G:$H,MATCH($B53,'1k - Výsledková listina'!$D:$D,0),1)) ->  | F53: =IF(ISNA(MATCH($B53,'1k - Výsledková listina'!$D:$D,0)),"",INDEX('1k - Výsledková listina'!$G:$H,MATCH($B53,'1k - Výsledková listina'!$D:$D,0),2)) ->  | G53: =IF(ISNA(MATCH($B53,'1k - Výsledková listina'!$M:$M,0)),"",INDEX('1k - Výsledková listina'!$P:$Q,MATCH($B53,'1k - Výsledková listina'!$M:$M,0),1)) -> 580 | H53: =IF(ISNA(MATCH($B53,'1k - Výsledková listina'!$M:$M,0)),"",INDEX('1k - Výsledková listina'!$P:$Q,MATCH($B53,'1k - Výsledková listina'!$M:$M,0),2)) -> 11 | I53: 1 | J53: 580 | K53: 11 | L53: 48 | N53: 1
A54: =IF(Soupisky!H6<>"", Soupisky!H6, "") -> 2214 | B54: =IF(Soupisky!I6<>"", Soupisky!I6, "") -> Maštera Václav ml. | C54: =IF(Soupisky!J6<>"", Soupisky!J6, "") -> U25 | D54: =IF(AND(A54<>"", Soupisky!E6 <> ""), Soupisky!E6, "") -> ČRS MILO Loštice | E54: =IF(ISNA(MATCH($B54,'1k - Výsledková listina'!$D:$D,0)),"",INDEX('1k - Výsledková listina'!$G:$H,MATCH($B54,'1k - Výsledková listina'!$D:$D,0),1)) ->  | F54: =IF(ISNA(MATCH($B54,'1k - Výsledková listina'!$D:$D,0)),"",INDEX('1k - Výsledková listina'!$G:$H,MATCH($B54,'1k - Výsledková listina'!$D:$D,0),2)) ->  | G54: =IF(ISNA(MATCH($B54,'1k - Výsledková listina'!$M:$M,0)),"",INDEX('1k - Výsledková listina'!$P:$Q,MATCH($B54,'1k - Výsledková listina'!$M:$M,0),1)) ->  | H54: =IF(ISNA(MATCH($B54,'1k - Výsledková listina'!$M:$M,0)),"",INDEX('1k - Výsledková listina'!$P:$Q,MATCH($B54,'1k - Výsledková listina'!$M:$M,0),2)) ->  | I54: 0 | N54: 1
A55: =IF(Soupisky!H9<>"", Soupisky!H9, "") -> 5638 | B55: =IF(Soupisky!I9<>"", Soupisky!I9, "") -> Koukal Martin | C55: =IF(Soupisky!J9<>"", Soupisky!J9, "") -> U15 | D55: =IF(AND(A55<>"", Soupisky!E9 <> ""), Soupisky!E9, "") -> ČRS MILO Loštice | E55: =IF(ISNA(MATCH($B55,'1k - Výsledková listina'!$D:$D,0)),"",INDEX('1k - Výsledková listina'!$G:$H,MATCH($B55,'1k - Výsledková listina'!$D:$D,0),1)) ->  | F55: =IF(ISNA(MATCH($B55,'1k - Výsledková listina'!$D:$D,0)),"",INDEX('1k - Výsledková listina'!$G:$H,MATCH($B55,'1k - Výsledková listina'!$D:$D,0),2)) ->  | G55: =IF(ISNA(MATCH($B55,'1k - Výsledková listina'!$M:$M,0)),"",INDEX('1k - Výsledková listina'!$P:$Q,MATCH($B55,'1k - Výsledková listina'!$M:$M,0),1)) ->  | H55: =IF(ISNA(MATCH($B55,'1k - Výsledková listina'!$M:$M,0)),"",INDEX('1k - Výsledková listina'!$P:$Q,MATCH($B55,'1k - Výsledková listina'!$M:$M,0),2)) ->  | I55: 0 | N55: 1
A56: =IF(Soupisky!H16<>"", Soupisky!H16, "") -> 2004 | B56: =IF(Soupisky!I16<>"", Soupisky!I16, "") -> Zuzaňák Jiří | C56: =IF(Soupisky!J16<>"", Soupisky!J16, "") -> M | D56: =IF(AND(A56<>"", Soupisky!E16 <> ""), Soupisky!E16, "") -> MRS Hrušovany nad Jevišovkou MAVER | E56: =IF(ISNA(MATCH($B56,'1k - Výsledková listina'!$D:$D,0)),"",INDEX('1k - Výsledková listina'!$G:$H,MATCH($B56,'1k - Výsledková listina'!$D:$D,0),1)) ->  | F56: =IF(ISNA(MATCH($B56,'1k - Výsledková listina'!$D:$D,0)),"",INDEX('1k - Výsledková listina'!$G:$H,MATCH($B56,'1k - Výsledková listina'!$D:$D,0),2)) ->  | G56: =IF(ISNA(MATCH($B56,'1k - Výsledková listina'!$M:$M,0)),"",INDEX('1k - Výsledková listina'!$P:$Q,MATCH($B56,'1k - Výsledková listina'!$M:$M,0),1)) ->  | H56: =IF(ISNA(MATCH($B56,'1k - Výsledková listina'!$M:$M,0)),"",INDEX('1k - Výsledková listina'!$P:$Q,MATCH($B56,'1k - Výsledková listina'!$M:$M,0),2)) ->  | I56: 0 | N56: 1
A57: =IF(Soupisky!H19<>"", Soupisky!H19, "") -> 3046 | B57: =IF(Soupisky!I19<>"", Soupisky!I19, "") -> Burda David | C57: =IF(Soupisky!J19<>"", Soupisky!J19, "") -> M | D57: =IF(AND(A57<>"", Soupisky!E19 <> ""), Soupisky!E19, "") -> MRS Hrušovany nad Jevišovkou MAVER | E57: =IF(ISNA(MATCH($B57,'1k - Výsledková listina'!$D:$D,0)),"",INDEX('1k - Výsledková listina'!$G:$H,MATCH($B57,'1k - Výsledková listina'!$D:$D,0),1)) ->  | F57: =IF(ISNA(MATCH($B57,'1k - Výsledková listina'!$D:$D,0)),"",INDEX('1k - Výsledková listina'!$G:$H,MATCH($B57,'1k - Výsledková listina'!$D:$D,0),2)) ->  | G57: =IF(ISNA(MATCH($B57,'1k - Výsledková listina'!$M:$M,0)),"",INDEX('1k - Výsledková listina'!$P:$Q,MATCH($B57,'1k - Výsledková listina'!$M:$M,0),1)) ->  | H57: =IF(ISNA(MATCH($B57,'1k - Výsledková listina'!$M:$M,0)),"",INDEX('1k - Výsledková listina'!$P:$Q,MATCH($B57,'1k - Výsledková listina'!$M:$M,0),2)) ->  | I57: 0 | N57: 1
A58: =IF(Soupisky!H22<>"", Soupisky!H22, "") -> 755 | B58: =IF(Soupisky!I22<>"", Soupisky!I22, "") -> Foret Roman | C58: =IF(Soupisky!J22<>"", Soupisky!J22, "") -> M | D58: =IF(AND(A58<>"", Soupisky!E22 <> ""), Soupisky!E22, "") -> MRS Hrušovany nad Jevišovkou MAVER | E58: =IF(ISNA(MATCH($B58,'1k - Výsledková listina'!$D:$D,0)),"",INDEX('1k - Výsledková listina'!$G:$H,MATCH($B58,'1k - Výsledková listina'!$D:$D,0),1)) ->  | F58: =IF(ISNA(MATCH($B58,'1k - Výsledková listina'!$D:$D,0)),"",INDEX('1k - Výsledková listina'!$G:$H,MATCH($B58,'1k - Výsledková listina'!$D:$D,0),2)) ->  | G58: =IF(ISNA(MATCH($B58,'1k - Výsledková listina'!$M:$M,0)),"",INDEX('1k - Výsledková listina'!$P:$Q,MATCH($B58,'1k - Výsledková listina'!$M:$M,0),1)) ->  | H58: =IF(ISNA(MATCH($B58,'1k - Výsledková listina'!$M:$M,0)),"",INDEX('1k - Výsledková listina'!$P:$Q,MATCH($B58,'1k - Výsledková listina'!$M:$M,0),2)) ->  | I58: 0 | N58: 1
A59: =IF(Soupisky!H23<>"", Soupisky!H23, "") -> 2015 | B59: =IF(Soupisky!I23<>"", Soupisky!I23, "") -> Hanáček František | C59: =IF(Soupisky!J23<>"", Soupisky!J23, "") -> M | D59: =IF(AND(A59<>"", Soupisky!E23 <> ""), Soupisky!E23, "") -> MRS Hrušovany nad Jevišovkou MAVER | E59: =IF(ISNA(MATCH($B59,'1k - Výsledková listina'!$D:$D,0)),"",INDEX('1k - Výsledková listina'!$G:$H,MATCH($B59,'1k - Výsledková listina'!$D:$D,0),1)) ->  | F59: =IF(ISNA(MATCH($B59,'1k - Výsledková listina'!$D:$D,0)),"",INDEX('1k - Výsledková listina'!$G:$H,MATCH($B59,'1k - Výsledková listina'!$D:$D,0),2)) ->  | G59: =IF(ISNA(MATCH($B59,'1k - Výsledková listina'!$M:$M,0)),"",INDEX('1k - Výsledková listina'!$P:$Q,MATCH($B59,'1k - Výsledková listina'!$M:$M,0),1)) ->  | H59: =IF(ISNA(MATCH($B59,'1k - Výsledková listina'!$M:$M,0)),"",INDEX('1k - Výsledková listina'!$P:$Q,MATCH($B59,'1k - Výsledková listina'!$M:$M,0),2)) ->  | I59: 0 | N59: 1
A60: =IF(Soupisky!H33<>"", Soupisky!H33, "") -> 2652 | B60: =IF(Soupisky!I33<>"", Soupisky!I33, "") -> Haflant Zdeněk | C60: =IF(Soupisky!J33<>"", Soupisky!J33, "") -> M | D60: =IF(AND(A60<>"", Soupisky!E33 <> ""), Soupisky!E33, "") -> MRS RSK Jižní Morava Tubertini | E60: =IF(ISNA(MATCH($B60,'1k - Výsledková listina'!$D:$D,0)),"",INDEX('1k - Výsledková listina'!$G:$H,MATCH($B60,'1k - Výsledková listina'!$D:$D,0),1)) ->  | F60: =IF(ISNA(MATCH($B60,'1k - Výsledková listina'!$D:$D,0)),"",INDEX('1k - Výsledková listina'!$G:$H,MATCH($B60,'1k - Výsledková listina'!$D:$D,0),2)) ->  | G60: =IF(ISNA(MATCH($B60,'1k - Výsledková listina'!$M:$M,0)),"",INDEX('1k - Výsledková listina'!$P:$Q,MATCH($B60,'1k - Výsledková listina'!$M:$M,0),1)) ->  | H60: =IF(ISNA(MATCH($B60,'1k - Výsledková listina'!$M:$M,0)),"",INDEX('1k - Výsledková listina'!$P:$Q,MATCH($B60,'1k - Výsledková listina'!$M:$M,0),2)) ->  | I60: 0 | N60: 1
A61: =IF(Soupisky!H34<>"", Soupisky!H34, "") -> 219 | B61: =IF(Soupisky!I34<>"", Soupisky!I34, "") -> Enderes Jan | C61: =IF(Soupisky!J34<>"", Soupisky!J34, "") -> M | D61: =IF(AND(A61<>"", Soupisky!E34 <> ""), Soupisky!E34, "") -> MRS RSK Jižní Morava Tubertini | E61: =IF(ISNA(MATCH($B61,'1k - Výsledková listina'!$D:$D,0)),"",INDEX('1k - Výsledková listina'!$G:$H,MATCH($B61,'1k - Výsledková listina'!$D:$D,0),1)) ->  | F61: =IF(ISNA(MATCH($B61,'1k - Výsledková listina'!$D:$D,0)),"",INDEX('1k - Výsledková listina'!$G:$H,MATCH($B61,'1k - Výsledková listina'!$D:$D,0),2)) ->  | G61: =IF(ISNA(MATCH($B61,'1k - Výsledková listina'!$M:$M,0)),"",INDEX('1k - Výsledková listina'!$P:$Q,MATCH($B61,'1k - Výsledková listina'!$M:$M,0),1)) ->  | H61: =IF(ISNA(MATCH($B61,'1k - Výsledková listina'!$M:$M,0)),"",INDEX('1k - Výsledková listina'!$P:$Q,MATCH($B61,'1k - Výsledková listina'!$M:$M,0),2)) ->  | I61: 0 | N61: 1
A62: =IF(Soupisky!H35<>"", Soupisky!H35, "") -> 3821 | B62: =IF(Soupisky!I35<>"", Soupisky!I35, "") -> Šlechtová Josefína | C62: =IF(Soupisky!J35<>"", Soupisky!J35, "") -> U20Ž | D62: =IF(AND(A62<>"", Soupisky!E35 <> ""), Soupisky!E35, "") -> MRS RSK Jižní Morava Tubertini | E62: =IF(ISNA(MATCH($B62,'1k - Výsledková listina'!$D:$D,0)),"",INDEX('1k - Výsledková listina'!$G:$H,MATCH($B62,'1k - Výsledková listina'!$D:$D,0),1)) ->  | F62: =IF(ISNA(MATCH($B62,'1k - Výsledková listina'!$D:$D,0)),"",INDEX('1k - Výsledková listina'!$G:$H,MATCH($B62,'1k - Výsledková listina'!$D:$D,0),2)) ->  | G62: =IF(ISNA(MATCH($B62,'1k - Výsledková listina'!$M:$M,0)),"",INDEX('1k - Výsledková listina'!$P:$Q,MATCH($B62,'1k - Výsledková listina'!$M:$M,0),1)) ->  | H62: =IF(ISNA(MATCH($B62,'1k - Výsledková listina'!$M:$M,0)),"",INDEX('1k - Výsledková listina'!$P:$Q,MATCH($B62,'1k - Výsledková listina'!$M:$M,0),2)) ->  | I62: 0 | N62: 1
A63: =IF(Soupisky!H42<>"", Soupisky!H42, "") -> 4127 | B63: =IF(Soupisky!I42<>"", Soupisky!I42, "") -> Skura Petr | C63: =IF(Soupisky!J42<>"", Soupisky!J42, "") -> M | D63: =IF(AND(A63<>"", Soupisky!E42 <> ""), Soupisky!E42, "") -> MO ČRS Ostrava PRESTON | E63: =IF(ISNA(MATCH($B63,'1k - Výsledková listina'!$D:$D,0)),"",INDEX('1k - Výsledková listina'!$G:$H,MATCH($B63,'1k - Výsledková listina'!$D:$D,0),1)) ->  | F63: =IF(ISNA(MATCH($B63,'1k - Výsledková listina'!$D:$D,0)),"",INDEX('1k - Výsledková listina'!$G:$H,MATCH($B63,'1k - Výsledková listina'!$D:$D,0),2)) ->  | G63: =IF(ISNA(MATCH($B63,'1k - Výsledková listina'!$M:$M,0)),"",INDEX('1k - Výsledková listina'!$P:$Q,MATCH($B63,'1k - Výsledková listina'!$M:$M,0),1)) ->  | H63: =IF(ISNA(MATCH($B63,'1k - Výsledková listina'!$M:$M,0)),"",INDEX('1k - Výsledková listina'!$P:$Q,MATCH($B63,'1k - Výsledková listina'!$M:$M,0),2)) ->  | I63: 0 | N63: 1
A64: =IF(Soupisky!H44<>"", Soupisky!H44, "") -> 2861 | B64: =IF(Soupisky!I44<>"", Soupisky!I44, "") -> Mihula Tomáš | C64: =IF(Soupisky!J44<>"", Soupisky!J44, "") -> M | D64: =IF(AND(A64<>"", Soupisky!E44 <> ""), Soupisky!E44, "") -> MO ČRS Ostrava PRESTON | E64: =IF(ISNA(MATCH($B64,'1k - Výsledková listina'!$D:$D,0)),"",INDEX('1k - Výsledková listina'!$G:$H,MATCH($B64,'1k - Výsledková listina'!$D:$D,0),1)) ->  | F64: =IF(ISNA(MATCH($B64,'1k - Výsledková listina'!$D:$D,0)),"",INDEX('1k - Výsledková listina'!$G:$H,MATCH($B64,'1k - Výsledková listina'!$D:$D,0),2)) ->  | G64: =IF(ISNA(MATCH($B64,'1k - Výsledková listina'!$M:$M,0)),"",INDEX('1k - Výsledková listina'!$P:$Q,MATCH($B64,'1k - Výsledková listina'!$M:$M,0),1)) ->  | H64: =IF(ISNA(MATCH($B64,'1k - Výsledková listina'!$M:$M,0)),"",INDEX('1k - Výsledková listina'!$P:$Q,MATCH($B64,'1k - Výsledková listina'!$M:$M,0),2)) ->  | I64: 0 | N64: 1
A65: =IF(Soupisky!H48<>"", Soupisky!H48, "") -> 4750 | B65: =IF(Soupisky!I48<>"", Soupisky!I48, "") -> Lubojacký Jan | C65: =IF(Soupisky!J48<>"", Soupisky!J48, "") -> U20 | D65: =IF(AND(A65<>"", Soupisky!E48 <> ""), Soupisky!E48, "") -> MO ČRS Ostrava PRESTON | E65: =IF(ISNA(MATCH($B65,'1k - Výsledková listina'!$D:$D,0)),"",INDEX('1k - Výsledková listina'!$G:$H,MATCH($B65,'1k - Výsledková listina'!$D:$D,0),1)) ->  | F65: =IF(ISNA(MATCH($B65,'1k - Výsledková listina'!$D:$D,0)),"",INDEX('1k - Výsledková listina'!$G:$H,MATCH($B65,'1k - Výsledková listina'!$D:$D,0),2)) ->  | G65: =IF(ISNA(MATCH($B65,'1k - Výsledková listina'!$M:$M,0)),"",INDEX('1k - Výsledková listina'!$P:$Q,MATCH($B65,'1k - Výsledková listina'!$M:$M,0),1)) ->  | H65: =IF(ISNA(MATCH($B65,'1k - Výsledková listina'!$M:$M,0)),"",INDEX('1k - Výsledková listina'!$P:$Q,MATCH($B65,'1k - Výsledková listina'!$M:$M,0),2)) ->  | I65: 0 | N65: 1
A66: =IF(Soupisky!H57<>"", Soupisky!H57, "") -> 2210 | B66: =IF(Soupisky!I57<>"", Soupisky!I57, "") -> Rovnaník Zdeněk | C66: =IF(Soupisky!J57<>"", Soupisky!J57, "") -> M | D66: =IF(AND(A66<>"", Soupisky!E57 <> ""), Soupisky!E57, "") -> MO ČRS Karviná MILO | E66: =IF(ISNA(MATCH($B66,'1k - Výsledková listina'!$D:$D,0)),"",INDEX('1k - Výsledková listina'!$G:$H,MATCH($B66,'1k - Výsledková listina'!$D:$D,0),1)) ->  | F66: =IF(ISNA(MATCH($B66,'1k - Výsledková listina'!$D:$D,0)),"",INDEX('1k - Výsledková listina'!$G:$H,MATCH($B66,'1k - Výsledková listina'!$D:$D,0),2)) ->  | G66: =IF(ISNA(MATCH($B66,'1k - Výsledková listina'!$M:$M,0)),"",INDEX('1k - Výsledková listina'!$P:$Q,MATCH($B66,'1k - Výsledková listina'!$M:$M,0),1)) ->  | H66: =IF(ISNA(MATCH($B66,'1k - Výsledková listina'!$M:$M,0)),"",INDEX('1k - Výsledková listina'!$P:$Q,MATCH($B66,'1k - Výsledková listina'!$M:$M,0),2)) ->  | I66: 0 | N66: 1
A67: =IF(Soupisky!H60<>"", Soupisky!H60, "") -> 2008 | B67: =IF(Soupisky!I60<>"", Soupisky!I60, "") -> Kratochvíl Vladislav | C67: =IF(Soupisky!J60<>"", Soupisky!J60, "") -> M | D67: =IF(AND(A67<>"", Soupisky!E60 <> ""), Soupisky!E60, "") -> MO ČRS Karviná MILO | E67: =IF(ISNA(MATCH($B67,'1k - Výsledková listina'!$D:$D,0)),"",INDEX('1k - Výsledková listina'!$G:$H,MATCH($B67,'1k - Výsledková listina'!$D:$D,0),1)) ->  | F67: =IF(ISNA(MATCH($B67,'1k - Výsledková listina'!$D:$D,0)),"",INDEX('1k - Výsledková listina'!$G:$H,MATCH($B67,'1k - Výsledková listina'!$D:$D,0),2)) ->  | G67: =IF(ISNA(MATCH($B67,'1k - Výsledková listina'!$M:$M,0)),"",INDEX('1k - Výsledková listina'!$P:$Q,MATCH($B67,'1k - Výsledková listina'!$M:$M,0),1)) ->  | H67: =IF(ISNA(MATCH($B67,'1k - Výsledková listina'!$M:$M,0)),"",INDEX('1k - Výsledková listina'!$P:$Q,MATCH($B67,'1k - Výsledková listina'!$M:$M,0),2)) ->  | I67: 0 | N67: 1
A68: =IF(Soupisky!H70<>"", Soupisky!H70, "") -> 2003 | B68: =IF(Soupisky!I70<>"", Soupisky!I70, "") -> Janů Petr | C68: =IF(Soupisky!J70<>"", Soupisky!J70, "") -> M | D68: =IF(AND(A68<>"", Soupisky!E70 <> ""), Soupisky!E70, "") -> MO ČRS Šumperk | E68: =IF(ISNA(MATCH($B68,'1k - Výsledková listina'!$D:$D,0)),"",INDEX('1k - Výsledková listina'!$G:$H,MATCH($B68,'1k - Výsledková listina'!$D:$D,0),1)) ->  | F68: =IF(ISNA(MATCH($B68,'1k - Výsledková listina'!$D:$D,0)),"",INDEX('1k - Výsledková listina'!$G:$H,MATCH($B68,'1k - Výsledková listina'!$D:$D,0),2)) ->  | G68: =IF(ISNA(MATCH($B68,'1k - Výsledková listina'!$M:$M,0)),"",INDEX('1k - Výsledková listina'!$P:$Q,MATCH($B68,'1k - Výsledková listina'!$M:$M,0),1)) ->  | H68: =IF(ISNA(MATCH($B68,'1k - Výsledková listina'!$M:$M,0)),"",INDEX('1k - Výsledková listina'!$P:$Q,MATCH($B68,'1k - Výsledková listina'!$M:$M,0),2)) ->  | I68: 0 | N68: 1
A69: =IF(Soupisky!H71<>"", Soupisky!H71, "") -> 2415 | B69: =IF(Soupisky!I71<>"", Soupisky!I71, "") -> Bc. Polách Jakub | C69: =IF(Soupisky!J71<>"", Soupisky!J71, "") -> M | D69: =IF(AND(A69<>"", Soupisky!E71 <> ""), Soupisky!E71, "") -> MO ČRS Šumperk | E69: =IF(ISNA(MATCH($B69,'1k - Výsledková listina'!$D:$D,0)),"",INDEX('1k - Výsledková listina'!$G:$H,MATCH($B69,'1k - Výsledková listina'!$D:$D,0),1)) ->  | F69: =IF(ISNA(MATCH($B69,'1k - Výsledková listina'!$D:$D,0)),"",INDEX('1k - Výsledková listina'!$G:$H,MATCH($B69,'1k - Výsledková listina'!$D:$D,0),2)) ->  | G69: =IF(ISNA(MATCH($B69,'1k - Výsledková listina'!$M:$M,0)),"",INDEX('1k - Výsledková listina'!$P:$Q,MATCH($B69,'1k - Výsledková listina'!$M:$M,0),1)) ->  | H69: =IF(ISNA(MATCH($B69,'1k - Výsledková listina'!$M:$M,0)),"",INDEX('1k - Výsledková listina'!$P:$Q,MATCH($B69,'1k - Výsledková listina'!$M:$M,0),2)) ->  | I69: 0 | N69: 1
A70: =IF(Soupisky!H73<>"", Soupisky!H73, "") -> 2167 | B70: =IF(Soupisky!I73<>"", Soupisky!I73, "") -> Bačevský Lukáš | C70: =IF(Soupisky!J73<>"", Soupisky!J73, "") -> M | D70: =IF(AND(A70<>"", Soupisky!E73 <> ""), Soupisky!E73, "") -> MO ČRS Šumperk | E70: =IF(ISNA(MATCH($B70,'1k - Výsledková listina'!$D:$D,0)),"",INDEX('1k - Výsledková listina'!$G:$H,MATCH($B70,'1k - Výsledková listina'!$D:$D,0),1)) ->  | F70: =IF(ISNA(MATCH($B70,'1k - Výsledková listina'!$D:$D,0)),"",INDEX('1k - Výsledková listina'!$G:$H,MATCH($B70,'1k - Výsledková listina'!$D:$D,0),2)) ->  | G70: =IF(ISNA(MATCH($B70,'1k - Výsledková listina'!$M:$M,0)),"",INDEX('1k - Výsledková listina'!$P:$Q,MATCH($B70,'1k - Výsledková listina'!$M:$M,0),1)) ->  | H70: =IF(ISNA(MATCH($B70,'1k - Výsledková listina'!$M:$M,0)),"",INDEX('1k - Výsledková listina'!$P:$Q,MATCH($B70,'1k - Výsledková listina'!$M:$M,0),2)) ->  | I70: =IF(B70="","",COUNT(F70,H70)) -> 0 | J70: =IF(OR($I70=0, $I70=""),"",SUM(E70,G70)) ->  | K70: =IF(OR($I70=0, $I70=""),"",SUM(F70,H70)) ->  | L70: =IF(OR($I70=0, $I70=""), "",IF(ISTEXT(L69),1,L69+1)) ->  | N70: =IF(AND(A70<>"",A70<>0), 1, 0) -> 1
A71: =IF(Soupisky!H74<>"", Soupisky!H74, "") -> 1730 | B71: =IF(Soupisky!I74<>"", Soupisky!I74, "") -> Bc. Vitásek Jiří | C71: =IF(Soupisky!J74<>"", Soupisky!J74, "") -> M | D71: =IF(AND(A71<>"", Soupisky!E74 <> ""), Soupisky!E74, "") -> MO ČRS Šumperk | E71: =IF(ISNA(MATCH($B71,'1k - Výsledková listina'!$D:$D,0)),"",INDEX('1k - Výsledková listina'!$G:$H,MATCH($B71,'1k - Výsledková listina'!$D:$D,0),1)) ->  | F71: =IF(ISNA(MATCH($B71,'1k - Výsledková listina'!$D:$D,0)),"",INDEX('1k - Výsledková listina'!$G:$H,MATCH($B71,'1k - Výsledková listina'!$D:$D,0),2)) ->  | G71: =IF(ISNA(MATCH($B71,'1k - Výsledková listina'!$M:$M,0)),"",INDEX('1k - Výsledková listina'!$P:$Q,MATCH($B71,'1k - Výsledková listina'!$M:$M,0),1)) ->  | H71: =IF(ISNA(MATCH($B71,'1k - Výsledková listina'!$M:$M,0)),"",INDEX('1k - Výsledková listina'!$P:$Q,MATCH($B71,'1k - Výsledková listina'!$M:$M,0),2)) ->  | I71: 0 | N71: 1
A72: =IF(Soupisky!H76<>"", Soupisky!H76, "") -> 3726 | B72: =IF(Soupisky!I76<>"", Soupisky!I76, "") -> Janů Michal | C72: =IF(Soupisky!J76<>"", Soupisky!J76, "") -> U20 | D72: =IF(AND(A72<>"", Soupisky!E76 <> ""), Soupisky!E76, "") -> MO ČRS Šumperk | E72: =IF(ISNA(MATCH($B72,'1k - Výsledková listina'!$D:$D,0)),"",INDEX('1k - Výsledková listina'!$G:$H,MATCH($B72,'1k - Výsledková listina'!$D:$D,0),1)) ->  | F72: =IF(ISNA(MATCH($B72,'1k - Výsledková listina'!$D:$D,0)),"",INDEX('1k - Výsledková listina'!$G:$H,MATCH($B72,'1k - Výsledková listina'!$D:$D,0),2)) ->  | G72: =IF(ISNA(MATCH($B72,'1k - Výsledková listina'!$M:$M,0)),"",INDEX('1k - Výsledková listina'!$P:$Q,MATCH($B72,'1k - Výsledková listina'!$M:$M,0),1)) ->  | H72: =IF(ISNA(MATCH($B72,'1k - Výsledková listina'!$M:$M,0)),"",INDEX('1k - Výsledková listina'!$P:$Q,MATCH($B72,'1k - Výsledková listina'!$M:$M,0),2)) ->  | I72: 0 | N72: 1
A73: =IF(Soupisky!H85<>"", Soupisky!H85, "") -> 2193 | B73: =IF(Soupisky!I85<>"", Soupisky!I85, "") -> Marek Michal | C73: =IF(Soupisky!J85<>"", Soupisky!J85, "") -> M | D73: =IF(AND(A73<>"", Soupisky!E85 <> ""), Soupisky!E85, "") -> MO ČRS Ostrava | E73: =IF(ISNA(MATCH($B73,'1k - Výsledková listina'!$D:$D,0)),"",INDEX('1k - Výsledková listina'!$G:$H,MATCH($B73,'1k - Výsledková listina'!$D:$D,0),1)) ->  | F73: =IF(ISNA(MATCH($B73,'1k - Výsledková listina'!$D:$D,0)),"",INDEX('1k - Výsledková listina'!$G:$H,MATCH($B73,'1k - Výsledková listina'!$D:$D,0),2)) ->  | G73: =IF(ISNA(MATCH($B73,'1k - Výsledková listina'!$M:$M,0)),"",INDEX('1k - Výsledková listina'!$P:$Q,MATCH($B73,'1k - Výsledková listina'!$M:$M,0),1)) ->  | H73: =IF(ISNA(MATCH($B73,'1k - Výsledková listina'!$M:$M,0)),"",INDEX('1k - Výsledková listina'!$P:$Q,MATCH($B73,'1k - Výsledková listina'!$M:$M,0),2)) ->  | I73: 0 | N73: 1
A74: =IF(Soupisky!H86<>"", Soupisky!H86, "") -> 4753 | B74: =IF(Soupisky!I86<>"", Soupisky!I86, "") -> Martin Nožička | C74: =IF(Soupisky!J86<>"", Soupisky!J86, "") -> U20 | D74: =IF(AND(A74<>"", Soupisky!E86 <> ""), Soupisky!E86, "") -> MO ČRS Ostrava | E74: =IF(ISNA(MATCH($B74,'1k - Výsledková listina'!$D:$D,0)),"",INDEX('1k - Výsledková listina'!$G:$H,MATCH($B74,'1k - Výsledková listina'!$D:$D,0),1)) ->  | F74: =IF(ISNA(MATCH($B74,'1k - Výsledková listina'!$D:$D,0)),"",INDEX('1k - Výsledková listina'!$G:$H,MATCH($B74,'1k - Výsledková listina'!$D:$D,0),2)) ->  | G74: =IF(ISNA(MATCH($B74,'1k - Výsledková listina'!$M:$M,0)),"",INDEX('1k - Výsledková listina'!$P:$Q,MATCH($B74,'1k - Výsledková listina'!$M:$M,0),1)) ->  | H74: =IF(ISNA(MATCH($B74,'1k - Výsledková listina'!$M:$M,0)),"",INDEX('1k - Výsledková listina'!$P:$Q,MATCH($B74,'1k - Výsledková listina'!$M:$M,0),2)) ->  | I74: 0 | N74: 1
A75: =IF(Soupisky!H95<>"", Soupisky!H95, "") -> 2105 | B75: =IF(Soupisky!I95<>"", Soupisky!I95, "") -> Papoušek Jiří | C75: =IF(Soupisky!J95<>"", Soupisky!J95, "") -> M | D75: =IF(AND(A75<>"", Soupisky!E95 <> ""), Soupisky!E95, "") -> MRS - Poháry sport hobby M. Budějovice - Sensas | E75: =IF(ISNA(MATCH($B75,'1k - Výsledková listina'!$D:$D,0)),"",INDEX('1k - Výsledková listina'!$G:$H,MATCH($B75,'1k - Výsledková listina'!$D:$D,0),1)) ->  | F75: =IF(ISNA(MATCH($B75,'1k - Výsledková listina'!$D:$D,0)),"",INDEX('1k - Výsledková listina'!$G:$H,MATCH($B75,'1k - Výsledková listina'!$D:$D,0),2)) ->  | G75: =IF(ISNA(MATCH($B75,'1k - Výsledková listina'!$M:$M,0)),"",INDEX('1k - Výsledková listina'!$P:$Q,MATCH($B75,'1k - Výsledková listina'!$M:$M,0),1)) ->  | H75: =IF(ISNA(MATCH($B75,'1k - Výsledková listina'!$M:$M,0)),"",INDEX('1k - Výsledková listina'!$P:$Q,MATCH($B75,'1k - Výsledková listina'!$M:$M,0),2)) ->  | I75: 0 | N75: 1
A76: =IF(Soupisky!H96<>"", Soupisky!H96, "") -> 2580 | B76: =IF(Soupisky!I96<>"", Soupisky!I96, "") -> Kertész Julius | C76: =IF(Soupisky!J96<>"", Soupisky!J96, "") -> M | D76: =IF(AND(A76<>"", Soupisky!E96 <> ""), Soupisky!E96, "") -> MRS - Poháry sport hobby M. Budějovice - Sensas | E76: =IF(ISNA(MATCH($B76,'1k - Výsledková listina'!$D:$D,0)),"",INDEX('1k - Výsledková listina'!$G:$H,MATCH($B76,'1k - Výsledková listina'!$D:$D,0),1)) ->  | F76: =IF(ISNA(MATCH($B76,'1k - Výsledková listina'!$D:$D,0)),"",INDEX('1k - Výsledková listina'!$G:$H,MATCH($B76,'1k - Výsledková listina'!$D:$D,0),2)) ->  | G76: =IF(ISNA(MATCH($B76,'1k - Výsledková listina'!$M:$M,0)),"",INDEX('1k - Výsledková listina'!$P:$Q,MATCH($B76,'1k - Výsledková listina'!$M:$M,0),1)) ->  | H76: =IF(ISNA(MATCH($B76,'1k - Výsledková listina'!$M:$M,0)),"",INDEX('1k - Výsledková listina'!$P:$Q,MATCH($B76,'1k - Výsledková listina'!$M:$M,0),2)) ->  | I76: 0 | N76: 1
A77: =IF(Soupisky!H99<>"", Soupisky!H99, "") -> 561 | B77: =IF(Soupisky!I99<>"", Soupisky!I99, "") -> Leath Alan | C77: =IF(Soupisky!J99<>"", Soupisky!J99, "") -> M | D77: =IF(AND(A77<>"", Soupisky!E99 <> ""), Soupisky!E99, "") -> MRS - Poháry sport hobby M. Budějovice - Sensas | E77: =IF(ISNA(MATCH($B77,'1k - Výsledková listina'!$D:$D,0)),"",INDEX('1k - Výsledková listina'!$G:$H,MATCH($B77,'1k - Výsledková listina'!$D:$D,0),1)) ->  | F77: =IF(ISNA(MATCH($B77,'1k - Výsledková listina'!$D:$D,0)),"",INDEX('1k - Výsledková listina'!$G:$H,MATCH($B77,'1k - Výsledková listina'!$D:$D,0),2)) ->  | G77: =IF(ISNA(MATCH($B77,'1k - Výsledková listina'!$M:$M,0)),"",INDEX('1k - Výsledková listina'!$P:$Q,MATCH($B77,'1k - Výsledková listina'!$M:$M,0),1)) ->  | H77: =IF(ISNA(MATCH($B77,'1k - Výsledková listina'!$M:$M,0)),"",INDEX('1k - Výsledková listina'!$P:$Q,MATCH($B77,'1k - Výsledková listina'!$M:$M,0),2)) ->  | I77: 0 | N77: 1
A78: =IF(Soupisky!H100<>"", Soupisky!H100, "") -> 3920 | B78: =IF(Soupisky!I100<>"", Soupisky!I100, "") -> Tkadlec Roman | C78: =IF(Soupisky!J100<>"", Soupisky!J100, "") -> M | D78: =IF(AND(A78<>"", Soupisky!E100 <> ""), Soupisky!E100, "") -> MRS - Poháry sport hobby M. Budějovice - Sensas | E78: =IF(ISNA(MATCH($B78,'1k - Výsledková listina'!$D:$D,0)),"",INDEX('1k - Výsledková listina'!$G:$H,MATCH($B78,'1k - Výsledková listina'!$D:$D,0),1)) ->  | F78: =IF(ISNA(MATCH($B78,'1k - Výsledková listina'!$D:$D,0)),"",INDEX('1k - Výsledková listina'!$G:$H,MATCH($B78,'1k - Výsledková listina'!$D:$D,0),2)) ->  | G78: =IF(ISNA(MATCH($B78,'1k - Výsledková listina'!$M:$M,0)),"",INDEX('1k - Výsledková listina'!$P:$Q,MATCH($B78,'1k - Výsledková listina'!$M:$M,0),1)) ->  | H78: =IF(ISNA(MATCH($B78,'1k - Výsledková listina'!$M:$M,0)),"",INDEX('1k - Výsledková listina'!$P:$Q,MATCH($B78,'1k - Výsledková listina'!$M:$M,0),2)) ->  | I78: 0 | N78: 1
A79: =IF(Soupisky!H110<>"", Soupisky!H110, "") -> 1995 | B79: =IF(Soupisky!I110<>"", Soupisky!I110, "") -> Funěk Tomáš | C79: =IF(Soupisky!J110<>"", Soupisky!J110, "") -> M | D79: =IF(AND(A79<>"", Soupisky!E110 <> ""), Soupisky!E110, "") -> MO ČRS Mohelnice MIVARDI | E79: =IF(ISNA(MATCH($B79,'1k - Výsledková listina'!$D:$D,0)),"",INDEX('1k - Výsledková listina'!$G:$H,MATCH($B79,'1k - Výsledková listina'!$D:$D,0),1)) ->  | F79: =IF(ISNA(MATCH($B79,'1k - Výsledková listina'!$D:$D,0)),"",INDEX('1k - Výsledková listina'!$G:$H,MATCH($B79,'1k - Výsledková listina'!$D:$D,0),2)) ->  | G79: =IF(ISNA(MATCH($B79,'1k - Výsledková listina'!$M:$M,0)),"",INDEX('1k - Výsledková listina'!$P:$Q,MATCH($B79,'1k - Výsledková listina'!$M:$M,0),1)) ->  | H79: =IF(ISNA(MATCH($B79,'1k - Výsledková listina'!$M:$M,0)),"",INDEX('1k - Výsledková listina'!$P:$Q,MATCH($B79,'1k - Výsledková listina'!$M:$M,0),2)) ->  | I79: 0 | N79: 1
A80: =IF(Soupisky!H111<>"", Soupisky!H111, "") -> 3901 | B80: =IF(Soupisky!I111<>"", Soupisky!I111, "") -> Ngoxuan Truong | C80: =IF(Soupisky!J111<>"", Soupisky!J111, "") -> M | D80: =IF(AND(A80<>"", Soupisky!E111 <> ""), Soupisky!E111, "") -> MO ČRS Mohelnice MIVARDI | E80: =IF(ISNA(MATCH($B80,'1k - Výsledková listina'!$D:$D,0)),"",INDEX('1k - Výsledková listina'!$G:$H,MATCH($B80,'1k - Výsledková listina'!$D:$D,0),1)) -> 1690 | F80: =IF(ISNA(MATCH($B80,'1k - Výsledková listina'!$D:$D,0)),"",INDEX('1k - Výsledková listina'!$G:$H,MATCH($B80,'1k - Výsledková listina'!$D:$D,0),2)) -> 11 | G80: =IF(ISNA(MATCH($B80,'1k - Výsledková listina'!$M:$M,0)),"",INDEX('1k - Výsledková listina'!$P:$Q,MATCH($B80,'1k - Výsledková listina'!$M:$M,0),1)) -> 3315 | H80: =IF(ISNA(MATCH($B80,'1k - Výsledková listina'!$M:$M,0)),"",INDEX('1k - Výsledková listina'!$P:$Q,MATCH($B80,'1k - Výsledková listina'!$M:$M,0),2)) -> 3 | I80: =IF(B80="","",COUNT(F80,H80)) -> 2 | J80: =IF(OR($I80=0, $I80=""),"",SUM(E80,G80)) -> 5005 | K80: =IF(OR($I80=0, $I80=""),"",SUM(F80,H80)) -> 14 | L80: 1 | N80: =IF(AND(A80<>"",A80<>0), 1, 0) -> 1
A81: =IF(Soupisky!H112<>"", Soupisky!H112, "") -> 250 | B81: =IF(Soupisky!I112<>"", Soupisky!I112, "") -> Chromý Radomír | C81: =IF(Soupisky!J112<>"", Soupisky!J112, "") -> M | D81: =IF(AND(A81<>"", Soupisky!E112 <> ""), Soupisky!E112, "") -> MO ČRS Mohelnice MIVARDI | E81: =IF(ISNA(MATCH($B81,'1k - Výsledková listina'!$D:$D,0)),"",INDEX('1k - Výsledková listina'!$G:$H,MATCH($B81,'1k - Výsledková listina'!$D:$D,0),1)) ->  | F81: =IF(ISNA(MATCH($B81,'1k - Výsledková listina'!$D:$D,0)),"",INDEX('1k - Výsledková listina'!$G:$H,MATCH($B81,'1k - Výsledková listina'!$D:$D,0),2)) ->  | G81: =IF(ISNA(MATCH($B81,'1k - Výsledková listina'!$M:$M,0)),"",INDEX('1k - Výsledková listina'!$P:$Q,MATCH($B81,'1k - Výsledková listina'!$M:$M,0),1)) ->  | H81: =IF(ISNA(MATCH($B81,'1k - Výsledková listina'!$M:$M,0)),"",INDEX('1k - Výsledková listina'!$P:$Q,MATCH($B81,'1k - Výsledková listina'!$M:$M,0),2)) ->  | I81: 0 | L81: =IF(OR($I81=0, $I81=""), "",IF(ISTEXT(L79),1,L79+1)) ->  | N81: 1
A82: =IF(Soupisky!H113<>"", Soupisky!H113, "") -> 2420 | B82: =IF(Soupisky!I113<>"", Soupisky!I113, "") -> Gabriel Milan | C82: =IF(Soupisky!J113<>"", Soupisky!J113, "") -> M | D82: =IF(AND(A82<>"", Soupisky!E113 <> ""), Soupisky!E113, "") -> MO ČRS Mohelnice MIVARDI | E82: =IF(ISNA(MATCH($B82,'1k - Výsledková listina'!$D:$D,0)),"",INDEX('1k - Výsledková listina'!$G:$H,MATCH($B82,'1k - Výsledková listina'!$D:$D,0),1)) ->  | F82: =IF(ISNA(MATCH($B82,'1k - Výsledková listina'!$D:$D,0)),"",INDEX('1k - Výsledková listina'!$G:$H,MATCH($B82,'1k - Výsledková listina'!$D:$D,0),2)) ->  | G82: =IF(ISNA(MATCH($B82,'1k - Výsledková listina'!$M:$M,0)),"",INDEX('1k - Výsledková listina'!$P:$Q,MATCH($B82,'1k - Výsledková listina'!$M:$M,0),1)) ->  | H82: =IF(ISNA(MATCH($B82,'1k - Výsledková listina'!$M:$M,0)),"",INDEX('1k - Výsledková listina'!$P:$Q,MATCH($B82,'1k - Výsledková listina'!$M:$M,0),2)) ->  | I82: 0 | N82: 1
A83: =IF(Soupisky!H114<>"", Soupisky!H114, "") -> 4070 | B83: =IF(Soupisky!I114<>"", Soupisky!I114, "") -> Čulík Štěpán | C83: =IF(Soupisky!J114<>"", Soupisky!J114, "") -> U25 | D83: =IF(AND(A83<>"", Soupisky!E114 <> ""), Soupisky!E114, "") -> MO ČRS Mohelnice MIVARDI | E83: =IF(ISNA(MATCH($B83,'1k - Výsledková listina'!$D:$D,0)),"",INDEX('1k - Výsledková listina'!$G:$H,MATCH($B83,'1k - Výsledková listina'!$D:$D,0),1)) ->  | F83: =IF(ISNA(MATCH($B83,'1k - Výsledková listina'!$D:$D,0)),"",INDEX('1k - Výsledková listina'!$G:$H,MATCH($B83,'1k - Výsledková listina'!$D:$D,0),2)) ->  | G83: =IF(ISNA(MATCH($B83,'1k - Výsledková listina'!$M:$M,0)),"",INDEX('1k - Výsledková listina'!$P:$Q,MATCH($B83,'1k - Výsledková listina'!$M:$M,0),1)) ->  | H83: =IF(ISNA(MATCH($B83,'1k - Výsledková listina'!$M:$M,0)),"",INDEX('1k - Výsledková listina'!$P:$Q,MATCH($B83,'1k - Výsledková listina'!$M:$M,0),2)) ->  | I83: 0 | N83: 1
A84: =IF(Soupisky!H115<>"", Soupisky!H115, "") -> 4 | B84: =IF(Soupisky!I115<>"", Soupisky!I115, "") -> Melcher Miroslav | C84: =IF(Soupisky!J115<>"", Soupisky!J115, "") -> M | D84: =IF(AND(A84<>"", Soupisky!E115 <> ""), Soupisky!E115, "") -> MO ČRS Mohelnice MIVARDI | E84: =IF(ISNA(MATCH($B84,'1k - Výsledková listina'!$D:$D,0)),"",INDEX('1k - Výsledková listina'!$G:$H,MATCH($B84,'1k - Výsledková listina'!$D:$D,0),1)) ->  | F84: =IF(ISNA(MATCH($B84,'1k - Výsledková listina'!$D:$D,0)),"",INDEX('1k - Výsledková listina'!$G:$H,MATCH($B84,'1k - Výsledková listina'!$D:$D,0),2)) ->  | G84: =IF(ISNA(MATCH($B84,'1k - Výsledková listina'!$M:$M,0)),"",INDEX('1k - Výsledková listina'!$P:$Q,MATCH($B84,'1k - Výsledková listina'!$M:$M,0),1)) ->  | H84: =IF(ISNA(MATCH($B84,'1k - Výsledková listina'!$M:$M,0)),"",INDEX('1k - Výsledková listina'!$P:$Q,MATCH($B84,'1k - Výsledková listina'!$M:$M,0),2)) ->  | I84: 0 | N84: 1
A85: =IF(Soupisky!H116<>"", Soupisky!H116, "") -> 5 | B85: =IF(Soupisky!I116<>"", Soupisky!I116, "") -> Bednařík Dušan | C85: =IF(Soupisky!J116<>"", Soupisky!J116, "") -> M | D85: =IF(AND(A85<>"", Soupisky!E116 <> ""), Soupisky!E116, "") -> MO ČRS Mohelnice MIVARDI | E85: =IF(ISNA(MATCH($B85,'1k - Výsledková listina'!$D:$D,0)),"",INDEX('1k - Výsledková listina'!$G:$H,MATCH($B85,'1k - Výsledková listina'!$D:$D,0),1)) ->  | F85: =IF(ISNA(MATCH($B85,'1k - Výsledková listina'!$D:$D,0)),"",INDEX('1k - Výsledková listina'!$G:$H,MATCH($B85,'1k - Výsledková listina'!$D:$D,0),2)) ->  | G85: =IF(ISNA(MATCH($B85,'1k - Výsledková listina'!$M:$M,0)),"",INDEX('1k - Výsledková listina'!$P:$Q,MATCH($B85,'1k - Výsledková listina'!$M:$M,0),1)) ->  | H85: =IF(ISNA(MATCH($B85,'1k - Výsledková listina'!$M:$M,0)),"",INDEX('1k - Výsledková listina'!$P:$Q,MATCH($B85,'1k - Výsledková listina'!$M:$M,0),2)) ->  | I85: 0 | N85: 1
A86: =IF(Soupisky!H117<>"", Soupisky!H117, "") -> 2414 | B86: =IF(Soupisky!I117<>"", Soupisky!I117, "") -> Steidl Petr | C86: =IF(Soupisky!J117<>"", Soupisky!J117, "") -> M | D86: =IF(AND(A86<>"", Soupisky!E117 <> ""), Soupisky!E117, "") -> MO ČRS Mohelnice MIVARDI | E86: =IF(ISNA(MATCH($B86,'1k - Výsledková listina'!$D:$D,0)),"",INDEX('1k - Výsledková listina'!$G:$H,MATCH($B86,'1k - Výsledková listina'!$D:$D,0),1)) ->  | F86: =IF(ISNA(MATCH($B86,'1k - Výsledková listina'!$D:$D,0)),"",INDEX('1k - Výsledková listina'!$G:$H,MATCH($B86,'1k - Výsledková listina'!$D:$D,0),2)) ->  | G86: =IF(ISNA(MATCH($B86,'1k - Výsledková listina'!$M:$M,0)),"",INDEX('1k - Výsledková listina'!$P:$Q,MATCH($B86,'1k - Výsledková listina'!$M:$M,0),1)) ->  | H86: =IF(ISNA(MATCH($B86,'1k - Výsledková listina'!$M:$M,0)),"",INDEX('1k - Výsledková listina'!$P:$Q,MATCH($B86,'1k - Výsledková listina'!$M:$M,0),2)) ->  | I86: 0 | N86: 1
A87: =IF(Soupisky!H118<>"", Soupisky!H118, "") -> 3245 | B87: =IF(Soupisky!I118<>"", Soupisky!I118, "") -> Štěpán Jan | C87: =IF(Soupisky!J118<>"", Soupisky!J118, "") -> M | D87: =IF(AND(A87<>"", Soupisky!E118 <> ""), Soupisky!E118, "") -> MO ČRS Mohelnice MIVARDI | E87: =IF(ISNA(MATCH($B87,'1k - Výsledková listina'!$D:$D,0)),"",INDEX('1k - Výsledková listina'!$G:$H,MATCH($B87,'1k - Výsledková listina'!$D:$D,0),1)) ->  | F87: =IF(ISNA(MATCH($B87,'1k - Výsledková listina'!$D:$D,0)),"",INDEX('1k - Výsledková listina'!$G:$H,MATCH($B87,'1k - Výsledková listina'!$D:$D,0),2)) ->  | G87: =IF(ISNA(MATCH($B87,'1k - Výsledková listina'!$M:$M,0)),"",INDEX('1k - Výsledková listina'!$P:$Q,MATCH($B87,'1k - Výsledková listina'!$M:$M,0),1)) ->  | H87: =IF(ISNA(MATCH($B87,'1k - Výsledková listina'!$M:$M,0)),"",INDEX('1k - Výsledková listina'!$P:$Q,MATCH($B87,'1k - Výsledková listina'!$M:$M,0),2)) ->  | I87: 0 | N87: 1
A88: =IF(Soupisky!H119<>"", Soupisky!H119, "") -> 1993 | B88: =IF(Soupisky!I119<>"", Soupisky!I119, "") -> Mikeska Josef | C88: =IF(Soupisky!J119<>"", Soupisky!J119, "") -> M | D88: =IF(AND(A88<>"", Soupisky!E119 <> ""), Soupisky!E119, "") -> MO ČRS Mohelnice MIVARDI | E88: =IF(ISNA(MATCH($B88,'1k - Výsledková listina'!$D:$D,0)),"",INDEX('1k - Výsledková listina'!$G:$H,MATCH($B88,'1k - Výsledková listina'!$D:$D,0),1)) ->  | F88: =IF(ISNA(MATCH($B88,'1k - Výsledková listina'!$D:$D,0)),"",INDEX('1k - Výsledková listina'!$G:$H,MATCH($B88,'1k - Výsledková listina'!$D:$D,0),2)) ->  | G88: =IF(ISNA(MATCH($B88,'1k - Výsledková listina'!$M:$M,0)),"",INDEX('1k - Výsledková listina'!$P:$Q,MATCH($B88,'1k - Výsledková listina'!$M:$M,0),1)) ->  | H88: =IF(ISNA(MATCH($B88,'1k - Výsledková listina'!$M:$M,0)),"",INDEX('1k - Výsledková listina'!$P:$Q,MATCH($B88,'1k - Výsledková listina'!$M:$M,0),2)) ->  | I88: 0 | N88: 1
A89: =IF(Soupisky!H120<>"", Soupisky!H120, "") -> 3506 | B89: =IF(Soupisky!I120<>"", Soupisky!I120, "") -> Kochwasser Milan | C89: =IF(Soupisky!J120<>"", Soupisky!J120, "") -> M | D89: =IF(AND(A89<>"", Soupisky!E120 <> ""), Soupisky!E120, "") -> MO ČRS Mohelnice MIVARDI | E89: =IF(ISNA(MATCH($B89,'1k - Výsledková listina'!$D:$D,0)),"",INDEX('1k - Výsledková listina'!$G:$H,MATCH($B89,'1k - Výsledková listina'!$D:$D,0),1)) ->  | F89: =IF(ISNA(MATCH($B89,'1k - Výsledková listina'!$D:$D,0)),"",INDEX('1k - Výsledková listina'!$G:$H,MATCH($B89,'1k - Výsledková listina'!$D:$D,0),2)) ->  | G89: =IF(ISNA(MATCH($B89,'1k - Výsledková listina'!$M:$M,0)),"",INDEX('1k - Výsledková listina'!$P:$Q,MATCH($B89,'1k - Výsledková listina'!$M:$M,0),1)) ->  | H89: =IF(ISNA(MATCH($B89,'1k - Výsledková listina'!$M:$M,0)),"",INDEX('1k - Výsledková listina'!$P:$Q,MATCH($B89,'1k - Výsledková listina'!$M:$M,0),2)) ->  | I89: 0 | N89: 1
A90: =IF(Soupisky!H121<>"", Soupisky!H121, "") -> 2188 | B90: =IF(Soupisky!I121<>"", Soupisky!I121, "") -> Matej Jiří | C90: =IF(Soupisky!J121<>"", Soupisky!J121, "") -> M | D90: =IF(AND(A90<>"", Soupisky!E121 <> ""), Soupisky!E121, "") -> MO MRS Letovice PRESTON | E90: =IF(ISNA(MATCH($B90,'1k - Výsledková listina'!$D:$D,0)),"",INDEX('1k - Výsledková listina'!$G:$H,MATCH($B90,'1k - Výsledková listina'!$D:$D,0),1)) ->  | F90: =IF(ISNA(MATCH($B90,'1k - Výsledková listina'!$D:$D,0)),"",INDEX('1k - Výsledková listina'!$G:$H,MATCH($B90,'1k - Výsledková listina'!$D:$D,0),2)) ->  | G90: =IF(ISNA(MATCH($B90,'1k - Výsledková listina'!$M:$M,0)),"",INDEX('1k - Výsledková listina'!$P:$Q,MATCH($B90,'1k - Výsledková listina'!$M:$M,0),1)) ->  | H90: =IF(ISNA(MATCH($B90,'1k - Výsledková listina'!$M:$M,0)),"",INDEX('1k - Výsledková listina'!$P:$Q,MATCH($B90,'1k - Výsledková listina'!$M:$M,0),2)) ->  | I90: 0 | N90: 1
A91: =IF(Soupisky!H122<>"", Soupisky!H122, "") -> 2187 | B91: =IF(Soupisky!I122<>"", Soupisky!I122, "") -> Ing. Lakoš Gustav | C91: =IF(Soupisky!J122<>"", Soupisky!J122, "") -> M | D91: =IF(AND(A91<>"", Soupisky!E122 <> ""), Soupisky!E122, "") -> MO MRS Letovice PRESTON | E91: =IF(ISNA(MATCH($B91,'1k - Výsledková listina'!$D:$D,0)),"",INDEX('1k - Výsledková listina'!$G:$H,MATCH($B91,'1k - Výsledková listina'!$D:$D,0),1)) ->  | F91: =IF(ISNA(MATCH($B91,'1k - Výsledková listina'!$D:$D,0)),"",INDEX('1k - Výsledková listina'!$G:$H,MATCH($B91,'1k - Výsledková listina'!$D:$D,0),2)) ->  | G91: =IF(ISNA(MATCH($B91,'1k - Výsledková listina'!$M:$M,0)),"",INDEX('1k - Výsledková listina'!$P:$Q,MATCH($B91,'1k - Výsledková listina'!$M:$M,0),1)) ->  | H91: =IF(ISNA(MATCH($B91,'1k - Výsledková listina'!$M:$M,0)),"",INDEX('1k - Výsledková listina'!$P:$Q,MATCH($B91,'1k - Výsledková listina'!$M:$M,0),2)) ->  | I91: 0 | N91: 1
A92: =IF(Soupisky!H124<>"", Soupisky!H124, "") -> 2164 | B92: =IF(Soupisky!I124<>"", Soupisky!I124, "") -> Kolínek Miroslav | C92: =IF(Soupisky!J124<>"", Soupisky!J124, "") -> M | D92: =IF(AND(A92<>"", Soupisky!E124 <> ""), Soupisky!E124, "") -> MO MRS Letovice PRESTON | E92: =IF(ISNA(MATCH($B92,'1k - Výsledková listina'!$D:$D,0)),"",INDEX('1k - Výsledková listina'!$G:$H,MATCH($B92,'1k - Výsledková listina'!$D:$D,0),1)) ->  | F92: =IF(ISNA(MATCH($B92,'1k - Výsledková listina'!$D:$D,0)),"",INDEX('1k - Výsledková listina'!$G:$H,MATCH($B92,'1k - Výsledková listina'!$D:$D,0),2)) ->  | G92: =IF(ISNA(MATCH($B92,'1k - Výsledková listina'!$M:$M,0)),"",INDEX('1k - Výsledková listina'!$P:$Q,MATCH($B92,'1k - Výsledková listina'!$M:$M,0),1)) ->  | H92: =IF(ISNA(MATCH($B92,'1k - Výsledková listina'!$M:$M,0)),"",INDEX('1k - Výsledková listina'!$P:$Q,MATCH($B92,'1k - Výsledková listina'!$M:$M,0),2)) ->  | I92: 0 | N92: 1
A93: =IF(Soupisky!H125<>"", Soupisky!H125, "") -> 2409 | B93: =IF(Soupisky!I125<>"", Soupisky!I125, "") -> Ing. Jakeš Jan | C93: =IF(Soupisky!J125<>"", Soupisky!J125, "") -> M | D93: =IF(AND(A93<>"", Soupisky!E125 <> ""), Soupisky!E125, "") -> MO MRS Letovice PRESTON | E93: =IF(ISNA(MATCH($B93,'1k - Výsledková listina'!$D:$D,0)),"",INDEX('1k - Výsledková listina'!$G:$H,MATCH($B93,'1k - Výsledková listina'!$D:$D,0),1)) ->  | F93: =IF(ISNA(MATCH($B93,'1k - Výsledková listina'!$D:$D,0)),"",INDEX('1k - Výsledková listina'!$G:$H,MATCH($B93,'1k - Výsledková listina'!$D:$D,0),2)) ->  | G93: =IF(ISNA(MATCH($B93,'1k - Výsledková listina'!$M:$M,0)),"",INDEX('1k - Výsledková listina'!$P:$Q,MATCH($B93,'1k - Výsledková listina'!$M:$M,0),1)) ->  | H93: =IF(ISNA(MATCH($B93,'1k - Výsledková listina'!$M:$M,0)),"",INDEX('1k - Výsledková listina'!$P:$Q,MATCH($B93,'1k - Výsledková listina'!$M:$M,0),2)) ->  | I93: 0 | N93: 1
A94: =IF(Soupisky!H126<>"", Soupisky!H126, "") -> 3043 | B94: =IF(Soupisky!I126<>"", Soupisky!I126, "") -> Kopřiva Petr | C94: =IF(Soupisky!J126<>"", Soupisky!J126, "") -> M | D94: =IF(AND(A94<>"", Soupisky!E126 <> ""), Soupisky!E126, "") -> MO MRS Letovice PRESTON | E94: =IF(ISNA(MATCH($B94,'1k - Výsledková listina'!$D:$D,0)),"",INDEX('1k - Výsledková listina'!$G:$H,MATCH($B94,'1k - Výsledková listina'!$D:$D,0),1)) ->  | F94: =IF(ISNA(MATCH($B94,'1k - Výsledková listina'!$D:$D,0)),"",INDEX('1k - Výsledková listina'!$G:$H,MATCH($B94,'1k - Výsledková listina'!$D:$D,0),2)) ->  | G94: =IF(ISNA(MATCH($B94,'1k - Výsledková listina'!$M:$M,0)),"",INDEX('1k - Výsledková listina'!$P:$Q,MATCH($B94,'1k - Výsledková listina'!$M:$M,0),1)) ->  | H94: =IF(ISNA(MATCH($B94,'1k - Výsledková listina'!$M:$M,0)),"",INDEX('1k - Výsledková listina'!$P:$Q,MATCH($B94,'1k - Výsledková listina'!$M:$M,0),2)) ->  | I94: 0 | N94: 1
A95: =IF(Soupisky!H127<>"", Soupisky!H127, "") -> 62 | B95: =IF(Soupisky!I127<>"", Soupisky!I127, "") -> Ing. Mahr Jiří | C95: =IF(Soupisky!J127<>"", Soupisky!J127, "") -> M | D95: =IF(AND(A95<>"", Soupisky!E127 <> ""), Soupisky!E127, "") -> MO MRS Letovice PRESTON | E95: =IF(ISNA(MATCH($B95,'1k - Výsledková listina'!$D:$D,0)),"",INDEX('1k - Výsledková listina'!$G:$H,MATCH($B95,'1k - Výsledková listina'!$D:$D,0),1)) ->  | F95: =IF(ISNA(MATCH($B95,'1k - Výsledková listina'!$D:$D,0)),"",INDEX('1k - Výsledková listina'!$G:$H,MATCH($B95,'1k - Výsledková listina'!$D:$D,0),2)) ->  | G95: =IF(ISNA(MATCH($B95,'1k - Výsledková listina'!$M:$M,0)),"",INDEX('1k - Výsledková listina'!$P:$Q,MATCH($B95,'1k - Výsledková listina'!$M:$M,0),1)) ->  | H95: =IF(ISNA(MATCH($B95,'1k - Výsledková listina'!$M:$M,0)),"",INDEX('1k - Výsledková listina'!$P:$Q,MATCH($B95,'1k - Výsledková listina'!$M:$M,0),2)) ->  | I95: 0 | N95: 1
A96: =IF(Soupisky!H130<>"", Soupisky!H130, "") -> 6415 | B96: =IF(Soupisky!I130<>"", Soupisky!I130, "") -> Horňas Milan | C96: =IF(Soupisky!J130<>"", Soupisky!J130, "") -> U25 | D96: =IF(AND(A96<>"", Soupisky!E130 <> ""), Soupisky!E130, "") -> MO MRS Letovice PRESTON | E96: =IF(ISNA(MATCH($B96,'1k - Výsledková listina'!$D:$D,0)),"",INDEX('1k - Výsledková listina'!$G:$H,MATCH($B96,'1k - Výsledková listina'!$D:$D,0),1)) ->  | F96: =IF(ISNA(MATCH($B96,'1k - Výsledková listina'!$D:$D,0)),"",INDEX('1k - Výsledková listina'!$G:$H,MATCH($B96,'1k - Výsledková listina'!$D:$D,0),2)) ->  | G96: =IF(ISNA(MATCH($B96,'1k - Výsledková listina'!$M:$M,0)),"",INDEX('1k - Výsledková listina'!$P:$Q,MATCH($B96,'1k - Výsledková listina'!$M:$M,0),1)) ->  | H96: =IF(ISNA(MATCH($B96,'1k - Výsledková listina'!$M:$M,0)),"",INDEX('1k - Výsledková listina'!$P:$Q,MATCH($B96,'1k - Výsledková listina'!$M:$M,0),2)) ->  | I96: 0 | N96: 1
A97: =IF(Soupisky!H135<>"", Soupisky!H135, "") -> 1617 | B97: =IF(Soupisky!I135<>"", Soupisky!I135, "") -> Řehulka Patrik | C97: =IF(Soupisky!J135<>"", Soupisky!J135, "") -> M | D97: =IF(AND(A97<>"", Soupisky!E135 <> ""), Soupisky!E135, "") -> MO ČRS Vítkov -MAVER TEAM | E97: =IF(ISNA(MATCH($B97,'1k - Výsledková listina'!$D:$D,0)),"",INDEX('1k - Výsledková listina'!$G:$H,MATCH($B97,'1k - Výsledková listina'!$D:$D,0),1)) ->  | F97: =IF(ISNA(MATCH($B97,'1k - Výsledková listina'!$D:$D,0)),"",INDEX('1k - Výsledková listina'!$G:$H,MATCH($B97,'1k - Výsledková listina'!$D:$D,0),2)) ->  | G97: =IF(ISNA(MATCH($B97,'1k - Výsledková listina'!$M:$M,0)),"",INDEX('1k - Výsledková listina'!$P:$Q,MATCH($B97,'1k - Výsledková listina'!$M:$M,0),1)) ->  | H97: =IF(ISNA(MATCH($B97,'1k - Výsledková listina'!$M:$M,0)),"",INDEX('1k - Výsledková listina'!$P:$Q,MATCH($B97,'1k - Výsledková listina'!$M:$M,0),2)) ->  | I97: 0 | N97: 1
A98: =IF(Soupisky!H138<>"", Soupisky!H138, "") -> 1927 | B98: =IF(Soupisky!I138<>"", Soupisky!I138, "") -> Darebník Roman | C98: =IF(Soupisky!J138<>"", Soupisky!J138, "") -> M | D98: =IF(AND(A98<>"", Soupisky!E138 <> ""), Soupisky!E138, "") -> MO ČRS Vítkov -MAVER TEAM | E98: =IF(ISNA(MATCH($B98,'1k - Výsledková listina'!$D:$D,0)),"",INDEX('1k - Výsledková listina'!$G:$H,MATCH($B98,'1k - Výsledková listina'!$D:$D,0),1)) ->  | F98: =IF(ISNA(MATCH($B98,'1k - Výsledková listina'!$D:$D,0)),"",INDEX('1k - Výsledková listina'!$G:$H,MATCH($B98,'1k - Výsledková listina'!$D:$D,0),2)) ->  | G98: =IF(ISNA(MATCH($B98,'1k - Výsledková listina'!$M:$M,0)),"",INDEX('1k - Výsledková listina'!$P:$Q,MATCH($B98,'1k - Výsledková listina'!$M:$M,0),1)) ->  | H98: =IF(ISNA(MATCH($B98,'1k - Výsledková listina'!$M:$M,0)),"",INDEX('1k - Výsledková listina'!$P:$Q,MATCH($B98,'1k - Výsledková listina'!$M:$M,0),2)) ->  | I98: 0 | N98: 1
A99: =IF(Soupisky!H148<>"", Soupisky!H148, "") -> 6453 | B99: =IF(Soupisky!I148<>"", Soupisky!I148, "") -> Solek Mateusz | C99: =IF(Soupisky!J148<>"", Soupisky!J148, "") -> M | D99: =IF(AND(A99<>"", Soupisky!E148 <> ""), Soupisky!E148, "") -> ČRS Matchpro | E99: =IF(ISNA(MATCH($B99,'1k - Výsledková listina'!$D:$D,0)),"",INDEX('1k - Výsledková listina'!$G:$H,MATCH($B99,'1k - Výsledková listina'!$D:$D,0),1)) ->  | F99: =IF(ISNA(MATCH($B99,'1k - Výsledková listina'!$D:$D,0)),"",INDEX('1k - Výsledková listina'!$G:$H,MATCH($B99,'1k - Výsledková listina'!$D:$D,0),2)) ->  | G99: =IF(ISNA(MATCH($B99,'1k - Výsledková listina'!$M:$M,0)),"",INDEX('1k - Výsledková listina'!$P:$Q,MATCH($B99,'1k - Výsledková listina'!$M:$M,0),1)) ->  | H99: =IF(ISNA(MATCH($B99,'1k - Výsledková listina'!$M:$M,0)),"",INDEX('1k - Výsledková listina'!$P:$Q,MATCH($B99,'1k - Výsledková listina'!$M:$M,0),2)) ->  | I99: 0 | N99: 1
A100: =IF(Soupisky!H10<>"", Soupisky!H10, "") ->  | B100: =IF(Soupisky!I10<>"", Soupisky!I10, "") ->  | C100: =IF(Soupisky!J10<>"", Soupisky!J10, "") ->  | D100: =IF(AND(A100<>"", Soupisky!E10 <> ""), Soupisky!E10, "") ->  | E100: =IF(ISNA(MATCH($B100,'1k - Výsledková listina'!$D:$D,0)),"",INDEX('1k - Výsledková listina'!$G:$H,MATCH($B100,'1k - Výsledková listina'!$D:$D,0),1)) ->  | F100: =IF(ISNA(MATCH($B100,'1k - Výsledková listina'!$D:$D,0)),"",INDEX('1k - Výsledková listina'!$G:$H,MATCH($B100,'1k - Výsledková listina'!$D:$D,0),2)) ->  | G100: =IF(ISNA(MATCH($B100,'1k - Výsledková listina'!$M:$M,0)),"",INDEX('1k - Výsledková listina'!$P:$Q,MATCH($B100,'1k - Výsledková listina'!$M:$M,0),1)) ->  | H100: =IF(ISNA(MATCH($B100,'1k - Výsledková listina'!$M:$M,0)),"",INDEX('1k - Výsledková listina'!$P:$Q,MATCH($B100,'1k - Výsledková listina'!$M:$M,0),2)) ->  | N100: 0
A101: =IF(Soupisky!H11<>"", Soupisky!H11, "") ->  | B101: =IF(Soupisky!I11<>"", Soupisky!I11, "") ->  | C101: =IF(Soupisky!J11<>"", Soupisky!J11, "") ->  | D101: =IF(AND(A101<>"", Soupisky!E11 <> ""), Soupisky!E11, "") ->  | E101: =IF(ISNA(MATCH($B101,'1k - Výsledková listina'!$D:$D,0)),"",INDEX('1k - Výsledková listina'!$G:$H,MATCH($B101,'1k - Výsledková listina'!$D:$D,0),1)) ->  | F101: =IF(ISNA(MATCH($B101,'1k - Výsledková listina'!$D:$D,0)),"",INDEX('1k - Výsledková listina'!$G:$H,MATCH($B101,'1k - Výsledková listina'!$D:$D,0),2)) ->  | G101: =IF(ISNA(MATCH($B101,'1k - Výsledková listina'!$M:$M,0)),"",INDEX('1k - Výsledková listina'!$P:$Q,MATCH($B101,'1k - Výsledková listina'!$M:$M,0),1)) ->  | H101: =IF(ISNA(MATCH($B101,'1k - Výsledková listina'!$M:$M,0)),"",INDEX('1k - Výsledková listina'!$P:$Q,MATCH($B101,'1k - Výsledková listina'!$M:$M,0),2)) ->  | N101: 0
A102: =IF(Soupisky!H12<>"", Soupisky!H12, "") ->  | B102: =IF(Soupisky!I12<>"", Soupisky!I12, "") ->  | C102: =IF(Soupisky!J12<>"", Soupisky!J12, "") ->  | D102: =IF(AND(A102<>"", Soupisky!E12 <> ""), Soupisky!E12, "") ->  | E102: =IF(ISNA(MATCH($B102,'1k - Výsledková listina'!$D:$D,0)),"",INDEX('1k - Výsledková listina'!$G:$H,MATCH($B102,'1k - Výsledková listina'!$D:$D,0),1)) ->  | F102: =IF(ISNA(MATCH($B102,'1k - Výsledková listina'!$D:$D,0)),"",INDEX('1k - Výsledková listina'!$G:$H,MATCH($B102,'1k - Výsledková listina'!$D:$D,0),2)) ->  | G102: =IF(ISNA(MATCH($B102,'1k - Výsledková listina'!$M:$M,0)),"",INDEX('1k - Výsledková listina'!$P:$Q,MATCH($B102,'1k - Výsledková listina'!$M:$M,0),1)) ->  | H102: =IF(ISNA(MATCH($B102,'1k - Výsledková listina'!$M:$M,0)),"",INDEX('1k - Výsledková listina'!$P:$Q,MATCH($B102,'1k - Výsledková listina'!$M:$M,0),2)) ->  | N102: 0
A103: =IF(Soupisky!H13<>"", Soupisky!H13, "") ->  | B103: =IF(Soupisky!I13<>"", Soupisky!I13, "") ->  | C103: =IF(Soupisky!J13<>"", Soupisky!J13, "") ->  | D103: =IF(AND(A103<>"", Soupisky!E13 <> ""), Soupisky!E13, "") ->  | E103: =IF(ISNA(MATCH($B103,'1k - Výsledková listina'!$D:$D,0)),"",INDEX('1k - Výsledková listina'!$G:$H,MATCH($B103,'1k - Výsledková listina'!$D:$D,0),1)) ->  | F103: =IF(ISNA(MATCH($B103,'1k - Výsledková listina'!$D:$D,0)),"",INDEX('1k - Výsledková listina'!$G:$H,MATCH($B103,'1k - Výsledková listina'!$D:$D,0),2)) ->  | G103: =IF(ISNA(MATCH($B103,'1k - Výsledková listina'!$M:$M,0)),"",INDEX('1k - Výsledková listina'!$P:$Q,MATCH($B103,'1k - Výsledková listina'!$M:$M,0),1)) ->  | H103: =IF(ISNA(MATCH($B103,'1k - Výsledková listina'!$M:$M,0)),"",INDEX('1k - Výsledková listina'!$P:$Q,MATCH($B103,'1k - Výsledková listina'!$M:$M,0),2)) ->  | I103: =IF(B103="","",COUNT(F103,H103)) ->  | J103: =IF(OR($I103=0, $I103=""),"",SUM(E103,G103)) ->  | K103: =IF(OR($I103=0, $I103=""),"",SUM(F103,H103)) ->  | L103: =IF(OR($I103=0, $I103=""), "",IF(ISTEXT(L102),1,L102+1)) ->  | N103: =IF(AND(A103<>"",A103<>0), 1, 0) -> 0
A104: =IF(Soupisky!H14<>"", Soupisky!H14, "") ->  | B104: =IF(Soupisky!I14<>"", Soupisky!I14, "") ->  | C104: =IF(Soupisky!J14<>"", Soupisky!J14, "") ->  | D104: =IF(AND(A104<>"", Soupisky!E14 <> ""), Soupisky!E14, "") ->  | E104: =IF(ISNA(MATCH($B104,'1k - Výsledková listina'!$D:$D,0)),"",INDEX('1k - Výsledková listina'!$G:$H,MATCH($B104,'1k - Výsledková listina'!$D:$D,0),1)) ->  | F104: =IF(ISNA(MATCH($B104,'1k - Výsledková listina'!$D:$D,0)),"",INDEX('1k - Výsledková listina'!$G:$H,MATCH($B104,'1k - Výsledková listina'!$D:$D,0),2)) ->  | G104: =IF(ISNA(MATCH($B104,'1k - Výsledková listina'!$M:$M,0)),"",INDEX('1k - Výsledková listina'!$P:$Q,MATCH($B104,'1k - Výsledková listina'!$M:$M,0),1)) ->  | H104: =IF(ISNA(MATCH($B104,'1k - Výsledková listina'!$M:$M,0)),"",INDEX('1k - Výsledková listina'!$P:$Q,MATCH($B104,'1k - Výsledková listina'!$M:$M,0),2)) ->  | N104: 0
A105: =IF(Soupisky!H15<>"", Soupisky!H15, "") ->  | B105: =IF(Soupisky!I15<>"", Soupisky!I15, "") ->  | C105: =IF(Soupisky!J15<>"", Soupisky!J15, "") ->  | D105: =IF(AND(A105<>"", Soupisky!E15 <> ""), Soupisky!E15, "") ->  | E105: =IF(ISNA(MATCH($B105,'1k - Výsledková listina'!$D:$D,0)),"",INDEX('1k - Výsledková listina'!$G:$H,MATCH($B105,'1k - Výsledková listina'!$D:$D,0),1)) ->  | F105: =IF(ISNA(MATCH($B105,'1k - Výsledková listina'!$D:$D,0)),"",INDEX('1k - Výsledková listina'!$G:$H,MATCH($B105,'1k - Výsledková listina'!$D:$D,0),2)) ->  | G105: =IF(ISNA(MATCH($B105,'1k - Výsledková listina'!$M:$M,0)),"",INDEX('1k - Výsledková listina'!$P:$Q,MATCH($B105,'1k - Výsledková listina'!$M:$M,0),1)) ->  | H105: =IF(ISNA(MATCH($B105,'1k - Výsledková listina'!$M:$M,0)),"",INDEX('1k - Výsledková listina'!$P:$Q,MATCH($B105,'1k - Výsledková listina'!$M:$M,0),2)) ->  | N105: 0
A106: =IF(Soupisky!H24<>"", Soupisky!H24, "") ->  | B106: =IF(Soupisky!I24<>"", Soupisky!I24, "") ->  | C106: =IF(Soupisky!J24<>"", Soupisky!J24, "") ->  | D106: =IF(AND(A106<>"", Soupisky!E24 <> ""), Soupisky!E24, "") ->  | E106: =IF(ISNA(MATCH($B106,'1k - Výsledková listina'!$D:$D,0)),"",INDEX('1k - Výsledková listina'!$G:$H,MATCH($B106,'1k - Výsledková listina'!$D:$D,0),1)) ->  | F106: =IF(ISNA(MATCH($B106,'1k - Výsledková listina'!$D:$D,0)),"",INDEX('1k - Výsledková listina'!$G:$H,MATCH($B106,'1k - Výsledková listina'!$D:$D,0),2)) ->  | G106: =IF(ISNA(MATCH($B106,'1k - Výsledková listina'!$M:$M,0)),"",INDEX('1k - Výsledková listina'!$P:$Q,MATCH($B106,'1k - Výsledková listina'!$M:$M,0),1)) ->  | H106: =IF(ISNA(MATCH($B106,'1k - Výsledková listina'!$M:$M,0)),"",INDEX('1k - Výsledková listina'!$P:$Q,MATCH($B106,'1k - Výsledková listina'!$M:$M,0),2)) ->  | N106: 0
A107: =IF(Soupisky!H25<>"", Soupisky!H25, "") ->  | B107: =IF(Soupisky!I25<>"", Soupisky!I25, "") ->  | C107: =IF(Soupisky!J25<>"", Soupisky!J25, "") ->  | D107: =IF(AND(A107<>"", Soupisky!E25 <> ""), Soupisky!E25, "") ->  | E107: =IF(ISNA(MATCH($B107,'1k - Výsledková listina'!$D:$D,0)),"",INDEX('1k - Výsledková listina'!$G:$H,MATCH($B107,'1k - Výsledková listina'!$D:$D,0),1)) ->  | F107: =IF(ISNA(MATCH($B107,'1k - Výsledková listina'!$D:$D,0)),"",INDEX('1k - Výsledková listina'!$G:$H,MATCH($B107,'1k - Výsledková listina'!$D:$D,0),2)) ->  | G107: =IF(ISNA(MATCH($B107,'1k - Výsledková listina'!$M:$M,0)),"",INDEX('1k - Výsledková listina'!$P:$Q,MATCH($B107,'1k - Výsledková listina'!$M:$M,0),1)) ->  | H107: =IF(ISNA(MATCH($B107,'1k - Výsledková listina'!$M:$M,0)),"",INDEX('1k - Výsledková listina'!$P:$Q,MATCH($B107,'1k - Výsledková listina'!$M:$M,0),2)) ->  | N107: 0
A108: =IF(Soupisky!H26<>"", Soupisky!H26, "") ->  | B108: =IF(Soupisky!I26<>"", Soupisky!I26, "") ->  | C108: =IF(Soupisky!J26<>"", Soupisky!J26, "") ->  | D108: =IF(AND(A108<>"", Soupisky!E26 <> ""), Soupisky!E26, "") ->  | E108: =IF(ISNA(MATCH($B108,'1k - Výsledková listina'!$D:$D,0)),"",INDEX('1k - Výsledková listina'!$G:$H,MATCH($B108,'1k - Výsledková listina'!$D:$D,0),1)) ->  | F108: =IF(ISNA(MATCH($B108,'1k - Výsledková listina'!$D:$D,0)),"",INDEX('1k - Výsledková listina'!$G:$H,MATCH($B108,'1k - Výsledková listina'!$D:$D,0),2)) ->  | G108: =IF(ISNA(MATCH($B108,'1k - Výsledková listina'!$M:$M,0)),"",INDEX('1k - Výsledková listina'!$P:$Q,MATCH($B108,'1k - Výsledková listina'!$M:$M,0),1)) ->  | H108: =IF(ISNA(MATCH($B108,'1k - Výsledková listina'!$M:$M,0)),"",INDEX('1k - Výsledková listina'!$P:$Q,MATCH($B108,'1k - Výsledková listina'!$M:$M,0),2)) ->  | N108: 0
A109: =IF(Soupisky!H27<>"", Soupisky!H27, "") ->  | B109: =IF(Soupisky!I27<>"", Soupisky!I27, "") ->  | C109: =IF(Soupisky!J27<>"", Soupisky!J27, "") ->  | D109: =IF(AND(A109<>"", Soupisky!E27 <> ""), Soupisky!E27, "") ->  | E109: =IF(ISNA(MATCH($B109,'1k - Výsledková listina'!$D:$D,0)),"",INDEX('1k - Výsledková listina'!$G:$H,MATCH($B109,'1k - Výsledková listina'!$D:$D,0),1)) ->  | F109: =IF(ISNA(MATCH($B109,'1k - Výsledková listina'!$D:$D,0)),"",INDEX('1k - Výsledková listina'!$G:$H,MATCH($B109,'1k - Výsledková listina'!$D:$D,0),2)) ->  | G109: =IF(ISNA(MATCH($B109,'1k - Výsledková listina'!$M:$M,0)),"",INDEX('1k - Výsledková listina'!$P:$Q,MATCH($B109,'1k - Výsledková listina'!$M:$M,0),1)) ->  | H109: =IF(ISNA(MATCH($B109,'1k - Výsledková listina'!$M:$M,0)),"",INDEX('1k - Výsledková listina'!$P:$Q,MATCH($B109,'1k - Výsledková listina'!$M:$M,0),2)) ->  | N109: 0
A110: =IF(Soupisky!H28<>"", Soupisky!H28, "") ->  | B110: =IF(Soupisky!I28<>"", Soupisky!I28, "") ->  | C110: =IF(Soupisky!J28<>"", Soupisky!J28, "") ->  | D110: =IF(AND(A110<>"", Soupisky!E28 <> ""), Soupisky!E28, "") ->  | E110: =IF(ISNA(MATCH($B110,'1k - Výsledková listina'!$D:$D,0)),"",INDEX('1k - Výsledková listina'!$G:$H,MATCH($B110,'1k - Výsledková listina'!$D:$D,0),1)) ->  | F110: =IF(ISNA(MATCH($B110,'1k - Výsledková listina'!$D:$D,0)),"",INDEX('1k - Výsledková listina'!$G:$H,MATCH($B110,'1k - Výsledková listina'!$D:$D,0),2)) ->  | G110: =IF(ISNA(MATCH($B110,'1k - Výsledková listina'!$M:$M,0)),"",INDEX('1k - Výsledková listina'!$P:$Q,MATCH($B110,'1k - Výsledková listina'!$M:$M,0),1)) ->  | H110: =IF(ISNA(MATCH($B110,'1k - Výsledková listina'!$M:$M,0)),"",INDEX('1k - Výsledková listina'!$P:$Q,MATCH($B110,'1k - Výsledková listina'!$M:$M,0),2)) ->  | N110: 0
A111: =IF(Soupisky!H36<>"", Soupisky!H36, "") ->  | B111: =IF(Soupisky!I36<>"", Soupisky!I36, "") ->  | C111: =IF(Soupisky!J36<>"", Soupisky!J36, "") ->  | D111: =IF(AND(A111<>"", Soupisky!E36 <> ""), Soupisky!E36, "") ->  | E111: =IF(ISNA(MATCH($B111,'1k - Výsledková listina'!$D:$D,0)),"",INDEX('1k - Výsledková listina'!$G:$H,MATCH($B111,'1k - Výsledková listina'!$D:$D,0),1)) ->  | F111: =IF(ISNA(MATCH($B111,'1k - Výsledková listina'!$D:$D,0)),"",INDEX('1k - Výsledková listina'!$G:$H,MATCH($B111,'1k - Výsledková listina'!$D:$D,0),2)) ->  | G111: =IF(ISNA(MATCH($B111,'1k - Výsledková listina'!$M:$M,0)),"",INDEX('1k - Výsledková listina'!$P:$Q,MATCH($B111,'1k - Výsledková listina'!$M:$M,0),1)) ->  | H111: =IF(ISNA(MATCH($B111,'1k - Výsledková listina'!$M:$M,0)),"",INDEX('1k - Výsledková listina'!$P:$Q,MATCH($B111,'1k - Výsledková listina'!$M:$M,0),2)) ->  | N111: 0
A112: =IF(Soupisky!H37<>"", Soupisky!H37, "") ->  | B112: =IF(Soupisky!I37<>"", Soupisky!I37, "") ->  | C112: =IF(Soupisky!J37<>"", Soupisky!J37, "") ->  | D112: =IF(AND(A112<>"", Soupisky!E37 <> ""), Soupisky!E37, "") ->  | E112: =IF(ISNA(MATCH($B112,'1k - Výsledková listina'!$D:$D,0)),"",INDEX('1k - Výsledková listina'!$G:$H,MATCH($B112,'1k - Výsledková listina'!$D:$D,0),1)) ->  | F112: =IF(ISNA(MATCH($B112,'1k - Výsledková listina'!$D:$D,0)),"",INDEX('1k - Výsledková listina'!$G:$H,MATCH($B112,'1k - Výsledková listina'!$D:$D,0),2)) ->  | G112: =IF(ISNA(MATCH($B112,'1k - Výsledková listina'!$M:$M,0)),"",INDEX('1k - Výsledková listina'!$P:$Q,MATCH($B112,'1k - Výsledková listina'!$M:$M,0),1)) ->  | H112: =IF(ISNA(MATCH($B112,'1k - Výsledková listina'!$M:$M,0)),"",INDEX('1k - Výsledková listina'!$P:$Q,MATCH($B112,'1k - Výsledková listina'!$M:$M,0),2)) ->  | N112: 0
A113: =IF(Soupisky!H38<>"", Soupisky!H38, "") ->  | B113: =IF(Soupisky!I38<>"", Soupisky!I38, "") ->  | C113: =IF(Soupisky!J38<>"", Soupisky!J38, "") ->  | D113: =IF(AND(A113<>"", Soupisky!E38 <> ""), Soupisky!E38, "") ->  | E113: =IF(ISNA(MATCH($B113,'1k - Výsledková listina'!$D:$D,0)),"",INDEX('1k - Výsledková listina'!$G:$H,MATCH($B113,'1k - Výsledková listina'!$D:$D,0),1)) ->  | F113: =IF(ISNA(MATCH($B113,'1k - Výsledková listina'!$D:$D,0)),"",INDEX('1k - Výsledková listina'!$G:$H,MATCH($B113,'1k - Výsledková listina'!$D:$D,0),2)) ->  | G113: =IF(ISNA(MATCH($B113,'1k - Výsledková listina'!$M:$M,0)),"",INDEX('1k - Výsledková listina'!$P:$Q,MATCH($B113,'1k - Výsledková listina'!$M:$M,0),1)) ->  | H113: =IF(ISNA(MATCH($B113,'1k - Výsledková listina'!$M:$M,0)),"",INDEX('1k - Výsledková listina'!$P:$Q,MATCH($B113,'1k - Výsledková listina'!$M:$M,0),2)) ->  | N113: 0
A114: =IF(Soupisky!H39<>"", Soupisky!H39, "") ->  | B114: =IF(Soupisky!I39<>"", Soupisky!I39, "") ->  | C114: =IF(Soupisky!J39<>"", Soupisky!J39, "") ->  | D114: =IF(AND(A114<>"", Soupisky!E39 <> ""), Soupisky!E39, "") ->  | E114: =IF(ISNA(MATCH($B114,'1k - Výsledková listina'!$D:$D,0)),"",INDEX('1k - Výsledková listina'!$G:$H,MATCH($B114,'1k - Výsledková listina'!$D:$D,0),1)) ->  | F114: =IF(ISNA(MATCH($B114,'1k - Výsledková listina'!$D:$D,0)),"",INDEX('1k - Výsledková listina'!$G:$H,MATCH($B114,'1k - Výsledková listina'!$D:$D,0),2)) ->  | G114: =IF(ISNA(MATCH($B114,'1k - Výsledková listina'!$M:$M,0)),"",INDEX('1k - Výsledková listina'!$P:$Q,MATCH($B114,'1k - Výsledková listina'!$M:$M,0),1)) ->  | H114: =IF(ISNA(MATCH($B114,'1k - Výsledková listina'!$M:$M,0)),"",INDEX('1k - Výsledková listina'!$P:$Q,MATCH($B114,'1k - Výsledková listina'!$M:$M,0),2)) ->  | N114: 0
A115: =IF(Soupisky!H40<>"", Soupisky!H40, "") ->  | B115: =IF(Soupisky!I40<>"", Soupisky!I40, "") ->  | C115: =IF(Soupisky!J40<>"", Soupisky!J40, "") ->  | D115: =IF(AND(A115<>"", Soupisky!E40 <> ""), Soupisky!E40, "") ->  | E115: =IF(ISNA(MATCH($B115,'1k - Výsledková listina'!$D:$D,0)),"",INDEX('1k - Výsledková listina'!$G:$H,MATCH($B115,'1k - Výsledková listina'!$D:$D,0),1)) ->  | F115: =IF(ISNA(MATCH($B115,'1k - Výsledková listina'!$D:$D,0)),"",INDEX('1k - Výsledková listina'!$G:$H,MATCH($B115,'1k - Výsledková listina'!$D:$D,0),2)) ->  | G115: =IF(ISNA(MATCH($B115,'1k - Výsledková listina'!$M:$M,0)),"",INDEX('1k - Výsledková listina'!$P:$Q,MATCH($B115,'1k - Výsledková listina'!$M:$M,0),1)) ->  | H115: =IF(ISNA(MATCH($B115,'1k - Výsledková listina'!$M:$M,0)),"",INDEX('1k - Výsledková listina'!$P:$Q,MATCH($B115,'1k - Výsledková listina'!$M:$M,0),2)) ->  | N115: 0
A116: =IF(Soupisky!H41<>"", Soupisky!H41, "") ->  | B116: =IF(Soupisky!I41<>"", Soupisky!I41, "") ->  | C116: =IF(Soupisky!J41<>"", Soupisky!J41, "") ->  | D116: =IF(AND(A116<>"", Soupisky!E41 <> ""), Soupisky!E41, "") ->  | E116: =IF(ISNA(MATCH($B116,'1k - Výsledková listina'!$D:$D,0)),"",INDEX('1k - Výsledková listina'!$G:$H,MATCH($B116,'1k - Výsledková listina'!$D:$D,0),1)) ->  | F116: =IF(ISNA(MATCH($B116,'1k - Výsledková listina'!$D:$D,0)),"",INDEX('1k - Výsledková listina'!$G:$H,MATCH($B116,'1k - Výsledková listina'!$D:$D,0),2)) ->  | G116: =IF(ISNA(MATCH($B116,'1k - Výsledková listina'!$M:$M,0)),"",INDEX('1k - Výsledková listina'!$P:$Q,MATCH($B116,'1k - Výsledková listina'!$M:$M,0),1)) ->  | H116: =IF(ISNA(MATCH($B116,'1k - Výsledková listina'!$M:$M,0)),"",INDEX('1k - Výsledková listina'!$P:$Q,MATCH($B116,'1k - Výsledková listina'!$M:$M,0),2)) ->  | N116: 0
A117: =IF(Soupisky!H49<>"", Soupisky!H49, "") ->  | B117: =IF(Soupisky!I49<>"", Soupisky!I49, "") ->  | C117: =IF(Soupisky!J49<>"", Soupisky!J49, "") ->  | D117: =IF(AND(A117<>"", Soupisky!E49 <> ""), Soupisky!E49, "") ->  | E117: =IF(ISNA(MATCH($B117,'1k - Výsledková listina'!$D:$D,0)),"",INDEX('1k - Výsledková listina'!$G:$H,MATCH($B117,'1k - Výsledková listina'!$D:$D,0),1)) ->  | F117: =IF(ISNA(MATCH($B117,'1k - Výsledková listina'!$D:$D,0)),"",INDEX('1k - Výsledková listina'!$G:$H,MATCH($B117,'1k - Výsledková listina'!$D:$D,0),2)) ->  | G117: =IF(ISNA(MATCH($B117,'1k - Výsledková listina'!$M:$M,0)),"",INDEX('1k - Výsledková listina'!$P:$Q,MATCH($B117,'1k - Výsledková listina'!$M:$M,0),1)) ->  | H117: =IF(ISNA(MATCH($B117,'1k - Výsledková listina'!$M:$M,0)),"",INDEX('1k - Výsledková listina'!$P:$Q,MATCH($B117,'1k - Výsledková listina'!$M:$M,0),2)) ->  | N117: 0
A118: =IF(Soupisky!H50<>"", Soupisky!H50, "") ->  | B118: =IF(Soupisky!I50<>"", Soupisky!I50, "") ->  | C118: =IF(Soupisky!J50<>"", Soupisky!J50, "") ->  | D118: =IF(AND(A118<>"", Soupisky!E50 <> ""), Soupisky!E50, "") ->  | E118: =IF(ISNA(MATCH($B118,'1k - Výsledková listina'!$D:$D,0)),"",INDEX('1k - Výsledková listina'!$G:$H,MATCH($B118,'1k - Výsledková listina'!$D:$D,0),1)) ->  | F118: =IF(ISNA(MATCH($B118,'1k - Výsledková listina'!$D:$D,0)),"",INDEX('1k - Výsledková listina'!$G:$H,MATCH($B118,'1k - Výsledková listina'!$D:$D,0),2)) ->  | G118: =IF(ISNA(MATCH($B118,'1k - Výsledková listina'!$M:$M,0)),"",INDEX('1k - Výsledková listina'!$P:$Q,MATCH($B118,'1k - Výsledková listina'!$M:$M,0),1)) ->  | H118: =IF(ISNA(MATCH($B118,'1k - Výsledková listina'!$M:$M,0)),"",INDEX('1k - Výsledková listina'!$P:$Q,MATCH($B118,'1k - Výsledková listina'!$M:$M,0),2)) ->  | N118: 0
A119: =IF(Soupisky!H51<>"", Soupisky!H51, "") ->  | B119: =IF(Soupisky!I51<>"", Soupisky!I51, "") ->  | C119: =IF(Soupisky!J51<>"", Soupisky!J51, "") ->  | D119: =IF(AND(A119<>"", Soupisky!E51 <> ""), Soupisky!E51, "") ->  | E119: =IF(ISNA(MATCH($B119,'1k - Výsledková listina'!$D:$D,0)),"",INDEX('1k - Výsledková listina'!$G:$H,MATCH($B119,'1k - Výsledková listina'!$D:$D,0),1)) ->  | F119: =IF(ISNA(MATCH($B119,'1k - Výsledková listina'!$D:$D,0)),"",INDEX('1k - Výsledková listina'!$G:$H,MATCH($B119,'1k - Výsledková listina'!$D:$D,0),2)) ->  | G119: =IF(ISNA(MATCH($B119,'1k - Výsledková listina'!$M:$M,0)),"",INDEX('1k - Výsledková listina'!$P:$Q,MATCH($B119,'1k - Výsledková listina'!$M:$M,0),1)) ->  | H119: =IF(ISNA(MATCH($B119,'1k - Výsledková listina'!$M:$M,0)),"",INDEX('1k - Výsledková listina'!$P:$Q,MATCH($B119,'1k - Výsledková listina'!$M:$M,0),2)) ->  | N119: 0
A120: =IF(Soupisky!H52<>"", Soupisky!H52, "") ->  | B120: =IF(Soupisky!I52<>"", Soupisky!I52, "") ->  | C120: =IF(Soupisky!J52<>"", Soupisky!J52, "") ->  | D120: =IF(AND(A120<>"", Soupisky!E52 <> ""), Soupisky!E52, "") ->  | E120: =IF(ISNA(MATCH($B120,'1k - Výsledková listina'!$D:$D,0)),"",INDEX('1k - Výsledková listina'!$G:$H,MATCH($B120,'1k - Výsledková listina'!$D:$D,0),1)) ->  | F120: =IF(ISNA(MATCH($B120,'1k - Výsledková listina'!$D:$D,0)),"",INDEX('1k - Výsledková listina'!$G:$H,MATCH($B120,'1k - Výsledková listina'!$D:$D,0),2)) ->  | G120: =IF(ISNA(MATCH($B120,'1k - Výsledková listina'!$M:$M,0)),"",INDEX('1k - Výsledková listina'!$P:$Q,MATCH($B120,'1k - Výsledková listina'!$M:$M,0),1)) ->  | H120: =IF(ISNA(MATCH($B120,'1k - Výsledková listina'!$M:$M,0)),"",INDEX('1k - Výsledková listina'!$P:$Q,MATCH($B120,'1k - Výsledková listina'!$M:$M,0),2)) ->  | N120: 0
A121: =IF(Soupisky!H53<>"", Soupisky!H53, "") ->  | B121: =IF(Soupisky!I53<>"", Soupisky!I53, "") ->  | C121: =IF(Soupisky!J53<>"", Soupisky!J53, "") ->  | D121: =IF(AND(A121<>"", Soupisky!E53 <> ""), Soupisky!E53, "") ->  | E121: =IF(ISNA(MATCH($B121,'1k - Výsledková listina'!$D:$D,0)),"",INDEX('1k - Výsledková listina'!$G:$H,MATCH($B121,'1k - Výsledková listina'!$D:$D,0),1)) ->  | F121: =IF(ISNA(MATCH($B121,'1k - Výsledková listina'!$D:$D,0)),"",INDEX('1k - Výsledková listina'!$G:$H,MATCH($B121,'1k - Výsledková listina'!$D:$D,0),2)) ->  | G121: =IF(ISNA(MATCH($B121,'1k - Výsledková listina'!$M:$M,0)),"",INDEX('1k - Výsledková listina'!$P:$Q,MATCH($B121,'1k - Výsledková listina'!$M:$M,0),1)) ->  | H121: =IF(ISNA(MATCH($B121,'1k - Výsledková listina'!$M:$M,0)),"",INDEX('1k - Výsledková listina'!$P:$Q,MATCH($B121,'1k - Výsledková listina'!$M:$M,0),2)) ->  | N121: 0
A122: =IF(Soupisky!H54<>"", Soupisky!H54, "") ->  | B122: =IF(Soupisky!I54<>"", Soupisky!I54, "") ->  | C122: =IF(Soupisky!J54<>"", Soupisky!J54, "") ->  | D122: =IF(AND(A122<>"", Soupisky!E54 <> ""), Soupisky!E54, "") ->  | E122: =IF(ISNA(MATCH($B122,'1k - Výsledková listina'!$D:$D,0)),"",INDEX('1k - Výsledková listina'!$G:$H,MATCH($B122,'1k - Výsledková listina'!$D:$D,0),1)) ->  | F122: =IF(ISNA(MATCH($B122,'1k - Výsledková listina'!$D:$D,0)),"",INDEX('1k - Výsledková listina'!$G:$H,MATCH($B122,'1k - Výsledková listina'!$D:$D,0),2)) ->  | G122: =IF(ISNA(MATCH($B122,'1k - Výsledková listina'!$M:$M,0)),"",INDEX('1k - Výsledková listina'!$P:$Q,MATCH($B122,'1k - Výsledková listina'!$M:$M,0),1)) ->  | H122: =IF(ISNA(MATCH($B122,'1k - Výsledková listina'!$M:$M,0)),"",INDEX('1k - Výsledková listina'!$P:$Q,MATCH($B122,'1k - Výsledková listina'!$M:$M,0),2)) ->  | N122: 0
A123: =IF(Soupisky!H61<>"", Soupisky!H61, "") ->  | B123: =IF(Soupisky!I61<>"", Soupisky!I61, "") ->  | C123: =IF(Soupisky!J61<>"", Soupisky!J61, "") ->  | D123: =IF(AND(A123<>"", Soupisky!E61 <> ""), Soupisky!E61, "") ->  | E123: =IF(ISNA(MATCH($B123,'1k - Výsledková listina'!$D:$D,0)),"",INDEX('1k - Výsledková listina'!$G:$H,MATCH($B123,'1k - Výsledková listina'!$D:$D,0),1)) ->  | F123: =IF(ISNA(MATCH($B123,'1k - Výsledková listina'!$D:$D,0)),"",INDEX('1k - Výsledková listina'!$G:$H,MATCH($B123,'1k - Výsledková listina'!$D:$D,0),2)) ->  | G123: =IF(ISNA(MATCH($B123,'1k - Výsledková listina'!$M:$M,0)),"",INDEX('1k - Výsledková listina'!$P:$Q,MATCH($B123,'1k - Výsledková listina'!$M:$M,0),1)) ->  | H123: =IF(ISNA(MATCH($B123,'1k - Výsledková listina'!$M:$M,0)),"",INDEX('1k - Výsledková listina'!$P:$Q,MATCH($B123,'1k - Výsledková listina'!$M:$M,0),2)) ->  | N123: 0
A124: =IF(Soupisky!H62<>"", Soupisky!H62, "") ->  | B124: =IF(Soupisky!I62<>"", Soupisky!I62, "") ->  | C124: =IF(Soupisky!J62<>"", Soupisky!J62, "") ->  | D124: =IF(AND(A124<>"", Soupisky!E62 <> ""), Soupisky!E62, "") ->  | E124: =IF(ISNA(MATCH($B124,'1k - Výsledková listina'!$D:$D,0)),"",INDEX('1k - Výsledková listina'!$G:$H,MATCH($B124,'1k - Výsledková listina'!$D:$D,0),1)) ->  | F124: =IF(ISNA(MATCH($B124,'1k - Výsledková listina'!$D:$D,0)),"",INDEX('1k - Výsledková listina'!$G:$H,MATCH($B124,'1k - Výsledková listina'!$D:$D,0),2)) ->  | G124: =IF(ISNA(MATCH($B124,'1k - Výsledková listina'!$M:$M,0)),"",INDEX('1k - Výsledková listina'!$P:$Q,MATCH($B124,'1k - Výsledková listina'!$M:$M,0),1)) ->  | H124: =IF(ISNA(MATCH($B124,'1k - Výsledková listina'!$M:$M,0)),"",INDEX('1k - Výsledková listina'!$P:$Q,MATCH($B124,'1k - Výsledková listina'!$M:$M,0),2)) ->  | N124: 0
A125: =IF(Soupisky!H63<>"", Soupisky!H63, "") ->  | B125: =IF(Soupisky!I63<>"", Soupisky!I63, "") ->  | C125: =IF(Soupisky!J63<>"", Soupisky!J63, "") ->  | D125: =IF(AND(A125<>"", Soupisky!E63 <> ""), Soupisky!E63, "") ->  | E125: =IF(ISNA(MATCH($B125,'1k - Výsledková listina'!$D:$D,0)),"",INDEX('1k - Výsledková listina'!$G:$H,MATCH($B125,'1k - Výsledková listina'!$D:$D,0),1)) ->  | F125: =IF(ISNA(MATCH($B125,'1k - Výsledková listina'!$D:$D,0)),"",INDEX('1k - Výsledková listina'!$G:$H,MATCH($B125,'1k - Výsledková listina'!$D:$D,0),2)) ->  | G125: =IF(ISNA(MATCH($B125,'1k - Výsledková listina'!$M:$M,0)),"",INDEX('1k - Výsledková listina'!$P:$Q,MATCH($B125,'1k - Výsledková listina'!$M:$M,0),1)) ->  | H125: =IF(ISNA(MATCH($B125,'1k - Výsledková listina'!$M:$M,0)),"",INDEX('1k - Výsledková listina'!$P:$Q,MATCH($B125,'1k - Výsledková listina'!$M:$M,0),2)) ->  | N125: 0
A126: =IF(Soupisky!H64<>"", Soupisky!H64, "") ->  | B126: =IF(Soupisky!I64<>"", Soupisky!I64, "") ->  | C126: =IF(Soupisky!J64<>"", Soupisky!J64, "") ->  | D126: =IF(AND(A126<>"", Soupisky!E64 <> ""), Soupisky!E64, "") ->  | E126: =IF(ISNA(MATCH($B126,'1k - Výsledková listina'!$D:$D,0)),"",INDEX('1k - Výsledková listina'!$G:$H,MATCH($B126,'1k - Výsledková listina'!$D:$D,0),1)) ->  | F126: =IF(ISNA(MATCH($B126,'1k - Výsledková listina'!$D:$D,0)),"",INDEX('1k - Výsledková listina'!$G:$H,MATCH($B126,'1k - Výsledková listina'!$D:$D,0),2)) ->  | G126: =IF(ISNA(MATCH($B126,'1k - Výsledková listina'!$M:$M,0)),"",INDEX('1k - Výsledková listina'!$P:$Q,MATCH($B126,'1k - Výsledková listina'!$M:$M,0),1)) ->  | H126: =IF(ISNA(MATCH($B126,'1k - Výsledková listina'!$M:$M,0)),"",INDEX('1k - Výsledková listina'!$P:$Q,MATCH($B126,'1k - Výsledková listina'!$M:$M,0),2)) ->  | N126: 0
A127: =IF(Soupisky!H65<>"", Soupisky!H65, "") ->  | B127: =IF(Soupisky!I65<>"", Soupisky!I65, "") ->  | C127: =IF(Soupisky!J65<>"", Soupisky!J65, "") ->  | D127: =IF(AND(A127<>"", Soupisky!E65 <> ""), Soupisky!E65, "") ->  | E127: =IF(ISNA(MATCH($B127,'1k - Výsledková listina'!$D:$D,0)),"",INDEX('1k - Výsledková listina'!$G:$H,MATCH($B127,'1k - Výsledková listina'!$D:$D,0),1)) ->  | F127: =IF(ISNA(MATCH($B127,'1k - Výsledková listina'!$D:$D,0)),"",INDEX('1k - Výsledková listina'!$G:$H,MATCH($B127,'1k - Výsledková listina'!$D:$D,0),2)) ->  | G127: =IF(ISNA(MATCH($B127,'1k - Výsledková listina'!$M:$M,0)),"",INDEX('1k - Výsledková listina'!$P:$Q,MATCH($B127,'1k - Výsledková listina'!$M:$M,0),1)) ->  | H127: =IF(ISNA(MATCH($B127,'1k - Výsledková listina'!$M:$M,0)),"",INDEX('1k - Výsledková listina'!$P:$Q,MATCH($B127,'1k - Výsledková listina'!$M:$M,0),2)) ->  | N127: 0
A128: =IF(Soupisky!H66<>"", Soupisky!H66, "") ->  | B128: =IF(Soupisky!I66<>"", Soupisky!I66, "") ->  | C128: =IF(Soupisky!J66<>"", Soupisky!J66, "") ->  | D128: =IF(AND(A128<>"", Soupisky!E66 <> ""), Soupisky!E66, "") ->  | E128: =IF(ISNA(MATCH($B128,'1k - Výsledková listina'!$D:$D,0)),"",INDEX('1k - Výsledková listina'!$G:$H,MATCH($B128,'1k - Výsledková listina'!$D:$D,0),1)) ->  | F128: =IF(ISNA(MATCH($B128,'1k - Výsledková listina'!$D:$D,0)),"",INDEX('1k - Výsledková listina'!$G:$H,MATCH($B128,'1k - Výsledková listina'!$D:$D,0),2)) ->  | G128: =IF(ISNA(MATCH($B128,'1k - Výsledková listina'!$M:$M,0)),"",INDEX('1k - Výsledková listina'!$P:$Q,MATCH($B128,'1k - Výsledková listina'!$M:$M,0),1)) ->  | H128: =IF(ISNA(MATCH($B128,'1k - Výsledková listina'!$M:$M,0)),"",INDEX('1k - Výsledková listina'!$P:$Q,MATCH($B128,'1k - Výsledková listina'!$M:$M,0),2)) ->  | N128: 0
A129: =IF(Soupisky!H67<>"", Soupisky!H67, "") ->  | B129: =IF(Soupisky!I67<>"", Soupisky!I67, "") ->  | C129: =IF(Soupisky!J67<>"", Soupisky!J67, "") ->  | D129: =IF(AND(A129<>"", Soupisky!E67 <> ""), Soupisky!E67, "") ->  | E129: =IF(ISNA(MATCH($B129,'1k - Výsledková listina'!$D:$D,0)),"",INDEX('1k - Výsledková listina'!$G:$H,MATCH($B129,'1k - Výsledková listina'!$D:$D,0),1)) ->  | F129: =IF(ISNA(MATCH($B129,'1k - Výsledková listina'!$D:$D,0)),"",INDEX('1k - Výsledková listina'!$G:$H,MATCH($B129,'1k - Výsledková listina'!$D:$D,0),2)) ->  | G129: =IF(ISNA(MATCH($B129,'1k - Výsledková listina'!$M:$M,0)),"",INDEX('1k - Výsledková listina'!$P:$Q,MATCH($B129,'1k - Výsledková listina'!$M:$M,0),1)) ->  | H129: =IF(ISNA(MATCH($B129,'1k - Výsledková listina'!$M:$M,0)),"",INDEX('1k - Výsledková listina'!$P:$Q,MATCH($B129,'1k - Výsledková listina'!$M:$M,0),2)) ->  | N129: 0
A130: =IF(Soupisky!H77<>"", Soupisky!H77, "") ->  | B130: =IF(Soupisky!I77<>"", Soupisky!I77, "") ->  | C130: =IF(Soupisky!J77<>"", Soupisky!J77, "") ->  | D130: =IF(AND(A130<>"", Soupisky!E77 <> ""), Soupisky!E77, "") ->  | E130: =IF(ISNA(MATCH($B130,'1k - Výsledková listina'!$D:$D,0)),"",INDEX('1k - Výsledková listina'!$G:$H,MATCH($B130,'1k - Výsledková listina'!$D:$D,0),1)) ->  | F130: =IF(ISNA(MATCH($B130,'1k - Výsledková listina'!$D:$D,0)),"",INDEX('1k - Výsledková listina'!$G:$H,MATCH($B130,'1k - Výsledková listina'!$D:$D,0),2)) ->  | G130: =IF(ISNA(MATCH($B130,'1k - Výsledková listina'!$M:$M,0)),"",INDEX('1k - Výsledková listina'!$P:$Q,MATCH($B130,'1k - Výsledková listina'!$M:$M,0),1)) ->  | H130: =IF(ISNA(MATCH($B130,'1k - Výsledková listina'!$M:$M,0)),"",INDEX('1k - Výsledková listina'!$P:$Q,MATCH($B130,'1k - Výsledková listina'!$M:$M,0),2)) ->  | N130: 0
A131: =IF(Soupisky!H78<>"", Soupisky!H78, "") ->  | B131: =IF(Soupisky!I78<>"", Soupisky!I78, "") ->  | C131: =IF(Soupisky!J78<>"", Soupisky!J78, "") ->  | D131: =IF(AND(A131<>"", Soupisky!E78 <> ""), Soupisky!E78, "") ->  | E131: =IF(ISNA(MATCH($B131,'1k - Výsledková listina'!$D:$D,0)),"",INDEX('1k - Výsledková listina'!$G:$H,MATCH($B131,'1k - Výsledková listina'!$D:$D,0),1)) ->  | F131: =IF(ISNA(MATCH($B131,'1k - Výsledková listina'!$D:$D,0)),"",INDEX('1k - Výsledková listina'!$G:$H,MATCH($B131,'1k - Výsledková listina'!$D:$D,0),2)) ->  | G131: =IF(ISNA(MATCH($B131,'1k - Výsledková listina'!$M:$M,0)),"",INDEX('1k - Výsledková listina'!$P:$Q,MATCH($B131,'1k - Výsledková listina'!$M:$M,0),1)) ->  | H131: =IF(ISNA(MATCH($B131,'1k - Výsledková listina'!$M:$M,0)),"",INDEX('1k - Výsledková listina'!$P:$Q,MATCH($B131,'1k - Výsledková listina'!$M:$M,0),2)) ->  | N131: 0
A132: =IF(Soupisky!H79<>"", Soupisky!H79, "") ->  | B132: =IF(Soupisky!I79<>"", Soupisky!I79, "") ->  | C132: =IF(Soupisky!J79<>"", Soupisky!J79, "") ->  | D132: =IF(AND(A132<>"", Soupisky!E79 <> ""), Soupisky!E79, "") ->  | E132: =IF(ISNA(MATCH($B132,'1k - Výsledková listina'!$D:$D,0)),"",INDEX('1k - Výsledková listina'!$G:$H,MATCH($B132,'1k - Výsledková listina'!$D:$D,0),1)) ->  | F132: =IF(ISNA(MATCH($B132,'1k - Výsledková listina'!$D:$D,0)),"",INDEX('1k - Výsledková listina'!$G:$H,MATCH($B132,'1k - Výsledková listina'!$D:$D,0),2)) ->  | G132: =IF(ISNA(MATCH($B132,'1k - Výsledková listina'!$M:$M,0)),"",INDEX('1k - Výsledková listina'!$P:$Q,MATCH($B132,'1k - Výsledková listina'!$M:$M,0),1)) ->  | H132: =IF(ISNA(MATCH($B132,'1k - Výsledková listina'!$M:$M,0)),"",INDEX('1k - Výsledková listina'!$P:$Q,MATCH($B132,'1k - Výsledková listina'!$M:$M,0),2)) ->  | N132: 0
A133: =IF(Soupisky!H80<>"", Soupisky!H80, "") ->  | B133: =IF(Soupisky!I80<>"", Soupisky!I80, "") ->  | C133: =IF(Soupisky!J80<>"", Soupisky!J80, "") ->  | D133: =IF(AND(A133<>"", Soupisky!E80 <> ""), Soupisky!E80, "") ->  | E133: =IF(ISNA(MATCH($B133,'1k - Výsledková listina'!$D:$D,0)),"",INDEX('1k - Výsledková listina'!$G:$H,MATCH($B133,'1k - Výsledková listina'!$D:$D,0),1)) ->  | F133: =IF(ISNA(MATCH($B133,'1k - Výsledková listina'!$D:$D,0)),"",INDEX('1k - Výsledková listina'!$G:$H,MATCH($B133,'1k - Výsledková listina'!$D:$D,0),2)) ->  | G133: =IF(ISNA(MATCH($B133,'1k - Výsledková listina'!$M:$M,0)),"",INDEX('1k - Výsledková listina'!$P:$Q,MATCH($B133,'1k - Výsledková listina'!$M:$M,0),1)) ->  | H133: =IF(ISNA(MATCH($B133,'1k - Výsledková listina'!$M:$M,0)),"",INDEX('1k - Výsledková listina'!$P:$Q,MATCH($B133,'1k - Výsledková listina'!$M:$M,0),2)) ->  | N133: 0
A134: =IF(Soupisky!H87<>"", Soupisky!H87, "") ->  | B134: =IF(Soupisky!I87<>"", Soupisky!I87, "") ->  | C134: =IF(Soupisky!J87<>"", Soupisky!J87, "") ->  | D134: =IF(AND(A134<>"", Soupisky!E87 <> ""), Soupisky!E87, "") ->  | E134: =IF(ISNA(MATCH($B134,'1k - Výsledková listina'!$D:$D,0)),"",INDEX('1k - Výsledková listina'!$G:$H,MATCH($B134,'1k - Výsledková listina'!$D:$D,0),1)) ->  | F134: =IF(ISNA(MATCH($B134,'1k - Výsledková listina'!$D:$D,0)),"",INDEX('1k - Výsledková listina'!$G:$H,MATCH($B134,'1k - Výsledková listina'!$D:$D,0),2)) ->  | G134: =IF(ISNA(MATCH($B134,'1k - Výsledková listina'!$M:$M,0)),"",INDEX('1k - Výsledková listina'!$P:$Q,MATCH($B134,'1k - Výsledková listina'!$M:$M,0),1)) ->  | H134: =IF(ISNA(MATCH($B134,'1k - Výsledková listina'!$M:$M,0)),"",INDEX('1k - Výsledková listina'!$P:$Q,MATCH($B134,'1k - Výsledková listina'!$M:$M,0),2)) ->  | N134: 0
A135: =IF(Soupisky!H88<>"", Soupisky!H88, "") ->  | B135: =IF(Soupisky!I88<>"", Soupisky!I88, "") ->  | C135: =IF(Soupisky!J88<>"", Soupisky!J88, "") ->  | D135: =IF(AND(A135<>"", Soupisky!E88 <> ""), Soupisky!E88, "") ->  | E135: =IF(ISNA(MATCH($B135,'1k - Výsledková listina'!$D:$D,0)),"",INDEX('1k - Výsledková listina'!$G:$H,MATCH($B135,'1k - Výsledková listina'!$D:$D,0),1)) ->  | F135: =IF(ISNA(MATCH($B135,'1k - Výsledková listina'!$D:$D,0)),"",INDEX('1k - Výsledková listina'!$G:$H,MATCH($B135,'1k - Výsledková listina'!$D:$D,0),2)) ->  | G135: =IF(ISNA(MATCH($B135,'1k - Výsledková listina'!$M:$M,0)),"",INDEX('1k - Výsledková listina'!$P:$Q,MATCH($B135,'1k - Výsledková listina'!$M:$M,0),1)) ->  | H135: =IF(ISNA(MATCH($B135,'1k - Výsledková listina'!$M:$M,0)),"",INDEX('1k - Výsledková listina'!$P:$Q,MATCH($B135,'1k - Výsledková listina'!$M:$M,0),2)) ->  | I135: =IF(B135="","",COUNT(F135,H135)) ->  | J135: =IF(OR($I135=0, $I135=""),"",SUM(E135,G135)) ->  | K135: =IF(OR($I135=0, $I135=""),"",SUM(F135,H135)) ->  | L135: =IF(OR($I135=0, $I135=""), "",IF(ISTEXT(L134),1,L134+1)) ->  | N135: =IF(AND(A135<>"",A135<>0), 1, 0) -> 0
A136: =IF(Soupisky!H89<>"", Soupisky!H89, "") ->  | B136: =IF(Soupisky!I89<>"", Soupisky!I89, "") ->  | C136: =IF(Soupisky!J89<>"", Soupisky!J89, "") ->  | D136: =IF(AND(A136<>"", Soupisky!E89 <> ""), Soupisky!E89, "") ->  | E136: =IF(ISNA(MATCH($B136,'1k - Výsledková listina'!$D:$D,0)),"",INDEX('1k - Výsledková listina'!$G:$H,MATCH($B136,'1k - Výsledková listina'!$D:$D,0),1)) ->  | F136: =IF(ISNA(MATCH($B136,'1k - Výsledková listina'!$D:$D,0)),"",INDEX('1k - Výsledková listina'!$G:$H,MATCH($B136,'1k - Výsledková listina'!$D:$D,0),2)) ->  | G136: =IF(ISNA(MATCH($B136,'1k - Výsledková listina'!$M:$M,0)),"",INDEX('1k - Výsledková listina'!$P:$Q,MATCH($B136,'1k - Výsledková listina'!$M:$M,0),1)) ->  | H136: =IF(ISNA(MATCH($B136,'1k - Výsledková listina'!$M:$M,0)),"",INDEX('1k - Výsledková listina'!$P:$Q,MATCH($B136,'1k - Výsledková listina'!$M:$M,0),2)) ->  | N136: 0
A137: =IF(Soupisky!H90<>"", Soupisky!H90, "") ->  | B137: =IF(Soupisky!I90<>"", Soupisky!I90, "") ->  | C137: =IF(Soupisky!J90<>"", Soupisky!J90, "") ->  | D137: =IF(AND(A137<>"", Soupisky!E90 <> ""), Soupisky!E90, "") ->  | E137: =IF(ISNA(MATCH($B137,'1k - Výsledková listina'!$D:$D,0)),"",INDEX('1k - Výsledková listina'!$G:$H,MATCH($B137,'1k - Výsledková listina'!$D:$D,0),1)) ->  | F137: =IF(ISNA(MATCH($B137,'1k - Výsledková listina'!$D:$D,0)),"",INDEX('1k - Výsledková listina'!$G:$H,MATCH($B137,'1k - Výsledková listina'!$D:$D,0),2)) ->  | G137: =IF(ISNA(MATCH($B137,'1k - Výsledková listina'!$M:$M,0)),"",INDEX('1k - Výsledková listina'!$P:$Q,MATCH($B137,'1k - Výsledková listina'!$M:$M,0),1)) ->  | H137: =IF(ISNA(MATCH($B137,'1k - Výsledková listina'!$M:$M,0)),"",INDEX('1k - Výsledková listina'!$P:$Q,MATCH($B137,'1k - Výsledková listina'!$M:$M,0),2)) ->  | N137: 0
A138: =IF(Soupisky!H91<>"", Soupisky!H91, "") ->  | B138: =IF(Soupisky!I91<>"", Soupisky!I91, "") ->  | C138: =IF(Soupisky!J91<>"", Soupisky!J91, "") ->  | D138: =IF(AND(A138<>"", Soupisky!E91 <> ""), Soupisky!E91, "") ->  | E138: =IF(ISNA(MATCH($B138,'1k - Výsledková listina'!$D:$D,0)),"",INDEX('1k - Výsledková listina'!$G:$H,MATCH($B138,'1k - Výsledková listina'!$D:$D,0),1)) ->  | F138: =IF(ISNA(MATCH($B138,'1k - Výsledková listina'!$D:$D,0)),"",INDEX('1k - Výsledková listina'!$G:$H,MATCH($B138,'1k - Výsledková listina'!$D:$D,0),2)) ->  | G138: =IF(ISNA(MATCH($B138,'1k - Výsledková listina'!$M:$M,0)),"",INDEX('1k - Výsledková listina'!$P:$Q,MATCH($B138,'1k - Výsledková listina'!$M:$M,0),1)) ->  | H138: =IF(ISNA(MATCH($B138,'1k - Výsledková listina'!$M:$M,0)),"",INDEX('1k - Výsledková listina'!$P:$Q,MATCH($B138,'1k - Výsledková listina'!$M:$M,0),2)) ->  | N138: 0
A139: =IF(Soupisky!H92<>"", Soupisky!H92, "") ->  | B139: =IF(Soupisky!I92<>"", Soupisky!I92, "") ->  | C139: =IF(Soupisky!J92<>"", Soupisky!J92, "") ->  | D139: =IF(AND(A139<>"", Soupisky!E92 <> ""), Soupisky!E92, "") ->  | E139: =IF(ISNA(MATCH($B139,'1k - Výsledková listina'!$D:$D,0)),"",INDEX('1k - Výsledková listina'!$G:$H,MATCH($B139,'1k - Výsledková listina'!$D:$D,0),1)) ->  | F139: =IF(ISNA(MATCH($B139,'1k - Výsledková listina'!$D:$D,0)),"",INDEX('1k - Výsledková listina'!$G:$H,MATCH($B139,'1k - Výsledková listina'!$D:$D,0),2)) ->  | G139: =IF(ISNA(MATCH($B139,'1k - Výsledková listina'!$M:$M,0)),"",INDEX('1k - Výsledková listina'!$P:$Q,MATCH($B139,'1k - Výsledková listina'!$M:$M,0),1)) ->  | H139: =IF(ISNA(MATCH($B139,'1k - Výsledková listina'!$M:$M,0)),"",INDEX('1k - Výsledková listina'!$P:$Q,MATCH($B139,'1k - Výsledková listina'!$M:$M,0),2)) ->  | N139: 0
A140: =IF(Soupisky!H93<>"", Soupisky!H93, "") ->  | B140: =IF(Soupisky!I93<>"", Soupisky!I93, "") ->  | C140: =IF(Soupisky!J93<>"", Soupisky!J93, "") ->  | D140: =IF(AND(A140<>"", Soupisky!E93 <> ""), Soupisky!E93, "") ->  | E140: =IF(ISNA(MATCH($B140,'1k - Výsledková listina'!$D:$D,0)),"",INDEX('1k - Výsledková listina'!$G:$H,MATCH($B140,'1k - Výsledková listina'!$D:$D,0),1)) ->  | F140: =IF(ISNA(MATCH($B140,'1k - Výsledková listina'!$D:$D,0)),"",INDEX('1k - Výsledková listina'!$G:$H,MATCH($B140,'1k - Výsledková listina'!$D:$D,0),2)) ->  | G140: =IF(ISNA(MATCH($B140,'1k - Výsledková listina'!$M:$M,0)),"",INDEX('1k - Výsledková listina'!$P:$Q,MATCH($B140,'1k - Výsledková listina'!$M:$M,0),1)) ->  | H140: =IF(ISNA(MATCH($B140,'1k - Výsledková listina'!$M:$M,0)),"",INDEX('1k - Výsledková listina'!$P:$Q,MATCH($B140,'1k - Výsledková listina'!$M:$M,0),2)) ->  | N140: 0
A141: =IF(Soupisky!H102<>"", Soupisky!H102, "") ->  | B141: =IF(Soupisky!I102<>"", Soupisky!I102, "") ->  | C141: =IF(Soupisky!J102<>"", Soupisky!J102, "") ->  | D141: =IF(AND(A141<>"", Soupisky!E102 <> ""), Soupisky!E102, "") ->  | E141: =IF(ISNA(MATCH($B141,'1k - Výsledková listina'!$D:$D,0)),"",INDEX('1k - Výsledková listina'!$G:$H,MATCH($B141,'1k - Výsledková listina'!$D:$D,0),1)) ->  | F141: =IF(ISNA(MATCH($B141,'1k - Výsledková listina'!$D:$D,0)),"",INDEX('1k - Výsledková listina'!$G:$H,MATCH($B141,'1k - Výsledková listina'!$D:$D,0),2)) ->  | G141: =IF(ISNA(MATCH($B141,'1k - Výsledková listina'!$M:$M,0)),"",INDEX('1k - Výsledková listina'!$P:$Q,MATCH($B141,'1k - Výsledková listina'!$M:$M,0),1)) ->  | H141: =IF(ISNA(MATCH($B141,'1k - Výsledková listina'!$M:$M,0)),"",INDEX('1k - Výsledková listina'!$P:$Q,MATCH($B141,'1k - Výsledková listina'!$M:$M,0),2)) ->  | N141: 0
A142: =IF(Soupisky!H103<>"", Soupisky!H103, "") ->  | B142: =IF(Soupisky!I103<>"", Soupisky!I103, "") ->  | C142: =IF(Soupisky!J103<>"", Soupisky!J103, "") ->  | D142: =IF(AND(A142<>"", Soupisky!E103 <> ""), Soupisky!E103, "") ->  | E142: =IF(ISNA(MATCH($B142,'1k - Výsledková listina'!$D:$D,0)),"",INDEX('1k - Výsledková listina'!$G:$H,MATCH($B142,'1k - Výsledková listina'!$D:$D,0),1)) ->  | F142: =IF(ISNA(MATCH($B142,'1k - Výsledková listina'!$D:$D,0)),"",INDEX('1k - Výsledková listina'!$G:$H,MATCH($B142,'1k - Výsledková listina'!$D:$D,0),2)) ->  | G142: =IF(ISNA(MATCH($B142,'1k - Výsledková listina'!$M:$M,0)),"",INDEX('1k - Výsledková listina'!$P:$Q,MATCH($B142,'1k - Výsledková listina'!$M:$M,0),1)) ->  | H142: =IF(ISNA(MATCH($B142,'1k - Výsledková listina'!$M:$M,0)),"",INDEX('1k - Výsledková listina'!$P:$Q,MATCH($B142,'1k - Výsledková listina'!$M:$M,0),2)) ->  | N142: 0
A143: =IF(Soupisky!H104<>"", Soupisky!H104, "") ->  | B143: =IF(Soupisky!I104<>"", Soupisky!I104, "") ->  | C143: =IF(Soupisky!J104<>"", Soupisky!J104, "") ->  | D143: =IF(AND(A143<>"", Soupisky!E104 <> ""), Soupisky!E104, "") ->  | E143: =IF(ISNA(MATCH($B143,'1k - Výsledková listina'!$D:$D,0)),"",INDEX('1k - Výsledková listina'!$G:$H,MATCH($B143,'1k - Výsledková listina'!$D:$D,0),1)) ->  | F143: =IF(ISNA(MATCH($B143,'1k - Výsledková listina'!$D:$D,0)),"",INDEX('1k - Výsledková listina'!$G:$H,MATCH($B143,'1k - Výsledková listina'!$D:$D,0),2)) ->  | G143: =IF(ISNA(MATCH($B143,'1k - Výsledková listina'!$M:$M,0)),"",INDEX('1k - Výsledková listina'!$P:$Q,MATCH($B143,'1k - Výsledková listina'!$M:$M,0),1)) ->  | H143: =IF(ISNA(MATCH($B143,'1k - Výsledková listina'!$M:$M,0)),"",INDEX('1k - Výsledková listina'!$P:$Q,MATCH($B143,'1k - Výsledková listina'!$M:$M,0),2)) ->  | N143: 0
A144: =IF(Soupisky!H105<>"", Soupisky!H105, "") ->  | B144: =IF(Soupisky!I105<>"", Soupisky!I105, "") ->  | C144: =IF(Soupisky!J105<>"", Soupisky!J105, "") ->  | D144: =IF(AND(A144<>"", Soupisky!E105 <> ""), Soupisky!E105, "") ->  | E144: =IF(ISNA(MATCH($B144,'1k - Výsledková listina'!$D:$D,0)),"",INDEX('1k - Výsledková listina'!$G:$H,MATCH($B144,'1k - Výsledková listina'!$D:$D,0),1)) ->  | F144: =IF(ISNA(MATCH($B144,'1k - Výsledková listina'!$D:$D,0)),"",INDEX('1k - Výsledková listina'!$G:$H,MATCH($B144,'1k - Výsledková listina'!$D:$D,0),2)) ->  | G144: =IF(ISNA(MATCH($B144,'1k - Výsledková listina'!$M:$M,0)),"",INDEX('1k - Výsledková listina'!$P:$Q,MATCH($B144,'1k - Výsledková listina'!$M:$M,0),1)) ->  | H144: =IF(ISNA(MATCH($B144,'1k - Výsledková listina'!$M:$M,0)),"",INDEX('1k - Výsledková listina'!$P:$Q,MATCH($B144,'1k - Výsledková listina'!$M:$M,0),2)) ->  | N144: 0
A145: =IF(Soupisky!H106<>"", Soupisky!H106, "") ->  | B145: =IF(Soupisky!I106<>"", Soupisky!I106, "") ->  | C145: =IF(Soupisky!J106<>"", Soupisky!J106, "") ->  | D145: =IF(AND(A145<>"", Soupisky!E106 <> ""), Soupisky!E106, "") ->  | E145: =IF(ISNA(MATCH($B145,'1k - Výsledková listina'!$D:$D,0)),"",INDEX('1k - Výsledková listina'!$G:$H,MATCH($B145,'1k - Výsledková listina'!$D:$D,0),1)) ->  | F145: =IF(ISNA(MATCH($B145,'1k - Výsledková listina'!$D:$D,0)),"",INDEX('1k - Výsledková listina'!$G:$H,MATCH($B145,'1k - Výsledková listina'!$D:$D,0),2)) ->  | G145: =IF(ISNA(MATCH($B145,'1k - Výsledková listina'!$M:$M,0)),"",INDEX('1k - Výsledková listina'!$P:$Q,MATCH($B145,'1k - Výsledková listina'!$M:$M,0),1)) ->  | H145: =IF(ISNA(MATCH($B145,'1k - Výsledková listina'!$M:$M,0)),"",INDEX('1k - Výsledková listina'!$P:$Q,MATCH($B145,'1k - Výsledková listina'!$M:$M,0),2)) ->  | N145: 0
A146: =IF(Soupisky!H132<>"", Soupisky!H132, "") ->  | B146: =IF(Soupisky!I132<>"", Soupisky!I132, "") ->  | C146: =IF(Soupisky!J132<>"", Soupisky!J132, "") ->  | D146: =IF(AND(A146<>"", Soupisky!E132 <> ""), Soupisky!E132, "") ->  | E146: =IF(ISNA(MATCH($B146,'1k - Výsledková listina'!$D:$D,0)),"",INDEX('1k - Výsledková listina'!$G:$H,MATCH($B146,'1k - Výsledková listina'!$D:$D,0),1)) ->  | F146: =IF(ISNA(MATCH($B146,'1k - Výsledková listina'!$D:$D,0)),"",INDEX('1k - Výsledková listina'!$G:$H,MATCH($B146,'1k - Výsledková listina'!$D:$D,0),2)) ->  | G146: =IF(ISNA(MATCH($B146,'1k - Výsledková listina'!$M:$M,0)),"",INDEX('1k - Výsledková listina'!$P:$Q,MATCH($B146,'1k - Výsledková listina'!$M:$M,0),1)) ->  | H146: =IF(ISNA(MATCH($B146,'1k - Výsledková listina'!$M:$M,0)),"",INDEX('1k - Výsledková listina'!$P:$Q,MATCH($B146,'1k - Výsledková listina'!$M:$M,0),2)) ->  | N146: 0
A147: =IF(Soupisky!H133<>"", Soupisky!H133, "") ->  | B147: =IF(Soupisky!I133<>"", Soupisky!I133, "") ->  | C147: =IF(Soupisky!J133<>"", Soupisky!J133, "") ->  | D147: =IF(AND(A147<>"", Soupisky!E133 <> ""), Soupisky!E133, "") ->  | E147: =IF(ISNA(MATCH($B147,'1k - Výsledková listina'!$D:$D,0)),"",INDEX('1k - Výsledková listina'!$G:$H,MATCH($B147,'1k - Výsledková listina'!$D:$D,0),1)) ->  | F147: =IF(ISNA(MATCH($B147,'1k - Výsledková listina'!$D:$D,0)),"",INDEX('1k - Výsledková listina'!$G:$H,MATCH($B147,'1k - Výsledková listina'!$D:$D,0),2)) ->  | G147: =IF(ISNA(MATCH($B147,'1k - Výsledková listina'!$M:$M,0)),"",INDEX('1k - Výsledková listina'!$P:$Q,MATCH($B147,'1k - Výsledková listina'!$M:$M,0),1)) ->  | H147: =IF(ISNA(MATCH($B147,'1k - Výsledková listina'!$M:$M,0)),"",INDEX('1k - Výsledková listina'!$P:$Q,MATCH($B147,'1k - Výsledková listina'!$M:$M,0),2)) ->  | N147: 0
A148: =IF(Soupisky!H140<>"", Soupisky!H140, "") ->  | B148: =IF(Soupisky!I140<>"", Soupisky!I140, "") ->  | C148: =IF(Soupisky!J140<>"", Soupisky!J140, "") ->  | D148: =IF(AND(A148<>"", Soupisky!E140 <> ""), Soupisky!E140, "") ->  | E148: =IF(ISNA(MATCH($B148,'1k - Výsledková listina'!$D:$D,0)),"",INDEX('1k - Výsledková listina'!$G:$H,MATCH($B148,'1k - Výsledková listina'!$D:$D,0),1)) ->  | F148: =IF(ISNA(MATCH($B148,'1k - Výsledková listina'!$D:$D,0)),"",INDEX('1k - Výsledková listina'!$G:$H,MATCH($B148,'1k - Výsledková listina'!$D:$D,0),2)) ->  | G148: =IF(ISNA(MATCH($B148,'1k - Výsledková listina'!$M:$M,0)),"",INDEX('1k - Výsledková listina'!$P:$Q,MATCH($B148,'1k - Výsledková listina'!$M:$M,0),1)) ->  | H148: =IF(ISNA(MATCH($B148,'1k - Výsledková listina'!$M:$M,0)),"",INDEX('1k - Výsledková listina'!$P:$Q,MATCH($B148,'1k - Výsledková listina'!$M:$M,0),2)) ->  | N148: 0
A149: =IF(Soupisky!H141<>"", Soupisky!H141, "") ->  | B149: =IF(Soupisky!I141<>"", Soupisky!I141, "") ->  | C149: =IF(Soupisky!J141<>"", Soupisky!J141, "") ->  | D149: =IF(AND(A149<>"", Soupisky!E141 <> ""), Soupisky!E141, "") ->  | E149: =IF(ISNA(MATCH($B149,'1k - Výsledková listina'!$D:$D,0)),"",INDEX('1k - Výsledková listina'!$G:$H,MATCH($B149,'1k - Výsledková listina'!$D:$D,0),1)) ->  | F149: =IF(ISNA(MATCH($B149,'1k - Výsledková listina'!$D:$D,0)),"",INDEX('1k - Výsledková listina'!$G:$H,MATCH($B149,'1k - Výsledková listina'!$D:$D,0),2)) ->  | G149: =IF(ISNA(MATCH($B149,'1k - Výsledková listina'!$M:$M,0)),"",INDEX('1k - Výsledková listina'!$P:$Q,MATCH($B149,'1k - Výsledková listina'!$M:$M,0),1)) ->  | H149: =IF(ISNA(MATCH($B149,'1k - Výsledková listina'!$M:$M,0)),"",INDEX('1k - Výsledková listina'!$P:$Q,MATCH($B149,'1k - Výsledková listina'!$M:$M,0),2)) ->  | N149: 0
A150: =IF(Soupisky!H142<>"", Soupisky!H142, "") ->  | B150: =IF(Soupisky!I142<>"", Soupisky!I142, "") ->  | C150: =IF(Soupisky!J142<>"", Soupisky!J142, "") ->  | D150: =IF(AND(A150<>"", Soupisky!E142 <> ""), Soupisky!E142, "") ->  | E150: =IF(ISNA(MATCH($B150,'1k - Výsledková listina'!$D:$D,0)),"",INDEX('1k - Výsledková listina'!$G:$H,MATCH($B150,'1k - Výsledková listina'!$D:$D,0),1)) ->  | F150: =IF(ISNA(MATCH($B150,'1k - Výsledková listina'!$D:$D,0)),"",INDEX('1k - Výsledková listina'!$G:$H,MATCH($B150,'1k - Výsledková listina'!$D:$D,0),2)) ->  | G150: =IF(ISNA(MATCH($B150,'1k - Výsledková listina'!$M:$M,0)),"",INDEX('1k - Výsledková listina'!$P:$Q,MATCH($B150,'1k - Výsledková listina'!$M:$M,0),1)) ->  | H150: =IF(ISNA(MATCH($B150,'1k - Výsledková listina'!$M:$M,0)),"",INDEX('1k - Výsledková listina'!$P:$Q,MATCH($B150,'1k - Výsledková listina'!$M:$M,0),2)) ->  | N150: 0
A151: =IF(Soupisky!H143<>"", Soupisky!H143, "") ->  | B151: =IF(Soupisky!I143<>"", Soupisky!I143, "") ->  | C151: =IF(Soupisky!J143<>"", Soupisky!J143, "") ->  | D151: =IF(AND(A151<>"", Soupisky!E143 <> ""), Soupisky!E143, "") ->  | E151: =IF(ISNA(MATCH($B151,'1k - Výsledková listina'!$D:$D,0)),"",INDEX('1k - Výsledková listina'!$G:$H,MATCH($B151,'1k - Výsledková listina'!$D:$D,0),1)) ->  | F151: =IF(ISNA(MATCH($B151,'1k - Výsledková listina'!$D:$D,0)),"",INDEX('1k - Výsledková listina'!$G:$H,MATCH($B151,'1k - Výsledková listina'!$D:$D,0),2)) ->  | G151: =IF(ISNA(MATCH($B151,'1k - Výsledková listina'!$M:$M,0)),"",INDEX('1k - Výsledková listina'!$P:$Q,MATCH($B151,'1k - Výsledková listina'!$M:$M,0),1)) ->  | H151: =IF(ISNA(MATCH($B151,'1k - Výsledková listina'!$M:$M,0)),"",INDEX('1k - Výsledková listina'!$P:$Q,MATCH($B151,'1k - Výsledková listina'!$M:$M,0),2)) ->  | N151: 0
A152: =IF(Soupisky!H144<>"", Soupisky!H144, "") ->  | B152: =IF(Soupisky!I144<>"", Soupisky!I144, "") ->  | C152: =IF(Soupisky!J144<>"", Soupisky!J144, "") ->  | D152: =IF(AND(A152<>"", Soupisky!E144 <> ""), Soupisky!E144, "") ->  | E152: =IF(ISNA(MATCH($B152,'1k - Výsledková listina'!$D:$D,0)),"",INDEX('1k - Výsledková listina'!$G:$H,MATCH($B152,'1k - Výsledková listina'!$D:$D,0),1)) ->  | F152: =IF(ISNA(MATCH($B152,'1k - Výsledková listina'!$D:$D,0)),"",INDEX('1k - Výsledková listina'!$G:$H,MATCH($B152,'1k - Výsledková listina'!$D:$D,0),2)) ->  | G152: =IF(ISNA(MATCH($B152,'1k - Výsledková listina'!$M:$M,0)),"",INDEX('1k - Výsledková listina'!$P:$Q,MATCH($B152,'1k - Výsledková listina'!$M:$M,0),1)) ->  | H152: =IF(ISNA(MATCH($B152,'1k - Výsledková listina'!$M:$M,0)),"",INDEX('1k - Výsledková listina'!$P:$Q,MATCH($B152,'1k - Výsledková listina'!$M:$M,0),2)) ->  | N152: 0
A153: =IF(Soupisky!H145<>"", Soupisky!H145, "") ->  | B153: =IF(Soupisky!I145<>"", Soupisky!I145, "") ->  | C153: =IF(Soupisky!J145<>"", Soupisky!J145, "") ->  | D153: =IF(AND(A153<>"", Soupisky!E145 <> ""), Soupisky!E145, "") ->  | E153: =IF(ISNA(MATCH($B153,'1k - Výsledková listina'!$D:$D,0)),"",INDEX('1k - Výsledková listina'!$G:$H,MATCH($B153,'1k - Výsledková listina'!$D:$D,0),1)) ->  | F153: =IF(ISNA(MATCH($B153,'1k - Výsledková listina'!$D:$D,0)),"",INDEX('1k - Výsledková listina'!$G:$H,MATCH($B153,'1k - Výsledková listina'!$D:$D,0),2)) ->  | G153: =IF(ISNA(MATCH($B153,'1k - Výsledková listina'!$M:$M,0)),"",INDEX('1k - Výsledková listina'!$P:$Q,MATCH($B153,'1k - Výsledková listina'!$M:$M,0),1)) ->  | H153: =IF(ISNA(MATCH($B153,'1k - Výsledková listina'!$M:$M,0)),"",INDEX('1k - Výsledková listina'!$P:$Q,MATCH($B153,'1k - Výsledková listina'!$M:$M,0),2)) ->  | N153: 0
A154: =IF(Soupisky!H146<>"", Soupisky!H146, "") ->  | B154: =IF(Soupisky!I146<>"", Soupisky!I146, "") ->  | C154: =IF(Soupisky!J146<>"", Soupisky!J146, "") ->  | D154: =IF(AND(A154<>"", Soupisky!E146 <> ""), Soupisky!E146, "") ->  | E154: =IF(ISNA(MATCH($B154,'1k - Výsledková listina'!$D:$D,0)),"",INDEX('1k - Výsledková listina'!$G:$H,MATCH($B154,'1k - Výsledková listina'!$D:$D,0),1)) ->  | F154: =IF(ISNA(MATCH($B154,'1k - Výsledková listina'!$D:$D,0)),"",INDEX('1k - Výsledková listina'!$G:$H,MATCH($B154,'1k - Výsledková listina'!$D:$D,0),2)) ->  | G154: =IF(ISNA(MATCH($B154,'1k - Výsledková listina'!$M:$M,0)),"",INDEX('1k - Výsledková listina'!$P:$Q,MATCH($B154,'1k - Výsledková listina'!$M:$M,0),1)) ->  | H154: =IF(ISNA(MATCH($B154,'1k - Výsledková listina'!$M:$M,0)),"",INDEX('1k - Výsledková listina'!$P:$Q,MATCH($B154,'1k - Výsledková listina'!$M:$M,0),2)) ->  | N154: 0
A155: =IF(Soupisky!H152<>"", Soupisky!H152, "") ->  | B155: =IF(Soupisky!I152<>"", Soupisky!I152, "") ->  | C155: =IF(Soupisky!J152<>"", Soupisky!J152, "") ->  | D155: =IF(AND(A155<>"", Soupisky!E152 <> ""), Soupisky!E152, "") ->  | E155: =IF(ISNA(MATCH($B155,'1k - Výsledková listina'!$D:$D,0)),"",INDEX('1k - Výsledková listina'!$G:$H,MATCH($B155,'1k - Výsledková listina'!$D:$D,0),1)) ->  | F155: =IF(ISNA(MATCH($B155,'1k - Výsledková listina'!$D:$D,0)),"",INDEX('1k - Výsledková listina'!$G:$H,MATCH($B155,'1k - Výsledková listina'!$D:$D,0),2)) ->  | G155: =IF(ISNA(MATCH($B155,'1k - Výsledková listina'!$M:$M,0)),"",INDEX('1k - Výsledková listina'!$P:$Q,MATCH($B155,'1k - Výsledková listina'!$M:$M,0),1)) ->  | H155: =IF(ISNA(MATCH($B155,'1k - Výsledková listina'!$M:$M,0)),"",INDEX('1k - Výsledková listina'!$P:$Q,MATCH($B155,'1k - Výsledková listina'!$M:$M,0),2)) ->  | N155: 0
A156: =IF(Soupisky!H153<>"", Soupisky!H153, "") ->  | B156: =IF(Soupisky!I153<>"", Soupisky!I153, "") ->  | C156: =IF(Soupisky!J153<>"", Soupisky!J153, "") ->  | D156: =IF(AND(A156<>"", Soupisky!E153 <> ""), Soupisky!E153, "") ->  | E156: =IF(ISNA(MATCH($B156,'1k - Výsledková listina'!$D:$D,0)),"",INDEX('1k - Výsledková listina'!$G:$H,MATCH($B156,'1k - Výsledková listina'!$D:$D,0),1)) ->  | F156: =IF(ISNA(MATCH($B156,'1k - Výsledková listina'!$D:$D,0)),"",INDEX('1k - Výsledková listina'!$G:$H,MATCH($B156,'1k - Výsledková listina'!$D:$D,0),2)) ->  | G156: =IF(ISNA(MATCH($B156,'1k - Výsledková listina'!$M:$M,0)),"",INDEX('1k - Výsledková listina'!$P:$Q,MATCH($B156,'1k - Výsledková listina'!$M:$M,0),1)) ->  | H156: =IF(ISNA(MATCH($B156,'1k - Výsledková listina'!$M:$M,0)),"",INDEX('1k - Výsledková listina'!$P:$Q,MATCH($B156,'1k - Výsledková listina'!$M:$M,0),2)) ->  | N156: 0
A157: =IF(Soupisky!H154<>"", Soupisky!H154, "") ->  | B157: =IF(Soupisky!I154<>"", Soupisky!I154, "") ->  | C157: =IF(Soupisky!J154<>"", Soupisky!J154, "") ->  | D157: =IF(AND(A157<>"", Soupisky!E154 <> ""), Soupisky!E154, "") ->  | E157: =IF(ISNA(MATCH($B157,'1k - Výsledková listina'!$D:$D,0)),"",INDEX('1k - Výsledková listina'!$G:$H,MATCH($B157,'1k - Výsledková listina'!$D:$D,0),1)) ->  | F157: =IF(ISNA(MATCH($B157,'1k - Výsledková listina'!$D:$D,0)),"",INDEX('1k - Výsledková listina'!$G:$H,MATCH($B157,'1k - Výsledková listina'!$D:$D,0),2)) ->  | G157: =IF(ISNA(MATCH($B157,'1k - Výsledková listina'!$M:$M,0)),"",INDEX('1k - Výsledková listina'!$P:$Q,MATCH($B157,'1k - Výsledková listina'!$M:$M,0),1)) ->  | H157: =IF(ISNA(MATCH($B157,'1k - Výsledková listina'!$M:$M,0)),"",INDEX('1k - Výsledková listina'!$P:$Q,MATCH($B157,'1k - Výsledková listina'!$M:$M,0),2)) ->  | N157: 0
A158: =IF(Soupisky!H155<>"", Soupisky!H155, "") ->  | B158: =IF(Soupisky!I155<>"", Soupisky!I155, "") ->  | C158: =IF(Soupisky!J155<>"", Soupisky!J155, "") ->  | D158: =IF(AND(A158<>"", Soupisky!E155 <> ""), Soupisky!E155, "") ->  | E158: =IF(ISNA(MATCH($B158,'1k - Výsledková listina'!$D:$D,0)),"",INDEX('1k - Výsledková listina'!$G:$H,MATCH($B158,'1k - Výsledková listina'!$D:$D,0),1)) ->  | F158: =IF(ISNA(MATCH($B158,'1k - Výsledková listina'!$D:$D,0)),"",INDEX('1k - Výsledková listina'!$G:$H,MATCH($B158,'1k - Výsledková listina'!$D:$D,0),2)) ->  | G158: =IF(ISNA(MATCH($B158,'1k - Výsledková listina'!$M:$M,0)),"",INDEX('1k - Výsledková listina'!$P:$Q,MATCH($B158,'1k - Výsledková listina'!$M:$M,0),1)) ->  | H158: =IF(ISNA(MATCH($B158,'1k - Výsledková listina'!$M:$M,0)),"",INDEX('1k - Výsledková listina'!$P:$Q,MATCH($B158,'1k - Výsledková listina'!$M:$M,0),2)) ->  | N158: 0
A159: =IF(Soupisky!H156<>"", Soupisky!H156, "") ->  | B159: =IF(Soupisky!I156<>"", Soupisky!I156, "") ->  | C159: =IF(Soupisky!J156<>"", Soupisky!J156, "") ->  | D159: =IF(AND(A159<>"", Soupisky!E156 <> ""), Soupisky!E156, "") ->  | E159: =IF(ISNA(MATCH($B159,'1k - Výsledková listina'!$D:$D,0)),"",INDEX('1k - Výsledková listina'!$G:$H,MATCH($B159,'1k - Výsledková listina'!$D:$D,0),1)) ->  | F159: =IF(ISNA(MATCH($B159,'1k - Výsledková listina'!$D:$D,0)),"",INDEX('1k - Výsledková listina'!$G:$H,MATCH($B159,'1k - Výsledková listina'!$D:$D,0),2)) ->  | G159: =IF(ISNA(MATCH($B159,'1k - Výsledková listina'!$M:$M,0)),"",INDEX('1k - Výsledková listina'!$P:$Q,MATCH($B159,'1k - Výsledková listina'!$M:$M,0),1)) ->  | H159: =IF(ISNA(MATCH($B159,'1k - Výsledková listina'!$M:$M,0)),"",INDEX('1k - Výsledková listina'!$P:$Q,MATCH($B159,'1k - Výsledková listina'!$M:$M,0),2)) ->  | N159: 0
A160: =IF(Soupisky!H157<>"", Soupisky!H157, "") ->  | B160: =IF(Soupisky!I157<>"", Soupisky!I157, "") ->  | C160: =IF(Soupisky!J157<>"", Soupisky!J157, "") ->  | D160: =IF(AND(A160<>"", Soupisky!E157 <> ""), Soupisky!E157, "") ->  | E160: =IF(ISNA(MATCH($B160,'1k - Výsledková listina'!$D:$D,0)),"",INDEX('1k - Výsledková listina'!$G:$H,MATCH($B160,'1k - Výsledková listina'!$D:$D,0),1)) ->  | F160: =IF(ISNA(MATCH($B160,'1k - Výsledková listina'!$D:$D,0)),"",INDEX('1k - Výsledková listina'!$G:$H,MATCH($B160,'1k - Výsledková listina'!$D:$D,0),2)) ->  | G160: =IF(ISNA(MATCH($B160,'1k - Výsledková listina'!$M:$M,0)),"",INDEX('1k - Výsledková listina'!$P:$Q,MATCH($B160,'1k - Výsledková listina'!$M:$M,0),1)) ->  | H160: =IF(ISNA(MATCH($B160,'1k - Výsledková listina'!$M:$M,0)),"",INDEX('1k - Výsledková listina'!$P:$Q,MATCH($B160,'1k - Výsledková listina'!$M:$M,0),2)) ->  | N160: 0
A161: =IF(Soupisky!H158<>"", Soupisky!H158, "") ->  | B161: =IF(Soupisky!I158<>"", Soupisky!I158, "") ->  | C161: =IF(Soupisky!J158<>"", Soupisky!J158, "") ->  | D161: =IF(AND(A161<>"", Soupisky!E158 <> ""), Soupisky!E158, "") ->  | E161: =IF(ISNA(MATCH($B161,'1k - Výsledková listina'!$D:$D,0)),"",INDEX('1k - Výsledková listina'!$G:$H,MATCH($B161,'1k - Výsledková listina'!$D:$D,0),1)) ->  | F161: =IF(ISNA(MATCH($B161,'1k - Výsledková listina'!$D:$D,0)),"",INDEX('1k - Výsledková listina'!$G:$H,MATCH($B161,'1k - Výsledková listina'!$D:$D,0),2)) ->  | G161: =IF(ISNA(MATCH($B161,'1k - Výsledková listina'!$M:$M,0)),"",INDEX('1k - Výsledková listina'!$P:$Q,MATCH($B161,'1k - Výsledková listina'!$M:$M,0),1)) ->  | H161: =IF(ISNA(MATCH($B161,'1k - Výsledková listina'!$M:$M,0)),"",INDEX('1k - Výsledková listina'!$P:$Q,MATCH($B161,'1k - Výsledková listina'!$M:$M,0),2)) ->  | N161: 0
A162: =IF(Soupisky!H159<>"", Soupisky!H159, "") ->  | B162: =IF(Soupisky!I159<>"", Soupisky!I159, "") ->  | C162: =IF(Soupisky!J159<>"", Soupisky!J159, "") ->  | D162: =IF(AND(A162<>"", Soupisky!E159 <> ""), Soupisky!E159, "") ->  | E162: =IF(ISNA(MATCH($B162,'1k - Výsledková listina'!$D:$D,0)),"",INDEX('1k - Výsledková listina'!$G:$H,MATCH($B162,'1k - Výsledková listina'!$D:$D,0),1)) ->  | F162: =IF(ISNA(MATCH($B162,'1k - Výsledková listina'!$D:$D,0)),"",INDEX('1k - Výsledková listina'!$G:$H,MATCH($B162,'1k - Výsledková listina'!$D:$D,0),2)) ->  | G162: =IF(ISNA(MATCH($B162,'1k - Výsledková listina'!$M:$M,0)),"",INDEX('1k - Výsledková listina'!$P:$Q,MATCH($B162,'1k - Výsledková listina'!$M:$M,0),1)) ->  | H162: =IF(ISNA(MATCH($B162,'1k - Výsledková listina'!$M:$M,0)),"",INDEX('1k - Výsledková listina'!$P:$Q,MATCH($B162,'1k - Výsledková listina'!$M:$M,0),2)) ->  | N162: 0

Sheet 1k - 1. závod (hidden)
B1: =CONCATENATE('1k - Základní list'!$E$3) -> 2. liga, sk. C | I1: =CONCATENATE('1k - Základní list'!$E$3) -> 2. liga, sk. C | P1: =CONCATENATE('1k - Základní list'!$E$3) -> 2. liga, sk. C | W1: =CONCATENATE('1k - Základní list'!$E$3) -> 2. liga, sk. C
B2: =CONCATENATE('1k - Základní list'!$D$4) -> 28.4.18 | I2: =CONCATENATE('1k - Základní list'!$D$4) -> 28.4.18 | P2: =CONCATENATE('1k - Základní list'!$D$4) -> 28.4.18 | W2: =CONCATENATE('1k - Základní list'!$D$4) -> 28.4.18
A3: čís. sek | B3: SEKTOR | I3: SEKTOR | P3: SEKTOR | W3: SEKTOR
B4: =IF(ISBLANK('1k - Základní list'!$C11),"",'1k - Základní list'!$A11) -> A | I4: =IF(ISBLANK('1k - Základní list'!$C12),"",'1k - Základní list'!$A12) -> B | P4: =IF(ISBLANK('1k - Základní list'!$C13),"",'1k - Základní list'!$A13) -> C | W4: =IF(ISBLANK('1k - Základní list'!$C14),"",'1k - Základní list'!$A14) -> D
B5: Závodník | C5: Družstvo | D5: hmotn. | E5: p | F5: P | G5: um. | H5: Podpis | I5: Závodník | J5: Družstvo | K5: hmotn. | L5: p | M5: P | N5: um. | O5: Podpis | P5: Závodník | Q5: Družstvo | R5: hmotn. | S5: p | T5: P | U5: um. | V5: Podpis | W5: Závodník | X5: Družstvo | Y5: hmotn. | Z5: p | AA5: P | AB5: um. | AC5: Podpis
A6: 1 | B6: =IF(ISNA(MATCH(CONCATENATE(B$4,$A6),'1k - Výsledková listina'!$U:$U,0)),"",INDEX('1k - Výsledková listina'!$D:$D,MATCH(CONCATENATE(B$4,$A6),'1k - Výsledková listina'!$U:$U,0),1)) -> Borovička Pavel | C6: =IF(ISNA(MATCH(CONCATENATE(B$4,$A6),'1k - Výsledková listina'!$U:$U,0)),"",INDEX('1k - Výsledková listina'!$W:$W,MATCH(CONCATENATE(B$4,$A6),'1k - Výsledková listina'!$U:$U,0),1)) -> MRS - Poháry sport hobby M. Budějovice - Sensas | D6: 2255 | E6: =IF(D6="","",RANK(D6,D:D,0)) -> 7 | G6: =IF(D6="","",RANK(D6,D$6:D$17,0)+(COUNT(D$6:D$17)+1-RANK(D6,D$6:D$17,0)-RANK(D6,D$6:D$17,1))/2+F6) -> 7 | I6: =IF(ISNA(MATCH(CONCATENATE(I$4,$A6),'1k - Výsledková listina'!$U:$U,0)),"",INDEX('1k - Výsledková listina'!$D:$D,MATCH(CONCATENATE(I$4,$A6),'1k - Výsledková listina'!$U:$U,0),1)) -> Fojt Dalibor | J6: =IF(ISNA(MATCH(CONCATENATE(I$4,$A6),'1k - Výsledková listina'!$U:$U,0)),"",INDEX('1k - Výsledková listina'!$W:$W,MATCH(CONCATENATE(I$4,$A6),'1k - Výsledková listina'!$U:$U,0),1)) -> MO ČRS Ostrava PRESTON | K6: 2585 | L6: =IF(K6="","",RANK(K6,K:K,0)) -> 11 | N6: =IF(K6="","",RANK(K6,K$6:K$17,0)+(COUNT(K$6:K$17)+1-RANK(K6,K$6:K$17,0)-RANK(K6,K$6:K$17,1))/2+M6) -> 11 | P6: =IF(ISNA(MATCH(CONCATENATE(P$4,$A6),'1k - Výsledková listina'!$U:$U,0)),"",INDEX('1k - Výsledková listina'!$D:$D,MATCH(CONCATENATE(P$4,$A6),'1k - Výsledková listina'!$U:$U,0),1)) -> Hruzík David | Q6: =IF(ISNA(MATCH(CONCATENATE(P$4,$A6),'1k - Výsledková listina'!$U:$U,0)),"",INDEX('1k - Výsledková listina'!$W:$W,MATCH(CONCATENATE(P$4,$A6),'1k - Výsledková listina'!$U:$U,0),1)) -> MO ČRS Ostrava PRESTON | R6: 9310 | S6: =IF(R6="","",RANK(R6,R:R,0)) -> 1 | U6: =IF(R6="","",RANK(R6,R$6:R$17,0)+(COUNT(R$6:R$17)+1-RANK(R6,R$6:R$17,0)-RANK(R6,R$6:R$17,1))/2+T6) -> 1 | W6: =IF(ISNA(MATCH(CONCATENATE(W$4,$A6),'1k - Výsledková listina'!$U:$U,0)),"",INDEX('1k - Výsledková listina'!$D:$D,MATCH(CONCATENATE(W$4,$A6),'1k - Výsledková listina'!$U:$U,0),1)) -> Průša Vladimír | X6: =IF(ISNA(MATCH(CONCATENATE(W$4,$A6),'1k - Výsledková listina'!$U:$U,0)),"",INDEX('1k - Výsledková listina'!$W:$W,MATCH(CONCATENATE(W$4,$A6),'1k - Výsledková listina'!$U:$U,0),1)) -> MRS - Poháry sport hobby M. Budějovice - Sensas | Y6: 3620 | Z6: =IF(Y6="","",RANK(Y6,Y:Y,0)) -> 5 | AB6: =IF(Y6="","",RANK(Y6,Y$6:Y$17,0)+(COUNT(Y$6:Y$17)+1-RANK(Y6,Y$6:Y$17,0)-RANK(Y6,Y$6:Y$17,1))/2+AA6) -> 5
A7: 2 | B7: =IF(ISNA(MATCH(CONCATENATE(B$4,$A7),'1k - Výsledková listina'!$U:$U,0)),"",INDEX('1k - Výsledková listina'!$D:$D,MATCH(CONCATENATE(B$4,$A7),'1k - Výsledková listina'!$U:$U,0),1)) -> Mais Jan | C7: =IF(ISNA(MATCH(CONCATENATE(B$4,$A7),'1k - Výsledková listina'!$U:$U,0)),"",INDEX('1k - Výsledková listina'!$W:$W,MATCH(CONCATENATE(B$4,$A7),'1k - Výsledková listina'!$U:$U,0),1)) -> MRS Hrušovany nad Jevišovkou MAVER | D7: 1750 | E7: 10 | G7: 10 | I7: =IF(ISNA(MATCH(CONCATENATE(I$4,$A7),'1k - Výsledková listina'!$U:$U,0)),"",INDEX('1k - Výsledková listina'!$D:$D,MATCH(CONCATENATE(I$4,$A7),'1k - Výsledková listina'!$U:$U,0),1)) -> Ing Koukal Martin | J7: =IF(ISNA(MATCH(CONCATENATE(I$4,$A7),'1k - Výsledková listina'!$U:$U,0)),"",INDEX('1k - Výsledková listina'!$W:$W,MATCH(CONCATENATE(I$4,$A7),'1k - Výsledková listina'!$U:$U,0),1)) -> ČRS MILO Loštice | K7: 6090 | L7: 2 | N7: 2 | P7: =IF(ISNA(MATCH(CONCATENATE(P$4,$A7),'1k - Výsledková listina'!$U:$U,0)),"",INDEX('1k - Výsledková listina'!$D:$D,MATCH(CONCATENATE(P$4,$A7),'1k - Výsledková listina'!$U:$U,0),1)) -> Pergreffi Luca | Q7: =IF(ISNA(MATCH(CONCATENATE(P$4,$A7),'1k - Výsledková listina'!$U:$U,0)),"",INDEX('1k - Výsledková listina'!$W:$W,MATCH(CONCATENATE(P$4,$A7),'1k - Výsledková listina'!$U:$U,0),1)) -> ČRS MILO Loštice | R7: 9080 | S7: 3 | U7: 3 | W7: =IF(ISNA(MATCH(CONCATENATE(W$4,$A7),'1k - Výsledková listina'!$U:$U,0)),"",INDEX('1k - Výsledková listina'!$D:$D,MATCH(CONCATENATE(W$4,$A7),'1k - Výsledková listina'!$U:$U,0),1)) -> Kobliha Martin | X7: =IF(ISNA(MATCH(CONCATENATE(W$4,$A7),'1k - Výsledková listina'!$U:$U,0)),"",INDEX('1k - Výsledková listina'!$W:$W,MATCH(CONCATENATE(W$4,$A7),'1k - Výsledková listina'!$U:$U,0),1)) -> MRS Hrušovany nad Jevišovkou MAVER | Y7: 1270 | Z7: 11 | AB7: 11
A8: 3 | B8: =IF(ISNA(MATCH(CONCATENATE(B$4,$A8),'1k - Výsledková listina'!$U:$U,0)),"",INDEX('1k - Výsledková listina'!$D:$D,MATCH(CONCATENATE(B$4,$A8),'1k - Výsledková listina'!$U:$U,0),1)) -> Lange Janusz | C8: =IF(ISNA(MATCH(CONCATENATE(B$4,$A8),'1k - Výsledková listina'!$U:$U,0)),"",INDEX('1k - Výsledková listina'!$W:$W,MATCH(CONCATENATE(B$4,$A8),'1k - Výsledková listina'!$U:$U,0),1)) -> ČRS Matchpro | D8: 5135 | E8: 2 | G8: 2 | I8: =IF(ISNA(MATCH(CONCATENATE(I$4,$A8),'1k - Výsledková listina'!$U:$U,0)),"",INDEX('1k - Výsledková listina'!$D:$D,MATCH(CONCATENATE(I$4,$A8),'1k - Výsledková listina'!$U:$U,0),1)) -> HLISNIKOVSKY MARTIN | J8: =IF(ISNA(MATCH(CONCATENATE(I$4,$A8),'1k - Výsledková listina'!$U:$U,0)),"",INDEX('1k - Výsledková listina'!$W:$W,MATCH(CONCATENATE(I$4,$A8),'1k - Výsledková listina'!$U:$U,0),1)) -> MO ČRS Šumperk | K8: 1570 | L8: 12 | N8: 12 | P8: =IF(ISNA(MATCH(CONCATENATE(P$4,$A8),'1k - Výsledková listina'!$U:$U,0)),"",INDEX('1k - Výsledková listina'!$D:$D,MATCH(CONCATENATE(P$4,$A8),'1k - Výsledková listina'!$U:$U,0),1)) -> Ing. Kolařík David | Q8: =IF(ISNA(MATCH(CONCATENATE(P$4,$A8),'1k - Výsledková listina'!$U:$U,0)),"",INDEX('1k - Výsledková listina'!$W:$W,MATCH(CONCATENATE(P$4,$A8),'1k - Výsledková listina'!$U:$U,0),1)) -> MO ČRS Šumperk | R8: 6690 | S8: 5 | U8: 5 | W8: =IF(ISNA(MATCH(CONCATENATE(W$4,$A8),'1k - Výsledková listina'!$U:$U,0)),"",INDEX('1k - Výsledková listina'!$D:$D,MATCH(CONCATENATE(W$4,$A8),'1k - Výsledková listina'!$U:$U,0),1)) -> Stanczyk Marcin | X8: =IF(ISNA(MATCH(CONCATENATE(W$4,$A8),'1k - Výsledková listina'!$U:$U,0)),"",INDEX('1k - Výsledková listina'!$W:$W,MATCH(CONCATENATE(W$4,$A8),'1k - Výsledková listina'!$U:$U,0),1)) -> ČRS Matchpro | Y8: 4535 | Z8: 3 | AB8: 3
A9: 4 | B9: =IF(ISNA(MATCH(CONCATENATE(B$4,$A9),'1k - Výsledková listina'!$U:$U,0)),"",INDEX('1k - Výsledková listina'!$D:$D,MATCH(CONCATENATE(B$4,$A9),'1k - Výsledková listina'!$U:$U,0),1)) -> Ngoxuan Truong | C9: =IF(ISNA(MATCH(CONCATENATE(B$4,$A9),'1k - Výsledková listina'!$U:$U,0)),"",INDEX('1k - Výsledková listina'!$W:$W,MATCH(CONCATENATE(B$4,$A9),'1k - Výsledková listina'!$U:$U,0),1)) -> MO ČRS Mohelnice MIVARDI | D9: 1690 | E9: 11 | G9: 11 | I9: =IF(ISNA(MATCH(CONCATENATE(I$4,$A9),'1k - Výsledková listina'!$U:$U,0)),"",INDEX('1k - Výsledková listina'!$D:$D,MATCH(CONCATENATE(I$4,$A9),'1k - Výsledková listina'!$U:$U,0),1)) -> Bc. Pavka Martin | J9: =IF(ISNA(MATCH(CONCATENATE(I$4,$A9),'1k - Výsledková listina'!$U:$U,0)),"",INDEX('1k - Výsledková listina'!$W:$W,MATCH(CONCATENATE(I$4,$A9),'1k - Výsledková listina'!$U:$U,0),1)) -> MRS RSK Jižní Morava Tubertini | K9: 3525 | L9: 8 | N9: 8 | P9: =IF(ISNA(MATCH(CONCATENATE(P$4,$A9),'1k - Výsledková listina'!$U:$U,0)),"",INDEX('1k - Výsledková listina'!$D:$D,MATCH(CONCATENATE(P$4,$A9),'1k - Výsledková listina'!$U:$U,0),1)) -> Kazatel Petr | Q9: =IF(ISNA(MATCH(CONCATENATE(P$4,$A9),'1k - Výsledková listina'!$U:$U,0)),"",INDEX('1k - Výsledková listina'!$W:$W,MATCH(CONCATENATE(P$4,$A9),'1k - Výsledková listina'!$U:$U,0),1)) -> MRS RSK Jižní Morava Tubertini | R9: 9295 | S9: 2 | U9: 2 | W9: =IF(ISNA(MATCH(CONCATENATE(W$4,$A9),'1k - Výsledková listina'!$U:$U,0)),"",INDEX('1k - Výsledková listina'!$D:$D,MATCH(CONCATENATE(W$4,$A9),'1k - Výsledková listina'!$U:$U,0),1)) -> Kendiura Tomáš | X9: =IF(ISNA(MATCH(CONCATENATE(W$4,$A9),'1k - Výsledková listina'!$U:$U,0)),"",INDEX('1k - Výsledková listina'!$W:$W,MATCH(CONCATENATE(W$4,$A9),'1k - Výsledková listina'!$U:$U,0),1)) -> MO ČRS Mohelnice MIVARDI | Y9: 4105 | Z9: 4 | AB9: 4
A10: 5 | B10: =IF(ISNA(MATCH(CONCATENATE(B$4,$A10),'1k - Výsledková listina'!$U:$U,0)),"",INDEX('1k - Výsledková listina'!$D:$D,MATCH(CONCATENATE(B$4,$A10),'1k - Výsledková listina'!$U:$U,0),1)) -> Ing Sobotka Petr | C10: =IF(ISNA(MATCH(CONCATENATE(B$4,$A10),'1k - Výsledková listina'!$U:$U,0)),"",INDEX('1k - Výsledková listina'!$W:$W,MATCH(CONCATENATE(B$4,$A10),'1k - Výsledková listina'!$U:$U,0),1)) -> MO MRS Letovice PRESTON | D10: 1860 | E10: 9 | G10: 9 | I10: =IF(ISNA(MATCH(CONCATENATE(I$4,$A10),'1k - Výsledková listina'!$U:$U,0)),"",INDEX('1k - Výsledková listina'!$D:$D,MATCH(CONCATENATE(I$4,$A10),'1k - Výsledková listina'!$U:$U,0),1)) -> ing. Havlíček Petr | J10: =IF(ISNA(MATCH(CONCATENATE(I$4,$A10),'1k - Výsledková listina'!$U:$U,0)),"",INDEX('1k - Výsledková listina'!$W:$W,MATCH(CONCATENATE(I$4,$A10),'1k - Výsledková listina'!$U:$U,0),1)) -> MO ČRS Ostrava | K10: 4395 | L10: 6 | N10: 6 | P10: =IF(ISNA(MATCH(CONCATENATE(P$4,$A10),'1k - Výsledková listina'!$U:$U,0)),"",INDEX('1k - Výsledková listina'!$D:$D,MATCH(CONCATENATE(P$4,$A10),'1k - Výsledková listina'!$U:$U,0),1)) -> Havlíček Jaroslav | Q10: =IF(ISNA(MATCH(CONCATENATE(P$4,$A10),'1k - Výsledková listina'!$U:$U,0)),"",INDEX('1k - Výsledková listina'!$W:$W,MATCH(CONCATENATE(P$4,$A10),'1k - Výsledková listina'!$U:$U,0),1)) -> MO ČRS Ostrava | R10: 3500 | S10: 9 | U10: 9 | W10: =IF(ISNA(MATCH(CONCATENATE(W$4,$A10),'1k - Výsledková listina'!$U:$U,0)),"",INDEX('1k - Výsledková listina'!$D:$D,MATCH(CONCATENATE(W$4,$A10),'1k - Výsledková listina'!$U:$U,0),1)) -> Bradna Ladislav ml. | X10: =IF(ISNA(MATCH(CONCATENATE(W$4,$A10),'1k - Výsledková listina'!$U:$U,0)),"",INDEX('1k - Výsledková listina'!$W:$W,MATCH(CONCATENATE(W$4,$A10),'1k - Výsledková listina'!$U:$U,0),1)) -> MO MRS Letovice PRESTON | Y10: 4975 | Z10: 2 | AB10: 2
A11: 6 | B11: =IF(ISNA(MATCH(CONCATENATE(B$4,$A11),'1k - Výsledková listina'!$U:$U,0)),"",INDEX('1k - Výsledková listina'!$D:$D,MATCH(CONCATENATE(B$4,$A11),'1k - Výsledková listina'!$U:$U,0),1)) -> Tököly Martin | C11: =IF(ISNA(MATCH(CONCATENATE(B$4,$A11),'1k - Výsledková listina'!$U:$U,0)),"",INDEX('1k - Výsledková listina'!$W:$W,MATCH(CONCATENATE(B$4,$A11),'1k - Výsledková listina'!$U:$U,0),1)) -> MO ČRS Karviná MILO | D11: 1000 | E11: 12 | G11: 12 | I11: =IF(ISNA(MATCH(CONCATENATE(I$4,$A11),'1k - Výsledková listina'!$U:$U,0)),"",INDEX('1k - Výsledková listina'!$D:$D,MATCH(CONCATENATE(I$4,$A11),'1k - Výsledková listina'!$U:$U,0),1)) -> Grzych Jan | J11: =IF(ISNA(MATCH(CONCATENATE(I$4,$A11),'1k - Výsledková listina'!$U:$U,0)),"",INDEX('1k - Výsledková listina'!$W:$W,MATCH(CONCATENATE(I$4,$A11),'1k - Výsledková listina'!$U:$U,0),1)) -> MO ČRS Vítkov -MAVER TEAM | K11: 6000 | L11: 3 | N11: 3 | P11: =IF(ISNA(MATCH(CONCATENATE(P$4,$A11),'1k - Výsledková listina'!$U:$U,0)),"",INDEX('1k - Výsledková listina'!$D:$D,MATCH(CONCATENATE(P$4,$A11),'1k - Výsledková listina'!$U:$U,0),1)) -> Dořičák Lukáš | Q11: =IF(ISNA(MATCH(CONCATENATE(P$4,$A11),'1k - Výsledková listina'!$U:$U,0)),"",INDEX('1k - Výsledková listina'!$W:$W,MATCH(CONCATENATE(P$4,$A11),'1k - Výsledková listina'!$U:$U,0),1)) -> MO ČRS Vítkov -MAVER TEAM | R11: 5620 | S11: 6 | U11: 6 | W11: =IF(ISNA(MATCH(CONCATENATE(W$4,$A11),'1k - Výsledková listina'!$U:$U,0)),"",INDEX('1k - Výsledková listina'!$D:$D,MATCH(CONCATENATE(W$4,$A11),'1k - Výsledková listina'!$U:$U,0),1)) -> Rys Jaroslav | X11: =IF(ISNA(MATCH(CONCATENATE(W$4,$A11),'1k - Výsledková listina'!$U:$U,0)),"",INDEX('1k - Výsledková listina'!$W:$W,MATCH(CONCATENATE(W$4,$A11),'1k - Výsledková listina'!$U:$U,0),1)) -> MO ČRS Karviná MILO | Y11: 1130 | Z11: 12 | AB11: 12
A12: 7 | B12: =IF(ISNA(MATCH(CONCATENATE(B$4,$A12),'1k - Výsledková listina'!$U:$U,0)),"",INDEX('1k - Výsledková listina'!$D:$D,MATCH(CONCATENATE(B$4,$A12),'1k - Výsledková listina'!$U:$U,0),1)) -> Kyselovský Tomáš | C12: =IF(ISNA(MATCH(CONCATENATE(B$4,$A12),'1k - Výsledková listina'!$U:$U,0)),"",INDEX('1k - Výsledková listina'!$W:$W,MATCH(CONCATENATE(B$4,$A12),'1k - Výsledková listina'!$U:$U,0),1)) -> MO ČRS Ostrava PRESTON | D12: 3440 | E12: 6 | G12: 6 | I12: =IF(ISNA(MATCH(CONCATENATE(I$4,$A12),'1k - Výsledková listina'!$U:$U,0)),"",INDEX('1k - Výsledková listina'!$D:$D,MATCH(CONCATENATE(I$4,$A12),'1k - Výsledková listina'!$U:$U,0),1)) -> Papoušek Ivan | J12: =IF(ISNA(MATCH(CONCATENATE(I$4,$A12),'1k - Výsledková listina'!$U:$U,0)),"",INDEX('1k - Výsledková listina'!$W:$W,MATCH(CONCATENATE(I$4,$A12),'1k - Výsledková listina'!$U:$U,0),1)) -> MRS - Poháry sport hobby M. Budějovice - Sensas | K12: 3390 | L12: 9 | N12: 9 | P12: =IF(ISNA(MATCH(CONCATENATE(P$4,$A12),'1k - Výsledková listina'!$U:$U,0)),"",INDEX('1k - Výsledková listina'!$D:$D,MATCH(CONCATENATE(P$4,$A12),'1k - Výsledková listina'!$U:$U,0),1)) -> Viskot Zdeněk | Q12: =IF(ISNA(MATCH(CONCATENATE(P$4,$A12),'1k - Výsledková listina'!$U:$U,0)),"",INDEX('1k - Výsledková listina'!$W:$W,MATCH(CONCATENATE(P$4,$A12),'1k - Výsledková listina'!$U:$U,0),1)) -> MRS - Poháry sport hobby M. Budějovice - Sensas | R12: 4540 | S12: 8 | U12: 8 | W12: =IF(ISNA(MATCH(CONCATENATE(W$4,$A12),'1k - Výsledková listina'!$U:$U,0)),"",INDEX('1k - Výsledková listina'!$D:$D,MATCH(CONCATENATE(W$4,$A12),'1k - Výsledková listina'!$U:$U,0),1)) -> Vytřas Radim | X12: =IF(ISNA(MATCH(CONCATENATE(W$4,$A12),'1k - Výsledková listina'!$U:$U,0)),"",INDEX('1k - Výsledková listina'!$W:$W,MATCH(CONCATENATE(W$4,$A12),'1k - Výsledková listina'!$U:$U,0),1)) -> MO ČRS Ostrava PRESTON | Y12: 5845 | Z12: 1 | AB12: 1
A13: 8 | B13: =IF(ISNA(MATCH(CONCATENATE(B$4,$A13),'1k - Výsledková listina'!$U:$U,0)),"",INDEX('1k - Výsledková listina'!$D:$D,MATCH(CONCATENATE(B$4,$A13),'1k - Výsledková listina'!$U:$U,0),1)) -> Ing. Heidenreich Jan | C13: =IF(ISNA(MATCH(CONCATENATE(B$4,$A13),'1k - Výsledková listina'!$U:$U,0)),"",INDEX('1k - Výsledková listina'!$W:$W,MATCH(CONCATENATE(B$4,$A13),'1k - Výsledková listina'!$U:$U,0),1)) -> ČRS MILO Loštice | D13: 4895 | E13: 3 | G13: 3 | I13: =IF(ISNA(MATCH(CONCATENATE(I$4,$A13),'1k - Výsledková listina'!$U:$U,0)),"",INDEX('1k - Výsledková listina'!$D:$D,MATCH(CONCATENATE(I$4,$A13),'1k - Výsledková listina'!$U:$U,0),1)) -> Konečný Tomáš | J13: =IF(ISNA(MATCH(CONCATENATE(I$4,$A13),'1k - Výsledková listina'!$U:$U,0)),"",INDEX('1k - Výsledková listina'!$W:$W,MATCH(CONCATENATE(I$4,$A13),'1k - Výsledková listina'!$U:$U,0),1)) -> MRS Hrušovany nad Jevišovkou MAVER | K13: 4280 | L13: 7 | N13: 7 | P13: =IF(ISNA(MATCH(CONCATENATE(P$4,$A13),'1k - Výsledková listina'!$U:$U,0)),"",INDEX('1k - Výsledková listina'!$D:$D,MATCH(CONCATENATE(P$4,$A13),'1k - Výsledková listina'!$U:$U,0),1)) -> Pykal Aleš | Q13: =IF(ISNA(MATCH(CONCATENATE(P$4,$A13),'1k - Výsledková listina'!$U:$U,0)),"",INDEX('1k - Výsledková listina'!$W:$W,MATCH(CONCATENATE(P$4,$A13),'1k - Výsledková listina'!$U:$U,0),1)) -> MRS Hrušovany nad Jevišovkou MAVER | R13: 7475 | S13: 4 | U13: 4 | W13: =IF(ISNA(MATCH(CONCATENATE(W$4,$A13),'1k - Výsledková listina'!$U:$U,0)),"",INDEX('1k - Výsledková listina'!$D:$D,MATCH(CONCATENATE(W$4,$A13),'1k - Výsledková listina'!$U:$U,0),1)) -> Kaniščev Roman | X13: =IF(ISNA(MATCH(CONCATENATE(W$4,$A13),'1k - Výsledková listina'!$U:$U,0)),"",INDEX('1k - Výsledková listina'!$W:$W,MATCH(CONCATENATE(W$4,$A13),'1k - Výsledková listina'!$U:$U,0),1)) -> ČRS MILO Loštice | Y13: 2940 | Z13: 7 | AB13: 7
A14: 9 | B14: =IF(ISNA(MATCH(CONCATENATE(B$4,$A14),'1k - Výsledková listina'!$U:$U,0)),"",INDEX('1k - Výsledková listina'!$D:$D,MATCH(CONCATENATE(B$4,$A14),'1k - Výsledková listina'!$U:$U,0),1)) -> Kapica Radim | C14: =IF(ISNA(MATCH(CONCATENATE(B$4,$A14),'1k - Výsledková listina'!$U:$U,0)),"",INDEX('1k - Výsledková listina'!$W:$W,MATCH(CONCATENATE(B$4,$A14),'1k - Výsledková listina'!$U:$U,0),1)) -> MO ČRS Šumperk | D14: 1910 | E14: 8 | G14: 8 | I14: =IF(ISNA(MATCH(CONCATENATE(I$4,$A14),'1k - Výsledková listina'!$U:$U,0)),"",INDEX('1k - Výsledková listina'!$D:$D,MATCH(CONCATENATE(I$4,$A14),'1k - Výsledková listina'!$U:$U,0),1)) -> Drewny Patryk | J14: =IF(ISNA(MATCH(CONCATENATE(I$4,$A14),'1k - Výsledková listina'!$U:$U,0)),"",INDEX('1k - Výsledková listina'!$W:$W,MATCH(CONCATENATE(I$4,$A14),'1k - Výsledková listina'!$U:$U,0),1)) -> ČRS Matchpro | K14: 8670 | L14: 1 | N14: 1 | P14: =IF(ISNA(MATCH(CONCATENATE(P$4,$A14),'1k - Výsledková listina'!$U:$U,0)),"",INDEX('1k - Výsledková listina'!$D:$D,MATCH(CONCATENATE(P$4,$A14),'1k - Výsledková listina'!$U:$U,0),1)) -> Kaluzny Krzystof | Q14: =IF(ISNA(MATCH(CONCATENATE(P$4,$A14),'1k - Výsledková listina'!$U:$U,0)),"",INDEX('1k - Výsledková listina'!$W:$W,MATCH(CONCATENATE(P$4,$A14),'1k - Výsledková listina'!$U:$U,0),1)) -> ČRS Matchpro | R14: 5045 | S14: 7 | U14: 7 | W14: =IF(ISNA(MATCH(CONCATENATE(W$4,$A14),'1k - Výsledková listina'!$U:$U,0)),"",INDEX('1k - Výsledková listina'!$D:$D,MATCH(CONCATENATE(W$4,$A14),'1k - Výsledková listina'!$U:$U,0),1)) -> Ing. Kouřil Petr | X14: =IF(ISNA(MATCH(CONCATENATE(W$4,$A14),'1k - Výsledková listina'!$U:$U,0)),"",INDEX('1k - Výsledková listina'!$W:$W,MATCH(CONCATENATE(W$4,$A14),'1k - Výsledková listina'!$U:$U,0),1)) -> MO ČRS Šumperk | Y14: 1500 | Z14: 10 | AB14: 10
A15: 10 | B15: =IF(ISNA(MATCH(CONCATENATE(B$4,$A15),'1k - Výsledková listina'!$U:$U,0)),"",INDEX('1k - Výsledková listina'!$D:$D,MATCH(CONCATENATE(B$4,$A15),'1k - Výsledková listina'!$U:$U,0),1)) -> Pospíšil Radek | C15: =IF(ISNA(MATCH(CONCATENATE(B$4,$A15),'1k - Výsledková listina'!$U:$U,0)),"",INDEX('1k - Výsledková listina'!$W:$W,MATCH(CONCATENATE(B$4,$A15),'1k - Výsledková listina'!$U:$U,0),1)) -> MRS RSK Jižní Morava Tubertini | D15: 3640 | E15: 4 | G15: 4 | I15: =IF(ISNA(MATCH(CONCATENATE(I$4,$A15),'1k - Výsledková listina'!$U:$U,0)),"",INDEX('1k - Výsledková listina'!$D:$D,MATCH(CONCATENATE(I$4,$A15),'1k - Výsledková listina'!$U:$U,0),1)) -> Michalovič Tomáš | J15: =IF(ISNA(MATCH(CONCATENATE(I$4,$A15),'1k - Výsledková listina'!$U:$U,0)),"",INDEX('1k - Výsledková listina'!$W:$W,MATCH(CONCATENATE(I$4,$A15),'1k - Výsledková listina'!$U:$U,0),1)) -> MO ČRS Mohelnice MIVARDI | K15: 5700 | L15: 4 | N15: 4 | P15: =IF(ISNA(MATCH(CONCATENATE(P$4,$A15),'1k - Výsledková listina'!$U:$U,0)),"",INDEX('1k - Výsledková listina'!$D:$D,MATCH(CONCATENATE(P$4,$A15),'1k - Výsledková listina'!$U:$U,0),1)) -> Funěk Lukáš | Q15: =IF(ISNA(MATCH(CONCATENATE(P$4,$A15),'1k - Výsledková listina'!$U:$U,0)),"",INDEX('1k - Výsledková listina'!$W:$W,MATCH(CONCATENATE(P$4,$A15),'1k - Výsledková listina'!$U:$U,0),1)) -> MO ČRS Mohelnice MIVARDI | R15: 3390 | S15: 10 | U15: 10 | W15: =IF(ISNA(MATCH(CONCATENATE(W$4,$A15),'1k - Výsledková listina'!$U:$U,0)),"",INDEX('1k - Výsledková listina'!$D:$D,MATCH(CONCATENATE(W$4,$A15),'1k - Výsledková listina'!$U:$U,0),1)) -> Ing. Hrazdil Jiří | X15: =IF(ISNA(MATCH(CONCATENATE(W$4,$A15),'1k - Výsledková listina'!$U:$U,0)),"",INDEX('1k - Výsledková listina'!$W:$W,MATCH(CONCATENATE(W$4,$A15),'1k - Výsledková listina'!$U:$U,0),1)) -> MRS RSK Jižní Morava Tubertini | Y15: 3195 | Z15: 6 | AB15: 6
A16: 11 | B16: =IF(ISNA(MATCH(CONCATENATE(B$4,$A16),'1k - Výsledková listina'!$U:$U,0)),"",INDEX('1k - Výsledková listina'!$D:$D,MATCH(CONCATENATE(B$4,$A16),'1k - Výsledková listina'!$U:$U,0),1)) -> Kotlář Jindřich | C16: =IF(ISNA(MATCH(CONCATENATE(B$4,$A16),'1k - Výsledková listina'!$U:$U,0)),"",INDEX('1k - Výsledková listina'!$W:$W,MATCH(CONCATENATE(B$4,$A16),'1k - Výsledková listina'!$U:$U,0),1)) -> MO ČRS Ostrava | D16: 3465 | E16: 5 | G16: 5 | I16: =IF(ISNA(MATCH(CONCATENATE(I$4,$A16),'1k - Výsledková listina'!$U:$U,0)),"",INDEX('1k - Výsledková listina'!$D:$D,MATCH(CONCATENATE(I$4,$A16),'1k - Výsledková listina'!$U:$U,0),1)) -> Olšán Jakub | J16: =IF(ISNA(MATCH(CONCATENATE(I$4,$A16),'1k - Výsledková listina'!$U:$U,0)),"",INDEX('1k - Výsledková listina'!$W:$W,MATCH(CONCATENATE(I$4,$A16),'1k - Výsledková listina'!$U:$U,0),1)) -> MO MRS Letovice PRESTON | K16: 4600 | L16: 5 | N16: 5 | P16: =IF(ISNA(MATCH(CONCATENATE(P$4,$A16),'1k - Výsledková listina'!$U:$U,0)),"",INDEX('1k - Výsledková listina'!$D:$D,MATCH(CONCATENATE(P$4,$A16),'1k - Výsledková listina'!$U:$U,0),1)) -> Voda Radek | Q16: =IF(ISNA(MATCH(CONCATENATE(P$4,$A16),'1k - Výsledková listina'!$U:$U,0)),"",INDEX('1k - Výsledková listina'!$W:$W,MATCH(CONCATENATE(P$4,$A16),'1k - Výsledková listina'!$U:$U,0),1)) -> MO MRS Letovice PRESTON | R16: 1885 | S16: 11 | U16: 11 | W16: =IF(ISNA(MATCH(CONCATENATE(W$4,$A16),'1k - Výsledková listina'!$U:$U,0)),"",INDEX('1k - Výsledková listina'!$D:$D,MATCH(CONCATENATE(W$4,$A16),'1k - Výsledková listina'!$U:$U,0),1)) -> RNDr. Pokorný Alois | X16: =IF(ISNA(MATCH(CONCATENATE(W$4,$A16),'1k - Výsledková listina'!$U:$U,0)),"",INDEX('1k - Výsledková listina'!$W:$W,MATCH(CONCATENATE(W$4,$A16),'1k - Výsledková listina'!$U:$U,0),1)) -> MO ČRS Ostrava | Y16: 1585 | Z16: 9 | AB16: 9
A17: 12 | B17: =IF(ISNA(MATCH(CONCATENATE(B$4,$A17),'1k - Výsledková listina'!$U:$U,0)),"",INDEX('1k - Výsledková listina'!$D:$D,MATCH(CONCATENATE(B$4,$A17),'1k - Výsledková listina'!$U:$U,0),1)) -> Chlebek Jakub | C17: =IF(ISNA(MATCH(CONCATENATE(B$4,$A17),'1k - Výsledková listina'!$U:$U,0)),"",INDEX('1k - Výsledková listina'!$W:$W,MATCH(CONCATENATE(B$4,$A17),'1k - Výsledková listina'!$U:$U,0),1)) -> MO ČRS Vítkov -MAVER TEAM | D17: 10890 | E17: 1 | G17: 1 | I17: =IF(ISNA(MATCH(CONCATENATE(I$4,$A17),'1k - Výsledková listina'!$U:$U,0)),"",INDEX('1k - Výsledková listina'!$D:$D,MATCH(CONCATENATE(I$4,$A17),'1k - Výsledková listina'!$U:$U,0),1)) -> Kochan Pavel | J17: =IF(ISNA(MATCH(CONCATENATE(I$4,$A17),'1k - Výsledková listina'!$U:$U,0)),"",INDEX('1k - Výsledková listina'!$W:$W,MATCH(CONCATENATE(I$4,$A17),'1k - Výsledková listina'!$U:$U,0),1)) -> MO ČRS Karviná MILO | K17: 3000 | L17: 10 | N17: 10 | P17: =IF(ISNA(MATCH(CONCATENATE(P$4,$A17),'1k - Výsledková listina'!$U:$U,0)),"",INDEX('1k - Výsledková listina'!$D:$D,MATCH(CONCATENATE(P$4,$A17),'1k - Výsledková listina'!$U:$U,0),1)) -> Kozlovský Radim | Q17: =IF(ISNA(MATCH(CONCATENATE(P$4,$A17),'1k - Výsledková listina'!$U:$U,0)),"",INDEX('1k - Výsledková listina'!$W:$W,MATCH(CONCATENATE(P$4,$A17),'1k - Výsledková listina'!$U:$U,0),1)) -> MO ČRS Karviná MILO | R17: 1150 | S17: 12 | U17: 12 | W17: =IF(ISNA(MATCH(CONCATENATE(W$4,$A17),'1k - Výsledková listina'!$U:$U,0)),"",INDEX('1k - Výsledková listina'!$D:$D,MATCH(CONCATENATE(W$4,$A17),'1k - Výsledková listina'!$U:$U,0),1)) -> Horký Vojtěch | X17: =IF(ISNA(MATCH(CONCATENATE(W$4,$A17),'1k - Výsledková listina'!$U:$U,0)),"",INDEX('1k - Výsledková listina'!$W:$W,MATCH(CONCATENATE(W$4,$A17),'1k - Výsledková listina'!$U:$U,0),1)) -> MO ČRS Vítkov -MAVER TEAM | Y17: 1755 | Z17: 8 | AB17: 8

Sheet 1k - 2. závod (hidden)
B1: =CONCATENATE('1k - Základní list'!$E$3) -> 2. liga, sk. C | I1: =CONCATENATE('1k - Základní list'!$E$3) -> 2. liga, sk. C | P1: =CONCATENATE('1k - Základní list'!$E$3) -> 2. liga, sk. C | W1: =CONCATENATE('1k - Základní list'!$E$3) -> 2. liga, sk. C
B2: =CONCATENATE('1k - Základní list'!$F$4) -> 29.4.18 | I2: =CONCATENATE('1k - Základní list'!$F$4) -> 29.4.18 | P2: =CONCATENATE('1k - Základní list'!$F$4) -> 29.4.18 | W2: =CONCATENATE('1k - Základní list'!$F$4) -> 29.4.18
A3: čís. sek | B3: SEKTOR | I3: SEKTOR | P3: SEKTOR | W3: SEKTOR
B4: ='1k - 1. závod'!B4:G4 -> A | I4: ='1k - 1. závod'!I4:N4 -> B | P4: ='1k - 1. závod'!P4:U4 -> C | W4: ='1k - 1. závod'!W4:AB4 -> D
B5: Závodník | C5: Družstvo | D5: hmotn. | E5: p | F5: p | G5: um. | H5: Podpis | I5: Závodník | J5: Družstvo | K5: hmotn. | L5: p | M5: p | N5: um. | O5: Podpis | P5: Závodník | Q5: Družstvo | R5: hmotn. | S5: p | T5: p | U5: um. | V5: Podpis | W5: Závodník | X5: Družstvo | Y5: hmotn. | Z5: p | AA5: p | AB5: um. | AC5: Podpis
A6: 1 | B6: =IF(ISNA(MATCH(CONCATENATE(B$4,$A6),'1k - Výsledková listina'!$V:$V,0)),"",INDEX('1k - Výsledková listina'!$M:$M,MATCH(CONCATENATE(B$4,$A6),'1k - Výsledková listina'!$V:$V,0),1)) -> Funěk Lukáš | C6: =IF(ISNA(MATCH(CONCATENATE(B$4,$A6),'1k - Výsledková listina'!$V:$V,0)),"",INDEX('1k - Výsledková listina'!$W:$W,MATCH(CONCATENATE(B$4,$A6),'1k - Výsledková listina'!$V:$V,0),1)) -> MO ČRS Mohelnice MIVARDI | D6: 1690 | E6: =IF(D6="","",RANK(D6,D:D,0)) -> 4 | G6: =IF(D6="","",RANK(D6,D$6:D$17,0)+(COUNT(D$6:D$17)+1-RANK(D6,D$6:D$17,0)-RANK(D6,D$6:D$17,1))/2+F6) -> 4 | I6: =IF(ISNA(MATCH(CONCATENATE(I$4,$A6),'1k - Výsledková listina'!$V:$V,0)),"",INDEX('1k - Výsledková listina'!$M:$M,MATCH(CONCATENATE(I$4,$A6),'1k - Výsledková listina'!$V:$V,0),1)) -> Havlíček Jaroslav | J6: =IF(ISNA(MATCH(CONCATENATE(I$4,$A6),'1k - Výsledková listina'!$V:$V,0)),"",INDEX('1k - Výsledková listina'!$W:$W,MATCH(CONCATENATE(I$4,$A6),'1k - Výsledková listina'!$V:$V,0),1)) -> MO ČRS Ostrava | K6: 930 | L6: =IF(K6="","",RANK(K6,K:K,0)) -> 10 | N6: =IF(K6="","",RANK(K6,K$6:K$17,0)+(COUNT(K$6:K$17)+1-RANK(K6,K$6:K$17,0)-RANK(K6,K$6:K$17,1))/2+M6) -> 10 | P6: =IF(ISNA(MATCH(CONCATENATE(P$4,$A6),'1k - Výsledková listina'!$V:$V,0)),"",INDEX('1k - Výsledková listina'!$M:$M,MATCH(CONCATENATE(P$4,$A6),'1k - Výsledková listina'!$V:$V,0),1)) -> RNDr. Pokorný Alois | Q6: =IF(ISNA(MATCH(CONCATENATE(P$4,$A6),'1k - Výsledková listina'!$V:$V,0)),"",INDEX('1k - Výsledková listina'!$W:$W,MATCH(CONCATENATE(P$4,$A6),'1k - Výsledková listina'!$V:$V,0),1)) -> MO ČRS Ostrava | R6: 3575 | S6: =IF(R6="","",RANK(R6,R:R,0)) -> 8 | U6: =IF(R6="","",RANK(R6,R$6:R$17,0)+(COUNT(R$6:R$17)+1-RANK(R6,R$6:R$17,0)-RANK(R6,R$6:R$17,1))/2+T6) -> 8 | W6: =IF(ISNA(MATCH(CONCATENATE(W$4,$A6),'1k - Výsledková listina'!$V:$V,0)),"",INDEX('1k - Výsledková listina'!$M:$M,MATCH(CONCATENATE(W$4,$A6),'1k - Výsledková listina'!$V:$V,0),1)) -> Michalovič Tomáš | X6: =IF(ISNA(MATCH(CONCATENATE(W$4,$A6),'1k - Výsledková listina'!$V:$V,0)),"",INDEX('1k - Výsledková listina'!$W:$W,MATCH(CONCATENATE(W$4,$A6),'1k - Výsledková listina'!$V:$V,0),1)) -> MO ČRS Mohelnice MIVARDI | Y6: 2245 | Z6: =IF(Y6="","",RANK(Y6,Y:Y,0)) -> 7 | AB6: =IF(Y6="","",RANK(Y6,Y$6:Y$17,0)+(COUNT(Y$6:Y$17)+1-RANK(Y6,Y$6:Y$17,0)-RANK(Y6,Y$6:Y$17,1))/2+AA6) -> 7
A7: 2 | B7: =IF(ISNA(MATCH(CONCATENATE(B$4,$A7),'1k - Výsledková listina'!$V:$V,0)),"",INDEX('1k - Výsledková listina'!$M:$M,MATCH(CONCATENATE(B$4,$A7),'1k - Výsledková listina'!$V:$V,0),1)) -> Vytřas Radim | C7: =IF(ISNA(MATCH(CONCATENATE(B$4,$A7),'1k - Výsledková listina'!$V:$V,0)),"",INDEX('1k - Výsledková listina'!$W:$W,MATCH(CONCATENATE(B$4,$A7),'1k - Výsledková listina'!$V:$V,0),1)) -> MO ČRS Ostrava PRESTON | D7: 1115 | E7: 6 | G7: 6 | I7: =IF(ISNA(MATCH(CONCATENATE(I$4,$A7),'1k - Výsledková listina'!$V:$V,0)),"",INDEX('1k - Výsledková listina'!$M:$M,MATCH(CONCATENATE(I$4,$A7),'1k - Výsledková listina'!$V:$V,0),1)) -> Dořičák Lukáš | J7: =IF(ISNA(MATCH(CONCATENATE(I$4,$A7),'1k - Výsledková listina'!$V:$V,0)),"",INDEX('1k - Výsledková listina'!$W:$W,MATCH(CONCATENATE(I$4,$A7),'1k - Výsledková listina'!$V:$V,0),1)) -> MO ČRS Vítkov -MAVER TEAM | K7: 1515 | L7: 8 | N7: 8 | P7: =IF(ISNA(MATCH(CONCATENATE(P$4,$A7),'1k - Výsledková listina'!$V:$V,0)),"",INDEX('1k - Výsledková listina'!$M:$M,MATCH(CONCATENATE(P$4,$A7),'1k - Výsledková listina'!$V:$V,0),1)) -> Horký Vojtěch | Q7: =IF(ISNA(MATCH(CONCATENATE(P$4,$A7),'1k - Výsledková listina'!$V:$V,0)),"",INDEX('1k - Výsledková listina'!$W:$W,MATCH(CONCATENATE(P$4,$A7),'1k - Výsledková listina'!$V:$V,0),1)) -> MO ČRS Vítkov -MAVER TEAM | R7: 4815 | S7: 7 | U7: 7 | W7: =IF(ISNA(MATCH(CONCATENATE(W$4,$A7),'1k - Výsledková listina'!$V:$V,0)),"",INDEX('1k - Výsledková listina'!$M:$M,MATCH(CONCATENATE(W$4,$A7),'1k - Výsledková listina'!$V:$V,0),1)) -> Hruzík David | X7: =IF(ISNA(MATCH(CONCATENATE(W$4,$A7),'1k - Výsledková listina'!$V:$V,0)),"",INDEX('1k - Výsledková listina'!$W:$W,MATCH(CONCATENATE(W$4,$A7),'1k - Výsledková listina'!$V:$V,0),1)) -> MO ČRS Ostrava PRESTON | Y7: 2540 | Z7: 5 | AB7: 5
A8: 3 | B8: =IF(ISNA(MATCH(CONCATENATE(B$4,$A8),'1k - Výsledková listina'!$V:$V,0)),"",INDEX('1k - Výsledková listina'!$M:$M,MATCH(CONCATENATE(B$4,$A8),'1k - Výsledková listina'!$V:$V,0),1)) -> Borovička Pavel | C8: =IF(ISNA(MATCH(CONCATENATE(B$4,$A8),'1k - Výsledková listina'!$V:$V,0)),"",INDEX('1k - Výsledková listina'!$W:$W,MATCH(CONCATENATE(B$4,$A8),'1k - Výsledková listina'!$V:$V,0),1)) -> MRS - Poháry sport hobby M. Budějovice - Sensas | D8: 736 | E8: 8 | G8: 8 | I8: =IF(ISNA(MATCH(CONCATENATE(I$4,$A8),'1k - Výsledková listina'!$V:$V,0)),"",INDEX('1k - Výsledková listina'!$M:$M,MATCH(CONCATENATE(I$4,$A8),'1k - Výsledková listina'!$V:$V,0),1)) -> Ing. Hrazdil Jiří | J8: =IF(ISNA(MATCH(CONCATENATE(I$4,$A8),'1k - Výsledková listina'!$V:$V,0)),"",INDEX('1k - Výsledková listina'!$W:$W,MATCH(CONCATENATE(I$4,$A8),'1k - Výsledková listina'!$V:$V,0),1)) -> MRS RSK Jižní Morava Tubertini | K8: 840 | L8: 11 | N8: 11 | P8: =IF(ISNA(MATCH(CONCATENATE(P$4,$A8),'1k - Výsledková listina'!$V:$V,0)),"",INDEX('1k - Výsledková listina'!$M:$M,MATCH(CONCATENATE(P$4,$A8),'1k - Výsledková listina'!$V:$V,0),1)) -> Kazatel Petr | Q8: =IF(ISNA(MATCH(CONCATENATE(P$4,$A8),'1k - Výsledková listina'!$V:$V,0)),"",INDEX('1k - Výsledková listina'!$W:$W,MATCH(CONCATENATE(P$4,$A8),'1k - Výsledková listina'!$V:$V,0),1)) -> MRS RSK Jižní Morava Tubertini | R8: 13840 | S8: 1 | U8: 1 | W8: =IF(ISNA(MATCH(CONCATENATE(W$4,$A8),'1k - Výsledková listina'!$V:$V,0)),"",INDEX('1k - Výsledková listina'!$M:$M,MATCH(CONCATENATE(W$4,$A8),'1k - Výsledková listina'!$V:$V,0),1)) -> Papoušek Ivan | X8: =IF(ISNA(MATCH(CONCATENATE(W$4,$A8),'1k - Výsledková listina'!$V:$V,0)),"",INDEX('1k - Výsledková listina'!$W:$W,MATCH(CONCATENATE(W$4,$A8),'1k - Výsledková listina'!$V:$V,0),1)) -> MRS - Poháry sport hobby M. Budějovice - Sensas | Y8: 690 | Z8: 12 | AB8: 12
A9: 4 | B9: =IF(ISNA(MATCH(CONCATENATE(B$4,$A9),'1k - Výsledková listina'!$V:$V,0)),"",INDEX('1k - Výsledková listina'!$M:$M,MATCH(CONCATENATE(B$4,$A9),'1k - Výsledková listina'!$V:$V,0),1)) -> Kochan Pavel | C9: =IF(ISNA(MATCH(CONCATENATE(B$4,$A9),'1k - Výsledková listina'!$V:$V,0)),"",INDEX('1k - Výsledková listina'!$W:$W,MATCH(CONCATENATE(B$4,$A9),'1k - Výsledková listina'!$V:$V,0),1)) -> MO ČRS Karviná MILO | D9: 1130 | E9: 5 | G9: 5 | I9: =IF(ISNA(MATCH(CONCATENATE(I$4,$A9),'1k - Výsledková listina'!$V:$V,0)),"",INDEX('1k - Výsledková listina'!$M:$M,MATCH(CONCATENATE(I$4,$A9),'1k - Výsledková listina'!$V:$V,0),1)) -> Kaluzny Krzystof | J9: =IF(ISNA(MATCH(CONCATENATE(I$4,$A9),'1k - Výsledková listina'!$V:$V,0)),"",INDEX('1k - Výsledková listina'!$W:$W,MATCH(CONCATENATE(I$4,$A9),'1k - Výsledková listina'!$V:$V,0),1)) -> ČRS Matchpro | K9: 1780 | L9: 7 | N9: 7 | P9: =IF(ISNA(MATCH(CONCATENATE(P$4,$A9),'1k - Výsledková listina'!$V:$V,0)),"",INDEX('1k - Výsledková listina'!$M:$M,MATCH(CONCATENATE(P$4,$A9),'1k - Výsledková listina'!$V:$V,0),1)) -> Drewny Patryk | Q9: =IF(ISNA(MATCH(CONCATENATE(P$4,$A9),'1k - Výsledková listina'!$V:$V,0)),"",INDEX('1k - Výsledková listina'!$W:$W,MATCH(CONCATENATE(P$4,$A9),'1k - Výsledková listina'!$V:$V,0),1)) -> ČRS Matchpro | R9: 7730 | S9: 3 | U9: 3 | W9: =IF(ISNA(MATCH(CONCATENATE(W$4,$A9),'1k - Výsledková listina'!$V:$V,0)),"",INDEX('1k - Výsledková listina'!$M:$M,MATCH(CONCATENATE(W$4,$A9),'1k - Výsledková listina'!$V:$V,0),1)) -> Tököly Martin | X9: =IF(ISNA(MATCH(CONCATENATE(W$4,$A9),'1k - Výsledková listina'!$V:$V,0)),"",INDEX('1k - Výsledková listina'!$W:$W,MATCH(CONCATENATE(W$4,$A9),'1k - Výsledková listina'!$V:$V,0),1)) -> MO ČRS Karviná MILO | Y9: 2235 | Z9: 8 | AB9: 8
A10: 5 | B10: =IF(ISNA(MATCH(CONCATENATE(B$4,$A10),'1k - Výsledková listina'!$V:$V,0)),"",INDEX('1k - Výsledková listina'!$M:$M,MATCH(CONCATENATE(B$4,$A10),'1k - Výsledková listina'!$V:$V,0),1)) -> Ing. Kolařík David | C10: =IF(ISNA(MATCH(CONCATENATE(B$4,$A10),'1k - Výsledková listina'!$V:$V,0)),"",INDEX('1k - Výsledková listina'!$W:$W,MATCH(CONCATENATE(B$4,$A10),'1k - Výsledková listina'!$V:$V,0),1)) -> MO ČRS Šumperk | D10: 795 | E10: 7 | G10: 7 | I10: =IF(ISNA(MATCH(CONCATENATE(I$4,$A10),'1k - Výsledková listina'!$V:$V,0)),"",INDEX('1k - Výsledková listina'!$M:$M,MATCH(CONCATENATE(I$4,$A10),'1k - Výsledková listina'!$V:$V,0),1)) -> Kobliha Martin | J10: =IF(ISNA(MATCH(CONCATENATE(I$4,$A10),'1k - Výsledková listina'!$V:$V,0)),"",INDEX('1k - Výsledková listina'!$W:$W,MATCH(CONCATENATE(I$4,$A10),'1k - Výsledková listina'!$V:$V,0),1)) -> MRS Hrušovany nad Jevišovkou MAVER | K10: 705 | L10: 12 | N10: 12 | P10: =IF(ISNA(MATCH(CONCATENATE(P$4,$A10),'1k - Výsledková listina'!$V:$V,0)),"",INDEX('1k - Výsledková listina'!$M:$M,MATCH(CONCATENATE(P$4,$A10),'1k - Výsledková listina'!$V:$V,0),1)) -> Konečný Tomáš | Q10: =IF(ISNA(MATCH(CONCATENATE(P$4,$A10),'1k - Výsledková listina'!$V:$V,0)),"",INDEX('1k - Výsledková listina'!$W:$W,MATCH(CONCATENATE(P$4,$A10),'1k - Výsledková listina'!$V:$V,0),1)) -> MRS Hrušovany nad Jevišovkou MAVER | R10: 3160 | S10: 10 | U10: 10 | W10: =IF(ISNA(MATCH(CONCATENATE(W$4,$A10),'1k - Výsledková listina'!$V:$V,0)),"",INDEX('1k - Výsledková listina'!$M:$M,MATCH(CONCATENATE(W$4,$A10),'1k - Výsledková listina'!$V:$V,0),1)) -> Ing. Kouřil Petr | X10: =IF(ISNA(MATCH(CONCATENATE(W$4,$A10),'1k - Výsledková listina'!$V:$V,0)),"",INDEX('1k - Výsledková listina'!$W:$W,MATCH(CONCATENATE(W$4,$A10),'1k - Výsledková listina'!$V:$V,0),1)) -> MO ČRS Šumperk | Y10: 4200 | Z10: 4 | AB10: 4
A11: 6 | B11: =IF(ISNA(MATCH(CONCATENATE(B$4,$A11),'1k - Výsledková listina'!$V:$V,0)),"",INDEX('1k - Výsledková listina'!$M:$M,MATCH(CONCATENATE(B$4,$A11),'1k - Výsledková listina'!$V:$V,0),1)) -> Častulík Luděk | C11: =IF(ISNA(MATCH(CONCATENATE(B$4,$A11),'1k - Výsledková listina'!$V:$V,0)),"",INDEX('1k - Výsledková listina'!$W:$W,MATCH(CONCATENATE(B$4,$A11),'1k - Výsledková listina'!$V:$V,0),1)) -> ČRS MILO Loštice | D11: 580 | E11: 11 | G11: 11 | I11: =IF(ISNA(MATCH(CONCATENATE(I$4,$A11),'1k - Výsledková listina'!$V:$V,0)),"",INDEX('1k - Výsledková listina'!$M:$M,MATCH(CONCATENATE(I$4,$A11),'1k - Výsledková listina'!$V:$V,0),1)) -> Ing Sobotka Petr | J11: =IF(ISNA(MATCH(CONCATENATE(I$4,$A11),'1k - Výsledková listina'!$V:$V,0)),"",INDEX('1k - Výsledková listina'!$W:$W,MATCH(CONCATENATE(I$4,$A11),'1k - Výsledková listina'!$V:$V,0),1)) -> MO MRS Letovice PRESTON | K11: 3395 | L11: 2 | N11: 2 | P11: =IF(ISNA(MATCH(CONCATENATE(P$4,$A11),'1k - Výsledková listina'!$V:$V,0)),"",INDEX('1k - Výsledková listina'!$M:$M,MATCH(CONCATENATE(P$4,$A11),'1k - Výsledková listina'!$V:$V,0),1)) -> Bradna Ladislav ml. | Q11: =IF(ISNA(MATCH(CONCATENATE(P$4,$A11),'1k - Výsledková listina'!$V:$V,0)),"",INDEX('1k - Výsledková listina'!$W:$W,MATCH(CONCATENATE(P$4,$A11),'1k - Výsledková listina'!$V:$V,0),1)) -> MO MRS Letovice PRESTON | R11: 5590 | S11: 6 | U11: 6 | W11: =IF(ISNA(MATCH(CONCATENATE(W$4,$A11),'1k - Výsledková listina'!$V:$V,0)),"",INDEX('1k - Výsledková listina'!$M:$M,MATCH(CONCATENATE(W$4,$A11),'1k - Výsledková listina'!$V:$V,0),1)) -> Pergreffi Luca | X11: =IF(ISNA(MATCH(CONCATENATE(W$4,$A11),'1k - Výsledková listina'!$V:$V,0)),"",INDEX('1k - Výsledková listina'!$W:$W,MATCH(CONCATENATE(W$4,$A11),'1k - Výsledková listina'!$V:$V,0),1)) -> ČRS MILO Loštice | Y11: 5500 | Z11: 1 | AB11: 1
A12: 7 | B12: =IF(ISNA(MATCH(CONCATENATE(B$4,$A12),'1k - Výsledková listina'!$V:$V,0)),"",INDEX('1k - Výsledková listina'!$M:$M,MATCH(CONCATENATE(B$4,$A12),'1k - Výsledková listina'!$V:$V,0),1)) -> ing. Havlíček Petr | C12: =IF(ISNA(MATCH(CONCATENATE(B$4,$A12),'1k - Výsledková listina'!$V:$V,0)),"",INDEX('1k - Výsledková listina'!$W:$W,MATCH(CONCATENATE(B$4,$A12),'1k - Výsledková listina'!$V:$V,0),1)) -> MO ČRS Ostrava | D12: 690 | E12: 10 | G12: 10 | I12: =IF(ISNA(MATCH(CONCATENATE(I$4,$A12),'1k - Výsledková listina'!$V:$V,0)),"",INDEX('1k - Výsledková listina'!$M:$M,MATCH(CONCATENATE(I$4,$A12),'1k - Výsledková listina'!$V:$V,0),1)) -> Ngoxuan Truong | J12: =IF(ISNA(MATCH(CONCATENATE(I$4,$A12),'1k - Výsledková listina'!$V:$V,0)),"",INDEX('1k - Výsledková listina'!$W:$W,MATCH(CONCATENATE(I$4,$A12),'1k - Výsledková listina'!$V:$V,0),1)) -> MO ČRS Mohelnice MIVARDI | K12: 3315 | L12: 3 | N12: 3 | P12: =IF(ISNA(MATCH(CONCATENATE(P$4,$A12),'1k - Výsledková listina'!$V:$V,0)),"",INDEX('1k - Výsledková listina'!$M:$M,MATCH(CONCATENATE(P$4,$A12),'1k - Výsledková listina'!$V:$V,0),1)) -> Kendiura Tomáš | Q12: =IF(ISNA(MATCH(CONCATENATE(P$4,$A12),'1k - Výsledková listina'!$V:$V,0)),"",INDEX('1k - Výsledková listina'!$W:$W,MATCH(CONCATENATE(P$4,$A12),'1k - Výsledková listina'!$V:$V,0),1)) -> MO ČRS Mohelnice MIVARDI | R12: 7390 | S12: 4 | U12: 4 | W12: =IF(ISNA(MATCH(CONCATENATE(W$4,$A12),'1k - Výsledková listina'!$V:$V,0)),"",INDEX('1k - Výsledková listina'!$M:$M,MATCH(CONCATENATE(W$4,$A12),'1k - Výsledková listina'!$V:$V,0),1)) -> Kotlář Jindřich | X12: =IF(ISNA(MATCH(CONCATENATE(W$4,$A12),'1k - Výsledková listina'!$V:$V,0)),"",INDEX('1k - Výsledková listina'!$W:$W,MATCH(CONCATENATE(W$4,$A12),'1k - Výsledková listina'!$V:$V,0),1)) -> MO ČRS Ostrava | Y12: 1595 | Z12: 9 | AB12: 9
A13: 8 | B13: =IF(ISNA(MATCH(CONCATENATE(B$4,$A13),'1k - Výsledková listina'!$V:$V,0)),"",INDEX('1k - Výsledková listina'!$M:$M,MATCH(CONCATENATE(B$4,$A13),'1k - Výsledková listina'!$V:$V,0),1)) -> Grzych Jan | C13: =IF(ISNA(MATCH(CONCATENATE(B$4,$A13),'1k - Výsledková listina'!$V:$V,0)),"",INDEX('1k - Výsledková listina'!$W:$W,MATCH(CONCATENATE(B$4,$A13),'1k - Výsledková listina'!$V:$V,0),1)) -> MO ČRS Vítkov -MAVER TEAM | D13: 3660 | E13: 2 | G13: 2 | I13: =IF(ISNA(MATCH(CONCATENATE(I$4,$A13),'1k - Výsledková listina'!$V:$V,0)),"",INDEX('1k - Výsledková listina'!$M:$M,MATCH(CONCATENATE(I$4,$A13),'1k - Výsledková listina'!$V:$V,0),1)) -> Fojt Dalibor | J13: =IF(ISNA(MATCH(CONCATENATE(I$4,$A13),'1k - Výsledková listina'!$V:$V,0)),"",INDEX('1k - Výsledková listina'!$W:$W,MATCH(CONCATENATE(I$4,$A13),'1k - Výsledková listina'!$V:$V,0),1)) -> MO ČRS Ostrava PRESTON | K13: 1085 | L13: 9 | N13: 9 | P13: =IF(ISNA(MATCH(CONCATENATE(P$4,$A13),'1k - Výsledková listina'!$V:$V,0)),"",INDEX('1k - Výsledková listina'!$M:$M,MATCH(CONCATENATE(P$4,$A13),'1k - Výsledková listina'!$V:$V,0),1)) -> Kyselovský Tomáš | Q13: =IF(ISNA(MATCH(CONCATENATE(P$4,$A13),'1k - Výsledková listina'!$V:$V,0)),"",INDEX('1k - Výsledková listina'!$W:$W,MATCH(CONCATENATE(P$4,$A13),'1k - Výsledková listina'!$V:$V,0),1)) -> MO ČRS Ostrava PRESTON | R13: 9300 | S13: 2 | U13: 2 | W13: =IF(ISNA(MATCH(CONCATENATE(W$4,$A13),'1k - Výsledková listina'!$V:$V,0)),"",INDEX('1k - Výsledková listina'!$M:$M,MATCH(CONCATENATE(W$4,$A13),'1k - Výsledková listina'!$V:$V,0),1)) -> Chlebek Jakub | X13: =IF(ISNA(MATCH(CONCATENATE(W$4,$A13),'1k - Výsledková listina'!$V:$V,0)),"",INDEX('1k - Výsledková listina'!$W:$W,MATCH(CONCATENATE(W$4,$A13),'1k - Výsledková listina'!$V:$V,0),1)) -> MO ČRS Vítkov -MAVER TEAM | Y13: 5300 | Z13: 2 | AB13: 2
A14: 9 | B14: =IF(ISNA(MATCH(CONCATENATE(B$4,$A14),'1k - Výsledková listina'!$V:$V,0)),"",INDEX('1k - Výsledková listina'!$M:$M,MATCH(CONCATENATE(B$4,$A14),'1k - Výsledková listina'!$V:$V,0),1)) -> Pospíšil Radek | C14: =IF(ISNA(MATCH(CONCATENATE(B$4,$A14),'1k - Výsledková listina'!$V:$V,0)),"",INDEX('1k - Výsledková listina'!$W:$W,MATCH(CONCATENATE(B$4,$A14),'1k - Výsledková listina'!$V:$V,0),1)) -> MRS RSK Jižní Morava Tubertini | D14: 2560 | E14: 3 | G14: 3 | I14: =IF(ISNA(MATCH(CONCATENATE(I$4,$A14),'1k - Výsledková listina'!$V:$V,0)),"",INDEX('1k - Výsledková listina'!$M:$M,MATCH(CONCATENATE(I$4,$A14),'1k - Výsledková listina'!$V:$V,0),1)) -> Průša Vladimír | J14: =IF(ISNA(MATCH(CONCATENATE(I$4,$A14),'1k - Výsledková listina'!$V:$V,0)),"",INDEX('1k - Výsledková listina'!$W:$W,MATCH(CONCATENATE(I$4,$A14),'1k - Výsledková listina'!$V:$V,0),1)) -> MRS - Poháry sport hobby M. Budějovice - Sensas | K14: 3960 | L14: 1 | N14: 1 | P14: =IF(ISNA(MATCH(CONCATENATE(P$4,$A14),'1k - Výsledková listina'!$V:$V,0)),"",INDEX('1k - Výsledková listina'!$M:$M,MATCH(CONCATENATE(P$4,$A14),'1k - Výsledková listina'!$V:$V,0),1)) -> Viskot Zdeněk | Q14: =IF(ISNA(MATCH(CONCATENATE(P$4,$A14),'1k - Výsledková listina'!$V:$V,0)),"",INDEX('1k - Výsledková listina'!$W:$W,MATCH(CONCATENATE(P$4,$A14),'1k - Výsledková listina'!$V:$V,0),1)) -> MRS - Poháry sport hobby M. Budějovice - Sensas | R14: 3555 | S14: 9 | U14: 9 | W14: =IF(ISNA(MATCH(CONCATENATE(W$4,$A14),'1k - Výsledková listina'!$V:$V,0)),"",INDEX('1k - Výsledková listina'!$M:$M,MATCH(CONCATENATE(W$4,$A14),'1k - Výsledková listina'!$V:$V,0),1)) -> Bc. Pavka Martin | X14: =IF(ISNA(MATCH(CONCATENATE(W$4,$A14),'1k - Výsledková listina'!$V:$V,0)),"",INDEX('1k - Výsledková listina'!$W:$W,MATCH(CONCATENATE(W$4,$A14),'1k - Výsledková listina'!$V:$V,0),1)) -> MRS RSK Jižní Morava Tubertini | Y14: 2395 | Z14: 6 | AB14: 6
A15: 10 | B15: =IF(ISNA(MATCH(CONCATENATE(B$4,$A15),'1k - Výsledková listina'!$V:$V,0)),"",INDEX('1k - Výsledková listina'!$M:$M,MATCH(CONCATENATE(B$4,$A15),'1k - Výsledková listina'!$V:$V,0),1)) -> Stanczyk Marcin | C15: =IF(ISNA(MATCH(CONCATENATE(B$4,$A15),'1k - Výsledková listina'!$V:$V,0)),"",INDEX('1k - Výsledková listina'!$W:$W,MATCH(CONCATENATE(B$4,$A15),'1k - Výsledková listina'!$V:$V,0),1)) -> ČRS Matchpro | D15: 7200 | E15: 1 | G15: 1 | I15: =IF(ISNA(MATCH(CONCATENATE(I$4,$A15),'1k - Výsledková listina'!$V:$V,0)),"",INDEX('1k - Výsledková listina'!$M:$M,MATCH(CONCATENATE(I$4,$A15),'1k - Výsledková listina'!$V:$V,0),1)) -> Rys Jaroslav | J15: =IF(ISNA(MATCH(CONCATENATE(I$4,$A15),'1k - Výsledková listina'!$V:$V,0)),"",INDEX('1k - Výsledková listina'!$W:$W,MATCH(CONCATENATE(I$4,$A15),'1k - Výsledková listina'!$V:$V,0),1)) -> MO ČRS Karviná MILO | K15: 2140 | L15: 5 | N15: 5 | P15: =IF(ISNA(MATCH(CONCATENATE(P$4,$A15),'1k - Výsledková listina'!$V:$V,0)),"",INDEX('1k - Výsledková listina'!$M:$M,MATCH(CONCATENATE(P$4,$A15),'1k - Výsledková listina'!$V:$V,0),1)) -> Kozlovský Radim | Q15: =IF(ISNA(MATCH(CONCATENATE(P$4,$A15),'1k - Výsledková listina'!$V:$V,0)),"",INDEX('1k - Výsledková listina'!$W:$W,MATCH(CONCATENATE(P$4,$A15),'1k - Výsledková listina'!$V:$V,0),1)) -> MO ČRS Karviná MILO | R15: 2745 | S15: 11 | U15: 11 | W15: =IF(ISNA(MATCH(CONCATENATE(W$4,$A15),'1k - Výsledková listina'!$V:$V,0)),"",INDEX('1k - Výsledková listina'!$M:$M,MATCH(CONCATENATE(W$4,$A15),'1k - Výsledková listina'!$V:$V,0),1)) -> Lange Janusz | X15: =IF(ISNA(MATCH(CONCATENATE(W$4,$A15),'1k - Výsledková listina'!$V:$V,0)),"",INDEX('1k - Výsledková listina'!$W:$W,MATCH(CONCATENATE(W$4,$A15),'1k - Výsledková listina'!$V:$V,0),1)) -> ČRS Matchpro | Y15: 5020 | Z15: 3 | AB15: 3
A16: 11 | B16: =IF(ISNA(MATCH(CONCATENATE(B$4,$A16),'1k - Výsledková listina'!$V:$V,0)),"",INDEX('1k - Výsledková listina'!$M:$M,MATCH(CONCATENATE(B$4,$A16),'1k - Výsledková listina'!$V:$V,0),1)) -> Mais Jan | C16: =IF(ISNA(MATCH(CONCATENATE(B$4,$A16),'1k - Výsledková listina'!$V:$V,0)),"",INDEX('1k - Výsledková listina'!$W:$W,MATCH(CONCATENATE(B$4,$A16),'1k - Výsledková listina'!$V:$V,0),1)) -> MRS Hrušovany nad Jevišovkou MAVER | D16: 295 | E16: 12 | G16: 12 | I16: =IF(ISNA(MATCH(CONCATENATE(I$4,$A16),'1k - Výsledková listina'!$V:$V,0)),"",INDEX('1k - Výsledková listina'!$M:$M,MATCH(CONCATENATE(I$4,$A16),'1k - Výsledková listina'!$V:$V,0),1)) -> HLISNIKOVSKY MARTIN | J16: =IF(ISNA(MATCH(CONCATENATE(I$4,$A16),'1k - Výsledková listina'!$V:$V,0)),"",INDEX('1k - Výsledková listina'!$W:$W,MATCH(CONCATENATE(I$4,$A16),'1k - Výsledková listina'!$V:$V,0),1)) -> MO ČRS Šumperk | K16: 1835 | L16: 6 | N16: 6 | P16: =IF(ISNA(MATCH(CONCATENATE(P$4,$A16),'1k - Výsledková listina'!$V:$V,0)),"",INDEX('1k - Výsledková listina'!$M:$M,MATCH(CONCATENATE(P$4,$A16),'1k - Výsledková listina'!$V:$V,0),1)) -> Kapica Radim | Q16: =IF(ISNA(MATCH(CONCATENATE(P$4,$A16),'1k - Výsledková listina'!$V:$V,0)),"",INDEX('1k - Výsledková listina'!$W:$W,MATCH(CONCATENATE(P$4,$A16),'1k - Výsledková listina'!$V:$V,0),1)) -> MO ČRS Šumperk | R16: 1565 | S16: 12 | U16: 12 | W16: =IF(ISNA(MATCH(CONCATENATE(W$4,$A16),'1k - Výsledková listina'!$V:$V,0)),"",INDEX('1k - Výsledková listina'!$M:$M,MATCH(CONCATENATE(W$4,$A16),'1k - Výsledková listina'!$V:$V,0),1)) -> Pykal Aleš | X16: =IF(ISNA(MATCH(CONCATENATE(W$4,$A16),'1k - Výsledková listina'!$V:$V,0)),"",INDEX('1k - Výsledková listina'!$W:$W,MATCH(CONCATENATE(W$4,$A16),'1k - Výsledková listina'!$V:$V,0),1)) -> MRS Hrušovany nad Jevišovkou MAVER | Y16: 955 | Z16: 10 | AB16: 10
A17: 12 | B17: =IF(ISNA(MATCH(CONCATENATE(B$4,$A17),'1k - Výsledková listina'!$V:$V,0)),"",INDEX('1k - Výsledková listina'!$M:$M,MATCH(CONCATENATE(B$4,$A17),'1k - Výsledková listina'!$V:$V,0),1)) -> Voda Radek | C17: =IF(ISNA(MATCH(CONCATENATE(B$4,$A17),'1k - Výsledková listina'!$V:$V,0)),"",INDEX('1k - Výsledková listina'!$W:$W,MATCH(CONCATENATE(B$4,$A17),'1k - Výsledková listina'!$V:$V,0),1)) -> MO MRS Letovice PRESTON | D17: 705 | E17: 9 | G17: 9 | I17: =IF(ISNA(MATCH(CONCATENATE(I$4,$A17),'1k - Výsledková listina'!$V:$V,0)),"",INDEX('1k - Výsledková listina'!$M:$M,MATCH(CONCATENATE(I$4,$A17),'1k - Výsledková listina'!$V:$V,0),1)) -> Ing Koukal Martin | J17: =IF(ISNA(MATCH(CONCATENATE(I$4,$A17),'1k - Výsledková listina'!$V:$V,0)),"",INDEX('1k - Výsledková listina'!$W:$W,MATCH(CONCATENATE(I$4,$A17),'1k - Výsledková listina'!$V:$V,0),1)) -> ČRS MILO Loštice | K17: 3285 | L17: 4 | N17: 4 | P17: =IF(ISNA(MATCH(CONCATENATE(P$4,$A17),'1k - Výsledková listina'!$V:$V,0)),"",INDEX('1k - Výsledková listina'!$M:$M,MATCH(CONCATENATE(P$4,$A17),'1k - Výsledková listina'!$V:$V,0),1)) -> Ing. Heidenreich Jan | Q17: =IF(ISNA(MATCH(CONCATENATE(P$4,$A17),'1k - Výsledková listina'!$V:$V,0)),"",INDEX('1k - Výsledková listina'!$W:$W,MATCH(CONCATENATE(P$4,$A17),'1k - Výsledková listina'!$V:$V,0),1)) -> ČRS MILO Loštice | R17: 5820 | S17: 5 | U17: 5 | W17: =IF(ISNA(MATCH(CONCATENATE(W$4,$A17),'1k - Výsledková listina'!$V:$V,0)),"",INDEX('1k - Výsledková listina'!$M:$M,MATCH(CONCATENATE(W$4,$A17),'1k - Výsledková listina'!$V:$V,0),1)) -> Olšán Jakub | X17: =IF(ISNA(MATCH(CONCATENATE(W$4,$A17),'1k - Výsledková listina'!$V:$V,0)),"",INDEX('1k - Výsledková listina'!$W:$W,MATCH(CONCATENATE(W$4,$A17),'1k - Výsledková listina'!$V:$V,0),1)) -> MO MRS Letovice PRESTON | Y17: 890 | Z17: 11 | AB17: 11

Sheet 1k - graf (hidden)
A1: =CONCATENATE('1k - Základní list'!$E$3," ",'1k - Základní list'!$G$3) -> 2. liga, sk. C 1. kolo
A2: =CONCATENATE("Datum konání: ",'1k - Základní list'!D4," - ",'1k - Základní list'!F4) -> Datum konání: 28.4.18 - 29.4.18
A3: p.č. | B3: 1. kolo - 1. závod | H3: 1. kolo - 2. závod
B4: sektor | C4: místo | D4: CIPS | E4: Poř. | F4: Závodník | G4: Družstvo | H4: sektor | I4: místo | J4: CIPS | K4: Poř. | L4: Závodník | M4: Družstvo
A5: 1 | B5: A | C5: 1 | D5: =INDEX('1k - 1. závod'!$A:$BA,$C5+5,INDEX('1k - Základní list'!$B:$B,MATCH($B5,'1k - Základní list'!$A:$A,0),1)) -> 2255 | E5: =INDEX('1k - 1. závod'!$A:$BA,$C5+5,INDEX('1k - Základní list'!$B:$B,MATCH($B5,'1k - Základní list'!$A:$A,0),1)+3) -> 7 | F5: =INDEX('1k - 1. závod'!$A:$BA,$C5+5,INDEX('1k - Základní list'!$B:$B,MATCH($B5,'1k - Základní list'!$A:$A,0),1)-2) -> Borovička Pavel | G5: =INDEX('1k - 1. závod'!$A:$BA,$C5+5,INDEX('1k - Základní list'!$B:$B,MATCH($B5,'1k - Základní list'!$A:$A,0),1)-1) -> MRS - Poháry sport hobby M. Budějovice - Sensas | H5: A | I5: 1 | J5: =INDEX('1k - 2. závod'!$A:$BA,$I5+5,INDEX('1k - Základní list'!$B:$B,MATCH($H5,'1k - Základní list'!$A:$A,0),1)) -> 1690 | K5: =INDEX('1k - 2. závod'!$A:$BA,$I5+5,INDEX('1k - Základní list'!$B:$B,MATCH($H5,'1k - Základní list'!$A:$A,0),1)+3) -> 4 | L5: =INDEX('1k - 2. závod'!$A:$BA,$I5+5,INDEX('1k - Základní list'!$B:$B,MATCH($H5,'1k - Základní list'!$A:$A,0),1)-2) -> Funěk Lukáš | M5: =INDEX('1k - 2. závod'!$A:$BA,$I5+5,INDEX('1k - Základní list'!$B:$B,MATCH($H5,'1k - Základní list'!$A:$A,0),1)-1) -> MO ČRS Mohelnice MIVARDI
A6: 2 | B6: A | C6: 2 | D6: =INDEX('1k - 1. závod'!$A:$BA,$C6+5,INDEX('1k - Základní list'!$B:$B,MATCH($B6,'1k - Základní list'!$A:$A,0),1)) -> 1750 | E6: =INDEX('1k - 1. závod'!$A:$BA,$C6+5,INDEX('1k - Základní list'!$B:$B,MATCH($B6,'1k - Základní list'!$A:$A,0),1)+3) -> 10 | F6: =INDEX('1k - 1. závod'!$A:$BA,$C6+5,INDEX('1k - Základní list'!$B:$B,MATCH($B6,'1k - Základní list'!$A:$A,0),1)-2) -> Mais Jan | G6: =INDEX('1k - 1. závod'!$A:$BA,$C6+5,INDEX('1k - Základní list'!$B:$B,MATCH($B6,'1k - Základní list'!$A:$A,0),1)-1) -> MRS Hrušovany nad Jevišovkou MAVER | H6: A | I6: 2 | J6: =INDEX('1k - 2. závod'!$A:$BA,$I6+5,INDEX('1k - Základní list'!$B:$B,MATCH($H6,'1k - Základní list'!$A:$A,0),1)) -> 1115 | K6: =INDEX('1k - 2. závod'!$A:$BA,$I6+5,INDEX('1k - Základní list'!$B:$B,MATCH($H6,'1k - Základní list'!$A:$A,0),1)+3) -> 6 | L6: =INDEX('1k - 2. závod'!$A:$BA,$I6+5,INDEX('1k - Základní list'!$B:$B,MATCH($H6,'1k - Základní list'!$A:$A,0),1)-2) -> Vytřas Radim | M6: =INDEX('1k - 2. závod'!$A:$BA,$I6+5,INDEX('1k - Základní list'!$B:$B,MATCH($H6,'1k - Základní list'!$A:$A,0),1)-1) -> MO ČRS Ostrava PRESTON
A7: 3 | B7: A | C7: 3 | D7: =INDEX('1k - 1. závod'!$A:$BA,$C7+5,INDEX('1k - Základní list'!$B:$B,MATCH($B7,'1k - Základní list'!$A:$A,0),1)) -> 5135 | E7: =INDEX('1k - 1. závod'!$A:$BA,$C7+5,INDEX('1k - Základní list'!$B:$B,MATCH($B7,'1k - Základní list'!$A:$A,0),1)+3) -> 2 | F7: =INDEX('1k - 1. závod'!$A:$BA,$C7+5,INDEX('1k - Základní list'!$B:$B,MATCH($B7,'1k - Základní list'!$A:$A,0),1)-2) -> Lange Janusz | G7: =INDEX('1k - 1. závod'!$A:$BA,$C7+5,INDEX('1k - Základní list'!$B:$B,MATCH($B7,'1k - Základní list'!$A:$A,0),1)-1) -> ČRS Matchpro | H7: A | I7: 3 | J7: =INDEX('1k - 2. závod'!$A:$BA,$I7+5,INDEX('1k - Základní list'!$B:$B,MATCH($H7,'1k - Základní list'!$A:$A,0),1)) -> 736 | K7: =INDEX('1k - 2. závod'!$A:$BA,$I7+5,INDEX('1k - Základní list'!$B:$B,MATCH($H7,'1k - Základní list'!$A:$A,0),1)+3) -> 8 | L7: =INDEX('1k - 2. závod'!$A:$BA,$I7+5,INDEX('1k - Základní list'!$B:$B,MATCH($H7,'1k - Základní list'!$A:$A,0),1)-2) -> Borovička Pavel | M7: =INDEX('1k - 2. závod'!$A:$BA,$I7+5,INDEX('1k - Základní list'!$B:$B,MATCH($H7,'1k - Základní list'!$A:$A,0),1)-1) -> MRS - Poháry sport hobby M. Budějovice - Sensas
A8: 4 | B8: A | C8: 4 | D8: =INDEX('1k - 1. závod'!$A:$BA,$C8+5,INDEX('1k - Základní list'!$B:$B,MATCH($B8,'1k - Základní list'!$A:$A,0),1)) -> 1690 | E8: =INDEX('1k - 1. závod'!$A:$BA,$C8+5,INDEX('1k - Základní list'!$B:$B,MATCH($B8,'1k - Základní list'!$A:$A,0),1)+3) -> 11 | F8: =INDEX('1k - 1. závod'!$A:$BA,$C8+5,INDEX('1k - Základní list'!$B:$B,MATCH($B8,'1k - Základní list'!$A:$A,0),1)-2) -> Ngoxuan Truong | G8: =INDEX('1k - 1. závod'!$A:$BA,$C8+5,INDEX('1k - Základní list'!$B:$B,MATCH($B8,'1k - Základní list'!$A:$A,0),1)-1) -> MO ČRS Mohelnice MIVARDI | H8: A | I8: 4 | J8: =INDEX('1k - 2. závod'!$A:$BA,$I8+5,INDEX('1k - Základní list'!$B:$B,MATCH($H8,'1k - Základní list'!$A:$A,0),1)) -> 1130 | K8: =INDEX('1k - 2. závod'!$A:$BA,$I8+5,INDEX('1k - Základní list'!$B:$B,MATCH($H8,'1k - Základní list'!$A:$A,0),1)+3) -> 5 | L8: =INDEX('1k - 2. závod'!$A:$BA,$I8+5,INDEX('1k - Základní list'!$B:$B,MATCH($H8,'1k - Základní list'!$A:$A,0),1)-2) -> Kochan Pavel | M8: =INDEX('1k - 2. závod'!$A:$BA,$I8+5,INDEX('1k - Základní list'!$B:$B,MATCH($H8,'1k - Základní list'!$A:$A,0),1)-1) -> MO ČRS Karviná MILO
A9: 5 | B9: A | C9: 5 | D9: =INDEX('1k - 1. závod'!$A:$BA,$C9+5,INDEX('1k - Základní list'!$B:$B,MATCH($B9,'1k - Základní list'!$A:$A,0),1)) -> 1860 | E9: =INDEX('1k - 1. závod'!$A:$BA,$C9+5,INDEX('1k - Základní list'!$B:$B,MATCH($B9,'1k - Základní list'!$A:$A,0),1)+3) -> 9 | F9: =INDEX('1k - 1. závod'!$A:$BA,$C9+5,INDEX('1k - Základní list'!$B:$B,MATCH($B9,'1k - Základní list'!$A:$A,0),1)-2) -> Ing Sobotka Petr | G9: =INDEX('1k - 1. závod'!$A:$BA,$C9+5,INDEX('1k - Základní list'!$B:$B,MATCH($B9,'1k - Základní list'!$A:$A,0),1)-1) -> MO MRS Letovice PRESTON | H9: A | I9: 5 | J9: =INDEX('1k - 2. závod'!$A:$BA,$I9+5,INDEX('1k - Základní list'!$B:$B,MATCH($H9,'1k - Základní list'!$A:$A,0),1)) -> 795 | K9: =INDEX('1k - 2. závod'!$A:$BA,$I9+5,INDEX('1k - Základní list'!$B:$B,MATCH($H9,'1k - Základní list'!$A:$A,0),1)+3) -> 7 | L9: =INDEX('1k - 2. závod'!$A:$BA,$I9+5,INDEX('1k - Základní list'!$B:$B,MATCH($H9,'1k - Základní list'!$A:$A,0),1)-2) -> Ing. Kolařík David | M9: =INDEX('1k - 2. závod'!$A:$BA,$I9+5,INDEX('1k - Základní list'!$B:$B,MATCH($H9,'1k - Základní list'!$A:$A,0),1)-1) -> MO ČRS Šumperk
A10: 6 | B10: A | C10: 6 | D10: =INDEX('1k - 1. závod'!$A:$BA,$C10+5,INDEX('1k - Základní list'!$B:$B,MATCH($B10,'1k - Základní list'!$A:$A,0),1)) -> 1000 | E10: =INDEX('1k - 1. závod'!$A:$BA,$C10+5,INDEX('1k - Základní list'!$B:$B,MATCH($B10,'1k - Základní list'!$A:$A,0),1)+3) -> 12 | F10: =INDEX('1k - 1. závod'!$A:$BA,$C10+5,INDEX('1k - Základní list'!$B:$B,MATCH($B10,'1k - Základní list'!$A:$A,0),1)-2) -> Tököly Martin | G10: =INDEX('1k - 1. závod'!$A:$BA,$C10+5,INDEX('1k - Základní list'!$B:$B,MATCH($B10,'1k - Základní list'!$A:$A,0),1)-1) -> MO ČRS Karviná MILO | H10: A | I10: 6 | J10: =INDEX('1k - 2. závod'!$A:$BA,$I10+5,INDEX('1k - Základní list'!$B:$B,MATCH($H10,'1k - Základní list'!$A:$A,0),1)) -> 580 | K10: =INDEX('1k - 2. závod'!$A:$BA,$I10+5,INDEX('1k - Základní list'!$B:$B,MATCH($H10,'1k - Základní list'!$A:$A,0),1)+3) -> 11 | L10: =INDEX('1k - 2. závod'!$A:$BA,$I10+5,INDEX('1k - Základní list'!$B:$B,MATCH($H10,'1k - Základní list'!$A:$A,0),1)-2) -> Častulík Luděk | M10: =INDEX('1k - 2. závod'!$A:$BA,$I10+5,INDEX('1k - Základní list'!$B:$B,MATCH($H10,'1k - Základní list'!$A:$A,0),1)-1) -> ČRS MILO Loštice
A11: 7 | B11: A | C11: 7 | D11: =INDEX('1k - 1. závod'!$A:$BA,$C11+5,INDEX('1k - Základní list'!$B:$B,MATCH($B11,'1k - Základní list'!$A:$A,0),1)) -> 3440 | E11: =INDEX('1k - 1. závod'!$A:$BA,$C11+5,INDEX('1k - Základní list'!$B:$B,MATCH($B11,'1k - Základní list'!$A:$A,0),1)+3) -> 6 | F11: =INDEX('1k - 1. závod'!$A:$BA,$C11+5,INDEX('1k - Základní list'!$B:$B,MATCH($B11,'1k - Základní list'!$A:$A,0),1)-2) -> Kyselovský Tomáš | G11: =INDEX('1k - 1. závod'!$A:$BA,$C11+5,INDEX('1k - Základní list'!$B:$B,MATCH($B11,'1k - Základní list'!$A:$A,0),1)-1) -> MO ČRS Ostrava PRESTON | H11: A | I11: 7 | J11: =INDEX('1k - 2. závod'!$A:$BA,$I11+5,INDEX('1k - Základní list'!$B:$B,MATCH($H11,'1k - Základní list'!$A:$A,0),1)) -> 690 | K11: =INDEX('1k - 2. závod'!$A:$BA,$I11+5,INDEX('1k - Základní list'!$B:$B,MATCH($H11,'1k - Základní list'!$A:$A,0),1)+3) -> 10 | L11: =INDEX('1k - 2. závod'!$A:$BA,$I11+5,INDEX('1k - Základní list'!$B:$B,MATCH($H11,'1k - Základní list'!$A:$A,0),1)-2) -> ing. Havlíček Petr | M11: =INDEX('1k - 2. závod'!$A:$BA,$I11+5,INDEX('1k - Základní list'!$B:$B,MATCH($H11,'1k - Základní list'!$A:$A,0),1)-1) -> MO ČRS Ostrava
A12: 8 | B12: A | C12: 8 | D12: =INDEX('1k - 1. závod'!$A:$BA,$C12+5,INDEX('1k - Základní list'!$B:$B,MATCH($B12,'1k - Základní list'!$A:$A,0),1)) -> 4895 | E12: =INDEX('1k - 1. závod'!$A:$BA,$C12+5,INDEX('1k - Základní list'!$B:$B,MATCH($B12,'1k - Základní list'!$A:$A,0),1)+3) -> 3 | F12: =INDEX('1k - 1. závod'!$A:$BA,$C12+5,INDEX('1k - Základní list'!$B:$B,MATCH($B12,'1k - Základní list'!$A:$A,0),1)-2) -> Ing. Heidenreich Jan | G12: =INDEX('1k - 1. závod'!$A:$BA,$C12+5,INDEX('1k - Základní list'!$B:$B,MATCH($B12,'1k - Základní list'!$A:$A,0),1)-1) -> ČRS MILO Loštice | H12: A | I12: 8 | J12: =INDEX('1k - 2. závod'!$A:$BA,$I12+5,INDEX('1k - Základní list'!$B:$B,MATCH($H12,'1k - Základní list'!$A:$A,0),1)) -> 3660 | K12: =INDEX('1k - 2. závod'!$A:$BA,$I12+5,INDEX('1k - Základní list'!$B:$B,MATCH($H12,'1k - Základní list'!$A:$A,0),1)+3) -> 2 | L12: =INDEX('1k - 2. závod'!$A:$BA,$I12+5,INDEX('1k - Základní list'!$B:$B,MATCH($H12,'1k - Základní list'!$A:$A,0),1)-2) -> Grzych Jan | M12: =INDEX('1k - 2. závod'!$A:$BA,$I12+5,INDEX('1k - Základní list'!$B:$B,MATCH($H12,'1k - Základní list'!$A:$A,0),1)-1) -> MO ČRS Vítkov -MAVER TEAM
A13: 9 | B13: A | C13: 9 | D13: =INDEX('1k - 1. závod'!$A:$BA,$C13+5,INDEX('1k - Základní list'!$B:$B,MATCH($B13,'1k - Základní list'!$A:$A,0),1)) -> 1910 | E13: =INDEX('1k - 1. závod'!$A:$BA,$C13+5,INDEX('1k - Základní list'!$B:$B,MATCH($B13,'1k - Základní list'!$A:$A,0),1)+3) -> 8 | F13: =INDEX('1k - 1. závod'!$A:$BA,$C13+5,INDEX('1k - Základní list'!$B:$B,MATCH($B13,'1k - Základní list'!$A:$A,0),1)-2) -> Kapica Radim | G13: =INDEX('1k - 1. závod'!$A:$BA,$C13+5,INDEX('1k - Základní list'!$B:$B,MATCH($B13,'1k - Základní list'!$A:$A,0),1)-1) -> MO ČRS Šumperk | H13: A | I13: 9 | J13: =INDEX('1k - 2. závod'!$A:$BA,$I13+5,INDEX('1k - Základní list'!$B:$B,MATCH($H13,'1k - Základní list'!$A:$A,0),1)) -> 2560 | K13: =INDEX('1k - 2. závod'!$A:$BA,$I13+5,INDEX('1k - Základní list'!$B:$B,MATCH($H13,'1k - Základní list'!$A:$A,0),1)+3) -> 3 | L13: =INDEX('1k - 2. závod'!$A:$BA,$I13+5,INDEX('1k - Základní list'!$B:$B,MATCH($H13,'1k - Základní list'!$A:$A,0),1)-2) -> Pospíšil Radek | M13: =INDEX('1k - 2. závod'!$A:$BA,$I13+5,INDEX('1k - Základní list'!$B:$B,MATCH($H13,'1k - Základní list'!$A:$A,0),1)-1) -> MRS RSK Jižní Morava Tubertini
A14: 10 | B14: A | C14: 10 | D14: =INDEX('1k - 1. závod'!$A:$BA,$C14+5,INDEX('1k - Základní list'!$B:$B,MATCH($B14,'1k - Základní list'!$A:$A,0),1)) -> 3640 | E14: =INDEX('1k - 1. závod'!$A:$BA,$C14+5,INDEX('1k - Základní list'!$B:$B,MATCH($B14,'1k - Základní list'!$A:$A,0),1)+3) -> 4 | F14: =INDEX('1k - 1. závod'!$A:$BA,$C14+5,INDEX('1k - Základní list'!$B:$B,MATCH($B14,'1k - Základní list'!$A:$A,0),1)-2) -> Pospíšil Radek | G14: =INDEX('1k - 1. závod'!$A:$BA,$C14+5,INDEX('1k - Základní list'!$B:$B,MATCH($B14,'1k - Základní list'!$A:$A,0),1)-1) -> MRS RSK Jižní Morava Tubertini | H14: A | I14: 10 | J14: =INDEX('1k - 2. závod'!$A:$BA,$I14+5,INDEX('1k - Základní list'!$B:$B,MATCH($H14,'1k - Základní list'!$A:$A,0),1)) -> 7200 | K14: =INDEX('1k - 2. závod'!$A:$BA,$I14+5,INDEX('1k - Základní list'!$B:$B,MATCH($H14,'1k - Základní list'!$A:$A,0),1)+3) -> 1 | L14: =INDEX('1k - 2. závod'!$A:$BA,$I14+5,INDEX('1k - Základní list'!$B:$B,MATCH($H14,'1k - Základní list'!$A:$A,0),1)-2) -> Stanczyk Marcin | M14: =INDEX('1k - 2. závod'!$A:$BA,$I14+5,INDEX('1k - Základní list'!$B:$B,MATCH($H14,'1k - Základní list'!$A:$A,0),1)-1) -> ČRS Matchpro
A15: 11 | B15: A | C15: 11 | D15: =INDEX('1k - 1. závod'!$A:$BA,$C15+5,INDEX('1k - Základní list'!$B:$B,MATCH($B15,'1k - Základní list'!$A:$A,0),1)) -> 3465 | E15: =INDEX('1k - 1. závod'!$A:$BA,$C15+5,INDEX('1k - Základní list'!$B:$B,MATCH($B15,'1k - Základní list'!$A:$A,0),1)+3) -> 5 | F15: =INDEX('1k - 1. závod'!$A:$BA,$C15+5,INDEX('1k - Základní list'!$B:$B,MATCH($B15,'1k - Základní list'!$A:$A,0),1)-2) -> Kotlář Jindřich | G15: =INDEX('1k - 1. závod'!$A:$BA,$C15+5,INDEX('1k - Základní list'!$B:$B,MATCH($B15,'1k - Základní list'!$A:$A,0),1)-1) -> MO ČRS Ostrava | H15: A | I15: 11 | J15: =INDEX('1k - 2. závod'!$A:$BA,$I15+5,INDEX('1k - Základní list'!$B:$B,MATCH($H15,'1k - Základní list'!$A:$A,0),1)) -> 295 | K15: =INDEX('1k - 2. závod'!$A:$BA,$I15+5,INDEX('1k - Základní list'!$B:$B,MATCH($H15,'1k - Základní list'!$A:$A,0),1)+3) -> 12 | L15: =INDEX('1k - 2. závod'!$A:$BA,$I15+5,INDEX('1k - Základní list'!$B:$B,MATCH($H15,'1k - Základní list'!$A:$A,0),1)-2) -> Mais Jan | M15: =INDEX('1k - 2. závod'!$A:$BA,$I15+5,INDEX('1k - Základní list'!$B:$B,MATCH($H15,'1k - Základní list'!$A:$A,0),1)-1) -> MRS Hrušovany nad Jevišovkou MAVER
A16: 12 | B16: A | C16: 12 | D16: =INDEX('1k - 1. závod'!$A:$BA,$C16+5,INDEX('1k - Základní list'!$B:$B,MATCH($B16,'1k - Základní list'!$A:$A,0),1)) -> 10890 | E16: =INDEX('1k - 1. závod'!$A:$BA,$C16+5,INDEX('1k - Základní list'!$B:$B,MATCH($B16,'1k - Základní list'!$A:$A,0),1)+3) -> 1 | F16: =INDEX('1k - 1. závod'!$A:$BA,$C16+5,INDEX('1k - Základní list'!$B:$B,MATCH($B16,'1k - Základní list'!$A:$A,0),1)-2) -> Chlebek Jakub | G16: =INDEX('1k - 1. závod'!$A:$BA,$C16+5,INDEX('1k - Základní list'!$B:$B,MATCH($B16,'1k - Základní list'!$A:$A,0),1)-1) -> MO ČRS Vítkov -MAVER TEAM | H16: A | I16: 12 | J16: =INDEX('1k - 2. závod'!$A:$BA,$I16+5,INDEX('1k - Základní list'!$B:$B,MATCH($H16,'1k - Základní list'!$A:$A,0),1)) -> 705 | K16: =INDEX('1k - 2. závod'!$A:$BA,$I16+5,INDEX('1k - Základní list'!$B:$B,MATCH($H16,'1k - Základní list'!$A:$A,0),1)+3) -> 9 | L16: =INDEX('1k - 2. závod'!$A:$BA,$I16+5,INDEX('1k - Základní list'!$B:$B,MATCH($H16,'1k - Základní list'!$A:$A,0),1)-2) -> Voda Radek | M16: =INDEX('1k - 2. závod'!$A:$BA,$I16+5,INDEX('1k - Základní list'!$B:$B,MATCH($H16,'1k - Základní list'!$A:$A,0),1)-1) -> MO MRS Letovice PRESTON
A17: 13 | B17: B | C17: 1 | D17: =INDEX('1k - 1. závod'!$A:$BA,$C17+5,INDEX('1k - Základní list'!$B:$B,MATCH($B17,'1k - Základní list'!$A:$A,0),1)) -> 2585 | E17: =INDEX('1k - 1. závod'!$A:$BA,$C17+5,INDEX('1k - Základní list'!$B:$B,MATCH($B17,'1k - Základní list'!$A:$A,0),1)+3) -> 11 | F17: =INDEX('1k - 1. závod'!$A:$BA,$C17+5,INDEX('1k - Základní list'!$B:$B,MATCH($B17,'1k - Základní list'!$A:$A,0),1)-2) -> Fojt Dalibor | G17: =INDEX('1k - 1. závod'!$A:$BA,$C17+5,INDEX('1k - Základní list'!$B:$B,MATCH($B17,'1k - Základní list'!$A:$A,0),1)-1) -> MO ČRS Ostrava PRESTON | H17: B | I17: 1 | J17: =INDEX('1k - 2. závod'!$A:$BA,$I17+5,INDEX('1k - Základní list'!$B:$B,MATCH($H17,'1k - Základní list'!$A:$A,0),1)) -> 930 | K17: =INDEX('1k - 2. závod'!$A:$BA,$I17+5,INDEX('1k - Základní list'!$B:$B,MATCH($H17,'1k - Základní list'!$A:$A,0),1)+3) -> 10 | L17: =INDEX('1k - 2. závod'!$A:$BA,$I17+5,INDEX('1k - Základní list'!$B:$B,MATCH($H17,'1k - Základní list'!$A:$A,0),1)-2) -> Havlíček Jaroslav | M17: =INDEX('1k - 2. závod'!$A:$BA,$I17+5,INDEX('1k - Základní list'!$B:$B,MATCH($H17,'1k - Základní list'!$A:$A,0),1)-1) -> MO ČRS Ostrava
A18: 14 | B18: B | C18: 2 | D18: =INDEX('1k - 1. závod'!$A:$BA,$C18+5,INDEX('1k - Základní list'!$B:$B,MATCH($B18,'1k - Základní list'!$A:$A,0),1)) -> 6090 | E18: =INDEX('1k - 1. závod'!$A:$BA,$C18+5,INDEX('1k - Základní list'!$B:$B,MATCH($B18,'1k - Základní list'!$A:$A,0),1)+3) -> 2 | F18: =INDEX('1k - 1. závod'!$A:$BA,$C18+5,INDEX('1k - Základní list'!$B:$B,MATCH($B18,'1k - Základní list'!$A:$A,0),1)-2) -> Ing Koukal Martin | G18: =INDEX('1k - 1. závod'!$A:$BA,$C18+5,INDEX('1k - Základní list'!$B:$B,MATCH($B18,'1k - Základní list'!$A:$A,0),1)-1) -> ČRS MILO Loštice | H18: B | I18: 2 | J18: =INDEX('1k - 2. závod'!$A:$BA,$I18+5,INDEX('1k - Základní list'!$B:$B,MATCH($H18,'1k - Základní list'!$A:$A,0),1)) -> 1515 | K18: =INDEX('1k - 2. závod'!$A:$BA,$I18+5,INDEX('1k - Základní list'!$B:$B,MATCH($H18,'1k - Základní list'!$A:$A,0),1)+3) -> 8 | L18: =INDEX('1k - 2. závod'!$A:$BA,$I18+5,INDEX('1k - Základní list'!$B:$B,MATCH($H18,'1k - Základní list'!$A:$A,0),1)-2) -> Dořičák Lukáš | M18: =INDEX('1k - 2. závod'!$A:$BA,$I18+5,INDEX('1k - Základní list'!$B:$B,MATCH($H18,'1k - Základní list'!$A:$A,0),1)-1) -> MO ČRS Vítkov -MAVER TEAM
